Workbook

Sheet Инструкция
AA1: (требуется обновление)
B2: ="Код отчёта: " & GetCode() -> Код отчёта: WARM.TOPL.Q1.2020
B3: ="Версия " & GetVersion() -> Версия 1.0
B5: ="Информация о фактически сложившихся ценах и объёмах потребления топлива по итогам " & CURRENT_PRD & " " & god & " года" -> Информация о фактически сложившихся ценах и объёмах потребления топлива по итогам I квартала 2020 года
E7: • На рабочем месте должен быть установлен MS Office 2003 SP3, 2007 SP3, 2010, 2013, 2016 с полной версией MS Excel • Макросы во время работы должны быть включены (!) • Для корректной работы отчёта требуется выбрать низкий уровень безопасности (В меню MS Excel 2003: Сервис | Макрос | Безопасность | выбрать пункт «Низкая безопасность» | OK) (В меню MS Excel 2007/2010/2013/2016: Параметры Excel | Центр управления безопасностью | Параметры центра управления безопасностью | Параметры макросов | Включить все макросы | ОК) • Если Вы работаете в табличном процессоре MS Excel 2007 и выше, то можете использовать для работы формат XLSB (Двоичная книга Excel). При работе в формате XLSB заметно быстрее происходит сохранение файла, а также уменьшается размер по сравнению с форматами XLS и XLSM • Не рекомендуется снимать защиту с листов и каким-либо образом модифицировать защищаемые формулы и расчётные поля, в противном случае, отчёт будет отклонён системой • При сохранении не следует выбирать формат XLSX (Книга Excel), так как в указанном формате макросы, необходимые для работы отчёта, безвозвратно удаляются
E21: A | F21: - предназначенные для заполнения | O21: A | P21: - ссылки и автозаполняемые поля
E22: A | F22: - с формулами и константами | O22: A | P22: - обязательные для заполнения
E35: Если в предложенном Вам списке необходимая организация, МР/МО отсутствуют, обновите реестры с помощью кнопок на листе "Список организаций" В результате синхронизации с базой данных список организаций (МР/МО) будет заменён актуальным (механизм синхронизации требует подключения к сети Интернет и основан на использовании протокола HTTPS (TCP порт 443)) Если после обновления Вам не удалось найти необходимую организацию в списке, обратитесь к ответственному за поддержание реестра Вашего региона.
E41: Адрес сервера ЕИАС для запроса данных: | R41: https://eias.ru
E46: • При сохранении шаблона осуществляется проверка корректности данных, в том числе на наличие значений в ячейках, обязательных для заполнения • Если какая-то ячейка не удовлетворяет условию проверки, на лист «Проверка» добавляется гиперссылка на данную ячейку и указывается причина ошибки • В колонке «Статус» для каждого сообщения возможны 2 значения: ошибка и предупреждение • При наличии сообщений со статусом «Ошибка» шаблон будет отклонён системой и не будет загружен в хранилище данных, сообщения со статусом «Предупреждение» носят информационный характер, и такой шаблон будет принят системой
E59: Консультации: | K59: Обратиться за помощью
E60: Дистрибутивы: | K60: Перейти
E77: Сопровождение: | K77: Обратиться за помощью
E78: Отчётные формы: | K78: Перейти к разделу
E79: Хранилище документов: | K79: Руководство по загрузке документов
E93: При наличии подключения к Интернет, можно автоматически проверять наличие доступных обновлений. Выберите способ оповещения о наличии обновлений для отчёта:
F95: проверять доступные обновления (рекомендуется) | AA95: y
F97: никогда не проверять наличие обновлений (не рекомендуется)
E103: Использовать прокси-сервер для запроса обновлений | R103: нет
E104: Адрес прокси-сервера
E105: Порт

Sheet modInstruction (hidden)

Sheet Лог обновления (hidden)
A2: 3/17/2012 12:12:41 AM | B2: Дата/Время | C2: Сообщение | D2: Статус
B3: 5/30/2020 9:10:42 PM | C3: Проверка доступных обновлений... | D3: Информация
B4: 5/30/2020 9:10:44 PM | C4: Нет доступных обновлений для отчёта с кодом WARM.TOPL.Q1.2020! | D4: Информация
B5: 6/2/2020 10:25:29 AM | C5: Проверка доступных обновлений... | D5: Информация
B6: 6/2/2020 10:25:31 AM | C6: Нет доступных обновлений для отчёта с кодом WARM.TOPL.Q1.2020! | D6: Информация

Sheet Контакты (hidden)
G5: =version -> Версия 1.0
E7: Контактные данные
E10: Субъект РФ | G10: Ставропольский край | J10: 2020
J11: I квартала
G12: Региональный орган исполнительной власти в области тарифного регулирования
F13: Полное название
F14: (код) телефон приёмной
F15: (код) факс приёмной
G17: Ответственный за предоставление информации
A18: L1 | B18: Фамилия Имя Отчество | F18: ФИО
A19: L2 | B19: Должность | F19: Должность
A20: L3 | B20: (код) телефон | F20: (код) телефон
A21: L4 | B21: e-mail | F21: e-mail
G23: Руководитель
F24: ФИО
F25: (код) телефон

Sheet Список организаций
H4: Перечень организаций, оказывающих услуги теплоснабжения
F12: № п/п | G12: ИНН | H12: КПП | I12: Наименование юридического лица | J12: Организационно-правовая форма | K12: Наименование (описание) обособленного подразделения | L12: Вид(-ы) деятельности организации | M12: Плательщик НДС | N12: Объекты организации | O12: RST_ORG_ID | P12: STATUS | R12: Муниципальный район | S12: Муниципальное образование | T12: ОКТМО | U12: Тип муниципального образования | W12: PREVIOUS NUMBER | AC12: Вид(-ы) теплоносителя(-ей) | CA12: URL-ссылка на пояснительную записку с подробным описанием почему для организации в принятых тарифных решениях и фактически используются разные виды (марки) топлива | CC12: Ответственный за предоставление информации
CC13: ФИО | CD13: Должность | CE13: (код) телефон | CF13: e-mail
F15: 0
D16: Изменить | E16: О | F16: 1 | G16: 263410214911 | H16: отсутствует | I16: ИП Согоян Геворг Владимирович | J16: 5 01 02 | Индивидуальные предприниматели | L16: Некомбинированное производство :: Сбыт | M16: нет | N16: =IF('Список объектов'!$Q$16="","Не определено",'Список объектов'!$Q$16) -> 1 | O16: 30479512 | P16: =IF(LEN(BZ16)=0,"ACTI","DELD") -> ACTI | R16: Город Ставрополь | S16: Город Ставрополь | T16: 07701000 | U16: =IF(LEN(T16)=0,"",VLOOKUP(T16,OKTMO_VS_TYPE_LIST,2,FALSE)) -> городской округ | W16: PLAN1X | AC16: Тариф: Носитель - горячая вода (К) | CC16: Согоян Г.В. | CD16: ИП | CE16: (8652)-26-71-69 | CF16: passaz26@mail.ru
G17: Добавить организацию
F19: Дата последнего обновления реестра МР/МО/ОКТМО: 30.05.2020 21:12:48 | L19: Показывать настройки проверки при сохранении
F20: Дата последнего обновления реестра организаций: 30.05.2020 21:12:50
F21: Дата загрузки в отчёт данных мониторинга "Информация о фактически сложившихся ценах и объёмах потребления топлива по итогам {...} 2020 года": (обновление не выполнялось)
F22: Дата последнего обновления данных мониторинга принятых тарифных решений для организаций ТС на 2020 год: 30.05.2020 21:12:44

Sheet Список объектов
H4: Перечень объектов организаций, оказывающих услуги теплоснабжения
F12: № п/п | G12: ИНН | H12: КПП | I12: Наименование юридического лица | J12: Организационно-правовая форма | K12: Наименование (описание) обособленного подразделения | L12: Вид(-ы) деятельности организации | O12: RST_ORG_ID | Q12: Количество объектов | R12: NUMBER | T12: ОКТМО | AB12: № п/п | AC12: Наименование объекта | AD12: Тип объекта | AE12: Виды деятельности | AH12: Адрес объекта | AU12: Территория оказания услуг | BH12: Производство | BJ12: Передача | BL12: Сбыт | CD12: Комментарии
AE13: Производство | AF13: Передача | AG13: Сбыт | AH13: Муниципальный район | AI13: Муниципальное образование | AJ13: ОКТМО | AK13: Населённый пункт | AL13: ОКТМО | AM13: улица, проезд, проспект, переулок и т.п. | AN13: дом, корпус, строение | AU13: Муниципальный район | AV13: Муниципальное образование | AW13: ОКТМО | AX13: Населённый пункт | AY13: ОКТМО | BH13: Установленная мощность, Гкал/час | BI13: Подключенная нагрузка, Гкал/час | BJ13: Установленная мощность, Гкал/час | BK13: Подключенная нагрузка, Гкал/час | BL13: Установленная мощность, Гкал/час | BM13: Подключенная нагрузка, Гкал/час
F15: 0
D16: Изменить | E16: Удалить | F16: =IF('Список организаций'!$F$16="","",'Список организаций'!$F$16) -> 1 | G16: =IF('Список организаций'!$G$16="","",'Список организаций'!$G$16) -> 263410214911 | H16: =IF('Список организаций'!$H$16="","",'Список организаций'!$H$16) -> отсутствует | I16: =IF('Список организаций'!$I$16="","",'Список организаций'!$I$16) -> ИП Согоян Геворг Владимирович | J16: =IF('Список организаций'!$J$16="","",'Список организаций'!$J$16) -> 5 01 02 | Индивидуальные предприниматели | K16: =IF('Список организаций'!$K$16="","",'Список организаций'!$K$16) ->  | L16: =IF('Список организаций'!$L$16="","",'Список организаций'!$L$16) -> Некомбинированное производство :: Сбыт | O16: =IF('Список организаций'!$O$16="","",'Список организаций'!$O$16) -> 30479512 | Q16: =ROW(P18)-ROW(P16)-1 -> 1 | R16: =F16 & ".0" -> 1.0 | T16: =IF('Список организаций'!$T$16="","",'Список организаций'!$T$16) -> 07701000 | AB16: 0
Z17: Изменить | AA17: О | AB17: 1 | AC17: Котельная | AD17: ТИ | AE17: да | AF17: нет | AG17: нет | AH17: Город Ставрополь | AI17: Город Ставрополь | AJ17: 07701000 | AK17: г Ставрополь | AL17: 07701000001 | AM17: проспект К.Маркса | AN17: 59 | AU17: Город Ставрополь | AV17: Город Ставрополь | AW17: 07701000 | AX17: г Ставрополь | AY17: 07701000001 | BH17: 0.86 | BI17: 0.73 | BJ17: 0 | BK17: 0 | BL17: 0 | BM17: 0
AC18: Добавить объект
G19: Добавить организацию

Sheet Т итого (hidden)
P3: 1 | Q3: 1 | R3: 1 | S3: 1 | T3: 2 | U3: 2 | V3: 2 | W3: 2 | X3: 3 | Y3: 3 | Z3: 3 | AA3: 3 | AB3: 4 | AC3: 4 | AD3: 4 | AE3: 4 | AF3: 5 | AG3: 5 | AH3: 5 | AI3: 5 | AJ3: 6 | AK3: 6 | AL3: 6 | AM3: 6 | AN3: 7 | AO3: 7 | AP3: 7 | AQ3: 7 | AR3: 8 | AS3: 8 | AT3: 8 | AU3: 8 | AV3: 9 | AW3: 9 | AX3: 9 | AY3: 9 | AZ3: 10 | BA3: 10 | BB3: 10 | BC3: 10 | BD3: 11 | BE3: 11 | BF3: 11 | BG3: 11 | BH3: 12 | BI3: 12 | BJ3: 12 | BK3: 12 | BL3: 13 | BM3: 13 | BN3: 13 | BO3: 13 | BP3: 14 | BQ3: 14 | BR3: 14 | BS3: 14 | BT3: 15 | BU3: 15 | BV3: 15 | BW3: 15 | BX3: 16 | BY3: 16 | BZ3: 16 | CA3: 16 | CB3: 17 | CC3: 17 | CD3: 17 | CE3: 17 | CF3: 18 | CG3: 18 | CH3: 18 | CI3: 18 | CJ3: 19 | CK3: 19 | CL3: 19 | CM3: 19 | CN3: 20 | CO3: 20 | CP3: 20 | CQ3: 20 | CR3: 21 | CS3: 21 | CT3: 21 | CU3: 21 | CV3: 22 | CW3: 22 | CX3: 22 | CY3: 22 | CZ3: 23 | DA3: 23 | DB3: 23 | DC3: 23 | DD3: 24 | DE3: 24 | DF3: 24 | DG3: 24 | DH3: 25 | DI3: 25 | DJ3: 25 | DK3: 25 | DL3: 26 | DM3: 26 | DN3: 26 | DO3: 26 | DP3: 27 | DQ3: 27 | DR3: 27 | DS3: 27 | DT3: 28 | DU3: 28 | DV3: 28 | DW3: 28 | DX3: 29 | DY3: 29 | DZ3: 29 | EA3: 29 | EB3: 30 | EC3: 30 | ED3: 30 | EE3: 30 | EF3: 31 | EG3: 31 | EH3: 31 | EI3: 31 | EJ3: 32 | EK3: 32 | EL3: 32 | EM3: 32 | EN3: 33 | EO3: 33 | EP3: 33 | EQ3: 33 | ER3: 34 | ES3: 34 | ET3: 34 | EU3: 34 | EV3: 35 | EW3: 35 | EX3: 35 | EY3: 35 | EZ3: 36 | FA3: 36 | FB3: 36 | FC3: 36 | FD3: 37 | FE3: 37 | FF3: 37 | FG3: 37 | FH3: 38 | FI3: 38 | FJ3: 38 | FK3: 38 | FL3: 39 | FM3: 39 | FN3: 39 | FO3: 39 | FP3: 40 | FQ3: 40 | FR3: 40 | FS3: 40 | FT3: 41 | FU3: 41 | FV3: 41 | FW3: 41 | FX3: 42 | FY3: 42 | FZ3: 42 | GA3: 42 | GB3: 43 | GC3: 43 | GD3: 43 | GE3: 43
F4: ="Информация о фактически сложившихся ценах и объёмах потребления топлива по итогам " & CURRENT_PRD & " " & god & " года" -> Информация о фактически сложившихся ценах и объёмах потребления топлива по итогам I квартала 2020 года
F5: ="Субъект Российской Федерации: " & REGION_NAME -> Субъект Российской Федерации: Ставропольский край
F6: № п/п | G6: Показатели | J6: Вид топлива | P6: Газ природный | T6: Газ природный | X6: Газ природный | AB6: Газ природный | AF6: Газ доменный | AJ6: Газ коксовый | AN6: Газ нефтяной (попутный) | AR6: Газ сухой отбензиненный | AV6: Газовый конденсат | AZ6: Газ сжиженный | BD6: Дизельное топливо | BH6: Дизельное топливо | BL6: Дизельное топливо | BP6: Дизельное топливо | BT6: Дизельное топливо | BX6: Мазут | CB6: Мазут | CF6: Мазут | CJ6: Мазут | CN6: Мазут | CR6: Мазут | CV6: Мазут | CZ6: Нефть | DD6: Уголь | DH6: Уголь | DL6: Уголь | DP6: Уголь | DT6: Уголь | DX6: Уголь | EB6: Уголь | EF6: Уголь | EJ6: Уголь | EN6: Уголь | ER6: Электроэнергия | EV6: Электроэнергия | EZ6: Уголь | FD6: Дрова | FH6: Пеллеты | FL6: Опилки | FP6: Торф | FT6: Сланцы | FX6: Печное бытовое топливо | GB6: Прочие виды топлива
J7: Марка топлива | P7: Всего | T7: Газ лимитный | X7: Газ сверхлимитный | AB7: Газ коммерческий | BD7: Всего | BH7: А (арктическое) | BL7: З (зимнее) | BP7: Л (летнее) | BT7: Е (межсезонное) | BX7: Всего | CB7: М-40 | CF7: М-100 | CJ7: М-200 | CN7: мазут марки "Т" | CR7: Ф-5 | CV7: Ф-12 | DD7: Всего | DH7: Уголь антрацит | DL7: Уголь бурый | DP7: Уголь газовый | DT7: Уголь длиннопламенный | DX7: Уголь жирный | EB7: Уголь коксовый | EF7: Уголь отощённо-спекающийся | EJ7: Уголь слабоспекающийся | EN7: Уголь тощий | ER7: Энергия | EV7: Заявленная мощность | EZ7: Уголь древесный
J8: Единица измерения | P8: тыс.куб.м | T8: тыс.куб.м | X8: тыс.куб.м | AB8: тыс.куб.м | AF8: тыс.куб.м | AJ8: тыс.куб.м | AN8: тыс.куб.м | AR8: тыс.куб.м | AV8: тнт | AZ8: тнт | BD8: тнт | BH8: тнт | BL8: тнт | BP8: тнт | BT8: тнт | BX8: тнт | CB8: тнт | CF8: тнт | CJ8: тнт | CN8: тнт | CR8: тнт | CV8: тнт | CZ8: тнт | DD8: тнт | DH8: тнт | DL8: тнт | DP8: тнт | DT8: тнт | DX8: тнт | EB8: тнт | EF8: тнт | EJ8: тнт | EN8: тнт | ER8: тыс.кВт*час | EV8: МВт | EZ8: тнт | FD8: тнт | FH8: тнт | FL8: тнт | FP8: тнт | FT8: тнт | FX8: тнт | GB8: тнт
J9: Период | P9: 12 месяцев | Q9: 9 месяцев | R9: I полугодие | S9: I квартал | T9: 12 месяцев | U9: 9 месяцев | V9: I полугодие | W9: I квартал | X9: 12 месяцев | Y9: 9 месяцев | Z9: I полугодие | AA9: I квартал | AB9: 12 месяцев | AC9: 9 месяцев | AD9: I полугодие | AE9: I квартал | AF9: 12 месяцев | AG9: 9 месяцев | AH9: I полугодие | AI9: I квартал | AJ9: 12 месяцев | AK9: 9 месяцев | AL9: I полугодие | AM9: I квартал | AN9: 12 месяцев | AO9: 9 месяцев | AP9: I полугодие | AQ9: I квартал | AR9: 12 месяцев | AS9: 9 месяцев | AT9: I полугодие | AU9: I квартал | AV9: 12 месяцев | AW9: 9 месяцев | AX9: I полугодие | AY9: I квартал | AZ9: 12 месяцев | BA9: 9 месяцев | BB9: I полугодие | BC9: I квартал | BD9: 12 месяцев | BE9: 9 месяцев | BF9: I полугодие | BG9: I квартал | BH9: 12 месяцев | BI9: 9 месяцев | BJ9: I полугодие | BK9: I квартал | BL9: 12 месяцев | BM9: 9 месяцев | BN9: I полугодие | BO9: I квартал | BP9: 12 месяцев | BQ9: 9 месяцев | BR9: I полугодие | BS9: I квартал | BT9: 12 месяцев | BU9: 9 месяцев | BV9: I полугодие | BW9: I квартал | BX9: 12 месяцев | BY9: 9 месяцев | BZ9: I полугодие | CA9: I квартал | CB9: 12 месяцев | CC9: 9 месяцев | CD9: I полугодие | CE9: I квартал | CF9: 12 месяцев | CG9: 9 месяцев | CH9: I полугодие | CI9: I квартал | CJ9: 12 месяцев | CK9: 9 месяцев | CL9: I полугодие | CM9: I квартал | CN9: 12 месяцев | CO9: 9 месяцев | CP9: I полугодие | CQ9: I квартал | CR9: 12 месяцев | CS9: 9 месяцев | CT9: I полугодие | CU9: I квартал | CV9: 12 месяцев | CW9: 9 месяцев | CX9: I полугодие | CY9: I квартал | CZ9: 12 месяцев | DA9: 9 месяцев | DB9: I полугодие | DC9: I квартал | DD9: 12 месяцев | DE9: 9 месяцев | DF9: I полугодие | DG9: I квартал | DH9: 12 месяцев | DI9: 9 месяцев | DJ9: I полугодие | DK9: I квартал | DL9: 12 месяцев | DM9: 9 месяцев | DN9: I полугодие | DO9: I квартал | DP9: 12 месяцев | DQ9: 9 месяцев | DR9: I полугодие | DS9: I квартал | DT9: 12 месяцев | DU9: 9 месяцев | DV9: I полугодие | DW9: I квартал | DX9: 12 месяцев | DY9: 9 месяцев | DZ9: I полугодие | EA9: I квартал | EB9: 12 месяцев | EC9: 9 месяцев | ED9: I полугодие | EE9: I квартал | EF9: 12 месяцев | EG9: 9 месяцев | EH9: I полугодие | EI9: I квартал | EJ9: 12 месяцев | EK9: 9 месяцев | EL9: I полугодие | EM9: I квартал | EN9: 12 месяцев | EO9: 9 месяцев | EP9: I полугодие | EQ9: I квартал | ER9: 12 месяцев | ES9: 9 месяцев | ET9: I полугодие | EU9: I квартал | EV9: 12 месяцев | EW9: 9 месяцев | EX9: I полугодие | EY9: I квартал | EZ9: 12 месяцев | FA9: 9 месяцев | FB9: I полугодие | FC9: I квартал | FD9: 12 месяцев | FE9: 9 месяцев | FF9: I полугодие | FG9: I квартал | FH9: 12 месяцев | FI9: 9 месяцев | FJ9: I полугодие | FK9: I квартал | FL9: 12 месяцев | FM9: 9 месяцев | FN9: I полугодие | FO9: I квартал | FP9: 12 месяцев | FQ9: 9 месяцев | FR9: I полугодие | FS9: I квартал | FT9: 12 месяцев | FU9: 9 месяцев | FV9: I полугодие | FW9: I квартал | FX9: 12 месяцев | FY9: 9 месяцев | FZ9: I полугодие | GA9: I квартал | GB9: 12 месяцев | GC9: 9 месяцев | GD9: I полугодие | GE9: I квартал
F11: 1.1.1 | G11: Цена натурального топлива без учёта транспортировки (руб./ед.изм.) | J11: без НДС | AV11: =Т!AV11 -> 0 | AW11: =Т!AW11 -> 0 | AX11: =Т!AX11 -> 0 | AY11: =Т!AY11 -> 0 | AZ11: =Т!AZ11 -> 0 | BA11: =Т!BA11 -> 0 | BB11: =Т!BB11 -> 0 | BC11: =Т!BC11 -> 0 | BD11: =Т!BD11 -> 0 | BE11: =Т!BE11 -> 0 | BF11: =Т!BF11 -> 0 | BG11: =Т!BG11 -> 0 | BH11: =Т!BH11 -> 0 | BI11: =Т!BI11 -> 0 | BJ11: =Т!BJ11 -> 0 | BK11: =Т!BK11 -> 0 | BL11: =Т!BL11 -> 0 | BM11: =Т!BM11 -> 0 | BN11: =Т!BN11 -> 0 | BO11: =Т!BO11 -> 0 | BP11: =Т!BP11 -> 0 | BQ11: =Т!BQ11 -> 0 | BR11: =Т!BR11 -> 0 | BS11: =Т!BS11 -> 0 | BT11: =Т!BT11 -> 0 | BU11: =Т!BU11 -> 0 | BV11: =Т!BV11 -> 0 | BW11: =Т!BW11 -> 0 | BX11: =Т!BX11 -> 0 | BY11: =Т!BY11 -> 0 | BZ11: =Т!BZ11 -> 0 | CA11: =Т!CA11 -> 0 | CB11: =Т!CB11 -> 0 | CC11: =Т!CC11 -> 0 | CD11: =Т!CD11 -> 0 | CE11: =Т!CE11 -> 0 | CF11: =Т!CF11 -> 0 | CG11: =Т!CG11 -> 0 | CH11: =Т!CH11 -> 0 | CI11: =Т!CI11 -> 0 | CJ11: =Т!CJ11 -> 0 | CK11: =Т!CK11 -> 0 | CL11: =Т!CL11 -> 0 | CM11: =Т!CM11 -> 0 | CN11: =Т!CN11 -> 0 | CO11: =Т!CO11 -> 0 | CP11: =Т!CP11 -> 0 | CQ11: =Т!CQ11 -> 0 | CR11: =Т!CR11 -> 0 | CS11: =Т!CS11 -> 0 | CT11: =Т!CT11 -> 0 | CU11: =Т!CU11 -> 0 | CV11: =Т!CV11 -> 0 | CW11: =Т!CW11 -> 0 | CX11: =Т!CX11 -> 0 | CY11: =Т!CY11 -> 0 | CZ11: =Т!CZ11 -> 0 | DA11: =Т!DA11 -> 0 | DB11: =Т!DB11 -> 0 | DC11: =Т!DC11 -> 0 | DD11: =Т!DD11 -> 0 | DE11: =Т!DE11 -> 0 | DF11: =Т!DF11 -> 0 | DG11: =Т!DG11 -> 0 | DH11: =Т!DH11 -> 0 | DI11: =Т!DI11 -> 0 | DJ11: =Т!DJ11 -> 0 | DK11: =Т!DK11 -> 0 | DL11: =Т!DL11 -> 0 | DM11: =Т!DM11 -> 0 | DN11: =Т!DN11 -> 0 | DO11: =Т!DO11 -> 0 | DP11: =Т!DP11 -> 0 | DQ11: =Т!DQ11 -> 0 | DR11: =Т!DR11 -> 0 | DS11: =Т!DS11 -> 0 | DT11: =Т!DT11 -> 0 | DU11: =Т!DU11 -> 0 | DV11: =Т!DV11 -> 0 | DW11: =Т!DW11 -> 0 | DX11: =Т!DX11 -> 0 | DY11: =Т!DY11 -> 0 | DZ11: =Т!DZ11 -> 0 | EA11: =Т!EA11 -> 0 | EB11: =Т!EB11 -> 0 | EC11: =Т!EC11 -> 0 | ED11: =Т!ED11 -> 0 | EE11: =Т!EE11 -> 0 | EF11: =Т!EF11 -> 0 | EG11: =Т!EG11 -> 0 | EH11: =Т!EH11 -> 0 | EI11: =Т!EI11 -> 0 | EJ11: =Т!EJ11 -> 0 | EK11: =Т!EK11 -> 0 | EL11: =Т!EL11 -> 0 | EM11: =Т!EM11 -> 0 | EN11: =Т!EN11 -> 0 | EO11: =Т!EO11 -> 0 | EP11: =Т!EP11 -> 0 | EQ11: =Т!EQ11 -> 0 | EZ11: =Т!EZ11 -> 0 | FA11: =Т!FA11 -> 0 | FB11: =Т!FB11 -> 0 | FC11: =Т!FC11 -> 0 | FD11: =Т!FD11 -> 0 | FE11: =Т!FE11 -> 0 | FF11: =Т!FF11 -> 0 | FG11: =Т!FG11 -> 0 | FH11: =Т!FH11 -> 0 | FI11: =Т!FI11 -> 0 | FJ11: =Т!FJ11 -> 0 | FK11: =Т!FK11 -> 0 | FL11: =Т!FL11 -> 0 | FM11: =Т!FM11 -> 0 | FN11: =Т!FN11 -> 0 | FO11: =Т!FO11 -> 0 | FP11: =Т!FP11 -> 0 | FQ11: =Т!FQ11 -> 0 | FR11: =Т!FR11 -> 0 | FS11: =Т!FS11 -> 0 | FT11: =Т!FT11 -> 0 | FU11: =Т!FU11 -> 0 | FV11: =Т!FV11 -> 0 | FW11: =Т!FW11 -> 0 | FX11: =Т!FX11 -> 0 | FY11: =Т!FY11 -> 0 | FZ11: =Т!FZ11 -> 0 | GA11: =Т!GA11 -> 0 | GB11: =Т!GB11 -> 0 | GC11: =Т!GC11 -> 0 | GD11: =Т!GD11 -> 0 | GE11: =Т!GE11 -> 0
F12: 1.1.2 | J12: с НДС | AV12: =Т!AV12 -> 0 | AW12: =Т!AW12 -> 0 | AX12: =Т!AX12 -> 0 | AY12: =Т!AY12 -> 0 | AZ12: =Т!AZ12 -> 0 | BA12: =Т!BA12 -> 0 | BB12: =Т!BB12 -> 0 | BC12: =Т!BC12 -> 0 | BD12: =Т!BD12 -> 0 | BE12: =Т!BE12 -> 0 | BF12: =Т!BF12 -> 0 | BG12: =Т!BG12 -> 0 | BH12: =Т!BH12 -> 0 | BI12: =Т!BI12 -> 0 | BJ12: =Т!BJ12 -> 0 | BK12: =Т!BK12 -> 0 | BL12: =Т!BL12 -> 0 | BM12: =Т!BM12 -> 0 | BN12: =Т!BN12 -> 0 | BO12: =Т!BO12 -> 0 | BP12: =Т!BP12 -> 0 | BQ12: =Т!BQ12 -> 0 | BR12: =Т!BR12 -> 0 | BS12: =Т!BS12 -> 0 | BT12: =Т!BT12 -> 0 | BU12: =Т!BU12 -> 0 | BV12: =Т!BV12 -> 0 | BW12: =Т!BW12 -> 0 | BX12: =Т!BX12 -> 0 | BY12: =Т!BY12 -> 0 | BZ12: =Т!BZ12 -> 0 | CA12: =Т!CA12 -> 0 | CB12: =Т!CB12 -> 0 | CC12: =Т!CC12 -> 0 | CD12: =Т!CD12 -> 0 | CE12: =Т!CE12 -> 0 | CF12: =Т!CF12 -> 0 | CG12: =Т!CG12 -> 0 | CH12: =Т!CH12 -> 0 | CI12: =Т!CI12 -> 0 | CJ12: =Т!CJ12 -> 0 | CK12: =Т!CK12 -> 0 | CL12: =Т!CL12 -> 0 | CM12: =Т!CM12 -> 0 | CN12: =Т!CN12 -> 0 | CO12: =Т!CO12 -> 0 | CP12: =Т!CP12 -> 0 | CQ12: =Т!CQ12 -> 0 | CR12: =Т!CR12 -> 0 | CS12: =Т!CS12 -> 0 | CT12: =Т!CT12 -> 0 | CU12: =Т!CU12 -> 0 | CV12: =Т!CV12 -> 0 | CW12: =Т!CW12 -> 0 | CX12: =Т!CX12 -> 0 | CY12: =Т!CY12 -> 0 | CZ12: =Т!CZ12 -> 0 | DA12: =Т!DA12 -> 0 | DB12: =Т!DB12 -> 0 | DC12: =Т!DC12 -> 0 | DD12: =Т!DD12 -> 0 | DE12: =Т!DE12 -> 0 | DF12: =Т!DF12 -> 0 | DG12: =Т!DG12 -> 0 | DH12: =Т!DH12 -> 0 | DI12: =Т!DI12 -> 0 | DJ12: =Т!DJ12 -> 0 | DK12: =Т!DK12 -> 0 | DL12: =Т!DL12 -> 0 | DM12: =Т!DM12 -> 0 | DN12: =Т!DN12 -> 0 | DO12: =Т!DO12 -> 0 | DP12: =Т!DP12 -> 0 | DQ12: =Т!DQ12 -> 0 | DR12: =Т!DR12 -> 0 | DS12: =Т!DS12 -> 0 | DT12: =Т!DT12 -> 0 | DU12: =Т!DU12 -> 0 | DV12: =Т!DV12 -> 0 | DW12: =Т!DW12 -> 0 | DX12: =Т!DX12 -> 0 | DY12: =Т!DY12 -> 0 | DZ12: =Т!DZ12 -> 0 | EA12: =Т!EA12 -> 0 | EB12: =Т!EB12 -> 0 | EC12: =Т!EC12 -> 0 | ED12: =Т!ED12 -> 0 | EE12: =Т!EE12 -> 0 | EF12: =Т!EF12 -> 0 | EG12: =Т!EG12 -> 0 | EH12: =Т!EH12 -> 0 | EI12: =Т!EI12 -> 0 | EJ12: =Т!EJ12 -> 0 | EK12: =Т!EK12 -> 0 | EL12: =Т!EL12 -> 0 | EM12: =Т!EM12 -> 0 | EN12: =Т!EN12 -> 0 | EO12: =Т!EO12 -> 0 | EP12: =Т!EP12 -> 0 | EQ12: =Т!EQ12 -> 0 | EZ12: =Т!EZ12 -> 0 | FA12: =Т!FA12 -> 0 | FB12: =Т!FB12 -> 0 | FC12: =Т!FC12 -> 0 | FD12: =Т!FD12 -> 0 | FE12: =Т!FE12 -> 0 | FF12: =Т!FF12 -> 0 | FG12: =Т!FG12 -> 0 | FH12: =Т!FH12 -> 0 | FI12: =Т!FI12 -> 0 | FJ12: =Т!FJ12 -> 0 | FK12: =Т!FK12 -> 0 | FL12: =Т!FL12 -> 0 | FM12: =Т!FM12 -> 0 | FN12: =Т!FN12 -> 0 | FO12: =Т!FO12 -> 0 | FP12: =Т!FP12 -> 0 | FQ12: =Т!FQ12 -> 0 | FR12: =Т!FR12 -> 0 | FS12: =Т!FS12 -> 0 | FT12: =Т!FT12 -> 0 | FU12: =Т!FU12 -> 0 | FV12: =Т!FV12 -> 0 | FW12: =Т!FW12 -> 0 | FX12: =Т!FX12 -> 0 | FY12: =Т!FY12 -> 0 | FZ12: =Т!FZ12 -> 0 | GA12: =Т!GA12 -> 0 | GB12: =Т!GB12 -> 0 | GC12: =Т!GC12 -> 0 | GD12: =Т!GD12 -> 0 | GE12: =Т!GE12 -> 0
F13: 1.2.1 | G13: Цена натурального топлива с учётом транспортировки (руб./ед.изм.) | J13: без НДС | P13: =Т!P13 -> 0 | Q13: =Т!Q13 -> 0 | R13: =Т!R13 -> 0 | S13: =Т!S13 -> 7262.15269 | T13: =Т!T13 -> 0 | U13: =Т!U13 -> 0 | V13: =Т!V13 -> 0 | W13: =Т!W13 -> 7122.5684 | X13: =Т!X13 -> 0 | Y13: =Т!Y13 -> 0 | Z13: =Т!Z13 -> 0 | AA13: =Т!AA13 -> 10580.3045 | AB13: =Т!AB13 -> 0 | AC13: =Т!AC13 -> 0 | AD13: =Т!AD13 -> 0 | AE13: =Т!AE13 -> 0 | AF13: =Т!AF13 -> 0 | AG13: =Т!AG13 -> 0 | AH13: =Т!AH13 -> 0 | AI13: =Т!AI13 -> 0 | AJ13: =Т!AJ13 -> 0 | AK13: =Т!AK13 -> 0 | AL13: =Т!AL13 -> 0 | AM13: =Т!AM13 -> 0 | AN13: =Т!AN13 -> 0 | AO13: =Т!AO13 -> 0 | AP13: =Т!AP13 -> 0 | AQ13: =Т!AQ13 -> 0 | AR13: =Т!AR13 -> 0 | AS13: =Т!AS13 -> 0 | AT13: =Т!AT13 -> 0 | AU13: =Т!AU13 -> 0 | AV13: =Т!AV13 -> 0 | AW13: =Т!AW13 -> 0 | AX13: =Т!AX13 -> 0 | AY13: =Т!AY13 -> 0 | AZ13: =Т!AZ13 -> 0 | BA13: =Т!BA13 -> 0 | BB13: =Т!BB13 -> 0 | BC13: =Т!BC13 -> 0 | BD13: =Т!BD13 -> 0 | BE13: =Т!BE13 -> 0 | BF13: =Т!BF13 -> 0 | BG13: =Т!BG13 -> 0 | BH13: =Т!BH13 -> 0 | BI13: =Т!BI13 -> 0 | BJ13: =Т!BJ13 -> 0 | BK13: =Т!BK13 -> 0 | BL13: =Т!BL13 -> 0 | BM13: =Т!BM13 -> 0 | BN13: =Т!BN13 -> 0 | BO13: =Т!BO13 -> 0 | BP13: =Т!BP13 -> 0 | BQ13: =Т!BQ13 -> 0 | BR13: =Т!BR13 -> 0 | BS13: =Т!BS13 -> 0 | BT13: =Т!BT13 -> 0 | BU13: =Т!BU13 -> 0 | BV13: =Т!BV13 -> 0 | BW13: =Т!BW13 -> 0 | BX13: =Т!BX13 -> 0 | BY13: =Т!BY13 -> 0 | BZ13: =Т!BZ13 -> 0 | CA13: =Т!CA13 -> 0 | CB13: =Т!CB13 -> 0 | CC13: =Т!CC13 -> 0 | CD13: =Т!CD13 -> 0 | CE13: =Т!CE13 -> 0 | CF13: =Т!CF13 -> 0 | CG13: =Т!CG13 -> 0 | CH13: =Т!CH13 -> 0 | CI13: =Т!CI13 -> 0 | CJ13: =Т!CJ13 -> 0 | CK13: =Т!CK13 -> 0 | CL13: =Т!CL13 -> 0 | CM13: =Т!CM13 -> 0 | CN13: =Т!CN13 -> 0 | CO13: =Т!CO13 -> 0 | CP13: =Т!CP13 -> 0 | CQ13: =Т!CQ13 -> 0 | CR13: =Т!CR13 -> 0 | CS13: =Т!CS13 -> 0 | CT13: =Т!CT13 -> 0 | CU13: =Т!CU13 -> 0 | CV13: =Т!CV13 -> 0 | CW13: =Т!CW13 -> 0 | CX13: =Т!CX13 -> 0 | CY13: =Т!CY13 -> 0 | CZ13: =Т!CZ13 -> 0 | DA13: =Т!DA13 -> 0 | DB13: =Т!DB13 -> 0 | DC13: =Т!DC13 -> 0 | DD13: =Т!DD13 -> 0 | DE13: =Т!DE13 -> 0 | DF13: =Т!DF13 -> 0 | DG13: =Т!DG13 -> 0 | DH13: =Т!DH13 -> 0 | DI13: =Т!DI13 -> 0 | DJ13: =Т!DJ13 -> 0 | DK13: =Т!DK13 -> 0 | DL13: =Т!DL13 -> 0 | DM13: =Т!DM13 -> 0 | DN13: =Т!DN13 -> 0 | DO13: =Т!DO13 -> 0 | DP13: =Т!DP13 -> 0 | DQ13: =Т!DQ13 -> 0 | DR13: =Т!DR13 -> 0 | DS13: =Т!DS13 -> 0 | DT13: =Т!DT13 -> 0 | DU13: =Т!DU13 -> 0 | DV13: =Т!DV13 -> 0 | DW13: =Т!DW13 -> 0 | DX13: =Т!DX13 -> 0 | DY13: =Т!DY13 -> 0 | DZ13: =Т!DZ13 -> 0 | EA13: =Т!EA13 -> 0 | EB13: =Т!EB13 -> 0 | EC13: =Т!EC13 -> 0 | ED13: =Т!ED13 -> 0 | EE13: =Т!EE13 -> 0 | EF13: =Т!EF13 -> 0 | EG13: =Т!EG13 -> 0 | EH13: =Т!EH13 -> 0 | EI13: =Т!EI13 -> 0 | EJ13: =Т!EJ13 -> 0 | EK13: =Т!EK13 -> 0 | EL13: =Т!EL13 -> 0 | EM13: =Т!EM13 -> 0 | EN13: =Т!EN13 -> 0 | EO13: =Т!EO13 -> 0 | EP13: =Т!EP13 -> 0 | EQ13: =Т!EQ13 -> 0 | EZ13: =Т!EZ13 -> 0 | FA13: =Т!FA13 -> 0 | FB13: =Т!FB13 -> 0 | FC13: =Т!FC13 -> 0 | FD13: =Т!FD13 -> 0 | FE13: =Т!FE13 -> 0 | FF13: =Т!FF13 -> 0 | FG13: =Т!FG13 -> 0 | FH13: =Т!FH13 -> 0 | FI13: =Т!FI13 -> 0 | FJ13: =Т!FJ13 -> 0 | FK13: =Т!FK13 -> 0 | FL13: =Т!FL13 -> 0 | FM13: =Т!FM13 -> 0 | FN13: =Т!FN13 -> 0 | FO13: =Т!FO13 -> 0 | FP13: =Т!FP13 -> 0 | FQ13: =Т!FQ13 -> 0 | FR13: =Т!FR13 -> 0 | FS13: =Т!FS13 -> 0 | FT13: =Т!FT13 -> 0 | FU13: =Т!FU13 -> 0 | FV13: =Т!FV13 -> 0 | FW13: =Т!FW13 -> 0 | FX13: =Т!FX13 -> 0 | FY13: =Т!FY13 -> 0 | FZ13: =Т!FZ13 -> 0 | GA13: =Т!GA13 -> 0 | GB13: =Т!GB13 -> 0 | GC13: =Т!GC13 -> 0 | GD13: =Т!GD13 -> 0 | GE13: =Т!GE13 -> 0
F14: 1.2.2 | J14: с НДС | P14: =Т!P14 -> 0 | Q14: =Т!Q14 -> 0 | R14: =Т!R14 -> 0 | S14: =Т!S14 -> 7262.15269 | T14: =Т!T14 -> 0 | U14: =Т!U14 -> 0 | V14: =Т!V14 -> 0 | W14: =Т!W14 -> 7122.5684 | X14: =Т!X14 -> 0 | Y14: =Т!Y14 -> 0 | Z14: =Т!Z14 -> 0 | AA14: =Т!AA14 -> 10580.3045 | AB14: =Т!AB14 -> 0 | AC14: =Т!AC14 -> 0 | AD14: =Т!AD14 -> 0 | AE14: =Т!AE14 -> 0 | AF14: =Т!AF14 -> 0 | AG14: =Т!AG14 -> 0 | AH14: =Т!AH14 -> 0 | AI14: =Т!AI14 -> 0 | AJ14: =Т!AJ14 -> 0 | AK14: =Т!AK14 -> 0 | AL14: =Т!AL14 -> 0 | AM14: =Т!AM14 -> 0 | AN14: =Т!AN14 -> 0 | AO14: =Т!AO14 -> 0 | AP14: =Т!AP14 -> 0 | AQ14: =Т!AQ14 -> 0 | AR14: =Т!AR14 -> 0 | AS14: =Т!AS14 -> 0 | AT14: =Т!AT14 -> 0 | AU14: =Т!AU14 -> 0 | AV14: =Т!AV14 -> 0 | AW14: =Т!AW14 -> 0 | AX14: =Т!AX14 -> 0 | AY14: =Т!AY14 -> 0 | AZ14: =Т!AZ14 -> 0 | BA14: =Т!BA14 -> 0 | BB14: =Т!BB14 -> 0 | BC14: =Т!BC14 -> 0 | BD14: =Т!BD14 -> 0 | BE14: =Т!BE14 -> 0 | BF14: =Т!BF14 -> 0 | BG14: =Т!BG14 -> 0 | BH14: =Т!BH14 -> 0 | BI14: =Т!BI14 -> 0 | BJ14: =Т!BJ14 -> 0 | BK14: =Т!BK14 -> 0 | BL14: =Т!BL14 -> 0 | BM14: =Т!BM14 -> 0 | BN14: =Т!BN14 -> 0 | BO14: =Т!BO14 -> 0 | BP14: =Т!BP14 -> 0 | BQ14: =Т!BQ14 -> 0 | BR14: =Т!BR14 -> 0 | BS14: =Т!BS14 -> 0 | BT14: =Т!BT14 -> 0 | BU14: =Т!BU14 -> 0 | BV14: =Т!BV14 -> 0 | BW14: =Т!BW14 -> 0 | BX14: =Т!BX14 -> 0 | BY14: =Т!BY14 -> 0 | BZ14: =Т!BZ14 -> 0 | CA14: =Т!CA14 -> 0 | CB14: =Т!CB14 -> 0 | CC14: =Т!CC14 -> 0 | CD14: =Т!CD14 -> 0 | CE14: =Т!CE14 -> 0 | CF14: =Т!CF14 -> 0 | CG14: =Т!CG14 -> 0 | CH14: =Т!CH14 -> 0 | CI14: =Т!CI14 -> 0 | CJ14: =Т!CJ14 -> 0 | CK14: =Т!CK14 -> 0 | CL14: =Т!CL14 -> 0 | CM14: =Т!CM14 -> 0 | CN14: =Т!CN14 -> 0 | CO14: =Т!CO14 -> 0 | CP14: =Т!CP14 -> 0 | CQ14: =Т!CQ14 -> 0 | CR14: =Т!CR14 -> 0 | CS14: =Т!CS14 -> 0 | CT14: =Т!CT14 -> 0 | CU14: =Т!CU14 -> 0 | CV14: =Т!CV14 -> 0 | CW14: =Т!CW14 -> 0 | CX14: =Т!CX14 -> 0 | CY14: =Т!CY14 -> 0 | CZ14: =Т!CZ14 -> 0 | DA14: =Т!DA14 -> 0 | DB14: =Т!DB14 -> 0 | DC14: =Т!DC14 -> 0 | DD14: =Т!DD14 -> 0 | DE14: =Т!DE14 -> 0 | DF14: =Т!DF14 -> 0 | DG14: =Т!DG14 -> 0 | DH14: =Т!DH14 -> 0 | DI14: =Т!DI14 -> 0 | DJ14: =Т!DJ14 -> 0 | DK14: =Т!DK14 -> 0 | DL14: =Т!DL14 -> 0 | DM14: =Т!DM14 -> 0 | DN14: =Т!DN14 -> 0 | DO14: =Т!DO14 -> 0 | DP14: =Т!DP14 -> 0 | DQ14: =Т!DQ14 -> 0 | DR14: =Т!DR14 -> 0 | DS14: =Т!DS14 -> 0 | DT14: =Т!DT14 -> 0 | DU14: =Т!DU14 -> 0 | DV14: =Т!DV14 -> 0 | DW14: =Т!DW14 -> 0 | DX14: =Т!DX14 -> 0 | DY14: =Т!DY14 -> 0 | DZ14: =Т!DZ14 -> 0 | EA14: =Т!EA14 -> 0 | EB14: =Т!EB14 -> 0 | EC14: =Т!EC14 -> 0 | ED14: =Т!ED14 -> 0 | EE14: =Т!EE14 -> 0 | EF14: =Т!EF14 -> 0 | EG14: =Т!EG14 -> 0 | EH14: =Т!EH14 -> 0 | EI14: =Т!EI14 -> 0 | EJ14: =Т!EJ14 -> 0 | EK14: =Т!EK14 -> 0 | EL14: =Т!EL14 -> 0 | EM14: =Т!EM14 -> 0 | EN14: =Т!EN14 -> 0 | EO14: =Т!EO14 -> 0 | EP14: =Т!EP14 -> 0 | EQ14: =Т!EQ14 -> 0 | EZ14: =Т!EZ14 -> 0 | FA14: =Т!FA14 -> 0 | FB14: =Т!FB14 -> 0 | FC14: =Т!FC14 -> 0 | FD14: =Т!FD14 -> 0 | FE14: =Т!FE14 -> 0 | FF14: =Т!FF14 -> 0 | FG14: =Т!FG14 -> 0 | FH14: =Т!FH14 -> 0 | FI14: =Т!FI14 -> 0 | FJ14: =Т!FJ14 -> 0 | FK14: =Т!FK14 -> 0 | FL14: =Т!FL14 -> 0 | FM14: =Т!FM14 -> 0 | FN14: =Т!FN14 -> 0 | FO14: =Т!FO14 -> 0 | FP14: =Т!FP14 -> 0 | FQ14: =Т!FQ14 -> 0 | FR14: =Т!FR14 -> 0 | FS14: =Т!FS14 -> 0 | FT14: =Т!FT14 -> 0 | FU14: =Т!FU14 -> 0 | FV14: =Т!FV14 -> 0 | FW14: =Т!FW14 -> 0 | FX14: =Т!FX14 -> 0 | FY14: =Т!FY14 -> 0 | FZ14: =Т!FZ14 -> 0 | GA14: =Т!GA14 -> 0 | GB14: =Т!GB14 -> 0 | GC14: =Т!GC14 -> 0 | GD14: =Т!GD14 -> 0 | GE14: =Т!GE14 -> 0
F15: 1.3.1 | G15: Цена условного топлива с учётом транспортировки (руб./тут) | J15: без НДС | P15: =Т!P15 -> 0 | Q15: =Т!Q15 -> 0 | R15: =Т!R15 -> 0 | S15: =Т!S15 -> 6225.591676 | T15: =Т!T15 -> 0 | U15: =Т!U15 -> 0 | V15: =Т!V15 -> 0 | W15: =Т!W15 -> 6105.930904 | X15: =Т!X15 -> 0 | Y15: =Т!Y15 -> 0 | Z15: =Т!Z15 -> 0 | AA15: =Т!AA15 -> 9070.128161 | AB15: =Т!AB15 -> 0 | AC15: =Т!AC15 -> 0 | AD15: =Т!AD15 -> 0 | AE15: =Т!AE15 -> 0 | AF15: =Т!AF15 -> 0 | AG15: =Т!AG15 -> 0 | AH15: =Т!AH15 -> 0 | AI15: =Т!AI15 -> 0 | AJ15: =Т!AJ15 -> 0 | AK15: =Т!AK15 -> 0 | AL15: =Т!AL15 -> 0 | AM15: =Т!AM15 -> 0 | AN15: =Т!AN15 -> 0 | AO15: =Т!AO15 -> 0 | AP15: =Т!AP15 -> 0 | AQ15: =Т!AQ15 -> 0 | AR15: =Т!AR15 -> 0 | AS15: =Т!AS15 -> 0 | AT15: =Т!AT15 -> 0 | AU15: =Т!AU15 -> 0 | AV15: =Т!AV15 -> 0 | AW15: =Т!AW15 -> 0 | AX15: =Т!AX15 -> 0 | AY15: =Т!AY15 -> 0 | AZ15: =Т!AZ15 -> 0 | BA15: =Т!BA15 -> 0 | BB15: =Т!BB15 -> 0 | BC15: =Т!BC15 -> 0 | BD15: =Т!BD15 -> 0 | BE15: =Т!BE15 -> 0 | BF15: =Т!BF15 -> 0 | BG15: =Т!BG15 -> 0 | BH15: =Т!BH15 -> 0 | BI15: =Т!BI15 -> 0 | BJ15: =Т!BJ15 -> 0 | BK15: =Т!BK15 -> 0 | BL15: =Т!BL15 -> 0 | BM15: =Т!BM15 -> 0 | BN15: =Т!BN15 -> 0 | BO15: =Т!BO15 -> 0 | BP15: =Т!BP15 -> 0 | BQ15: =Т!BQ15 -> 0 | BR15: =Т!BR15 -> 0 | BS15: =Т!BS15 -> 0 | BT15: =Т!BT15 -> 0 | BU15: =Т!BU15 -> 0 | BV15: =Т!BV15 -> 0 | BW15: =Т!BW15 -> 0 | BX15: =Т!BX15 -> 0 | BY15: =Т!BY15 -> 0 | BZ15: =Т!BZ15 -> 0 | CA15: =Т!CA15 -> 0 | CB15: =Т!CB15 -> 0 | CC15: =Т!CC15 -> 0 | CD15: =Т!CD15 -> 0 | CE15: =Т!CE15 -> 0 | CF15: =Т!CF15 -> 0 | CG15: =Т!CG15 -> 0 | CH15: =Т!CH15 -> 0 | CI15: =Т!CI15 -> 0 | CJ15: =Т!CJ15 -> 0 | CK15: =Т!CK15 -> 0 | CL15: =Т!CL15 -> 0 | CM15: =Т!CM15 -> 0 | CN15: =Т!CN15 -> 0 | CO15: =Т!CO15 -> 0 | CP15: =Т!CP15 -> 0 | CQ15: =Т!CQ15 -> 0 | CR15: =Т!CR15 -> 0 | CS15: =Т!CS15 -> 0 | CT15: =Т!CT15 -> 0 | CU15: =Т!CU15 -> 0 | CV15: =Т!CV15 -> 0 | CW15: =Т!CW15 -> 0 | CX15: =Т!CX15 -> 0 | CY15: =Т!CY15 -> 0 | CZ15: =Т!CZ15 -> 0 | DA15: =Т!DA15 -> 0 | DB15: =Т!DB15 -> 0 | DC15: =Т!DC15 -> 0 | DD15: =Т!DD15 -> 0 | DE15: =Т!DE15 -> 0 | DF15: =Т!DF15 -> 0 | DG15: =Т!DG15 -> 0 | DH15: =Т!DH15 -> 0 | DI15: =Т!DI15 -> 0 | DJ15: =Т!DJ15 -> 0 | DK15: =Т!DK15 -> 0 | DL15: =Т!DL15 -> 0 | DM15: =Т!DM15 -> 0 | DN15: =Т!DN15 -> 0 | DO15: =Т!DO15 -> 0 | DP15: =Т!DP15 -> 0 | DQ15: =Т!DQ15 -> 0 | DR15: =Т!DR15 -> 0 | DS15: =Т!DS15 -> 0 | DT15: =Т!DT15 -> 0 | DU15: =Т!DU15 -> 0 | DV15: =Т!DV15 -> 0 | DW15: =Т!DW15 -> 0 | DX15: =Т!DX15 -> 0 | DY15: =Т!DY15 -> 0 | DZ15: =Т!DZ15 -> 0 | EA15: =Т!EA15 -> 0 | EB15: =Т!EB15 -> 0 | EC15: =Т!EC15 -> 0 | ED15: =Т!ED15 -> 0 | EE15: =Т!EE15 -> 0 | EF15: =Т!EF15 -> 0 | EG15: =Т!EG15 -> 0 | EH15: =Т!EH15 -> 0 | EI15: =Т!EI15 -> 0 | EJ15: =Т!EJ15 -> 0 | EK15: =Т!EK15 -> 0 | EL15: =Т!EL15 -> 0 | EM15: =Т!EM15 -> 0 | EN15: =Т!EN15 -> 0 | EO15: =Т!EO15 -> 0 | EP15: =Т!EP15 -> 0 | EQ15: =Т!EQ15 -> 0 | EZ15: =Т!EZ15 -> 0 | FA15: =Т!FA15 -> 0 | FB15: =Т!FB15 -> 0 | FC15: =Т!FC15 -> 0 | FD15: =Т!FD15 -> 0 | FE15: =Т!FE15 -> 0 | FF15: =Т!FF15 -> 0 | FG15: =Т!FG15 -> 0 | FH15: =Т!FH15 -> 0 | FI15: =Т!FI15 -> 0 | FJ15: =Т!FJ15 -> 0 | FK15: =Т!FK15 -> 0 | FL15: =Т!FL15 -> 0 | FM15: =Т!FM15 -> 0 | FN15: =Т!FN15 -> 0 | FO15: =Т!FO15 -> 0 | FP15: =Т!FP15 -> 0 | FQ15: =Т!FQ15 -> 0 | FR15: =Т!FR15 -> 0 | FS15: =Т!FS15 -> 0 | FT15: =Т!FT15 -> 0 | FU15: =Т!FU15 -> 0 | FV15: =Т!FV15 -> 0 | FW15: =Т!FW15 -> 0 | FX15: =Т!FX15 -> 0 | FY15: =Т!FY15 -> 0 | FZ15: =Т!FZ15 -> 0 | GA15: =Т!GA15 -> 0 | GB15: =Т!GB15 -> 0 | GC15: =Т!GC15 -> 0 | GD15: =Т!GD15 -> 0 | GE15: =Т!GE15 -> 0
F16: 1.3.2 | J16: с НДС | P16: =Т!P16 -> 0 | Q16: =Т!Q16 -> 0 | R16: =Т!R16 -> 0 | S16: =Т!S16 -> 6225.591676 | T16: =Т!T16 -> 0 | U16: =Т!U16 -> 0 | V16: =Т!V16 -> 0 | W16: =Т!W16 -> 6105.930904 | X16: =Т!X16 -> 0 | Y16: =Т!Y16 -> 0 | Z16: =Т!Z16 -> 0 | AA16: =Т!AA16 -> 9070.128161 | AB16: =Т!AB16 -> 0 | AC16: =Т!AC16 -> 0 | AD16: =Т!AD16 -> 0 | AE16: =Т!AE16 -> 0 | AF16: =Т!AF16 -> 0 | AG16: =Т!AG16 -> 0 | AH16: =Т!AH16 -> 0 | AI16: =Т!AI16 -> 0 | AJ16: =Т!AJ16 -> 0 | AK16: =Т!AK16 -> 0 | AL16: =Т!AL16 -> 0 | AM16: =Т!AM16 -> 0 | AN16: =Т!AN16 -> 0 | AO16: =Т!AO16 -> 0 | AP16: =Т!AP16 -> 0 | AQ16: =Т!AQ16 -> 0 | AR16: =Т!AR16 -> 0 | AS16: =Т!AS16 -> 0 | AT16: =Т!AT16 -> 0 | AU16: =Т!AU16 -> 0 | AV16: =Т!AV16 -> 0 | AW16: =Т!AW16 -> 0 | AX16: =Т!AX16 -> 0 | AY16: =Т!AY16 -> 0 | AZ16: =Т!AZ16 -> 0 | BA16: =Т!BA16 -> 0 | BB16: =Т!BB16 -> 0 | BC16: =Т!BC16 -> 0 | BD16: =Т!BD16 -> 0 | BE16: =Т!BE16 -> 0 | BF16: =Т!BF16 -> 0 | BG16: =Т!BG16 -> 0 | BH16: =Т!BH16 -> 0 | BI16: =Т!BI16 -> 0 | BJ16: =Т!BJ16 -> 0 | BK16: =Т!BK16 -> 0 | BL16: =Т!BL16 -> 0 | BM16: =Т!BM16 -> 0 | BN16: =Т!BN16 -> 0 | BO16: =Т!BO16 -> 0 | BP16: =Т!BP16 -> 0 | BQ16: =Т!BQ16 -> 0 | BR16: =Т!BR16 -> 0 | BS16: =Т!BS16 -> 0 | BT16: =Т!BT16 -> 0 | BU16: =Т!BU16 -> 0 | BV16: =Т!BV16 -> 0 | BW16: =Т!BW16 -> 0 | BX16: =Т!BX16 -> 0 | BY16: =Т!BY16 -> 0 | BZ16: =Т!BZ16 -> 0 | CA16: =Т!CA16 -> 0 | CB16: =Т!CB16 -> 0 | CC16: =Т!CC16 -> 0 | CD16: =Т!CD16 -> 0 | CE16: =Т!CE16 -> 0 | CF16: =Т!CF16 -> 0 | CG16: =Т!CG16 -> 0 | CH16: =Т!CH16 -> 0 | CI16: =Т!CI16 -> 0 | CJ16: =Т!CJ16 -> 0 | CK16: =Т!CK16 -> 0 | CL16: =Т!CL16 -> 0 | CM16: =Т!CM16 -> 0 | CN16: =Т!CN16 -> 0 | CO16: =Т!CO16 -> 0 | CP16: =Т!CP16 -> 0 | CQ16: =Т!CQ16 -> 0 | CR16: =Т!CR16 -> 0 | CS16: =Т!CS16 -> 0 | CT16: =Т!CT16 -> 0 | CU16: =Т!CU16 -> 0 | CV16: =Т!CV16 -> 0 | CW16: =Т!CW16 -> 0 | CX16: =Т!CX16 -> 0 | CY16: =Т!CY16 -> 0 | CZ16: =Т!CZ16 -> 0 | DA16: =Т!DA16 -> 0 | DB16: =Т!DB16 -> 0 | DC16: =Т!DC16 -> 0 | DD16: =Т!DD16 -> 0 | DE16: =Т!DE16 -> 0 | DF16: =Т!DF16 -> 0 | DG16: =Т!DG16 -> 0 | DH16: =Т!DH16 -> 0 | DI16: =Т!DI16 -> 0 | DJ16: =Т!DJ16 -> 0 | DK16: =Т!DK16 -> 0 | DL16: =Т!DL16 -> 0 | DM16: =Т!DM16 -> 0 | DN16: =Т!DN16 -> 0 | DO16: =Т!DO16 -> 0 | DP16: =Т!DP16 -> 0 | DQ16: =Т!DQ16 -> 0 | DR16: =Т!DR16 -> 0 | DS16: =Т!DS16 -> 0 | DT16: =Т!DT16 -> 0 | DU16: =Т!DU16 -> 0 | DV16: =Т!DV16 -> 0 | DW16: =Т!DW16 -> 0 | DX16: =Т!DX16 -> 0 | DY16: =Т!DY16 -> 0 | DZ16: =Т!DZ16 -> 0 | EA16: =Т!EA16 -> 0 | EB16: =Т!EB16 -> 0 | EC16: =Т!EC16 -> 0 | ED16: =Т!ED16 -> 0 | EE16: =Т!EE16 -> 0 | EF16: =Т!EF16 -> 0 | EG16: =Т!EG16 -> 0 | EH16: =Т!EH16 -> 0 | EI16: =Т!EI16 -> 0 | EJ16: =Т!EJ16 -> 0 | EK16: =Т!EK16 -> 0 | EL16: =Т!EL16 -> 0 | EM16: =Т!EM16 -> 0 | EN16: =Т!EN16 -> 0 | EO16: =Т!EO16 -> 0 | EP16: =Т!EP16 -> 0 | EQ16: =Т!EQ16 -> 0 | EZ16: =Т!EZ16 -> 0 | FA16: =Т!FA16 -> 0 | FB16: =Т!FB16 -> 0 | FC16: =Т!FC16 -> 0 | FD16: =Т!FD16 -> 0 | FE16: =Т!FE16 -> 0 | FF16: =Т!FF16 -> 0 | FG16: =Т!FG16 -> 0 | FH16: =Т!FH16 -> 0 | FI16: =Т!FI16 -> 0 | FJ16: =Т!FJ16 -> 0 | FK16: =Т!FK16 -> 0 | FL16: =Т!FL16 -> 0 | FM16: =Т!FM16 -> 0 | FN16: =Т!FN16 -> 0 | FO16: =Т!FO16 -> 0 | FP16: =Т!FP16 -> 0 | FQ16: =Т!FQ16 -> 0 | FR16: =Т!FR16 -> 0 | FS16: =Т!FS16 -> 0 | FT16: =Т!FT16 -> 0 | FU16: =Т!FU16 -> 0 | FV16: =Т!FV16 -> 0 | FW16: =Т!FW16 -> 0 | FX16: =Т!FX16 -> 0 | FY16: =Т!FY16 -> 0 | FZ16: =Т!FZ16 -> 0 | GA16: =Т!GA16 -> 0 | GB16: =Т!GB16 -> 0 | GC16: =Т!GC16 -> 0 | GD16: =Т!GD16 -> 0 | GE16: =Т!GE16 -> 0
F17: 2.1 | G17: Объём натурального топлива, всего | P17: =Т!P17 -> 0 | Q17: =Т!Q17 -> 0 | R17: =Т!R17 -> 0 | S17: =Т!S17 -> 67.156 | T17: =Т!T17 -> 0 | U17: =Т!U17 -> 0 | V17: =Т!V17 -> 0 | W17: =Т!W17 -> 64.445 | X17: =Т!X17 -> 0 | Y17: =Т!Y17 -> 0 | Z17: =Т!Z17 -> 0 | AA17: =Т!AA17 -> 2.711 | AB17: =Т!AB17 -> 0 | AC17: =Т!AC17 -> 0 | AD17: =Т!AD17 -> 0 | AE17: =Т!AE17 -> 0 | AF17: =Т!AF17 -> 0 | AG17: =Т!AG17 -> 0 | AH17: =Т!AH17 -> 0 | AI17: =Т!AI17 -> 0 | AJ17: =Т!AJ17 -> 0 | AK17: =Т!AK17 -> 0 | AL17: =Т!AL17 -> 0 | AM17: =Т!AM17 -> 0 | AN17: =Т!AN17 -> 0 | AO17: =Т!AO17 -> 0 | AP17: =Т!AP17 -> 0 | AQ17: =Т!AQ17 -> 0 | AR17: =Т!AR17 -> 0 | AS17: =Т!AS17 -> 0 | AT17: =Т!AT17 -> 0 | AU17: =Т!AU17 -> 0 | AV17: =Т!AV17 -> 0 | AW17: =Т!AW17 -> 0 | AX17: =Т!AX17 -> 0 | AY17: =Т!AY17 -> 0 | AZ17: =Т!AZ17 -> 0 | BA17: =Т!BA17 -> 0 | BB17: =Т!BB17 -> 0 | BC17: =Т!BC17 -> 0 | BD17: =Т!BD17 -> 0 | BE17: =Т!BE17 -> 0 | BF17: =Т!BF17 -> 0 | BG17: =Т!BG17 -> 0 | BH17: =Т!BH17 -> 0 | BI17: =Т!BI17 -> 0 | BJ17: =Т!BJ17 -> 0 | BK17: =Т!BK17 -> 0 | BL17: =Т!BL17 -> 0 | BM17: =Т!BM17 -> 0 | BN17: =Т!BN17 -> 0 | BO17: =Т!BO17 -> 0 | BP17: =Т!BP17 -> 0 | BQ17: =Т!BQ17 -> 0 | BR17: =Т!BR17 -> 0 | BS17: =Т!BS17 -> 0 | BT17: =Т!BT17 -> 0 | BU17: =Т!BU17 -> 0 | BV17: =Т!BV17 -> 0 | BW17: =Т!BW17 -> 0 | BX17: =Т!BX17 -> 0 | BY17: =Т!BY17 -> 0 | BZ17: =Т!BZ17 -> 0 | CA17: =Т!CA17 -> 0 | CB17: =Т!CB17 -> 0 | CC17: =Т!CC17 -> 0 | CD17: =Т!CD17 -> 0 | CE17: =Т!CE17 -> 0 | CF17: =Т!CF17 -> 0 | CG17: =Т!CG17 -> 0 | CH17: =Т!CH17 -> 0 | CI17: =Т!CI17 -> 0 | CJ17: =Т!CJ17 -> 0 | CK17: =Т!CK17 -> 0 | CL17: =Т!CL17 -> 0 | CM17: =Т!CM17 -> 0 | CN17: =Т!CN17 -> 0 | CO17: =Т!CO17 -> 0 | CP17: =Т!CP17 -> 0 | CQ17: =Т!CQ17 -> 0 | CR17: =Т!CR17 -> 0 | CS17: =Т!CS17 -> 0 | CT17: =Т!CT17 -> 0 | CU17: =Т!CU17 -> 0 | CV17: =Т!CV17 -> 0 | CW17: =Т!CW17 -> 0 | CX17: =Т!CX17 -> 0 | CY17: =Т!CY17 -> 0 | CZ17: =Т!CZ17 -> 0 | DA17: =Т!DA17 -> 0 | DB17: =Т!DB17 -> 0 | DC17: =Т!DC17 -> 0 | DD17: =Т!DD17 -> 0 | DE17: =Т!DE17 -> 0 | DF17: =Т!DF17 -> 0 | DG17: =Т!DG17 -> 0 | DH17: =Т!DH17 -> 0 | DI17: =Т!DI17 -> 0 | DJ17: =Т!DJ17 -> 0 | DK17: =Т!DK17 -> 0 | DL17: =Т!DL17 -> 0 | DM17: =Т!DM17 -> 0 | DN17: =Т!DN17 -> 0 | DO17: =Т!DO17 -> 0 | DP17: =Т!DP17 -> 0 | DQ17: =Т!DQ17 -> 0 | DR17: =Т!DR17 -> 0 | DS17: =Т!DS17 -> 0 | DT17: =Т!DT17 -> 0 | DU17: =Т!DU17 -> 0 | DV17: =Т!DV17 -> 0 | DW17: =Т!DW17 -> 0 | DX17: =Т!DX17 -> 0 | DY17: =Т!DY17 -> 0 | DZ17: =Т!DZ17 -> 0 | EA17: =Т!EA17 -> 0 | EB17: =Т!EB17 -> 0 | EC17: =Т!EC17 -> 0 | ED17: =Т!ED17 -> 0 | EE17: =Т!EE17 -> 0 | EF17: =Т!EF17 -> 0 | EG17: =Т!EG17 -> 0 | EH17: =Т!EH17 -> 0 | EI17: =Т!EI17 -> 0 | EJ17: =Т!EJ17 -> 0 | EK17: =Т!EK17 -> 0 | EL17: =Т!EL17 -> 0 | EM17: =Т!EM17 -> 0 | EN17: =Т!EN17 -> 0 | EO17: =Т!EO17 -> 0 | EP17: =Т!EP17 -> 0 | EQ17: =Т!EQ17 -> 0 | EZ17: =Т!EZ17 -> 0 | FA17: =Т!FA17 -> 0 | FB17: =Т!FB17 -> 0 | FC17: =Т!FC17 -> 0 | FD17: =Т!FD17 -> 0 | FE17: =Т!FE17 -> 0 | FF17: =Т!FF17 -> 0 | FG17: =Т!FG17 -> 0 | FH17: =Т!FH17 -> 0 | FI17: =Т!FI17 -> 0 | FJ17: =Т!FJ17 -> 0 | FK17: =Т!FK17 -> 0 | FL17: =Т!FL17 -> 0 | FM17: =Т!FM17 -> 0 | FN17: =Т!FN17 -> 0 | FO17: =Т!FO17 -> 0 | FP17: =Т!FP17 -> 0 | FQ17: =Т!FQ17 -> 0 | FR17: =Т!FR17 -> 0 | FS17: =Т!FS17 -> 0 | FT17: =Т!FT17 -> 0 | FU17: =Т!FU17 -> 0 | FV17: =Т!FV17 -> 0 | FW17: =Т!FW17 -> 0 | FX17: =Т!FX17 -> 0 | FY17: =Т!FY17 -> 0 | FZ17: =Т!FZ17 -> 0 | GA17: =Т!GA17 -> 0 | GB17: =Т!GB17 -> 0 | GC17: =Т!GC17 -> 0 | GD17: =Т!GD17 -> 0 | GE17: =Т!GE17 -> 0
F18: 2.2 | G18: Переводной коэффициент
F19: 2.3 | G19: Объём условного топлива, всего (тут) | P19: =Т!P19 -> 0 | Q19: =Т!Q19 -> 0 | R19: =Т!R19 -> 0 | S19: =Т!S19 -> 78.337474 | T19: =Т!T19 -> 0 | U19: =Т!U19 -> 0 | V19: =Т!V19 -> 0 | W19: =Т!W19 -> 75.1750925 | X19: =Т!X19 -> 0 | Y19: =Т!Y19 -> 0 | Z19: =Т!Z19 -> 0 | AA19: =Т!AA19 -> 3.1623815 | AB19: =Т!AB19 -> 0 | AC19: =Т!AC19 -> 0 | AD19: =Т!AD19 -> 0 | AE19: =Т!AE19 -> 0 | AF19: =Т!AF19 -> 0 | AG19: =Т!AG19 -> 0 | AH19: =Т!AH19 -> 0 | AI19: =Т!AI19 -> 0 | AJ19: =Т!AJ19 -> 0 | AK19: =Т!AK19 -> 0 | AL19: =Т!AL19 -> 0 | AM19: =Т!AM19 -> 0 | AN19: =Т!AN19 -> 0 | AO19: =Т!AO19 -> 0 | AP19: =Т!AP19 -> 0 | AQ19: =Т!AQ19 -> 0 | AR19: =Т!AR19 -> 0 | AS19: =Т!AS19 -> 0 | AT19: =Т!AT19 -> 0 | AU19: =Т!AU19 -> 0 | AV19: =Т!AV19 -> 0 | AW19: =Т!AW19 -> 0 | AX19: =Т!AX19 -> 0 | AY19: =Т!AY19 -> 0 | AZ19: =Т!AZ19 -> 0 | BA19: =Т!BA19 -> 0 | BB19: =Т!BB19 -> 0 | BC19: =Т!BC19 -> 0 | BD19: =Т!BD19 -> 0 | BE19: =Т!BE19 -> 0 | BF19: =Т!BF19 -> 0 | BG19: =Т!BG19 -> 0 | BH19: =Т!BH19 -> 0 | BI19: =Т!BI19 -> 0 | BJ19: =Т!BJ19 -> 0 | BK19: =Т!BK19 -> 0 | BL19: =Т!BL19 -> 0 | BM19: =Т!BM19 -> 0 | BN19: =Т!BN19 -> 0 | BO19: =Т!BO19 -> 0 | BP19: =Т!BP19 -> 0 | BQ19: =Т!BQ19 -> 0 | BR19: =Т!BR19 -> 0 | BS19: =Т!BS19 -> 0 | BT19: =Т!BT19 -> 0 | BU19: =Т!BU19 -> 0 | BV19: =Т!BV19 -> 0 | BW19: =Т!BW19 -> 0 | BX19: =Т!BX19 -> 0 | BY19: =Т!BY19 -> 0 | BZ19: =Т!BZ19 -> 0 | CA19: =Т!CA19 -> 0 | CB19: =Т!CB19 -> 0 | CC19: =Т!CC19 -> 0 | CD19: =Т!CD19 -> 0 | CE19: =Т!CE19 -> 0 | CF19: =Т!CF19 -> 0 | CG19: =Т!CG19 -> 0 | CH19: =Т!CH19 -> 0 | CI19: =Т!CI19 -> 0 | CJ19: =Т!CJ19 -> 0 | CK19: =Т!CK19 -> 0 | CL19: =Т!CL19 -> 0 | CM19: =Т!CM19 -> 0 | CN19: =Т!CN19 -> 0 | CO19: =Т!CO19 -> 0 | CP19: =Т!CP19 -> 0 | CQ19: =Т!CQ19 -> 0 | CR19: =Т!CR19 -> 0 | CS19: =Т!CS19 -> 0 | CT19: =Т!CT19 -> 0 | CU19: =Т!CU19 -> 0 | CV19: =Т!CV19 -> 0 | CW19: =Т!CW19 -> 0 | CX19: =Т!CX19 -> 0 | CY19: =Т!CY19 -> 0 | CZ19: =Т!CZ19 -> 0 | DA19: =Т!DA19 -> 0 | DB19: =Т!DB19 -> 0 | DC19: =Т!DC19 -> 0 | DD19: =Т!DD19 -> 0 | DE19: =Т!DE19 -> 0 | DF19: =Т!DF19 -> 0 | DG19: =Т!DG19 -> 0 | DH19: =Т!DH19 -> 0 | DI19: =Т!DI19 -> 0 | DJ19: =Т!DJ19 -> 0 | DK19: =Т!DK19 -> 0 | DL19: =Т!DL19 -> 0 | DM19: =Т!DM19 -> 0 | DN19: =Т!DN19 -> 0 | DO19: =Т!DO19 -> 0 | DP19: =Т!DP19 -> 0 | DQ19: =Т!DQ19 -> 0 | DR19: =Т!DR19 -> 0 | DS19: =Т!DS19 -> 0 | DT19: =Т!DT19 -> 0 | DU19: =Т!DU19 -> 0 | DV19: =Т!DV19 -> 0 | DW19: =Т!DW19 -> 0 | DX19: =Т!DX19 -> 0 | DY19: =Т!DY19 -> 0 | DZ19: =Т!DZ19 -> 0 | EA19: =Т!EA19 -> 0 | EB19: =Т!EB19 -> 0 | EC19: =Т!EC19 -> 0 | ED19: =Т!ED19 -> 0 | EE19: =Т!EE19 -> 0 | EF19: =Т!EF19 -> 0 | EG19: =Т!EG19 -> 0 | EH19: =Т!EH19 -> 0 | EI19: =Т!EI19 -> 0 | EJ19: =Т!EJ19 -> 0 | EK19: =Т!EK19 -> 0 | EL19: =Т!EL19 -> 0 | EM19: =Т!EM19 -> 0 | EN19: =Т!EN19 -> 0 | EO19: =Т!EO19 -> 0 | EP19: =Т!EP19 -> 0 | EQ19: =Т!EQ19 -> 0 | EZ19: =Т!EZ19 -> 0 | FA19: =Т!FA19 -> 0 | FB19: =Т!FB19 -> 0 | FC19: =Т!FC19 -> 0 | FD19: =Т!FD19 -> 0 | FE19: =Т!FE19 -> 0 | FF19: =Т!FF19 -> 0 | FG19: =Т!FG19 -> 0 | FH19: =Т!FH19 -> 0 | FI19: =Т!FI19 -> 0 | FJ19: =Т!FJ19 -> 0 | FK19: =Т!FK19 -> 0 | FL19: =Т!FL19 -> 0 | FM19: =Т!FM19 -> 0 | FN19: =Т!FN19 -> 0 | FO19: =Т!FO19 -> 0 | FP19: =Т!FP19 -> 0 | FQ19: =Т!FQ19 -> 0 | FR19: =Т!FR19 -> 0 | FS19: =Т!FS19 -> 0 | FT19: =Т!FT19 -> 0 | FU19: =Т!FU19 -> 0 | FV19: =Т!FV19 -> 0 | FW19: =Т!FW19 -> 0 | FX19: =Т!FX19 -> 0 | FY19: =Т!FY19 -> 0 | FZ19: =Т!FZ19 -> 0 | GA19: =Т!GA19 -> 0 | GB19: =Т!GB19 -> 0 | GC19: =Т!GC19 -> 0 | GD19: =Т!GD19 -> 0 | GE19: =Т!GE19 -> 0
F20: 3.1 | G20: Затраты на топливо, всего (тыс.руб.) | J20: без НДС | P20: =Т!P20 -> 0 | Q20: =Т!Q20 -> 0 | R20: =Т!R20 -> 0 | S20: =Т!S20 -> 487.697126 | T20: =Т!T20 -> 0 | U20: =Т!U20 -> 0 | V20: =Т!V20 -> 0 | W20: =Т!W20 -> 459.0139205 | X20: =Т!X20 -> 0 | Y20: =Т!Y20 -> 0 | Z20: =Т!Z20 -> 0 | AA20: =Т!AA20 -> 28.6832055 | AB20: =Т!AB20 -> 0 | AC20: =Т!AC20 -> 0 | AD20: =Т!AD20 -> 0 | AE20: =Т!AE20 -> 0 | AF20: =Т!AF20 -> 0 | AG20: =Т!AG20 -> 0 | AH20: =Т!AH20 -> 0 | AI20: =Т!AI20 -> 0 | AJ20: =Т!AJ20 -> 0 | AK20: =Т!AK20 -> 0 | AL20: =Т!AL20 -> 0 | AM20: =Т!AM20 -> 0 | AN20: =Т!AN20 -> 0 | AO20: =Т!AO20 -> 0 | AP20: =Т!AP20 -> 0 | AQ20: =Т!AQ20 -> 0 | AR20: =Т!AR20 -> 0 | AS20: =Т!AS20 -> 0 | AT20: =Т!AT20 -> 0 | AU20: =Т!AU20 -> 0 | AV20: =Т!AV20 -> 0 | AW20: =Т!AW20 -> 0 | AX20: =Т!AX20 -> 0 | AY20: =Т!AY20 -> 0 | AZ20: =Т!AZ20 -> 0 | BA20: =Т!BA20 -> 0 | BB20: =Т!BB20 -> 0 | BC20: =Т!BC20 -> 0 | BD20: =Т!BD20 -> 0 | BE20: =Т!BE20 -> 0 | BF20: =Т!BF20 -> 0 | BG20: =Т!BG20 -> 0 | BH20: =Т!BH20 -> 0 | BI20: =Т!BI20 -> 0 | BJ20: =Т!BJ20 -> 0 | BK20: =Т!BK20 -> 0 | BL20: =Т!BL20 -> 0 | BM20: =Т!BM20 -> 0 | BN20: =Т!BN20 -> 0 | BO20: =Т!BO20 -> 0 | BP20: =Т!BP20 -> 0 | BQ20: =Т!BQ20 -> 0 | BR20: =Т!BR20 -> 0 | BS20: =Т!BS20 -> 0 | BT20: =Т!BT20 -> 0 | BU20: =Т!BU20 -> 0 | BV20: =Т!BV20 -> 0 | BW20: =Т!BW20 -> 0 | BX20: =Т!BX20 -> 0 | BY20: =Т!BY20 -> 0 | BZ20: =Т!BZ20 -> 0 | CA20: =Т!CA20 -> 0 | CB20: =Т!CB20 -> 0 | CC20: =Т!CC20 -> 0 | CD20: =Т!CD20 -> 0 | CE20: =Т!CE20 -> 0 | CF20: =Т!CF20 -> 0 | CG20: =Т!CG20 -> 0 | CH20: =Т!CH20 -> 0 | CI20: =Т!CI20 -> 0 | CJ20: =Т!CJ20 -> 0 | CK20: =Т!CK20 -> 0 | CL20: =Т!CL20 -> 0 | CM20: =Т!CM20 -> 0 | CN20: =Т!CN20 -> 0 | CO20: =Т!CO20 -> 0 | CP20: =Т!CP20 -> 0 | CQ20: =Т!CQ20 -> 0 | CR20: =Т!CR20 -> 0 | CS20: =Т!CS20 -> 0 | CT20: =Т!CT20 -> 0 | CU20: =Т!CU20 -> 0 | CV20: =Т!CV20 -> 0 | CW20: =Т!CW20 -> 0 | CX20: =Т!CX20 -> 0 | CY20: =Т!CY20 -> 0 | CZ20: =Т!CZ20 -> 0 | DA20: =Т!DA20 -> 0 | DB20: =Т!DB20 -> 0 | DC20: =Т!DC20 -> 0 | DD20: =Т!DD20 -> 0 | DE20: =Т!DE20 -> 0 | DF20: =Т!DF20 -> 0 | DG20: =Т!DG20 -> 0 | DH20: =Т!DH20 -> 0 | DI20: =Т!DI20 -> 0 | DJ20: =Т!DJ20 -> 0 | DK20: =Т!DK20 -> 0 | DL20: =Т!DL20 -> 0 | DM20: =Т!DM20 -> 0 | DN20: =Т!DN20 -> 0 | DO20: =Т!DO20 -> 0 | DP20: =Т!DP20 -> 0 | DQ20: =Т!DQ20 -> 0 | DR20: =Т!DR20 -> 0 | DS20: =Т!DS20 -> 0 | DT20: =Т!DT20 -> 0 | DU20: =Т!DU20 -> 0 | DV20: =Т!DV20 -> 0 | DW20: =Т!DW20 -> 0 | DX20: =Т!DX20 -> 0 | DY20: =Т!DY20 -> 0 | DZ20: =Т!DZ20 -> 0 | EA20: =Т!EA20 -> 0 | EB20: =Т!EB20 -> 0 | EC20: =Т!EC20 -> 0 | ED20: =Т!ED20 -> 0 | EE20: =Т!EE20 -> 0 | EF20: =Т!EF20 -> 0 | EG20: =Т!EG20 -> 0 | EH20: =Т!EH20 -> 0 | EI20: =Т!EI20 -> 0 | EJ20: =Т!EJ20 -> 0 | EK20: =Т!EK20 -> 0 | EL20: =Т!EL20 -> 0 | EM20: =Т!EM20 -> 0 | EN20: =Т!EN20 -> 0 | EO20: =Т!EO20 -> 0 | EP20: =Т!EP20 -> 0 | EQ20: =Т!EQ20 -> 0 | EZ20: =Т!EZ20 -> 0 | FA20: =Т!FA20 -> 0 | FB20: =Т!FB20 -> 0 | FC20: =Т!FC20 -> 0 | FD20: =Т!FD20 -> 0 | FE20: =Т!FE20 -> 0 | FF20: =Т!FF20 -> 0 | FG20: =Т!FG20 -> 0 | FH20: =Т!FH20 -> 0 | FI20: =Т!FI20 -> 0 | FJ20: =Т!FJ20 -> 0 | FK20: =Т!FK20 -> 0 | FL20: =Т!FL20 -> 0 | FM20: =Т!FM20 -> 0 | FN20: =Т!FN20 -> 0 | FO20: =Т!FO20 -> 0 | FP20: =Т!FP20 -> 0 | FQ20: =Т!FQ20 -> 0 | FR20: =Т!FR20 -> 0 | FS20: =Т!FS20 -> 0 | FT20: =Т!FT20 -> 0 | FU20: =Т!FU20 -> 0 | FV20: =Т!FV20 -> 0 | FW20: =Т!FW20 -> 0 | FX20: =Т!FX20 -> 0 | FY20: =Т!FY20 -> 0 | FZ20: =Т!FZ20 -> 0 | GA20: =Т!GA20 -> 0 | GB20: =Т!GB20 -> 0 | GC20: =Т!GC20 -> 0 | GD20: =Т!GD20 -> 0 | GE20: =Т!GE20 -> 0
F21: 3.2 | J21: с НДС | P21: =Т!P21 -> 0 | Q21: =Т!Q21 -> 0 | R21: =Т!R21 -> 0 | S21: =Т!S21 -> 487.697126 | T21: =Т!T21 -> 0 | U21: =Т!U21 -> 0 | V21: =Т!V21 -> 0 | W21: =Т!W21 -> 459.0139205 | X21: =Т!X21 -> 0 | Y21: =Т!Y21 -> 0 | Z21: =Т!Z21 -> 0 | AA21: =Т!AA21 -> 28.6832055 | AB21: =Т!AB21 -> 0 | AC21: =Т!AC21 -> 0 | AD21: =Т!AD21 -> 0 | AE21: =Т!AE21 -> 0 | AF21: =Т!AF21 -> 0 | AG21: =Т!AG21 -> 0 | AH21: =Т!AH21 -> 0 | AI21: =Т!AI21 -> 0 | AJ21: =Т!AJ21 -> 0 | AK21: =Т!AK21 -> 0 | AL21: =Т!AL21 -> 0 | AM21: =Т!AM21 -> 0 | AN21: =Т!AN21 -> 0 | AO21: =Т!AO21 -> 0 | AP21: =Т!AP21 -> 0 | AQ21: =Т!AQ21 -> 0 | AR21: =Т!AR21 -> 0 | AS21: =Т!AS21 -> 0 | AT21: =Т!AT21 -> 0 | AU21: =Т!AU21 -> 0 | AV21: =Т!AV21 -> 0 | AW21: =Т!AW21 -> 0 | AX21: =Т!AX21 -> 0 | AY21: =Т!AY21 -> 0 | AZ21: =Т!AZ21 -> 0 | BA21: =Т!BA21 -> 0 | BB21: =Т!BB21 -> 0 | BC21: =Т!BC21 -> 0 | BD21: =Т!BD21 -> 0 | BE21: =Т!BE21 -> 0 | BF21: =Т!BF21 -> 0 | BG21: =Т!BG21 -> 0 | BH21: =Т!BH21 -> 0 | BI21: =Т!BI21 -> 0 | BJ21: =Т!BJ21 -> 0 | BK21: =Т!BK21 -> 0 | BL21: =Т!BL21 -> 0 | BM21: =Т!BM21 -> 0 | BN21: =Т!BN21 -> 0 | BO21: =Т!BO21 -> 0 | BP21: =Т!BP21 -> 0 | BQ21: =Т!BQ21 -> 0 | BR21: =Т!BR21 -> 0 | BS21: =Т!BS21 -> 0 | BT21: =Т!BT21 -> 0 | BU21: =Т!BU21 -> 0 | BV21: =Т!BV21 -> 0 | BW21: =Т!BW21 -> 0 | BX21: =Т!BX21 -> 0 | BY21: =Т!BY21 -> 0 | BZ21: =Т!BZ21 -> 0 | CA21: =Т!CA21 -> 0 | CB21: =Т!CB21 -> 0 | CC21: =Т!CC21 -> 0 | CD21: =Т!CD21 -> 0 | CE21: =Т!CE21 -> 0 | CF21: =Т!CF21 -> 0 | CG21: =Т!CG21 -> 0 | CH21: =Т!CH21 -> 0 | CI21: =Т!CI21 -> 0 | CJ21: =Т!CJ21 -> 0 | CK21: =Т!CK21 -> 0 | CL21: =Т!CL21 -> 0 | CM21: =Т!CM21 -> 0 | CN21: =Т!CN21 -> 0 | CO21: =Т!CO21 -> 0 | CP21: =Т!CP21 -> 0 | CQ21: =Т!CQ21 -> 0 | CR21: =Т!CR21 -> 0 | CS21: =Т!CS21 -> 0 | CT21: =Т!CT21 -> 0 | CU21: =Т!CU21 -> 0 | CV21: =Т!CV21 -> 0 | CW21: =Т!CW21 -> 0 | CX21: =Т!CX21 -> 0 | CY21: =Т!CY21 -> 0 | CZ21: =Т!CZ21 -> 0 | DA21: =Т!DA21 -> 0 | DB21: =Т!DB21 -> 0 | DC21: =Т!DC21 -> 0 | DD21: =Т!DD21 -> 0 | DE21: =Т!DE21 -> 0 | DF21: =Т!DF21 -> 0 | DG21: =Т!DG21 -> 0 | DH21: =Т!DH21 -> 0 | DI21: =Т!DI21 -> 0 | DJ21: =Т!DJ21 -> 0 | DK21: =Т!DK21 -> 0 | DL21: =Т!DL21 -> 0 | DM21: =Т!DM21 -> 0 | DN21: =Т!DN21 -> 0 | DO21: =Т!DO21 -> 0 | DP21: =Т!DP21 -> 0 | DQ21: =Т!DQ21 -> 0 | DR21: =Т!DR21 -> 0 | DS21: =Т!DS21 -> 0 | DT21: =Т!DT21 -> 0 | DU21: =Т!DU21 -> 0 | DV21: =Т!DV21 -> 0 | DW21: =Т!DW21 -> 0 | DX21: =Т!DX21 -> 0 | DY21: =Т!DY21 -> 0 | DZ21: =Т!DZ21 -> 0 | EA21: =Т!EA21 -> 0 | EB21: =Т!EB21 -> 0 | EC21: =Т!EC21 -> 0 | ED21: =Т!ED21 -> 0 | EE21: =Т!EE21 -> 0 | EF21: =Т!EF21 -> 0 | EG21: =Т!EG21 -> 0 | EH21: =Т!EH21 -> 0 | EI21: =Т!EI21 -> 0 | EJ21: =Т!EJ21 -> 0 | EK21: =Т!EK21 -> 0 | EL21: =Т!EL21 -> 0 | EM21: =Т!EM21 -> 0 | EN21: =Т!EN21 -> 0 | EO21: =Т!EO21 -> 0 | EP21: =Т!EP21 -> 0 | EQ21: =Т!EQ21 -> 0 | EZ21: =Т!EZ21 -> 0 | FA21: =Т!FA21 -> 0 | FB21: =Т!FB21 -> 0 | FC21: =Т!FC21 -> 0 | FD21: =Т!FD21 -> 0 | FE21: =Т!FE21 -> 0 | FF21: =Т!FF21 -> 0 | FG21: =Т!FG21 -> 0 | FH21: =Т!FH21 -> 0 | FI21: =Т!FI21 -> 0 | FJ21: =Т!FJ21 -> 0 | FK21: =Т!FK21 -> 0 | FL21: =Т!FL21 -> 0 | FM21: =Т!FM21 -> 0 | FN21: =Т!FN21 -> 0 | FO21: =Т!FO21 -> 0 | FP21: =Т!FP21 -> 0 | FQ21: =Т!FQ21 -> 0 | FR21: =Т!FR21 -> 0 | FS21: =Т!FS21 -> 0 | FT21: =Т!FT21 -> 0 | FU21: =Т!FU21 -> 0 | FV21: =Т!FV21 -> 0 | FW21: =Т!FW21 -> 0 | FX21: =Т!FX21 -> 0 | FY21: =Т!FY21 -> 0 | FZ21: =Т!FZ21 -> 0 | GA21: =Т!GA21 -> 0 | GB21: =Т!GB21 -> 0 | GC21: =Т!GC21 -> 0 | GD21: =Т!GD21 -> 0 | GE21: =Т!GE21 -> 0
F22: 4.1.1 | G22: Топливо, транспортируемое по сетям, магистралям (трубопроводам) | I22: Средний тариф транзитной транспортировки (руб./тыс.куб.м) | J22: без НДС
F23: 4.1.2 | J23: с НДС
F24: 4.2 | I24: Объём топлива, транспортируемого в транзитном потоке | P24: =Т!P24 -> 0 | Q24: =Т!Q24 -> 0 | R24: =Т!R24 -> 0 | S24: =Т!S24 -> 0 | T24: =Т!T24 -> 0 | U24: =Т!U24 -> 0 | V24: =Т!V24 -> 0 | W24: =Т!W24 -> 0 | X24: =Т!X24 -> 0 | Y24: =Т!Y24 -> 0 | Z24: =Т!Z24 -> 0 | AA24: =Т!AA24 -> 0 | AB24: =Т!AB24 -> 0 | AC24: =Т!AC24 -> 0 | AD24: =Т!AD24 -> 0 | AE24: =Т!AE24 -> 0
F25: 5.1.1 | G25: Топливо, транспортируемое по дорогам (авто, ж/д), а также прочие виды транспортировки | H25: Транспортировка топлива автоперевозками | I25: Тариф (цена за единицу) (руб./ед.изм.) | J25: без НДС | AV25: =Т!AV25 -> 0 | AW25: =Т!AW25 -> 0 | AX25: =Т!AX25 -> 0 | AY25: =Т!AY25 -> 0 | AZ25: =Т!AZ25 -> 0 | BA25: =Т!BA25 -> 0 | BB25: =Т!BB25 -> 0 | BC25: =Т!BC25 -> 0 | BD25: =Т!BD25 -> 0 | BE25: =Т!BE25 -> 0 | BF25: =Т!BF25 -> 0 | BG25: =Т!BG25 -> 0 | BH25: =Т!BH25 -> 0 | BI25: =Т!BI25 -> 0 | BJ25: =Т!BJ25 -> 0 | BK25: =Т!BK25 -> 0 | BL25: =Т!BL25 -> 0 | BM25: =Т!BM25 -> 0 | BN25: =Т!BN25 -> 0 | BO25: =Т!BO25 -> 0 | BP25: =Т!BP25 -> 0 | BQ25: =Т!BQ25 -> 0 | BR25: =Т!BR25 -> 0 | BS25: =Т!BS25 -> 0 | BT25: =Т!BT25 -> 0 | BU25: =Т!BU25 -> 0 | BV25: =Т!BV25 -> 0 | BW25: =Т!BW25 -> 0 | BX25: =Т!BX25 -> 0 | BY25: =Т!BY25 -> 0 | BZ25: =Т!BZ25 -> 0 | CA25: =Т!CA25 -> 0 | CB25: =Т!CB25 -> 0 | CC25: =Т!CC25 -> 0 | CD25: =Т!CD25 -> 0 | CE25: =Т!CE25 -> 0 | CF25: =Т!CF25 -> 0 | CG25: =Т!CG25 -> 0 | CH25: =Т!CH25 -> 0 | CI25: =Т!CI25 -> 0 | CJ25: =Т!CJ25 -> 0 | CK25: =Т!CK25 -> 0 | CL25: =Т!CL25 -> 0 | CM25: =Т!CM25 -> 0 | CN25: =Т!CN25 -> 0 | CO25: =Т!CO25 -> 0 | CP25: =Т!CP25 -> 0 | CQ25: =Т!CQ25 -> 0 | CR25: =Т!CR25 -> 0 | CS25: =Т!CS25 -> 0 | CT25: =Т!CT25 -> 0 | CU25: =Т!CU25 -> 0 | CV25: =Т!CV25 -> 0 | CW25: =Т!CW25 -> 0 | CX25: =Т!CX25 -> 0 | CY25: =Т!CY25 -> 0 | CZ25: =Т!CZ25 -> 0 | DA25: =Т!DA25 -> 0 | DB25: =Т!DB25 -> 0 | DC25: =Т!DC25 -> 0 | DD25: =Т!DD25 -> 0 | DE25: =Т!DE25 -> 0 | DF25: =Т!DF25 -> 0 | DG25: =Т!DG25 -> 0 | DH25: =Т!DH25 -> 0 | DI25: =Т!DI25 -> 0 | DJ25: =Т!DJ25 -> 0 | DK25: =Т!DK25 -> 0 | DL25: =Т!DL25 -> 0 | DM25: =Т!DM25 -> 0 | DN25: =Т!DN25 -> 0 | DO25: =Т!DO25 -> 0 | DP25: =Т!DP25 -> 0 | DQ25: =Т!DQ25 -> 0 | DR25: =Т!DR25 -> 0 | DS25: =Т!DS25 -> 0 | DT25: =Т!DT25 -> 0 | DU25: =Т!DU25 -> 0 | DV25: =Т!DV25 -> 0 | DW25: =Т!DW25 -> 0 | DX25: =Т!DX25 -> 0 | DY25: =Т!DY25 -> 0 | DZ25: =Т!DZ25 -> 0 | EA25: =Т!EA25 -> 0 | EB25: =Т!EB25 -> 0 | EC25: =Т!EC25 -> 0 | ED25: =Т!ED25 -> 0 | EE25: =Т!EE25 -> 0 | EF25: =Т!EF25 -> 0 | EG25: =Т!EG25 -> 0 | EH25: =Т!EH25 -> 0 | EI25: =Т!EI25 -> 0 | EJ25: =Т!EJ25 -> 0 | EK25: =Т!EK25 -> 0 | EL25: =Т!EL25 -> 0 | EM25: =Т!EM25 -> 0 | EN25: =Т!EN25 -> 0 | EO25: =Т!EO25 -> 0 | EP25: =Т!EP25 -> 0 | EQ25: =Т!EQ25 -> 0 | EZ25: =Т!EZ25 -> 0 | FA25: =Т!FA25 -> 0 | FB25: =Т!FB25 -> 0 | FC25: =Т!FC25 -> 0 | FD25: =Т!FD25 -> 0 | FE25: =Т!FE25 -> 0 | FF25: =Т!FF25 -> 0 | FG25: =Т!FG25 -> 0 | FH25: =Т!FH25 -> 0 | FI25: =Т!FI25 -> 0 | FJ25: =Т!FJ25 -> 0 | FK25: =Т!FK25 -> 0 | FL25: =Т!FL25 -> 0 | FM25: =Т!FM25 -> 0 | FN25: =Т!FN25 -> 0 | FO25: =Т!FO25 -> 0 | FP25: =Т!FP25 -> 0 | FQ25: =Т!FQ25 -> 0 | FR25: =Т!FR25 -> 0 | FS25: =Т!FS25 -> 0 | FT25: =Т!FT25 -> 0 | FU25: =Т!FU25 -> 0 | FV25: =Т!FV25 -> 0 | FW25: =Т!FW25 -> 0 | FX25: =Т!FX25 -> 0 | FY25: =Т!FY25 -> 0 | FZ25: =Т!FZ25 -> 0 | GA25: =Т!GA25 -> 0 | GB25: =Т!GB25 -> 0 | GC25: =Т!GC25 -> 0 | GD25: =Т!GD25 -> 0 | GE25: =Т!GE25 -> 0
F26: 5.1.2 | J26: с НДС | AV26: =Т!AV26 -> 0 | AW26: =Т!AW26 -> 0 | AX26: =Т!AX26 -> 0 | AY26: =Т!AY26 -> 0 | AZ26: =Т!AZ26 -> 0 | BA26: =Т!BA26 -> 0 | BB26: =Т!BB26 -> 0 | BC26: =Т!BC26 -> 0 | BD26: =Т!BD26 -> 0 | BE26: =Т!BE26 -> 0 | BF26: =Т!BF26 -> 0 | BG26: =Т!BG26 -> 0 | BH26: =Т!BH26 -> 0 | BI26: =Т!BI26 -> 0 | BJ26: =Т!BJ26 -> 0 | BK26: =Т!BK26 -> 0 | BL26: =Т!BL26 -> 0 | BM26: =Т!BM26 -> 0 | BN26: =Т!BN26 -> 0 | BO26: =Т!BO26 -> 0 | BP26: =Т!BP26 -> 0 | BQ26: =Т!BQ26 -> 0 | BR26: =Т!BR26 -> 0 | BS26: =Т!BS26 -> 0 | BT26: =Т!BT26 -> 0 | BU26: =Т!BU26 -> 0 | BV26: =Т!BV26 -> 0 | BW26: =Т!BW26 -> 0 | BX26: =Т!BX26 -> 0 | BY26: =Т!BY26 -> 0 | BZ26: =Т!BZ26 -> 0 | CA26: =Т!CA26 -> 0 | CB26: =Т!CB26 -> 0 | CC26: =Т!CC26 -> 0 | CD26: =Т!CD26 -> 0 | CE26: =Т!CE26 -> 0 | CF26: =Т!CF26 -> 0 | CG26: =Т!CG26 -> 0 | CH26: =Т!CH26 -> 0 | CI26: =Т!CI26 -> 0 | CJ26: =Т!CJ26 -> 0 | CK26: =Т!CK26 -> 0 | CL26: =Т!CL26 -> 0 | CM26: =Т!CM26 -> 0 | CN26: =Т!CN26 -> 0 | CO26: =Т!CO26 -> 0 | CP26: =Т!CP26 -> 0 | CQ26: =Т!CQ26 -> 0 | CR26: =Т!CR26 -> 0 | CS26: =Т!CS26 -> 0 | CT26: =Т!CT26 -> 0 | CU26: =Т!CU26 -> 0 | CV26: =Т!CV26 -> 0 | CW26: =Т!CW26 -> 0 | CX26: =Т!CX26 -> 0 | CY26: =Т!CY26 -> 0 | CZ26: =Т!CZ26 -> 0 | DA26: =Т!DA26 -> 0 | DB26: =Т!DB26 -> 0 | DC26: =Т!DC26 -> 0 | DD26: =Т!DD26 -> 0 | DE26: =Т!DE26 -> 0 | DF26: =Т!DF26 -> 0 | DG26: =Т!DG26 -> 0 | DH26: =Т!DH26 -> 0 | DI26: =Т!DI26 -> 0 | DJ26: =Т!DJ26 -> 0 | DK26: =Т!DK26 -> 0 | DL26: =Т!DL26 -> 0 | DM26: =Т!DM26 -> 0 | DN26: =Т!DN26 -> 0 | DO26: =Т!DO26 -> 0 | DP26: =Т!DP26 -> 0 | DQ26: =Т!DQ26 -> 0 | DR26: =Т!DR26 -> 0 | DS26: =Т!DS26 -> 0 | DT26: =Т!DT26 -> 0 | DU26: =Т!DU26 -> 0 | DV26: =Т!DV26 -> 0 | DW26: =Т!DW26 -> 0 | DX26: =Т!DX26 -> 0 | DY26: =Т!DY26 -> 0 | DZ26: =Т!DZ26 -> 0 | EA26: =Т!EA26 -> 0 | EB26: =Т!EB26 -> 0 | EC26: =Т!EC26 -> 0 | ED26: =Т!ED26 -> 0 | EE26: =Т!EE26 -> 0 | EF26: =Т!EF26 -> 0 | EG26: =Т!EG26 -> 0 | EH26: =Т!EH26 -> 0 | EI26: =Т!EI26 -> 0 | EJ26: =Т!EJ26 -> 0 | EK26: =Т!EK26 -> 0 | EL26: =Т!EL26 -> 0 | EM26: =Т!EM26 -> 0 | EN26: =Т!EN26 -> 0 | EO26: =Т!EO26 -> 0 | EP26: =Т!EP26 -> 0 | EQ26: =Т!EQ26 -> 0 | EZ26: =Т!EZ26 -> 0 | FA26: =Т!FA26 -> 0 | FB26: =Т!FB26 -> 0 | FC26: =Т!FC26 -> 0 | FD26: =Т!FD26 -> 0 | FE26: =Т!FE26 -> 0 | FF26: =Т!FF26 -> 0 | FG26: =Т!FG26 -> 0 | FH26: =Т!FH26 -> 0 | FI26: =Т!FI26 -> 0 | FJ26: =Т!FJ26 -> 0 | FK26: =Т!FK26 -> 0 | FL26: =Т!FL26 -> 0 | FM26: =Т!FM26 -> 0 | FN26: =Т!FN26 -> 0 | FO26: =Т!FO26 -> 0 | FP26: =Т!FP26 -> 0 | FQ26: =Т!FQ26 -> 0 | FR26: =Т!FR26 -> 0 | FS26: =Т!FS26 -> 0 | FT26: =Т!FT26 -> 0 | FU26: =Т!FU26 -> 0 | FV26: =Т!FV26 -> 0 | FW26: =Т!FW26 -> 0 | FX26: =Т!FX26 -> 0 | FY26: =Т!FY26 -> 0 | FZ26: =Т!FZ26 -> 0 | GA26: =Т!GA26 -> 0 | GB26: =Т!GB26 -> 0 | GC26: =Т!GC26 -> 0 | GD26: =Т!GD26 -> 0 | GE26: =Т!GE26 -> 0
F27: 5.2 | I27: Объём топлива | AV27: =Т!AV27 -> 0 | AW27: =Т!AW27 -> 0 | AX27: =Т!AX27 -> 0 | AY27: =Т!AY27 -> 0 | AZ27: =Т!AZ27 -> 0 | BA27: =Т!BA27 -> 0 | BB27: =Т!BB27 -> 0 | BC27: =Т!BC27 -> 0 | BD27: =Т!BD27 -> 0 | BE27: =Т!BE27 -> 0 | BF27: =Т!BF27 -> 0 | BG27: =Т!BG27 -> 0 | BH27: =Т!BH27 -> 0 | BI27: =Т!BI27 -> 0 | BJ27: =Т!BJ27 -> 0 | BK27: =Т!BK27 -> 0 | BL27: =Т!BL27 -> 0 | BM27: =Т!BM27 -> 0 | BN27: =Т!BN27 -> 0 | BO27: =Т!BO27 -> 0 | BP27: =Т!BP27 -> 0 | BQ27: =Т!BQ27 -> 0 | BR27: =Т!BR27 -> 0 | BS27: =Т!BS27 -> 0 | BT27: =Т!BT27 -> 0 | BU27: =Т!BU27 -> 0 | BV27: =Т!BV27 -> 0 | BW27: =Т!BW27 -> 0 | BX27: =Т!BX27 -> 0 | BY27: =Т!BY27 -> 0 | BZ27: =Т!BZ27 -> 0 | CA27: =Т!CA27 -> 0 | CB27: =Т!CB27 -> 0 | CC27: =Т!CC27 -> 0 | CD27: =Т!CD27 -> 0 | CE27: =Т!CE27 -> 0 | CF27: =Т!CF27 -> 0 | CG27: =Т!CG27 -> 0 | CH27: =Т!CH27 -> 0 | CI27: =Т!CI27 -> 0 | CJ27: =Т!CJ27 -> 0 | CK27: =Т!CK27 -> 0 | CL27: =Т!CL27 -> 0 | CM27: =Т!CM27 -> 0 | CN27: =Т!CN27 -> 0 | CO27: =Т!CO27 -> 0 | CP27: =Т!CP27 -> 0 | CQ27: =Т!CQ27 -> 0 | CR27: =Т!CR27 -> 0 | CS27: =Т!CS27 -> 0 | CT27: =Т!CT27 -> 0 | CU27: =Т!CU27 -> 0 | CV27: =Т!CV27 -> 0 | CW27: =Т!CW27 -> 0 | CX27: =Т!CX27 -> 0 | CY27: =Т!CY27 -> 0 | CZ27: =Т!CZ27 -> 0 | DA27: =Т!DA27 -> 0 | DB27: =Т!DB27 -> 0 | DC27: =Т!DC27 -> 0 | DD27: =Т!DD27 -> 0 | DE27: =Т!DE27 -> 0 | DF27: =Т!DF27 -> 0 | DG27: =Т!DG27 -> 0 | DH27: =Т!DH27 -> 0 | DI27: =Т!DI27 -> 0 | DJ27: =Т!DJ27 -> 0 | DK27: =Т!DK27 -> 0 | DL27: =Т!DL27 -> 0 | DM27: =Т!DM27 -> 0 | DN27: =Т!DN27 -> 0 | DO27: =Т!DO27 -> 0 | DP27: =Т!DP27 -> 0 | DQ27: =Т!DQ27 -> 0 | DR27: =Т!DR27 -> 0 | DS27: =Т!DS27 -> 0 | DT27: =Т!DT27 -> 0 | DU27: =Т!DU27 -> 0 | DV27: =Т!DV27 -> 0 | DW27: =Т!DW27 -> 0 | DX27: =Т!DX27 -> 0 | DY27: =Т!DY27 -> 0 | DZ27: =Т!DZ27 -> 0 | EA27: =Т!EA27 -> 0 | EB27: =Т!EB27 -> 0 | EC27: =Т!EC27 -> 0 | ED27: =Т!ED27 -> 0 | EE27: =Т!EE27 -> 0 | EF27: =Т!EF27 -> 0 | EG27: =Т!EG27 -> 0 | EH27: =Т!EH27 -> 0 | EI27: =Т!EI27 -> 0 | EJ27: =Т!EJ27 -> 0 | EK27: =Т!EK27 -> 0 | EL27: =Т!EL27 -> 0 | EM27: =Т!EM27 -> 0 | EN27: =Т!EN27 -> 0 | EO27: =Т!EO27 -> 0 | EP27: =Т!EP27 -> 0 | EQ27: =Т!EQ27 -> 0 | EZ27: =Т!EZ27 -> 0 | FA27: =Т!FA27 -> 0 | FB27: =Т!FB27 -> 0 | FC27: =Т!FC27 -> 0 | FD27: =Т!FD27 -> 0 | FE27: =Т!FE27 -> 0 | FF27: =Т!FF27 -> 0 | FG27: =Т!FG27 -> 0 | FH27: =Т!FH27 -> 0 | FI27: =Т!FI27 -> 0 | FJ27: =Т!FJ27 -> 0 | FK27: =Т!FK27 -> 0 | FL27: =Т!FL27 -> 0 | FM27: =Т!FM27 -> 0 | FN27: =Т!FN27 -> 0 | FO27: =Т!FO27 -> 0 | FP27: =Т!FP27 -> 0 | FQ27: =Т!FQ27 -> 0 | FR27: =Т!FR27 -> 0 | FS27: =Т!FS27 -> 0 | FT27: =Т!FT27 -> 0 | FU27: =Т!FU27 -> 0 | FV27: =Т!FV27 -> 0 | FW27: =Т!FW27 -> 0 | FX27: =Т!FX27 -> 0 | FY27: =Т!FY27 -> 0 | FZ27: =Т!FZ27 -> 0 | GA27: =Т!GA27 -> 0 | GB27: =Т!GB27 -> 0 | GC27: =Т!GC27 -> 0 | GD27: =Т!GD27 -> 0 | GE27: =Т!GE27 -> 0
F28: 5.3.1 | I28: Затраты (тыс.руб.) | J28: без НДС | AV28: =Т!AV28 -> 0 | AW28: =Т!AW28 -> 0 | AX28: =Т!AX28 -> 0 | AY28: =Т!AY28 -> 0 | AZ28: =Т!AZ28 -> 0 | BA28: =Т!BA28 -> 0 | BB28: =Т!BB28 -> 0 | BC28: =Т!BC28 -> 0 | BD28: =Т!BD28 -> 0 | BE28: =Т!BE28 -> 0 | BF28: =Т!BF28 -> 0 | BG28: =Т!BG28 -> 0 | BH28: =Т!BH28 -> 0 | BI28: =Т!BI28 -> 0 | BJ28: =Т!BJ28 -> 0 | BK28: =Т!BK28 -> 0 | BL28: =Т!BL28 -> 0 | BM28: =Т!BM28 -> 0 | BN28: =Т!BN28 -> 0 | BO28: =Т!BO28 -> 0 | BP28: =Т!BP28 -> 0 | BQ28: =Т!BQ28 -> 0 | BR28: =Т!BR28 -> 0 | BS28: =Т!BS28 -> 0 | BT28: =Т!BT28 -> 0 | BU28: =Т!BU28 -> 0 | BV28: =Т!BV28 -> 0 | BW28: =Т!BW28 -> 0 | BX28: =Т!BX28 -> 0 | BY28: =Т!BY28 -> 0 | BZ28: =Т!BZ28 -> 0 | CA28: =Т!CA28 -> 0 | CB28: =Т!CB28 -> 0 | CC28: =Т!CC28 -> 0 | CD28: =Т!CD28 -> 0 | CE28: =Т!CE28 -> 0 | CF28: =Т!CF28 -> 0 | CG28: =Т!CG28 -> 0 | CH28: =Т!CH28 -> 0 | CI28: =Т!CI28 -> 0 | CJ28: =Т!CJ28 -> 0 | CK28: =Т!CK28 -> 0 | CL28: =Т!CL28 -> 0 | CM28: =Т!CM28 -> 0 | CN28: =Т!CN28 -> 0 | CO28: =Т!CO28 -> 0 | CP28: =Т!CP28 -> 0 | CQ28: =Т!CQ28 -> 0 | CR28: =Т!CR28 -> 0 | CS28: =Т!CS28 -> 0 | CT28: =Т!CT28 -> 0 | CU28: =Т!CU28 -> 0 | CV28: =Т!CV28 -> 0 | CW28: =Т!CW28 -> 0 | CX28: =Т!CX28 -> 0 | CY28: =Т!CY28 -> 0 | CZ28: =Т!CZ28 -> 0 | DA28: =Т!DA28 -> 0 | DB28: =Т!DB28 -> 0 | DC28: =Т!DC28 -> 0 | DD28: =Т!DD28 -> 0 | DE28: =Т!DE28 -> 0 | DF28: =Т!DF28 -> 0 | DG28: =Т!DG28 -> 0 | DH28: =Т!DH28 -> 0 | DI28: =Т!DI28 -> 0 | DJ28: =Т!DJ28 -> 0 | DK28: =Т!DK28 -> 0 | DL28: =Т!DL28 -> 0 | DM28: =Т!DM28 -> 0 | DN28: =Т!DN28 -> 0 | DO28: =Т!DO28 -> 0 | DP28: =Т!DP28 -> 0 | DQ28: =Т!DQ28 -> 0 | DR28: =Т!DR28 -> 0 | DS28: =Т!DS28 -> 0 | DT28: =Т!DT28 -> 0 | DU28: =Т!DU28 -> 0 | DV28: =Т!DV28 -> 0 | DW28: =Т!DW28 -> 0 | DX28: =Т!DX28 -> 0 | DY28: =Т!DY28 -> 0 | DZ28: =Т!DZ28 -> 0 | EA28: =Т!EA28 -> 0 | EB28: =Т!EB28 -> 0 | EC28: =Т!EC28 -> 0 | ED28: =Т!ED28 -> 0 | EE28: =Т!EE28 -> 0 | EF28: =Т!EF28 -> 0 | EG28: =Т!EG28 -> 0 | EH28: =Т!EH28 -> 0 | EI28: =Т!EI28 -> 0 | EJ28: =Т!EJ28 -> 0 | EK28: =Т!EK28 -> 0 | EL28: =Т!EL28 -> 0 | EM28: =Т!EM28 -> 0 | EN28: =Т!EN28 -> 0 | EO28: =Т!EO28 -> 0 | EP28: =Т!EP28 -> 0 | EQ28: =Т!EQ28 -> 0 | EZ28: =Т!EZ28 -> 0 | FA28: =Т!FA28 -> 0 | FB28: =Т!FB28 -> 0 | FC28: =Т!FC28 -> 0 | FD28: =Т!FD28 -> 0 | FE28: =Т!FE28 -> 0 | FF28: =Т!FF28 -> 0 | FG28: =Т!FG28 -> 0 | FH28: =Т!FH28 -> 0 | FI28: =Т!FI28 -> 0 | FJ28: =Т!FJ28 -> 0 | FK28: =Т!FK28 -> 0 | FL28: =Т!FL28 -> 0 | FM28: =Т!FM28 -> 0 | FN28: =Т!FN28 -> 0 | FO28: =Т!FO28 -> 0 | FP28: =Т!FP28 -> 0 | FQ28: =Т!FQ28 -> 0 | FR28: =Т!FR28 -> 0 | FS28: =Т!FS28 -> 0 | FT28: =Т!FT28 -> 0 | FU28: =Т!FU28 -> 0 | FV28: =Т!FV28 -> 0 | FW28: =Т!FW28 -> 0 | FX28: =Т!FX28 -> 0 | FY28: =Т!FY28 -> 0 | FZ28: =Т!FZ28 -> 0 | GA28: =Т!GA28 -> 0 | GB28: =Т!GB28 -> 0 | GC28: =Т!GC28 -> 0 | GD28: =Т!GD28 -> 0 | GE28: =Т!GE28 -> 0
F29: 5.3.2 | J29: с НДС | AV29: =Т!AV29 -> 0 | AW29: =Т!AW29 -> 0 | AX29: =Т!AX29 -> 0 | AY29: =Т!AY29 -> 0 | AZ29: =Т!AZ29 -> 0 | BA29: =Т!BA29 -> 0 | BB29: =Т!BB29 -> 0 | BC29: =Т!BC29 -> 0 | BD29: =Т!BD29 -> 0 | BE29: =Т!BE29 -> 0 | BF29: =Т!BF29 -> 0 | BG29: =Т!BG29 -> 0 | BH29: =Т!BH29 -> 0 | BI29: =Т!BI29 -> 0 | BJ29: =Т!BJ29 -> 0 | BK29: =Т!BK29 -> 0 | BL29: =Т!BL29 -> 0 | BM29: =Т!BM29 -> 0 | BN29: =Т!BN29 -> 0 | BO29: =Т!BO29 -> 0 | BP29: =Т!BP29 -> 0 | BQ29: =Т!BQ29 -> 0 | BR29: =Т!BR29 -> 0 | BS29: =Т!BS29 -> 0 | BT29: =Т!BT29 -> 0 | BU29: =Т!BU29 -> 0 | BV29: =Т!BV29 -> 0 | BW29: =Т!BW29 -> 0 | BX29: =Т!BX29 -> 0 | BY29: =Т!BY29 -> 0 | BZ29: =Т!BZ29 -> 0 | CA29: =Т!CA29 -> 0 | CB29: =Т!CB29 -> 0 | CC29: =Т!CC29 -> 0 | CD29: =Т!CD29 -> 0 | CE29: =Т!CE29 -> 0 | CF29: =Т!CF29 -> 0 | CG29: =Т!CG29 -> 0 | CH29: =Т!CH29 -> 0 | CI29: =Т!CI29 -> 0 | CJ29: =Т!CJ29 -> 0 | CK29: =Т!CK29 -> 0 | CL29: =Т!CL29 -> 0 | CM29: =Т!CM29 -> 0 | CN29: =Т!CN29 -> 0 | CO29: =Т!CO29 -> 0 | CP29: =Т!CP29 -> 0 | CQ29: =Т!CQ29 -> 0 | CR29: =Т!CR29 -> 0 | CS29: =Т!CS29 -> 0 | CT29: =Т!CT29 -> 0 | CU29: =Т!CU29 -> 0 | CV29: =Т!CV29 -> 0 | CW29: =Т!CW29 -> 0 | CX29: =Т!CX29 -> 0 | CY29: =Т!CY29 -> 0 | CZ29: =Т!CZ29 -> 0 | DA29: =Т!DA29 -> 0 | DB29: =Т!DB29 -> 0 | DC29: =Т!DC29 -> 0 | DD29: =Т!DD29 -> 0 | DE29: =Т!DE29 -> 0 | DF29: =Т!DF29 -> 0 | DG29: =Т!DG29 -> 0 | DH29: =Т!DH29 -> 0 | DI29: =Т!DI29 -> 0 | DJ29: =Т!DJ29 -> 0 | DK29: =Т!DK29 -> 0 | DL29: =Т!DL29 -> 0 | DM29: =Т!DM29 -> 0 | DN29: =Т!DN29 -> 0 | DO29: =Т!DO29 -> 0 | DP29: =Т!DP29 -> 0 | DQ29: =Т!DQ29 -> 0 | DR29: =Т!DR29 -> 0 | DS29: =Т!DS29 -> 0 | DT29: =Т!DT29 -> 0 | DU29: =Т!DU29 -> 0 | DV29: =Т!DV29 -> 0 | DW29: =Т!DW29 -> 0 | DX29: =Т!DX29 -> 0 | DY29: =Т!DY29 -> 0 | DZ29: =Т!DZ29 -> 0 | EA29: =Т!EA29 -> 0 | EB29: =Т!EB29 -> 0 | EC29: =Т!EC29 -> 0 | ED29: =Т!ED29 -> 0 | EE29: =Т!EE29 -> 0 | EF29: =Т!EF29 -> 0 | EG29: =Т!EG29 -> 0 | EH29: =Т!EH29 -> 0 | EI29: =Т!EI29 -> 0 | EJ29: =Т!EJ29 -> 0 | EK29: =Т!EK29 -> 0 | EL29: =Т!EL29 -> 0 | EM29: =Т!EM29 -> 0 | EN29: =Т!EN29 -> 0 | EO29: =Т!EO29 -> 0 | EP29: =Т!EP29 -> 0 | EQ29: =Т!EQ29 -> 0 | EZ29: =Т!EZ29 -> 0 | FA29: =Т!FA29 -> 0 | FB29: =Т!FB29 -> 0 | FC29: =Т!FC29 -> 0 | FD29: =Т!FD29 -> 0 | FE29: =Т!FE29 -> 0 | FF29: =Т!FF29 -> 0 | FG29: =Т!FG29 -> 0 | FH29: =Т!FH29 -> 0 | FI29: =Т!FI29 -> 0 | FJ29: =Т!FJ29 -> 0 | FK29: =Т!FK29 -> 0 | FL29: =Т!FL29 -> 0 | FM29: =Т!FM29 -> 0 | FN29: =Т!FN29 -> 0 | FO29: =Т!FO29 -> 0 | FP29: =Т!FP29 -> 0 | FQ29: =Т!FQ29 -> 0 | FR29: =Т!FR29 -> 0 | FS29: =Т!FS29 -> 0 | FT29: =Т!FT29 -> 0 | FU29: =Т!FU29 -> 0 | FV29: =Т!FV29 -> 0 | FW29: =Т!FW29 -> 0 | FX29: =Т!FX29 -> 0 | FY29: =Т!FY29 -> 0 | FZ29: =Т!FZ29 -> 0 | GA29: =Т!GA29 -> 0 | GB29: =Т!GB29 -> 0 | GC29: =Т!GC29 -> 0 | GD29: =Т!GD29 -> 0 | GE29: =Т!GE29 -> 0
F30: 6.1.1 | H30: Транспортировка топлива ж/д перевозками | I30: Тариф (цена за единицу) (руб./ед.изм.) | J30: без НДС | AV30: =Т!AV30 -> 0 | AW30: =Т!AW30 -> 0 | AX30: =Т!AX30 -> 0 | AY30: =Т!AY30 -> 0 | AZ30: =Т!AZ30 -> 0 | BA30: =Т!BA30 -> 0 | BB30: =Т!BB30 -> 0 | BC30: =Т!BC30 -> 0 | BD30: =Т!BD30 -> 0 | BE30: =Т!BE30 -> 0 | BF30: =Т!BF30 -> 0 | BG30: =Т!BG30 -> 0 | BH30: =Т!BH30 -> 0 | BI30: =Т!BI30 -> 0 | BJ30: =Т!BJ30 -> 0 | BK30: =Т!BK30 -> 0 | BL30: =Т!BL30 -> 0 | BM30: =Т!BM30 -> 0 | BN30: =Т!BN30 -> 0 | BO30: =Т!BO30 -> 0 | BP30: =Т!BP30 -> 0 | BQ30: =Т!BQ30 -> 0 | BR30: =Т!BR30 -> 0 | BS30: =Т!BS30 -> 0 | BT30: =Т!BT30 -> 0 | BU30: =Т!BU30 -> 0 | BV30: =Т!BV30 -> 0 | BW30: =Т!BW30 -> 0 | BX30: =Т!BX30 -> 0 | BY30: =Т!BY30 -> 0 | BZ30: =Т!BZ30 -> 0 | CA30: =Т!CA30 -> 0 | CB30: =Т!CB30 -> 0 | CC30: =Т!CC30 -> 0 | CD30: =Т!CD30 -> 0 | CE30: =Т!CE30 -> 0 | CF30: =Т!CF30 -> 0 | CG30: =Т!CG30 -> 0 | CH30: =Т!CH30 -> 0 | CI30: =Т!CI30 -> 0 | CJ30: =Т!CJ30 -> 0 | CK30: =Т!CK30 -> 0 | CL30: =Т!CL30 -> 0 | CM30: =Т!CM30 -> 0 | CN30: =Т!CN30 -> 0 | CO30: =Т!CO30 -> 0 | CP30: =Т!CP30 -> 0 | CQ30: =Т!CQ30 -> 0 | CR30: =Т!CR30 -> 0 | CS30: =Т!CS30 -> 0 | CT30: =Т!CT30 -> 0 | CU30: =Т!CU30 -> 0 | CV30: =Т!CV30 -> 0 | CW30: =Т!CW30 -> 0 | CX30: =Т!CX30 -> 0 | CY30: =Т!CY30 -> 0 | CZ30: =Т!CZ30 -> 0 | DA30: =Т!DA30 -> 0 | DB30: =Т!DB30 -> 0 | DC30: =Т!DC30 -> 0 | DD30: =Т!DD30 -> 0 | DE30: =Т!DE30 -> 0 | DF30: =Т!DF30 -> 0 | DG30: =Т!DG30 -> 0 | DH30: =Т!DH30 -> 0 | DI30: =Т!DI30 -> 0 | DJ30: =Т!DJ30 -> 0 | DK30: =Т!DK30 -> 0 | DL30: =Т!DL30 -> 0 | DM30: =Т!DM30 -> 0 | DN30: =Т!DN30 -> 0 | DO30: =Т!DO30 -> 0 | DP30: =Т!DP30 -> 0 | DQ30: =Т!DQ30 -> 0 | DR30: =Т!DR30 -> 0 | DS30: =Т!DS30 -> 0 | DT30: =Т!DT30 -> 0 | DU30: =Т!DU30 -> 0 | DV30: =Т!DV30 -> 0 | DW30: =Т!DW30 -> 0 | DX30: =Т!DX30 -> 0 | DY30: =Т!DY30 -> 0 | DZ30: =Т!DZ30 -> 0 | EA30: =Т!EA30 -> 0 | EB30: =Т!EB30 -> 0 | EC30: =Т!EC30 -> 0 | ED30: =Т!ED30 -> 0 | EE30: =Т!EE30 -> 0 | EF30: =Т!EF30 -> 0 | EG30: =Т!EG30 -> 0 | EH30: =Т!EH30 -> 0 | EI30: =Т!EI30 -> 0 | EJ30: =Т!EJ30 -> 0 | EK30: =Т!EK30 -> 0 | EL30: =Т!EL30 -> 0 | EM30: =Т!EM30 -> 0 | EN30: =Т!EN30 -> 0 | EO30: =Т!EO30 -> 0 | EP30: =Т!EP30 -> 0 | EQ30: =Т!EQ30 -> 0 | EZ30: =Т!EZ30 -> 0 | FA30: =Т!FA30 -> 0 | FB30: =Т!FB30 -> 0 | FC30: =Т!FC30 -> 0 | FD30: =Т!FD30 -> 0 | FE30: =Т!FE30 -> 0 | FF30: =Т!FF30 -> 0 | FG30: =Т!FG30 -> 0 | FH30: =Т!FH30 -> 0 | FI30: =Т!FI30 -> 0 | FJ30: =Т!FJ30 -> 0 | FK30: =Т!FK30 -> 0 | FL30: =Т!FL30 -> 0 | FM30: =Т!FM30 -> 0 | FN30: =Т!FN30 -> 0 | FO30: =Т!FO30 -> 0 | FP30: =Т!FP30 -> 0 | FQ30: =Т!FQ30 -> 0 | FR30: =Т!FR30 -> 0 | FS30: =Т!FS30 -> 0 | FT30: =Т!FT30 -> 0 | FU30: =Т!FU30 -> 0 | FV30: =Т!FV30 -> 0 | FW30: =Т!FW30 -> 0 | FX30: =Т!FX30 -> 0 | FY30: =Т!FY30 -> 0 | FZ30: =Т!FZ30 -> 0 | GA30: =Т!GA30 -> 0 | GB30: =Т!GB30 -> 0 | GC30: =Т!GC30 -> 0 | GD30: =Т!GD30 -> 0 | GE30: =Т!GE30 -> 0
F31: 6.1.2 | J31: с НДС | AV31: =Т!AV31 -> 0 | AW31: =Т!AW31 -> 0 | AX31: =Т!AX31 -> 0 | AY31: =Т!AY31 -> 0 | AZ31: =Т!AZ31 -> 0 | BA31: =Т!BA31 -> 0 | BB31: =Т!BB31 -> 0 | BC31: =Т!BC31 -> 0 | BD31: =Т!BD31 -> 0 | BE31: =Т!BE31 -> 0 | BF31: =Т!BF31 -> 0 | BG31: =Т!BG31 -> 0 | BH31: =Т!BH31 -> 0 | BI31: =Т!BI31 -> 0 | BJ31: =Т!BJ31 -> 0 | BK31: =Т!BK31 -> 0 | BL31: =Т!BL31 -> 0 | BM31: =Т!BM31 -> 0 | BN31: =Т!BN31 -> 0 | BO31: =Т!BO31 -> 0 | BP31: =Т!BP31 -> 0 | BQ31: =Т!BQ31 -> 0 | BR31: =Т!BR31 -> 0 | BS31: =Т!BS31 -> 0 | BT31: =Т!BT31 -> 0 | BU31: =Т!BU31 -> 0 | BV31: =Т!BV31 -> 0 | BW31: =Т!BW31 -> 0 | BX31: =Т!BX31 -> 0 | BY31: =Т!BY31 -> 0 | BZ31: =Т!BZ31 -> 0 | CA31: =Т!CA31 -> 0 | CB31: =Т!CB31 -> 0 | CC31: =Т!CC31 -> 0 | CD31: =Т!CD31 -> 0 | CE31: =Т!CE31 -> 0 | CF31: =Т!CF31 -> 0 | CG31: =Т!CG31 -> 0 | CH31: =Т!CH31 -> 0 | CI31: =Т!CI31 -> 0 | CJ31: =Т!CJ31 -> 0 | CK31: =Т!CK31 -> 0 | CL31: =Т!CL31 -> 0 | CM31: =Т!CM31 -> 0 | CN31: =Т!CN31 -> 0 | CO31: =Т!CO31 -> 0 | CP31: =Т!CP31 -> 0 | CQ31: =Т!CQ31 -> 0 | CR31: =Т!CR31 -> 0 | CS31: =Т!CS31 -> 0 | CT31: =Т!CT31 -> 0 | CU31: =Т!CU31 -> 0 | CV31: =Т!CV31 -> 0 | CW31: =Т!CW31 -> 0 | CX31: =Т!CX31 -> 0 | CY31: =Т!CY31 -> 0 | CZ31: =Т!CZ31 -> 0 | DA31: =Т!DA31 -> 0 | DB31: =Т!DB31 -> 0 | DC31: =Т!DC31 -> 0 | DD31: =Т!DD31 -> 0 | DE31: =Т!DE31 -> 0 | DF31: =Т!DF31 -> 0 | DG31: =Т!DG31 -> 0 | DH31: =Т!DH31 -> 0 | DI31: =Т!DI31 -> 0 | DJ31: =Т!DJ31 -> 0 | DK31: =Т!DK31 -> 0 | DL31: =Т!DL31 -> 0 | DM31: =Т!DM31 -> 0 | DN31: =Т!DN31 -> 0 | DO31: =Т!DO31 -> 0 | DP31: =Т!DP31 -> 0 | DQ31: =Т!DQ31 -> 0 | DR31: =Т!DR31 -> 0 | DS31: =Т!DS31 -> 0 | DT31: =Т!DT31 -> 0 | DU31: =Т!DU31 -> 0 | DV31: =Т!DV31 -> 0 | DW31: =Т!DW31 -> 0 | DX31: =Т!DX31 -> 0 | DY31: =Т!DY31 -> 0 | DZ31: =Т!DZ31 -> 0 | EA31: =Т!EA31 -> 0 | EB31: =Т!EB31 -> 0 | EC31: =Т!EC31 -> 0 | ED31: =Т!ED31 -> 0 | EE31: =Т!EE31 -> 0 | EF31: =Т!EF31 -> 0 | EG31: =Т!EG31 -> 0 | EH31: =Т!EH31 -> 0 | EI31: =Т!EI31 -> 0 | EJ31: =Т!EJ31 -> 0 | EK31: =Т!EK31 -> 0 | EL31: =Т!EL31 -> 0 | EM31: =Т!EM31 -> 0 | EN31: =Т!EN31 -> 0 | EO31: =Т!EO31 -> 0 | EP31: =Т!EP31 -> 0 | EQ31: =Т!EQ31 -> 0 | EZ31: =Т!EZ31 -> 0 | FA31: =Т!FA31 -> 0 | FB31: =Т!FB31 -> 0 | FC31: =Т!FC31 -> 0 | FD31: =Т!FD31 -> 0 | FE31: =Т!FE31 -> 0 | FF31: =Т!FF31 -> 0 | FG31: =Т!FG31 -> 0 | FH31: =Т!FH31 -> 0 | FI31: =Т!FI31 -> 0 | FJ31: =Т!FJ31 -> 0 | FK31: =Т!FK31 -> 0 | FL31: =Т!FL31 -> 0 | FM31: =Т!FM31 -> 0 | FN31: =Т!FN31 -> 0 | FO31: =Т!FO31 -> 0 | FP31: =Т!FP31 -> 0 | FQ31: =Т!FQ31 -> 0 | FR31: =Т!FR31 -> 0 | FS31: =Т!FS31 -> 0 | FT31: =Т!FT31 -> 0 | FU31: =Т!FU31 -> 0 | FV31: =Т!FV31 -> 0 | FW31: =Т!FW31 -> 0 | FX31: =Т!FX31 -> 0 | FY31: =Т!FY31 -> 0 | FZ31: =Т!FZ31 -> 0 | GA31: =Т!GA31 -> 0 | GB31: =Т!GB31 -> 0 | GC31: =Т!GC31 -> 0 | GD31: =Т!GD31 -> 0 | GE31: =Т!GE31 -> 0
F32: 6.2 | I32: Объём топлива | AV32: =Т!AV32 -> 0 | AW32: =Т!AW32 -> 0 | AX32: =Т!AX32 -> 0 | AY32: =Т!AY32 -> 0 | AZ32: =Т!AZ32 -> 0 | BA32: =Т!BA32 -> 0 | BB32: =Т!BB32 -> 0 | BC32: =Т!BC32 -> 0 | BD32: =Т!BD32 -> 0 | BE32: =Т!BE32 -> 0 | BF32: =Т!BF32 -> 0 | BG32: =Т!BG32 -> 0 | BH32: =Т!BH32 -> 0 | BI32: =Т!BI32 -> 0 | BJ32: =Т!BJ32 -> 0 | BK32: =Т!BK32 -> 0 | BL32: =Т!BL32 -> 0 | BM32: =Т!BM32 -> 0 | BN32: =Т!BN32 -> 0 | BO32: =Т!BO32 -> 0 | BP32: =Т!BP32 -> 0 | BQ32: =Т!BQ32 -> 0 | BR32: =Т!BR32 -> 0 | BS32: =Т!BS32 -> 0 | BT32: =Т!BT32 -> 0 | BU32: =Т!BU32 -> 0 | BV32: =Т!BV32 -> 0 | BW32: =Т!BW32 -> 0 | BX32: =Т!BX32 -> 0 | BY32: =Т!BY32 -> 0 | BZ32: =Т!BZ32 -> 0 | CA32: =Т!CA32 -> 0 | CB32: =Т!CB32 -> 0 | CC32: =Т!CC32 -> 0 | CD32: =Т!CD32 -> 0 | CE32: =Т!CE32 -> 0 | CF32: =Т!CF32 -> 0 | CG32: =Т!CG32 -> 0 | CH32: =Т!CH32 -> 0 | CI32: =Т!CI32 -> 0 | CJ32: =Т!CJ32 -> 0 | CK32: =Т!CK32 -> 0 | CL32: =Т!CL32 -> 0 | CM32: =Т!CM32 -> 0 | CN32: =Т!CN32 -> 0 | CO32: =Т!CO32 -> 0 | CP32: =Т!CP32 -> 0 | CQ32: =Т!CQ32 -> 0 | CR32: =Т!CR32 -> 0 | CS32: =Т!CS32 -> 0 | CT32: =Т!CT32 -> 0 | CU32: =Т!CU32 -> 0 | CV32: =Т!CV32 -> 0 | CW32: =Т!CW32 -> 0 | CX32: =Т!CX32 -> 0 | CY32: =Т!CY32 -> 0 | CZ32: =Т!CZ32 -> 0 | DA32: =Т!DA32 -> 0 | DB32: =Т!DB32 -> 0 | DC32: =Т!DC32 -> 0 | DD32: =Т!DD32 -> 0 | DE32: =Т!DE32 -> 0 | DF32: =Т!DF32 -> 0 | DG32: =Т!DG32 -> 0 | DH32: =Т!DH32 -> 0 | DI32: =Т!DI32 -> 0 | DJ32: =Т!DJ32 -> 0 | DK32: =Т!DK32 -> 0 | DL32: =Т!DL32 -> 0 | DM32: =Т!DM32 -> 0 | DN32: =Т!DN32 -> 0 | DO32: =Т!DO32 -> 0 | DP32: =Т!DP32 -> 0 | DQ32: =Т!DQ32 -> 0 | DR32: =Т!DR32 -> 0 | DS32: =Т!DS32 -> 0 | DT32: =Т!DT32 -> 0 | DU32: =Т!DU32 -> 0 | DV32: =Т!DV32 -> 0 | DW32: =Т!DW32 -> 0 | DX32: =Т!DX32 -> 0 | DY32: =Т!DY32 -> 0 | DZ32: =Т!DZ32 -> 0 | EA32: =Т!EA32 -> 0 | EB32: =Т!EB32 -> 0 | EC32: =Т!EC32 -> 0 | ED32: =Т!ED32 -> 0 | EE32: =Т!EE32 -> 0 | EF32: =Т!EF32 -> 0 | EG32: =Т!EG32 -> 0 | EH32: =Т!EH32 -> 0 | EI32: =Т!EI32 -> 0 | EJ32: =Т!EJ32 -> 0 | EK32: =Т!EK32 -> 0 | EL32: =Т!EL32 -> 0 | EM32: =Т!EM32 -> 0 | EN32: =Т!EN32 -> 0 | EO32: =Т!EO32 -> 0 | EP32: =Т!EP32 -> 0 | EQ32: =Т!EQ32 -> 0 | EZ32: =Т!EZ32 -> 0 | FA32: =Т!FA32 -> 0 | FB32: =Т!FB32 -> 0 | FC32: =Т!FC32 -> 0 | FD32: =Т!FD32 -> 0 | FE32: =Т!FE32 -> 0 | FF32: =Т!FF32 -> 0 | FG32: =Т!FG32 -> 0 | FH32: =Т!FH32 -> 0 | FI32: =Т!FI32 -> 0 | FJ32: =Т!FJ32 -> 0 | FK32: =Т!FK32 -> 0 | FL32: =Т!FL32 -> 0 | FM32: =Т!FM32 -> 0 | FN32: =Т!FN32 -> 0 | FO32: =Т!FO32 -> 0 | FP32: =Т!FP32 -> 0 | FQ32: =Т!FQ32 -> 0 | FR32: =Т!FR32 -> 0 | FS32: =Т!FS32 -> 0 | FT32: =Т!FT32 -> 0 | FU32: =Т!FU32 -> 0 | FV32: =Т!FV32 -> 0 | FW32: =Т!FW32 -> 0 | FX32: =Т!FX32 -> 0 | FY32: =Т!FY32 -> 0 | FZ32: =Т!FZ32 -> 0 | GA32: =Т!GA32 -> 0 | GB32: =Т!GB32 -> 0 | GC32: =Т!GC32 -> 0 | GD32: =Т!GD32 -> 0 | GE32: =Т!GE32 -> 0
F33: 6.3.1 | I33: Затраты (тыс.руб.) | J33: без НДС | AV33: =Т!AV33 -> 0 | AW33: =Т!AW33 -> 0 | AX33: =Т!AX33 -> 0 | AY33: =Т!AY33 -> 0 | AZ33: =Т!AZ33 -> 0 | BA33: =Т!BA33 -> 0 | BB33: =Т!BB33 -> 0 | BC33: =Т!BC33 -> 0 | BD33: =Т!BD33 -> 0 | BE33: =Т!BE33 -> 0 | BF33: =Т!BF33 -> 0 | BG33: =Т!BG33 -> 0 | BH33: =Т!BH33 -> 0 | BI33: =Т!BI33 -> 0 | BJ33: =Т!BJ33 -> 0 | BK33: =Т!BK33 -> 0 | BL33: =Т!BL33 -> 0 | BM33: =Т!BM33 -> 0 | BN33: =Т!BN33 -> 0 | BO33: =Т!BO33 -> 0 | BP33: =Т!BP33 -> 0 | BQ33: =Т!BQ33 -> 0 | BR33: =Т!BR33 -> 0 | BS33: =Т!BS33 -> 0 | BT33: =Т!BT33 -> 0 | BU33: =Т!BU33 -> 0 | BV33: =Т!BV33 -> 0 | BW33: =Т!BW33 -> 0 | BX33: =Т!BX33 -> 0 | BY33: =Т!BY33 -> 0 | BZ33: =Т!BZ33 -> 0 | CA33: =Т!CA33 -> 0 | CB33: =Т!CB33 -> 0 | CC33: =Т!CC33 -> 0 | CD33: =Т!CD33 -> 0 | CE33: =Т!CE33 -> 0 | CF33: =Т!CF33 -> 0 | CG33: =Т!CG33 -> 0 | CH33: =Т!CH33 -> 0 | CI33: =Т!CI33 -> 0 | CJ33: =Т!CJ33 -> 0 | CK33: =Т!CK33 -> 0 | CL33: =Т!CL33 -> 0 | CM33: =Т!CM33 -> 0 | CN33: =Т!CN33 -> 0 | CO33: =Т!CO33 -> 0 | CP33: =Т!CP33 -> 0 | CQ33: =Т!CQ33 -> 0 | CR33: =Т!CR33 -> 0 | CS33: =Т!CS33 -> 0 | CT33: =Т!CT33 -> 0 | CU33: =Т!CU33 -> 0 | CV33: =Т!CV33 -> 0 | CW33: =Т!CW33 -> 0 | CX33: =Т!CX33 -> 0 | CY33: =Т!CY33 -> 0 | CZ33: =Т!CZ33 -> 0 | DA33: =Т!DA33 -> 0 | DB33: =Т!DB33 -> 0 | DC33: =Т!DC33 -> 0 | DD33: =Т!DD33 -> 0 | DE33: =Т!DE33 -> 0 | DF33: =Т!DF33 -> 0 | DG33: =Т!DG33 -> 0 | DH33: =Т!DH33 -> 0 | DI33: =Т!DI33 -> 0 | DJ33: =Т!DJ33 -> 0 | DK33: =Т!DK33 -> 0 | DL33: =Т!DL33 -> 0 | DM33: =Т!DM33 -> 0 | DN33: =Т!DN33 -> 0 | DO33: =Т!DO33 -> 0 | DP33: =Т!DP33 -> 0 | DQ33: =Т!DQ33 -> 0 | DR33: =Т!DR33 -> 0 | DS33: =Т!DS33 -> 0 | DT33: =Т!DT33 -> 0 | DU33: =Т!DU33 -> 0 | DV33: =Т!DV33 -> 0 | DW33: =Т!DW33 -> 0 | DX33: =Т!DX33 -> 0 | DY33: =Т!DY33 -> 0 | DZ33: =Т!DZ33 -> 0 | EA33: =Т!EA33 -> 0 | EB33: =Т!EB33 -> 0 | EC33: =Т!EC33 -> 0 | ED33: =Т!ED33 -> 0 | EE33: =Т!EE33 -> 0 | EF33: =Т!EF33 -> 0 | EG33: =Т!EG33 -> 0 | EH33: =Т!EH33 -> 0 | EI33: =Т!EI33 -> 0 | EJ33: =Т!EJ33 -> 0 | EK33: =Т!EK33 -> 0 | EL33: =Т!EL33 -> 0 | EM33: =Т!EM33 -> 0 | EN33: =Т!EN33 -> 0 | EO33: =Т!EO33 -> 0 | EP33: =Т!EP33 -> 0 | EQ33: =Т!EQ33 -> 0 | EZ33: =Т!EZ33 -> 0 | FA33: =Т!FA33 -> 0 | FB33: =Т!FB33 -> 0 | FC33: =Т!FC33 -> 0 | FD33: =Т!FD33 -> 0 | FE33: =Т!FE33 -> 0 | FF33: =Т!FF33 -> 0 | FG33: =Т!FG33 -> 0 | FH33: =Т!FH33 -> 0 | FI33: =Т!FI33 -> 0 | FJ33: =Т!FJ33 -> 0 | FK33: =Т!FK33 -> 0 | FL33: =Т!FL33 -> 0 | FM33: =Т!FM33 -> 0 | FN33: =Т!FN33 -> 0 | FO33: =Т!FO33 -> 0 | FP33: =Т!FP33 -> 0 | FQ33: =Т!FQ33 -> 0 | FR33: =Т!FR33 -> 0 | FS33: =Т!FS33 -> 0 | FT33: =Т!FT33 -> 0 | FU33: =Т!FU33 -> 0 | FV33: =Т!FV33 -> 0 | FW33: =Т!FW33 -> 0 | FX33: =Т!FX33 -> 0 | FY33: =Т!FY33 -> 0 | FZ33: =Т!FZ33 -> 0 | GA33: =Т!GA33 -> 0 | GB33: =Т!GB33 -> 0 | GC33: =Т!GC33 -> 0 | GD33: =Т!GD33 -> 0 | GE33: =Т!GE33 -> 0
F34: 6.3.2 | J34: с НДС | AV34: =Т!AV34 -> 0 | AW34: =Т!AW34 -> 0 | AX34: =Т!AX34 -> 0 | AY34: =Т!AY34 -> 0 | AZ34: =Т!AZ34 -> 0 | BA34: =Т!BA34 -> 0 | BB34: =Т!BB34 -> 0 | BC34: =Т!BC34 -> 0 | BD34: =Т!BD34 -> 0 | BE34: =Т!BE34 -> 0 | BF34: =Т!BF34 -> 0 | BG34: =Т!BG34 -> 0 | BH34: =Т!BH34 -> 0 | BI34: =Т!BI34 -> 0 | BJ34: =Т!BJ34 -> 0 | BK34: =Т!BK34 -> 0 | BL34: =Т!BL34 -> 0 | BM34: =Т!BM34 -> 0 | BN34: =Т!BN34 -> 0 | BO34: =Т!BO34 -> 0 | BP34: =Т!BP34 -> 0 | BQ34: =Т!BQ34 -> 0 | BR34: =Т!BR34 -> 0 | BS34: =Т!BS34 -> 0 | BT34: =Т!BT34 -> 0 | BU34: =Т!BU34 -> 0 | BV34: =Т!BV34 -> 0 | BW34: =Т!BW34 -> 0 | BX34: =Т!BX34 -> 0 | BY34: =Т!BY34 -> 0 | BZ34: =Т!BZ34 -> 0 | CA34: =Т!CA34 -> 0 | CB34: =Т!CB34 -> 0 | CC34: =Т!CC34 -> 0 | CD34: =Т!CD34 -> 0 | CE34: =Т!CE34 -> 0 | CF34: =Т!CF34 -> 0 | CG34: =Т!CG34 -> 0 | CH34: =Т!CH34 -> 0 | CI34: =Т!CI34 -> 0 | CJ34: =Т!CJ34 -> 0 | CK34: =Т!CK34 -> 0 | CL34: =Т!CL34 -> 0 | CM34: =Т!CM34 -> 0 | CN34: =Т!CN34 -> 0 | CO34: =Т!CO34 -> 0 | CP34: =Т!CP34 -> 0 | CQ34: =Т!CQ34 -> 0 | CR34: =Т!CR34 -> 0 | CS34: =Т!CS34 -> 0 | CT34: =Т!CT34 -> 0 | CU34: =Т!CU34 -> 0 | CV34: =Т!CV34 -> 0 | CW34: =Т!CW34 -> 0 | CX34: =Т!CX34 -> 0 | CY34: =Т!CY34 -> 0 | CZ34: =Т!CZ34 -> 0 | DA34: =Т!DA34 -> 0 | DB34: =Т!DB34 -> 0 | DC34: =Т!DC34 -> 0 | DD34: =Т!DD34 -> 0 | DE34: =Т!DE34 -> 0 | DF34: =Т!DF34 -> 0 | DG34: =Т!DG34 -> 0 | DH34: =Т!DH34 -> 0 | DI34: =Т!DI34 -> 0 | DJ34: =Т!DJ34 -> 0 | DK34: =Т!DK34 -> 0 | DL34: =Т!DL34 -> 0 | DM34: =Т!DM34 -> 0 | DN34: =Т!DN34 -> 0 | DO34: =Т!DO34 -> 0 | DP34: =Т!DP34 -> 0 | DQ34: =Т!DQ34 -> 0 | DR34: =Т!DR34 -> 0 | DS34: =Т!DS34 -> 0 | DT34: =Т!DT34 -> 0 | DU34: =Т!DU34 -> 0 | DV34: =Т!DV34 -> 0 | DW34: =Т!DW34 -> 0 | DX34: =Т!DX34 -> 0 | DY34: =Т!DY34 -> 0 | DZ34: =Т!DZ34 -> 0 | EA34: =Т!EA34 -> 0 | EB34: =Т!EB34 -> 0 | EC34: =Т!EC34 -> 0 | ED34: =Т!ED34 -> 0 | EE34: =Т!EE34 -> 0 | EF34: =Т!EF34 -> 0 | EG34: =Т!EG34 -> 0 | EH34: =Т!EH34 -> 0 | EI34: =Т!EI34 -> 0 | EJ34: =Т!EJ34 -> 0 | EK34: =Т!EK34 -> 0 | EL34: =Т!EL34 -> 0 | EM34: =Т!EM34 -> 0 | EN34: =Т!EN34 -> 0 | EO34: =Т!EO34 -> 0 | EP34: =Т!EP34 -> 0 | EQ34: =Т!EQ34 -> 0 | EZ34: =Т!EZ34 -> 0 | FA34: =Т!FA34 -> 0 | FB34: =Т!FB34 -> 0 | FC34: =Т!FC34 -> 0 | FD34: =Т!FD34 -> 0 | FE34: =Т!FE34 -> 0 | FF34: =Т!FF34 -> 0 | FG34: =Т!FG34 -> 0 | FH34: =Т!FH34 -> 0 | FI34: =Т!FI34 -> 0 | FJ34: =Т!FJ34 -> 0 | FK34: =Т!FK34 -> 0 | FL34: =Т!FL34 -> 0 | FM34: =Т!FM34 -> 0 | FN34: =Т!FN34 -> 0 | FO34: =Т!FO34 -> 0 | FP34: =Т!FP34 -> 0 | FQ34: =Т!FQ34 -> 0 | FR34: =Т!FR34 -> 0 | FS34: =Т!FS34 -> 0 | FT34: =Т!FT34 -> 0 | FU34: =Т!FU34 -> 0 | FV34: =Т!FV34 -> 0 | FW34: =Т!FW34 -> 0 | FX34: =Т!FX34 -> 0 | FY34: =Т!FY34 -> 0 | FZ34: =Т!FZ34 -> 0 | GA34: =Т!GA34 -> 0 | GB34: =Т!GB34 -> 0 | GC34: =Т!GC34 -> 0 | GD34: =Т!GD34 -> 0 | GE34: =Т!GE34 -> 0
F35: 7.1.1 | H35: Транспортировка топлива иными видами перевозок | I35: Тариф (цена за единицу) (руб./ед.изм.) | J35: без НДС | AV35: =Т!AV35 -> 0 | AW35: =Т!AW35 -> 0 | AX35: =Т!AX35 -> 0 | AY35: =Т!AY35 -> 0 | AZ35: =Т!AZ35 -> 0 | BA35: =Т!BA35 -> 0 | BB35: =Т!BB35 -> 0 | BC35: =Т!BC35 -> 0 | BD35: =Т!BD35 -> 0 | BE35: =Т!BE35 -> 0 | BF35: =Т!BF35 -> 0 | BG35: =Т!BG35 -> 0 | BH35: =Т!BH35 -> 0 | BI35: =Т!BI35 -> 0 | BJ35: =Т!BJ35 -> 0 | BK35: =Т!BK35 -> 0 | BL35: =Т!BL35 -> 0 | BM35: =Т!BM35 -> 0 | BN35: =Т!BN35 -> 0 | BO35: =Т!BO35 -> 0 | BP35: =Т!BP35 -> 0 | BQ35: =Т!BQ35 -> 0 | BR35: =Т!BR35 -> 0 | BS35: =Т!BS35 -> 0 | BT35: =Т!BT35 -> 0 | BU35: =Т!BU35 -> 0 | BV35: =Т!BV35 -> 0 | BW35: =Т!BW35 -> 0 | BX35: =Т!BX35 -> 0 | BY35: =Т!BY35 -> 0 | BZ35: =Т!BZ35 -> 0 | CA35: =Т!CA35 -> 0 | CB35: =Т!CB35 -> 0 | CC35: =Т!CC35 -> 0 | CD35: =Т!CD35 -> 0 | CE35: =Т!CE35 -> 0 | CF35: =Т!CF35 -> 0 | CG35: =Т!CG35 -> 0 | CH35: =Т!CH35 -> 0 | CI35: =Т!CI35 -> 0 | CJ35: =Т!CJ35 -> 0 | CK35: =Т!CK35 -> 0 | CL35: =Т!CL35 -> 0 | CM35: =Т!CM35 -> 0 | CN35: =Т!CN35 -> 0 | CO35: =Т!CO35 -> 0 | CP35: =Т!CP35 -> 0 | CQ35: =Т!CQ35 -> 0 | CR35: =Т!CR35 -> 0 | CS35: =Т!CS35 -> 0 | CT35: =Т!CT35 -> 0 | CU35: =Т!CU35 -> 0 | CV35: =Т!CV35 -> 0 | CW35: =Т!CW35 -> 0 | CX35: =Т!CX35 -> 0 | CY35: =Т!CY35 -> 0 | CZ35: =Т!CZ35 -> 0 | DA35: =Т!DA35 -> 0 | DB35: =Т!DB35 -> 0 | DC35: =Т!DC35 -> 0 | DD35: =Т!DD35 -> 0 | DE35: =Т!DE35 -> 0 | DF35: =Т!DF35 -> 0 | DG35: =Т!DG35 -> 0 | DH35: =Т!DH35 -> 0 | DI35: =Т!DI35 -> 0 | DJ35: =Т!DJ35 -> 0 | DK35: =Т!DK35 -> 0 | DL35: =Т!DL35 -> 0 | DM35: =Т!DM35 -> 0 | DN35: =Т!DN35 -> 0 | DO35: =Т!DO35 -> 0 | DP35: =Т!DP35 -> 0 | DQ35: =Т!DQ35 -> 0 | DR35: =Т!DR35 -> 0 | DS35: =Т!DS35 -> 0 | DT35: =Т!DT35 -> 0 | DU35: =Т!DU35 -> 0 | DV35: =Т!DV35 -> 0 | DW35: =Т!DW35 -> 0 | DX35: =Т!DX35 -> 0 | DY35: =Т!DY35 -> 0 | DZ35: =Т!DZ35 -> 0 | EA35: =Т!EA35 -> 0 | EB35: =Т!EB35 -> 0 | EC35: =Т!EC35 -> 0 | ED35: =Т!ED35 -> 0 | EE35: =Т!EE35 -> 0 | EF35: =Т!EF35 -> 0 | EG35: =Т!EG35 -> 0 | EH35: =Т!EH35 -> 0 | EI35: =Т!EI35 -> 0 | EJ35: =Т!EJ35 -> 0 | EK35: =Т!EK35 -> 0 | EL35: =Т!EL35 -> 0 | EM35: =Т!EM35 -> 0 | EN35: =Т!EN35 -> 0 | EO35: =Т!EO35 -> 0 | EP35: =Т!EP35 -> 0 | EQ35: =Т!EQ35 -> 0 | EZ35: =Т!EZ35 -> 0 | FA35: =Т!FA35 -> 0 | FB35: =Т!FB35 -> 0 | FC35: =Т!FC35 -> 0 | FD35: =Т!FD35 -> 0 | FE35: =Т!FE35 -> 0 | FF35: =Т!FF35 -> 0 | FG35: =Т!FG35 -> 0 | FH35: =Т!FH35 -> 0 | FI35: =Т!FI35 -> 0 | FJ35: =Т!FJ35 -> 0 | FK35: =Т!FK35 -> 0 | FL35: =Т!FL35 -> 0 | FM35: =Т!FM35 -> 0 | FN35: =Т!FN35 -> 0 | FO35: =Т!FO35 -> 0 | FP35: =Т!FP35 -> 0 | FQ35: =Т!FQ35 -> 0 | FR35: =Т!FR35 -> 0 | FS35: =Т!FS35 -> 0 | FT35: =Т!FT35 -> 0 | FU35: =Т!FU35 -> 0 | FV35: =Т!FV35 -> 0 | FW35: =Т!FW35 -> 0 | FX35: =Т!FX35 -> 0 | FY35: =Т!FY35 -> 0 | FZ35: =Т!FZ35 -> 0 | GA35: =Т!GA35 -> 0 | GB35: =Т!GB35 -> 0 | GC35: =Т!GC35 -> 0 | GD35: =Т!GD35 -> 0 | GE35: =Т!GE35 -> 0
F36: 7.1.2 | J36: с НДС | AV36: =Т!AV36 -> 0 | AW36: =Т!AW36 -> 0 | AX36: =Т!AX36 -> 0 | AY36: =Т!AY36 -> 0 | AZ36: =Т!AZ36 -> 0 | BA36: =Т!BA36 -> 0 | BB36: =Т!BB36 -> 0 | BC36: =Т!BC36 -> 0 | BD36: =Т!BD36 -> 0 | BE36: =Т!BE36 -> 0 | BF36: =Т!BF36 -> 0 | BG36: =Т!BG36 -> 0 | BH36: =Т!BH36 -> 0 | BI36: =Т!BI36 -> 0 | BJ36: =Т!BJ36 -> 0 | BK36: =Т!BK36 -> 0 | BL36: =Т!BL36 -> 0 | BM36: =Т!BM36 -> 0 | BN36: =Т!BN36 -> 0 | BO36: =Т!BO36 -> 0 | BP36: =Т!BP36 -> 0 | BQ36: =Т!BQ36 -> 0 | BR36: =Т!BR36 -> 0 | BS36: =Т!BS36 -> 0 | BT36: =Т!BT36 -> 0 | BU36: =Т!BU36 -> 0 | BV36: =Т!BV36 -> 0 | BW36: =Т!BW36 -> 0 | BX36: =Т!BX36 -> 0 | BY36: =Т!BY36 -> 0 | BZ36: =Т!BZ36 -> 0 | CA36: =Т!CA36 -> 0 | CB36: =Т!CB36 -> 0 | CC36: =Т!CC36 -> 0 | CD36: =Т!CD36 -> 0 | CE36: =Т!CE36 -> 0 | CF36: =Т!CF36 -> 0 | CG36: =Т!CG36 -> 0 | CH36: =Т!CH36 -> 0 | CI36: =Т!CI36 -> 0 | CJ36: =Т!CJ36 -> 0 | CK36: =Т!CK36 -> 0 | CL36: =Т!CL36 -> 0 | CM36: =Т!CM36 -> 0 | CN36: =Т!CN36 -> 0 | CO36: =Т!CO36 -> 0 | CP36: =Т!CP36 -> 0 | CQ36: =Т!CQ36 -> 0 | CR36: =Т!CR36 -> 0 | CS36: =Т!CS36 -> 0 | CT36: =Т!CT36 -> 0 | CU36: =Т!CU36 -> 0 | CV36: =Т!CV36 -> 0 | CW36: =Т!CW36 -> 0 | CX36: =Т!CX36 -> 0 | CY36: =Т!CY36 -> 0 | CZ36: =Т!CZ36 -> 0 | DA36: =Т!DA36 -> 0 | DB36: =Т!DB36 -> 0 | DC36: =Т!DC36 -> 0 | DD36: =Т!DD36 -> 0 | DE36: =Т!DE36 -> 0 | DF36: =Т!DF36 -> 0 | DG36: =Т!DG36 -> 0 | DH36: =Т!DH36 -> 0 | DI36: =Т!DI36 -> 0 | DJ36: =Т!DJ36 -> 0 | DK36: =Т!DK36 -> 0 | DL36: =Т!DL36 -> 0 | DM36: =Т!DM36 -> 0 | DN36: =Т!DN36 -> 0 | DO36: =Т!DO36 -> 0 | DP36: =Т!DP36 -> 0 | DQ36: =Т!DQ36 -> 0 | DR36: =Т!DR36 -> 0 | DS36: =Т!DS36 -> 0 | DT36: =Т!DT36 -> 0 | DU36: =Т!DU36 -> 0 | DV36: =Т!DV36 -> 0 | DW36: =Т!DW36 -> 0 | DX36: =Т!DX36 -> 0 | DY36: =Т!DY36 -> 0 | DZ36: =Т!DZ36 -> 0 | EA36: =Т!EA36 -> 0 | EB36: =Т!EB36 -> 0 | EC36: =Т!EC36 -> 0 | ED36: =Т!ED36 -> 0 | EE36: =Т!EE36 -> 0 | EF36: =Т!EF36 -> 0 | EG36: =Т!EG36 -> 0 | EH36: =Т!EH36 -> 0 | EI36: =Т!EI36 -> 0 | EJ36: =Т!EJ36 -> 0 | EK36: =Т!EK36 -> 0 | EL36: =Т!EL36 -> 0 | EM36: =Т!EM36 -> 0 | EN36: =Т!EN36 -> 0 | EO36: =Т!EO36 -> 0 | EP36: =Т!EP36 -> 0 | EQ36: =Т!EQ36 -> 0 | EZ36: =Т!EZ36 -> 0 | FA36: =Т!FA36 -> 0 | FB36: =Т!FB36 -> 0 | FC36: =Т!FC36 -> 0 | FD36: =Т!FD36 -> 0 | FE36: =Т!FE36 -> 0 | FF36: =Т!FF36 -> 0 | FG36: =Т!FG36 -> 0 | FH36: =Т!FH36 -> 0 | FI36: =Т!FI36 -> 0 | FJ36: =Т!FJ36 -> 0 | FK36: =Т!FK36 -> 0 | FL36: =Т!FL36 -> 0 | FM36: =Т!FM36 -> 0 | FN36: =Т!FN36 -> 0 | FO36: =Т!FO36 -> 0 | FP36: =Т!FP36 -> 0 | FQ36: =Т!FQ36 -> 0 | FR36: =Т!FR36 -> 0 | FS36: =Т!FS36 -> 0 | FT36: =Т!FT36 -> 0 | FU36: =Т!FU36 -> 0 | FV36: =Т!FV36 -> 0 | FW36: =Т!FW36 -> 0 | FX36: =Т!FX36 -> 0 | FY36: =Т!FY36 -> 0 | FZ36: =Т!FZ36 -> 0 | GA36: =Т!GA36 -> 0 | GB36: =Т!GB36 -> 0 | GC36: =Т!GC36 -> 0 | GD36: =Т!GD36 -> 0 | GE36: =Т!GE36 -> 0
F37: 7.2 | I37: Объём топлива | AV37: =Т!AV37 -> 0 | AW37: =Т!AW37 -> 0 | AX37: =Т!AX37 -> 0 | AY37: =Т!AY37 -> 0 | AZ37: =Т!AZ37 -> 0 | BA37: =Т!BA37 -> 0 | BB37: =Т!BB37 -> 0 | BC37: =Т!BC37 -> 0 | BD37: =Т!BD37 -> 0 | BE37: =Т!BE37 -> 0 | BF37: =Т!BF37 -> 0 | BG37: =Т!BG37 -> 0 | BH37: =Т!BH37 -> 0 | BI37: =Т!BI37 -> 0 | BJ37: =Т!BJ37 -> 0 | BK37: =Т!BK37 -> 0 | BL37: =Т!BL37 -> 0 | BM37: =Т!BM37 -> 0 | BN37: =Т!BN37 -> 0 | BO37: =Т!BO37 -> 0 | BP37: =Т!BP37 -> 0 | BQ37: =Т!BQ37 -> 0 | BR37: =Т!BR37 -> 0 | BS37: =Т!BS37 -> 0 | BT37: =Т!BT37 -> 0 | BU37: =Т!BU37 -> 0 | BV37: =Т!BV37 -> 0 | BW37: =Т!BW37 -> 0 | BX37: =Т!BX37 -> 0 | BY37: =Т!BY37 -> 0 | BZ37: =Т!BZ37 -> 0 | CA37: =Т!CA37 -> 0 | CB37: =Т!CB37 -> 0 | CC37: =Т!CC37 -> 0 | CD37: =Т!CD37 -> 0 | CE37: =Т!CE37 -> 0 | CF37: =Т!CF37 -> 0 | CG37: =Т!CG37 -> 0 | CH37: =Т!CH37 -> 0 | CI37: =Т!CI37 -> 0 | CJ37: =Т!CJ37 -> 0 | CK37: =Т!CK37 -> 0 | CL37: =Т!CL37 -> 0 | CM37: =Т!CM37 -> 0 | CN37: =Т!CN37 -> 0 | CO37: =Т!CO37 -> 0 | CP37: =Т!CP37 -> 0 | CQ37: =Т!CQ37 -> 0 | CR37: =Т!CR37 -> 0 | CS37: =Т!CS37 -> 0 | CT37: =Т!CT37 -> 0 | CU37: =Т!CU37 -> 0 | CV37: =Т!CV37 -> 0 | CW37: =Т!CW37 -> 0 | CX37: =Т!CX37 -> 0 | CY37: =Т!CY37 -> 0 | CZ37: =Т!CZ37 -> 0 | DA37: =Т!DA37 -> 0 | DB37: =Т!DB37 -> 0 | DC37: =Т!DC37 -> 0 | DD37: =Т!DD37 -> 0 | DE37: =Т!DE37 -> 0 | DF37: =Т!DF37 -> 0 | DG37: =Т!DG37 -> 0 | DH37: =Т!DH37 -> 0 | DI37: =Т!DI37 -> 0 | DJ37: =Т!DJ37 -> 0 | DK37: =Т!DK37 -> 0 | DL37: =Т!DL37 -> 0 | DM37: =Т!DM37 -> 0 | DN37: =Т!DN37 -> 0 | DO37: =Т!DO37 -> 0 | DP37: =Т!DP37 -> 0 | DQ37: =Т!DQ37 -> 0 | DR37: =Т!DR37 -> 0 | DS37: =Т!DS37 -> 0 | DT37: =Т!DT37 -> 0 | DU37: =Т!DU37 -> 0 | DV37: =Т!DV37 -> 0 | DW37: =Т!DW37 -> 0 | DX37: =Т!DX37 -> 0 | DY37: =Т!DY37 -> 0 | DZ37: =Т!DZ37 -> 0 | EA37: =Т!EA37 -> 0 | EB37: =Т!EB37 -> 0 | EC37: =Т!EC37 -> 0 | ED37: =Т!ED37 -> 0 | EE37: =Т!EE37 -> 0 | EF37: =Т!EF37 -> 0 | EG37: =Т!EG37 -> 0 | EH37: =Т!EH37 -> 0 | EI37: =Т!EI37 -> 0 | EJ37: =Т!EJ37 -> 0 | EK37: =Т!EK37 -> 0 | EL37: =Т!EL37 -> 0 | EM37: =Т!EM37 -> 0 | EN37: =Т!EN37 -> 0 | EO37: =Т!EO37 -> 0 | EP37: =Т!EP37 -> 0 | EQ37: =Т!EQ37 -> 0 | EZ37: =Т!EZ37 -> 0 | FA37: =Т!FA37 -> 0 | FB37: =Т!FB37 -> 0 | FC37: =Т!FC37 -> 0 | FD37: =Т!FD37 -> 0 | FE37: =Т!FE37 -> 0 | FF37: =Т!FF37 -> 0 | FG37: =Т!FG37 -> 0 | FH37: =Т!FH37 -> 0 | FI37: =Т!FI37 -> 0 | FJ37: =Т!FJ37 -> 0 | FK37: =Т!FK37 -> 0 | FL37: =Т!FL37 -> 0 | FM37: =Т!FM37 -> 0 | FN37: =Т!FN37 -> 0 | FO37: =Т!FO37 -> 0 | FP37: =Т!FP37 -> 0 | FQ37: =Т!FQ37 -> 0 | FR37: =Т!FR37 -> 0 | FS37: =Т!FS37 -> 0 | FT37: =Т!FT37 -> 0 | FU37: =Т!FU37 -> 0 | FV37: =Т!FV37 -> 0 | FW37: =Т!FW37 -> 0 | FX37: =Т!FX37 -> 0 | FY37: =Т!FY37 -> 0 | FZ37: =Т!FZ37 -> 0 | GA37: =Т!GA37 -> 0 | GB37: =Т!GB37 -> 0 | GC37: =Т!GC37 -> 0 | GD37: =Т!GD37 -> 0 | GE37: =Т!GE37 -> 0
F38: 7.3.1 | I38: Затраты (тыс.руб.) | J38: без НДС | AV38: =Т!AV38 -> 0 | AW38: =Т!AW38 -> 0 | AX38: =Т!AX38 -> 0 | AY38: =Т!AY38 -> 0 | AZ38: =Т!AZ38 -> 0 | BA38: =Т!BA38 -> 0 | BB38: =Т!BB38 -> 0 | BC38: =Т!BC38 -> 0 | BD38: =Т!BD38 -> 0 | BE38: =Т!BE38 -> 0 | BF38: =Т!BF38 -> 0 | BG38: =Т!BG38 -> 0 | BH38: =Т!BH38 -> 0 | BI38: =Т!BI38 -> 0 | BJ38: =Т!BJ38 -> 0 | BK38: =Т!BK38 -> 0 | BL38: =Т!BL38 -> 0 | BM38: =Т!BM38 -> 0 | BN38: =Т!BN38 -> 0 | BO38: =Т!BO38 -> 0 | BP38: =Т!BP38 -> 0 | BQ38: =Т!BQ38 -> 0 | BR38: =Т!BR38 -> 0 | BS38: =Т!BS38 -> 0 | BT38: =Т!BT38 -> 0 | BU38: =Т!BU38 -> 0 | BV38: =Т!BV38 -> 0 | BW38: =Т!BW38 -> 0 | BX38: =Т!BX38 -> 0 | BY38: =Т!BY38 -> 0 | BZ38: =Т!BZ38 -> 0 | CA38: =Т!CA38 -> 0 | CB38: =Т!CB38 -> 0 | CC38: =Т!CC38 -> 0 | CD38: =Т!CD38 -> 0 | CE38: =Т!CE38 -> 0 | CF38: =Т!CF38 -> 0 | CG38: =Т!CG38 -> 0 | CH38: =Т!CH38 -> 0 | CI38: =Т!CI38 -> 0 | CJ38: =Т!CJ38 -> 0 | CK38: =Т!CK38 -> 0 | CL38: =Т!CL38 -> 0 | CM38: =Т!CM38 -> 0 | CN38: =Т!CN38 -> 0 | CO38: =Т!CO38 -> 0 | CP38: =Т!CP38 -> 0 | CQ38: =Т!CQ38 -> 0 | CR38: =Т!CR38 -> 0 | CS38: =Т!CS38 -> 0 | CT38: =Т!CT38 -> 0 | CU38: =Т!CU38 -> 0 | CV38: =Т!CV38 -> 0 | CW38: =Т!CW38 -> 0 | CX38: =Т!CX38 -> 0 | CY38: =Т!CY38 -> 0 | CZ38: =Т!CZ38 -> 0 | DA38: =Т!DA38 -> 0 | DB38: =Т!DB38 -> 0 | DC38: =Т!DC38 -> 0 | DD38: =Т!DD38 -> 0 | DE38: =Т!DE38 -> 0 | DF38: =Т!DF38 -> 0 | DG38: =Т!DG38 -> 0 | DH38: =Т!DH38 -> 0 | DI38: =Т!DI38 -> 0 | DJ38: =Т!DJ38 -> 0 | DK38: =Т!DK38 -> 0 | DL38: =Т!DL38 -> 0 | DM38: =Т!DM38 -> 0 | DN38: =Т!DN38 -> 0 | DO38: =Т!DO38 -> 0 | DP38: =Т!DP38 -> 0 | DQ38: =Т!DQ38 -> 0 | DR38: =Т!DR38 -> 0 | DS38: =Т!DS38 -> 0 | DT38: =Т!DT38 -> 0 | DU38: =Т!DU38 -> 0 | DV38: =Т!DV38 -> 0 | DW38: =Т!DW38 -> 0 | DX38: =Т!DX38 -> 0 | DY38: =Т!DY38 -> 0 | DZ38: =Т!DZ38 -> 0 | EA38: =Т!EA38 -> 0 | EB38: =Т!EB38 -> 0 | EC38: =Т!EC38 -> 0 | ED38: =Т!ED38 -> 0 | EE38: =Т!EE38 -> 0 | EF38: =Т!EF38 -> 0 | EG38: =Т!EG38 -> 0 | EH38: =Т!EH38 -> 0 | EI38: =Т!EI38 -> 0 | EJ38: =Т!EJ38 -> 0 | EK38: =Т!EK38 -> 0 | EL38: =Т!EL38 -> 0 | EM38: =Т!EM38 -> 0 | EN38: =Т!EN38 -> 0 | EO38: =Т!EO38 -> 0 | EP38: =Т!EP38 -> 0 | EQ38: =Т!EQ38 -> 0 | EZ38: =Т!EZ38 -> 0 | FA38: =Т!FA38 -> 0 | FB38: =Т!FB38 -> 0 | FC38: =Т!FC38 -> 0 | FD38: =Т!FD38 -> 0 | FE38: =Т!FE38 -> 0 | FF38: =Т!FF38 -> 0 | FG38: =Т!FG38 -> 0 | FH38: =Т!FH38 -> 0 | FI38: =Т!FI38 -> 0 | FJ38: =Т!FJ38 -> 0 | FK38: =Т!FK38 -> 0 | FL38: =Т!FL38 -> 0 | FM38: =Т!FM38 -> 0 | FN38: =Т!FN38 -> 0 | FO38: =Т!FO38 -> 0 | FP38: =Т!FP38 -> 0 | FQ38: =Т!FQ38 -> 0 | FR38: =Т!FR38 -> 0 | FS38: =Т!FS38 -> 0 | FT38: =Т!FT38 -> 0 | FU38: =Т!FU38 -> 0 | FV38: =Т!FV38 -> 0 | FW38: =Т!FW38 -> 0 | FX38: =Т!FX38 -> 0 | FY38: =Т!FY38 -> 0 | FZ38: =Т!FZ38 -> 0 | GA38: =Т!GA38 -> 0 | GB38: =Т!GB38 -> 0 | GC38: =Т!GC38 -> 0 | GD38: =Т!GD38 -> 0 | GE38: =Т!GE38 -> 0
F39: 7.3.2 | J39: с НДС | AV39: =Т!AV39 -> 0 | AW39: =Т!AW39 -> 0 | AX39: =Т!AX39 -> 0 | AY39: =Т!AY39 -> 0 | AZ39: =Т!AZ39 -> 0 | BA39: =Т!BA39 -> 0 | BB39: =Т!BB39 -> 0 | BC39: =Т!BC39 -> 0 | BD39: =Т!BD39 -> 0 | BE39: =Т!BE39 -> 0 | BF39: =Т!BF39 -> 0 | BG39: =Т!BG39 -> 0 | BH39: =Т!BH39 -> 0 | BI39: =Т!BI39 -> 0 | BJ39: =Т!BJ39 -> 0 | BK39: =Т!BK39 -> 0 | BL39: =Т!BL39 -> 0 | BM39: =Т!BM39 -> 0 | BN39: =Т!BN39 -> 0 | BO39: =Т!BO39 -> 0 | BP39: =Т!BP39 -> 0 | BQ39: =Т!BQ39 -> 0 | BR39: =Т!BR39 -> 0 | BS39: =Т!BS39 -> 0 | BT39: =Т!BT39 -> 0 | BU39: =Т!BU39 -> 0 | BV39: =Т!BV39 -> 0 | BW39: =Т!BW39 -> 0 | BX39: =Т!BX39 -> 0 | BY39: =Т!BY39 -> 0 | BZ39: =Т!BZ39 -> 0 | CA39: =Т!CA39 -> 0 | CB39: =Т!CB39 -> 0 | CC39: =Т!CC39 -> 0 | CD39: =Т!CD39 -> 0 | CE39: =Т!CE39 -> 0 | CF39: =Т!CF39 -> 0 | CG39: =Т!CG39 -> 0 | CH39: =Т!CH39 -> 0 | CI39: =Т!CI39 -> 0 | CJ39: =Т!CJ39 -> 0 | CK39: =Т!CK39 -> 0 | CL39: =Т!CL39 -> 0 | CM39: =Т!CM39 -> 0 | CN39: =Т!CN39 -> 0 | CO39: =Т!CO39 -> 0 | CP39: =Т!CP39 -> 0 | CQ39: =Т!CQ39 -> 0 | CR39: =Т!CR39 -> 0 | CS39: =Т!CS39 -> 0 | CT39: =Т!CT39 -> 0 | CU39: =Т!CU39 -> 0 | CV39: =Т!CV39 -> 0 | CW39: =Т!CW39 -> 0 | CX39: =Т!CX39 -> 0 | CY39: =Т!CY39 -> 0 | CZ39: =Т!CZ39 -> 0 | DA39: =Т!DA39 -> 0 | DB39: =Т!DB39 -> 0 | DC39: =Т!DC39 -> 0 | DD39: =Т!DD39 -> 0 | DE39: =Т!DE39 -> 0 | DF39: =Т!DF39 -> 0 | DG39: =Т!DG39 -> 0 | DH39: =Т!DH39 -> 0 | DI39: =Т!DI39 -> 0 | DJ39: =Т!DJ39 -> 0 | DK39: =Т!DK39 -> 0 | DL39: =Т!DL39 -> 0 | DM39: =Т!DM39 -> 0 | DN39: =Т!DN39 -> 0 | DO39: =Т!DO39 -> 0 | DP39: =Т!DP39 -> 0 | DQ39: =Т!DQ39 -> 0 | DR39: =Т!DR39 -> 0 | DS39: =Т!DS39 -> 0 | DT39: =Т!DT39 -> 0 | DU39: =Т!DU39 -> 0 | DV39: =Т!DV39 -> 0 | DW39: =Т!DW39 -> 0 | DX39: =Т!DX39 -> 0 | DY39: =Т!DY39 -> 0 | DZ39: =Т!DZ39 -> 0 | EA39: =Т!EA39 -> 0 | EB39: =Т!EB39 -> 0 | EC39: =Т!EC39 -> 0 | ED39: =Т!ED39 -> 0 | EE39: =Т!EE39 -> 0 | EF39: =Т!EF39 -> 0 | EG39: =Т!EG39 -> 0 | EH39: =Т!EH39 -> 0 | EI39: =Т!EI39 -> 0 | EJ39: =Т!EJ39 -> 0 | EK39: =Т!EK39 -> 0 | EL39: =Т!EL39 -> 0 | EM39: =Т!EM39 -> 0 | EN39: =Т!EN39 -> 0 | EO39: =Т!EO39 -> 0 | EP39: =Т!EP39 -> 0 | EQ39: =Т!EQ39 -> 0 | EZ39: =Т!EZ39 -> 0 | FA39: =Т!FA39 -> 0 | FB39: =Т!FB39 -> 0 | FC39: =Т!FC39 -> 0 | FD39: =Т!FD39 -> 0 | FE39: =Т!FE39 -> 0 | FF39: =Т!FF39 -> 0 | FG39: =Т!FG39 -> 0 | FH39: =Т!FH39 -> 0 | FI39: =Т!FI39 -> 0 | FJ39: =Т!FJ39 -> 0 | FK39: =Т!FK39 -> 0 | FL39: =Т!FL39 -> 0 | FM39: =Т!FM39 -> 0 | FN39: =Т!FN39 -> 0 | FO39: =Т!FO39 -> 0 | FP39: =Т!FP39 -> 0 | FQ39: =Т!FQ39 -> 0 | FR39: =Т!FR39 -> 0 | FS39: =Т!FS39 -> 0 | FT39: =Т!FT39 -> 0 | FU39: =Т!FU39 -> 0 | FV39: =Т!FV39 -> 0 | FW39: =Т!FW39 -> 0 | FX39: =Т!FX39 -> 0 | FY39: =Т!FY39 -> 0 | FZ39: =Т!FZ39 -> 0 | GA39: =Т!GA39 -> 0 | GB39: =Т!GB39 -> 0 | GC39: =Т!GC39 -> 0 | GD39: =Т!GD39 -> 0 | GE39: =Т!GE39 -> 0
F40: 8.1 | G40: Электроэнергия | H40: Затраты, всего (тыс.руб.) | J40: без НДС | ER40: =Т!ER40 -> 0 | ES40: =Т!ES40 -> 0 | ET40: =Т!ET40 -> 0 | EU40: =Т!EU40 -> 0 | EV40: =Т!EV40 -> 0 | EW40: =Т!EW40 -> 0 | EX40: =Т!EX40 -> 0 | EY40: =Т!EY40 -> 0
F41: 8.2 | J41: с НДС | ER41: =Т!ER41 -> 0 | ES41: =Т!ES41 -> 0 | ET41: =Т!ET41 -> 0 | EU41: =Т!EU41 -> 0 | EV41: =Т!EV41 -> 0 | EW41: =Т!EW41 -> 0 | EX41: =Т!EX41 -> 0 | EY41: =Т!EY41 -> 0
F42: 9 | H42: Объём энергии / заявленной мощности | ER42: =Т!ER42 -> 0 | ES42: =Т!ES42 -> 0 | ET42: =Т!ET42 -> 0 | EU42: =Т!EU42 -> 0 | EV42: =Т!EV42 -> 0 | EW42: =Т!EW42 -> 0 | EX42: =Т!EX42 -> 0 | EY42: =Т!EY42 -> 0
F43: 10.1 | H43: Тариф на энергию / заявленную мощность (руб./кВт*ч / руб./кВт*мес) | J43: без НДС | ER43: =Т!ER43 -> 0 | ES43: =Т!ES43 -> 0 | ET43: =Т!ET43 -> 0 | EU43: =Т!EU43 -> 0 | EV43: =Т!EV43 -> 0 | EW43: =Т!EW43 -> 0 | EX43: =Т!EX43 -> 0 | EY43: =Т!EY43 -> 0
F44: 10.2 | J44: с НДС | ER44: =Т!ER44 -> 0 | ES44: =Т!ES44 -> 0 | ET44: =Т!ET44 -> 0 | EU44: =Т!EU44 -> 0 | EV44: =Т!EV44 -> 0 | EW44: =Т!EW44 -> 0 | EX44: =Т!EX44 -> 0 | EY44: =Т!EY44 -> 0
F46: ="Данные мониторинга принятых тарифных решений организаций теплоснабжения на " & IF(god="","Не определено",god) & " год (SUMMARY.BALANCE.CALC.TARIFF.WARM.2020YEAR)" -> Данные мониторинга принятых тарифных решений организаций теплоснабжения на 2020 год (SUMMARY.BALANCE.CALC.TARIFF.WARM.2020YEAR) | I46: Цена топлива (руб. / ед.изм.) | P46: =SUMIF(PLAN1X_AGGREGATE!$B$2:$B$44,P$3,PLAN1X_AGGREGATE!$C$2:$C$44) -> 5796.11 | Q46: =SUMIF(PLAN1X_AGGREGATE!$B$2:$B$44,Q$3,PLAN1X_AGGREGATE!$C$2:$C$44) -> 5796.11 | R46: =SUMIF(PLAN1X_AGGREGATE!$B$2:$B$44,R$3,PLAN1X_AGGREGATE!$C$2:$C$44) -> 5796.11 | S46: =SUMIF(PLAN1X_AGGREGATE!$B$2:$B$44,S$3,PLAN1X_AGGREGATE!$C$2:$C$44) -> 5796.11 | T46: =SUMIF(PLAN1X_AGGREGATE!$B$2:$B$44,T$3,PLAN1X_AGGREGATE!$C$2:$C$44) -> 5935.61 | U46: =SUMIF(PLAN1X_AGGREGATE!$B$2:$B$44,U$3,PLAN1X_AGGREGATE!$C$2:$C$44) -> 5935.61 | V46: =SUMIF(PLAN1X_AGGREGATE!$B$2:$B$44,V$3,PLAN1X_AGGREGATE!$C$2:$C$44) -> 5935.61 | W46: =SUMIF(PLAN1X_AGGREGATE!$B$2:$B$44,W$3,PLAN1X_AGGREGATE!$C$2:$C$44) -> 5935.61 | X46: =SUMIF(PLAN1X_AGGREGATE!$B$2:$B$44,X$3,PLAN1X_AGGREGATE!$C$2:$C$44) -> 6302.16 | Y46: =SUMIF(PLAN1X_AGGREGATE!$B$2:$B$44,Y$3,PLAN1X_AGGREGATE!$C$2:$C$44) -> 6302.16 | Z46: =SUMIF(PLAN1X_AGGREGATE!$B$2:$B$44,Z$3,PLAN1X_AGGREGATE!$C$2:$C$44) -> 6302.16 | AA46: =SUMIF(PLAN1X_AGGREGATE!$B$2:$B$44,AA$3,PLAN1X_AGGREGATE!$C$2:$C$44) -> 6302.16 | AB46: =SUMIF(PLAN1X_AGGREGATE!$B$2:$B$44,AB$3,PLAN1X_AGGREGATE!$C$2:$C$44) -> 5176.93 | AC46: =SUMIF(PLAN1X_AGGREGATE!$B$2:$B$44,AC$3,PLAN1X_AGGREGATE!$C$2:$C$44) -> 5176.93 | AD46: =SUMIF(PLAN1X_AGGREGATE!$B$2:$B$44,AD$3,PLAN1X_AGGREGATE!$C$2:$C$44) -> 5176.93 | AE46: =SUMIF(PLAN1X_AGGREGATE!$B$2:$B$44,AE$3,PLAN1X_AGGREGATE!$C$2:$C$44) -> 5176.93 | AF46: =SUMIF(PLAN1X_AGGREGATE!$B$2:$B$44,AF$3,PLAN1X_AGGREGATE!$C$2:$C$44) -> 0 | AG46: =SUMIF(PLAN1X_AGGREGATE!$B$2:$B$44,AG$3,PLAN1X_AGGREGATE!$C$2:$C$44) -> 0 | AH46: =SUMIF(PLAN1X_AGGREGATE!$B$2:$B$44,AH$3,PLAN1X_AGGREGATE!$C$2:$C$44) -> 0 | AI46: =SUMIF(PLAN1X_AGGREGATE!$B$2:$B$44,AI$3,PLAN1X_AGGREGATE!$C$2:$C$44) -> 0 | AJ46: =SUMIF(PLAN1X_AGGREGATE!$B$2:$B$44,AJ$3,PLAN1X_AGGREGATE!$C$2:$C$44) -> 0 | AK46: =SUMIF(PLAN1X_AGGREGATE!$B$2:$B$44,AK$3,PLAN1X_AGGREGATE!$C$2:$C$44) -> 0 | AL46: =SUMIF(PLAN1X_AGGREGATE!$B$2:$B$44,AL$3,PLAN1X_AGGREGATE!$C$2:$C$44) -> 0 | AM46: =SUMIF(PLAN1X_AGGREGATE!$B$2:$B$44,AM$3,PLAN1X_AGGREGATE!$C$2:$C$44) -> 0 | AN46: =SUMIF(PLAN1X_AGGREGATE!$B$2:$B$44,AN$3,PLAN1X_AGGREGATE!$C$2:$C$44) -> 0 | AO46: =SUMIF(PLAN1X_AGGREGATE!$B$2:$B$44,AO$3,PLAN1X_AGGREGATE!$C$2:$C$44) -> 0 | AP46: =SUMIF(PLAN1X_AGGREGATE!$B$2:$B$44,AP$3,PLAN1X_AGGREGATE!$C$2:$C$44) -> 0 | AQ46: =SUMIF(PLAN1X_AGGREGATE!$B$2:$B$44,AQ$3,PLAN1X_AGGREGATE!$C$2:$C$44) -> 0 | AR46: =SUMIF(PLAN1X_AGGREGATE!$B$2:$B$44,AR$3,PLAN1X_AGGREGATE!$C$2:$C$44) -> 0 | AS46: =SUMIF(PLAN1X_AGGREGATE!$B$2:$B$44,AS$3,PLAN1X_AGGREGATE!$C$2:$C$44) -> 0 | AT46: =SUMIF(PLAN1X_AGGREGATE!$B$2:$B$44,AT$3,PLAN1X_AGGREGATE!$C$2:$C$44) -> 0 | AU46: =SUMIF(PLAN1X_AGGREGATE!$B$2:$B$44,AU$3,PLAN1X_AGGREGATE!$C$2:$C$44) -> 0 | AV46: =SUMIF(PLAN1X_AGGREGATE!$B$2:$B$44,AV$3,PLAN1X_AGGREGATE!$C$2:$C$44) -> 0 | AW46: =SUMIF(PLAN1X_AGGREGATE!$B$2:$B$44,AW$3,PLAN1X_AGGREGATE!$C$2:$C$44) -> 0 | AX46: =SUMIF(PLAN1X_AGGREGATE!$B$2:$B$44,AX$3,PLAN1X_AGGREGATE!$C$2:$C$44) -> 0 | AY46: =SUMIF(PLAN1X_AGGREGATE!$B$2:$B$44,AY$3,PLAN1X_AGGREGATE!$C$2:$C$44) -> 0 | AZ46: =SUMIF(PLAN1X_AGGREGATE!$B$2:$B$44,AZ$3,PLAN1X_AGGREGATE!$C$2:$C$44) -> 0 | BA46: =SUMIF(PLAN1X_AGGREGATE!$B$2:$B$44,BA$3,PLAN1X_AGGREGATE!$C$2:$C$44) -> 0 | BB46: =SUMIF(PLAN1X_AGGREGATE!$B$2:$B$44,BB$3,PLAN1X_AGGREGATE!$C$2:$C$44) -> 0 | BC46: =SUMIF(PLAN1X_AGGREGATE!$B$2:$B$44,BC$3,PLAN1X_AGGREGATE!$C$2:$C$44) -> 0 | BD46: =SUMIF(PLAN1X_AGGREGATE!$B$2:$B$44,BD$3,PLAN1X_AGGREGATE!$C$2:$C$44) -> 0 | BE46: =SUMIF(PLAN1X_AGGREGATE!$B$2:$B$44,BE$3,PLAN1X_AGGREGATE!$C$2:$C$44) -> 0 | BF46: =SUMIF(PLAN1X_AGGREGATE!$B$2:$B$44,BF$3,PLAN1X_AGGREGATE!$C$2:$C$44) -> 0 | BG46: =SUMIF(PLAN1X_AGGREGATE!$B$2:$B$44,BG$3,PLAN1X_AGGREGATE!$C$2:$C$44) -> 0 | BH46: =SUMIF(PLAN1X_AGGREGATE!$B$2:$B$44,BH$3,PLAN1X_AGGREGATE!$C$2:$C$44) -> 0 | BI46: =SUMIF(PLAN1X_AGGREGATE!$B$2:$B$44,BI$3,PLAN1X_AGGREGATE!$C$2:$C$44) -> 0 | BJ46: =SUMIF(PLAN1X_AGGREGATE!$B$2:$B$44,BJ$3,PLAN1X_AGGREGATE!$C$2:$C$44) -> 0 | BK46: =SUMIF(PLAN1X_AGGREGATE!$B$2:$B$44,BK$3,PLAN1X_AGGREGATE!$C$2:$C$44) -> 0 | BL46: =SUMIF(PLAN1X_AGGREGATE!$B$2:$B$44,BL$3,PLAN1X_AGGREGATE!$C$2:$C$44) -> 0 | BM46: =SUMIF(PLAN1X_AGGREGATE!$B$2:$B$44,BM$3,PLAN1X_AGGREGATE!$C$2:$C$44) -> 0 | BN46: =SUMIF(PLAN1X_AGGREGATE!$B$2:$B$44,BN$3,PLAN1X_AGGREGATE!$C$2:$C$44) -> 0 | BO46: =SUMIF(PLAN1X_AGGREGATE!$B$2:$B$44,BO$3,PLAN1X_AGGREGATE!$C$2:$C$44) -> 0 | BP46: =SUMIF(PLAN1X_AGGREGATE!$B$2:$B$44,BP$3,PLAN1X_AGGREGATE!$C$2:$C$44) -> 0 | BQ46: =SUMIF(PLAN1X_AGGREGATE!$B$2:$B$44,BQ$3,PLAN1X_AGGREGATE!$C$2:$C$44) -> 0 | BR46: =SUMIF(PLAN1X_AGGREGATE!$B$2:$B$44,BR$3,PLAN1X_AGGREGATE!$C$2:$C$44) -> 0 | BS46: =SUMIF(PLAN1X_AGGREGATE!$B$2:$B$44,BS$3,PLAN1X_AGGREGATE!$C$2:$C$44) -> 0 | BT46: =SUMIF(PLAN1X_AGGREGATE!$B$2:$B$44,BT$3,PLAN1X_AGGREGATE!$C$2:$C$44) -> 0 | BU46: =SUMIF(PLAN1X_AGGREGATE!$B$2:$B$44,BU$3,PLAN1X_AGGREGATE!$C$2:$C$44) -> 0 | BV46: =SUMIF(PLAN1X_AGGREGATE!$B$2:$B$44,BV$3,PLAN1X_AGGREGATE!$C$2:$C$44) -> 0 | BW46: =SUMIF(PLAN1X_AGGREGATE!$B$2:$B$44,BW$3,PLAN1X_AGGREGATE!$C$2:$C$44) -> 0 | BX46: =SUMIF(PLAN1X_AGGREGATE!$B$2:$B$44,BX$3,PLAN1X_AGGREGATE!$C$2:$C$44) -> 13727.54 | BY46: =SUMIF(PLAN1X_AGGREGATE!$B$2:$B$44,BY$3,PLAN1X_AGGREGATE!$C$2:$C$44) -> 13727.54 | BZ46: =SUMIF(PLAN1X_AGGREGATE!$B$2:$B$44,BZ$3,PLAN1X_AGGREGATE!$C$2:$C$44) -> 13727.54 | CA46: =SUMIF(PLAN1X_AGGREGATE!$B$2:$B$44,CA$3,PLAN1X_AGGREGATE!$C$2:$C$44) -> 13727.54 | CB46: =SUMIF(PLAN1X_AGGREGATE!$B$2:$B$44,CB$3,PLAN1X_AGGREGATE!$C$2:$C$44) -> 0 | CC46: =SUMIF(PLAN1X_AGGREGATE!$B$2:$B$44,CC$3,PLAN1X_AGGREGATE!$C$2:$C$44) -> 0 | CD46: =SUMIF(PLAN1X_AGGREGATE!$B$2:$B$44,CD$3,PLAN1X_AGGREGATE!$C$2:$C$44) -> 0 | CE46: =SUMIF(PLAN1X_AGGREGATE!$B$2:$B$44,CE$3,PLAN1X_AGGREGATE!$C$2:$C$44) -> 0 | CF46: =SUMIF(PLAN1X_AGGREGATE!$B$2:$B$44,CF$3,PLAN1X_AGGREGATE!$C$2:$C$44) -> 13727.54 | CG46: =SUMIF(PLAN1X_AGGREGATE!$B$2:$B$44,CG$3,PLAN1X_AGGREGATE!$C$2:$C$44) -> 13727.54 | CH46: =SUMIF(PLAN1X_AGGREGATE!$B$2:$B$44,CH$3,PLAN1X_AGGREGATE!$C$2:$C$44) -> 13727.54 | CI46: =SUMIF(PLAN1X_AGGREGATE!$B$2:$B$44,CI$3,PLAN1X_AGGREGATE!$C$2:$C$44) -> 13727.54 | CJ46: =SUMIF(PLAN1X_AGGREGATE!$B$2:$B$44,CJ$3,PLAN1X_AGGREGATE!$C$2:$C$44) -> 0 | CK46: =SUMIF(PLAN1X_AGGREGATE!$B$2:$B$44,CK$3,PLAN1X_AGGREGATE!$C$2:$C$44) -> 0 | CL46: =SUMIF(PLAN1X_AGGREGATE!$B$2:$B$44,CL$3,PLAN1X_AGGREGATE!$C$2:$C$44) -> 0 | CM46: =SUMIF(PLAN1X_AGGREGATE!$B$2:$B$44,CM$3,PLAN1X_AGGREGATE!$C$2:$C$44) -> 0 | CN46: =SUMIF(PLAN1X_AGGREGATE!$B$2:$B$44,CN$3,PLAN1X_AGGREGATE!$C$2:$C$44) -> 0 | CO46: =SUMIF(PLAN1X_AGGREGATE!$B$2:$B$44,CO$3,PLAN1X_AGGREGATE!$C$2:$C$44) -> 0 | CP46: =SUMIF(PLAN1X_AGGREGATE!$B$2:$B$44,CP$3,PLAN1X_AGGREGATE!$C$2:$C$44) -> 0 | CQ46: =SUMIF(PLAN1X_AGGREGATE!$B$2:$B$44,CQ$3,PLAN1X_AGGREGATE!$C$2:$C$44) -> 0 | CR46: =SUMIF(PLAN1X_AGGREGATE!$B$2:$B$44,CR$3,PLAN1X_AGGREGATE!$C$2:$C$44) -> 0 | CS46: =SUMIF(PLAN1X_AGGREGATE!$B$2:$B$44,CS$3,PLAN1X_AGGREGATE!$C$2:$C$44) -> 0 | CT46: =SUMIF(PLAN1X_AGGREGATE!$B$2:$B$44,CT$3,PLAN1X_AGGREGATE!$C$2:$C$44) -> 0 | CU46: =SUMIF(PLAN1X_AGGREGATE!$B$2:$B$44,CU$3,PLAN1X_AGGREGATE!$C$2:$C$44) -> 0 | CV46: =SUMIF(PLAN1X_AGGREGATE!$B$2:$B$44,CV$3,PLAN1X_AGGREGATE!$C$2:$C$44) -> 0 | CW46: =SUMIF(PLAN1X_AGGREGATE!$B$2:$B$44,CW$3,PLAN1X_AGGREGATE!$C$2:$C$44) -> 0 | CX46: =SUMIF(PLAN1X_AGGREGATE!$B$2:$B$44,CX$3,PLAN1X_AGGREGATE!$C$2:$C$44) -> 0 | CY46: =SUMIF(PLAN1X_AGGREGATE!$B$2:$B$44,CY$3,PLAN1X_AGGREGATE!$C$2:$C$44) -> 0 | CZ46: =SUMIF(PLAN1X_AGGREGATE!$B$2:$B$44,CZ$3,PLAN1X_AGGREGATE!$C$2:$C$44) -> 0 | DA46: =SUMIF(PLAN1X_AGGREGATE!$B$2:$B$44,DA$3,PLAN1X_AGGREGATE!$C$2:$C$44) -> 0 | DB46: =SUMIF(PLAN1X_AGGREGATE!$B$2:$B$44,DB$3,PLAN1X_AGGREGATE!$C$2:$C$44) -> 0 | DC46: =SUMIF(PLAN1X_AGGREGATE!$B$2:$B$44,DC$3,PLAN1X_AGGREGATE!$C$2:$C$44) -> 0 | DD46: =SUMIF(PLAN1X_AGGREGATE!$B$2:$B$44,DD$3,PLAN1X_AGGREGATE!$C$2:$C$44) -> 0 | DE46: =SUMIF(PLAN1X_AGGREGATE!$B$2:$B$44,DE$3,PLAN1X_AGGREGATE!$C$2:$C$44) -> 0 | DF46: =SUMIF(PLAN1X_AGGREGATE!$B$2:$B$44,DF$3,PLAN1X_AGGREGATE!$C$2:$C$44) -> 0 | DG46: =SUMIF(PLAN1X_AGGREGATE!$B$2:$B$44,DG$3,PLAN1X_AGGREGATE!$C$2:$C$44) -> 0 | DH46: =SUMIF(PLAN1X_AGGREGATE!$B$2:$B$44,DH$3,PLAN1X_AGGREGATE!$C$2:$C$44) -> 0 | DI46: =SUMIF(PLAN1X_AGGREGATE!$B$2:$B$44,DI$3,PLAN1X_AGGREGATE!$C$2:$C$44) -> 0 | DJ46: =SUMIF(PLAN1X_AGGREGATE!$B$2:$B$44,DJ$3,PLAN1X_AGGREGATE!$C$2:$C$44) -> 0 | DK46: =SUMIF(PLAN1X_AGGREGATE!$B$2:$B$44,DK$3,PLAN1X_AGGREGATE!$C$2:$C$44) -> 0 | DL46: =SUMIF(PLAN1X_AGGREGATE!$B$2:$B$44,DL$3,PLAN1X_AGGREGATE!$C$2:$C$44) -> 0 | DM46: =SUMIF(PLAN1X_AGGREGATE!$B$2:$B$44,DM$3,PLAN1X_AGGREGATE!$C$2:$C$44) -> 0 | DN46: =SUMIF(PLAN1X_AGGREGATE!$B$2:$B$44,DN$3,PLAN1X_AGGREGATE!$C$2:$C$44) -> 0 | DO46: =SUMIF(PLAN1X_AGGREGATE!$B$2:$B$44,DO$3,PLAN1X_AGGREGATE!$C$2:$C$44) -> 0 | DP46: =SUMIF(PLAN1X_AGGREGATE!$B$2:$B$44,DP$3,PLAN1X_AGGREGATE!$C$2:$C$44) -> 0 | DQ46: =SUMIF(PLAN1X_AGGREGATE!$B$2:$B$44,DQ$3,PLAN1X_AGGREGATE!$C$2:$C$44) -> 0 | DR46: =SUMIF(PLAN1X_AGGREGATE!$B$2:$B$44,DR$3,PLAN1X_AGGREGATE!$C$2:$C$44) -> 0 | DS46: =SUMIF(PLAN1X_AGGREGATE!$B$2:$B$44,DS$3,PLAN1X_AGGREGATE!$C$2:$C$44) -> 0 | DT46: =SUMIF(PLAN1X_AGGREGATE!$B$2:$B$44,DT$3,PLAN1X_AGGREGATE!$C$2:$C$44) -> 0 | DU46: =SUMIF(PLAN1X_AGGREGATE!$B$2:$B$44,DU$3,PLAN1X_AGGREGATE!$C$2:$C$44) -> 0 | DV46: =SUMIF(PLAN1X_AGGREGATE!$B$2:$B$44,DV$3,PLAN1X_AGGREGATE!$C$2:$C$44) -> 0 | DW46: =SUMIF(PLAN1X_AGGREGATE!$B$2:$B$44,DW$3,PLAN1X_AGGREGATE!$C$2:$C$44) -> 0 | DX46: =SUMIF(PLAN1X_AGGREGATE!$B$2:$B$44,DX$3,PLAN1X_AGGREGATE!$C$2:$C$44) -> 0 | DY46: =SUMIF(PLAN1X_AGGREGATE!$B$2:$B$44,DY$3,PLAN1X_AGGREGATE!$C$2:$C$44) -> 0 | DZ46: =SUMIF(PLAN1X_AGGREGATE!$B$2:$B$44,DZ$3,PLAN1X_AGGREGATE!$C$2:$C$44) -> 0 | EA46: =SUMIF(PLAN1X_AGGREGATE!$B$2:$B$44,EA$3,PLAN1X_AGGREGATE!$C$2:$C$44) -> 0 | EB46: =SUMIF(PLAN1X_AGGREGATE!$B$2:$B$44,EB$3,PLAN1X_AGGREGATE!$C$2:$C$44) -> 0 | EC46: =SUMIF(PLAN1X_AGGREGATE!$B$2:$B$44,EC$3,PLAN1X_AGGREGATE!$C$2:$C$44) -> 0 | ED46: =SUMIF(PLAN1X_AGGREGATE!$B$2:$B$44,ED$3,PLAN1X_AGGREGATE!$C$2:$C$44) -> 0 | EE46: =SUMIF(PLAN1X_AGGREGATE!$B$2:$B$44,EE$3,PLAN1X_AGGREGATE!$C$2:$C$44) -> 0 | EF46: =SUMIF(PLAN1X_AGGREGATE!$B$2:$B$44,EF$3,PLAN1X_AGGREGATE!$C$2:$C$44) -> 0 | EG46: =SUMIF(PLAN1X_AGGREGATE!$B$2:$B$44,EG$3,PLAN1X_AGGREGATE!$C$2:$C$44) -> 0 | EH46: =SUMIF(PLAN1X_AGGREGATE!$B$2:$B$44,EH$3,PLAN1X_AGGREGATE!$C$2:$C$44) -> 0 | EI46: =SUMIF(PLAN1X_AGGREGATE!$B$2:$B$44,EI$3,PLAN1X_AGGREGATE!$C$2:$C$44) -> 0 | EJ46: =SUMIF(PLAN1X_AGGREGATE!$B$2:$B$44,EJ$3,PLAN1X_AGGREGATE!$C$2:$C$44) -> 0 | EK46: =SUMIF(PLAN1X_AGGREGATE!$B$2:$B$44,EK$3,PLAN1X_AGGREGATE!$C$2:$C$44) -> 0 | EL46: =SUMIF(PLAN1X_AGGREGATE!$B$2:$B$44,EL$3,PLAN1X_AGGREGATE!$C$2:$C$44) -> 0 | EM46: =SUMIF(PLAN1X_AGGREGATE!$B$2:$B$44,EM$3,PLAN1X_AGGREGATE!$C$2:$C$44) -> 0 | EN46: =SUMIF(PLAN1X_AGGREGATE!$B$2:$B$44,EN$3,PLAN1X_AGGREGATE!$C$2:$C$44) -> 0 | EO46: =SUMIF(PLAN1X_AGGREGATE!$B$2:$B$44,EO$3,PLAN1X_AGGREGATE!$C$2:$C$44) -> 0 | EP46: =SUMIF(PLAN1X_AGGREGATE!$B$2:$B$44,EP$3,PLAN1X_AGGREGATE!$C$2:$C$44) -> 0 | EQ46: =SUMIF(PLAN1X_AGGREGATE!$B$2:$B$44,EQ$3,PLAN1X_AGGREGATE!$C$2:$C$44) -> 0 | ER46: =SUMIF(PLAN1X_AGGREGATE!$B$2:$B$44,ER$3,PLAN1X_AGGREGATE!$C$2:$C$44) -> 0 | ES46: =SUMIF(PLAN1X_AGGREGATE!$B$2:$B$44,ES$3,PLAN1X_AGGREGATE!$C$2:$C$44) -> 0 | ET46: =SUMIF(PLAN1X_AGGREGATE!$B$2:$B$44,ET$3,PLAN1X_AGGREGATE!$C$2:$C$44) -> 0 | EU46: =SUMIF(PLAN1X_AGGREGATE!$B$2:$B$44,EU$3,PLAN1X_AGGREGATE!$C$2:$C$44) -> 0 | EV46: =SUMIF(PLAN1X_AGGREGATE!$B$2:$B$44,EV$3,PLAN1X_AGGREGATE!$C$2:$C$44) -> 0 | EW46: =SUMIF(PLAN1X_AGGREGATE!$B$2:$B$44,EW$3,PLAN1X_AGGREGATE!$C$2:$C$44) -> 0 | EX46: =SUMIF(PLAN1X_AGGREGATE!$B$2:$B$44,EX$3,PLAN1X_AGGREGATE!$C$2:$C$44) -> 0 | EY46: =SUMIF(PLAN1X_AGGREGATE!$B$2:$B$44,EY$3,PLAN1X_AGGREGATE!$C$2:$C$44) -> 0 | EZ46: =SUMIF(PLAN1X_AGGREGATE!$B$2:$B$44,EZ$3,PLAN1X_AGGREGATE!$C$2:$C$44) -> 0 | FA46: =SUMIF(PLAN1X_AGGREGATE!$B$2:$B$44,FA$3,PLAN1X_AGGREGATE!$C$2:$C$44) -> 0 | FB46: =SUMIF(PLAN1X_AGGREGATE!$B$2:$B$44,FB$3,PLAN1X_AGGREGATE!$C$2:$C$44) -> 0 | FC46: =SUMIF(PLAN1X_AGGREGATE!$B$2:$B$44,FC$3,PLAN1X_AGGREGATE!$C$2:$C$44) -> 0 | FD46: =SUMIF(PLAN1X_AGGREGATE!$B$2:$B$44,FD$3,PLAN1X_AGGREGATE!$C$2:$C$44) -> 0 | FE46: =SUMIF(PLAN1X_AGGREGATE!$B$2:$B$44,FE$3,PLAN1X_AGGREGATE!$C$2:$C$44) -> 0 | FF46: =SUMIF(PLAN1X_AGGREGATE!$B$2:$B$44,FF$3,PLAN1X_AGGREGATE!$C$2:$C$44) -> 0 | FG46: =SUMIF(PLAN1X_AGGREGATE!$B$2:$B$44,FG$3,PLAN1X_AGGREGATE!$C$2:$C$44) -> 0 | FH46: =SUMIF(PLAN1X_AGGREGATE!$B$2:$B$44,FH$3,PLAN1X_AGGREGATE!$C$2:$C$44) -> 0 | FI46: =SUMIF(PLAN1X_AGGREGATE!$B$2:$B$44,FI$3,PLAN1X_AGGREGATE!$C$2:$C$44) -> 0 | FJ46: =SUMIF(PLAN1X_AGGREGATE!$B$2:$B$44,FJ$3,PLAN1X_AGGREGATE!$C$2:$C$44) -> 0 | FK46: =SUMIF(PLAN1X_AGGREGATE!$B$2:$B$44,FK$3,PLAN1X_AGGREGATE!$C$2:$C$44) -> 0 | FL46: =SUMIF(PLAN1X_AGGREGATE!$B$2:$B$44,FL$3,PLAN1X_AGGREGATE!$C$2:$C$44) -> 0 | FM46: =SUMIF(PLAN1X_AGGREGATE!$B$2:$B$44,FM$3,PLAN1X_AGGREGATE!$C$2:$C$44) -> 0 | FN46: =SUMIF(PLAN1X_AGGREGATE!$B$2:$B$44,FN$3,PLAN1X_AGGREGATE!$C$2:$C$44) -> 0 | FO46: =SUMIF(PLAN1X_AGGREGATE!$B$2:$B$44,FO$3,PLAN1X_AGGREGATE!$C$2:$C$44) -> 0 | FP46: =SUMIF(PLAN1X_AGGREGATE!$B$2:$B$44,FP$3,PLAN1X_AGGREGATE!$C$2:$C$44) -> 0 | FQ46: =SUMIF(PLAN1X_AGGREGATE!$B$2:$B$44,FQ$3,PLAN1X_AGGREGATE!$C$2:$C$44) -> 0 | FR46: =SUMIF(PLAN1X_AGGREGATE!$B$2:$B$44,FR$3,PLAN1X_AGGREGATE!$C$2:$C$44) -> 0 | FS46: =SUMIF(PLAN1X_AGGREGATE!$B$2:$B$44,FS$3,PLAN1X_AGGREGATE!$C$2:$C$44) -> 0 | FT46: =SUMIF(PLAN1X_AGGREGATE!$B$2:$B$44,FT$3,PLAN1X_AGGREGATE!$C$2:$C$44) -> 0 | FU46: =SUMIF(PLAN1X_AGGREGATE!$B$2:$B$44,FU$3,PLAN1X_AGGREGATE!$C$2:$C$44) -> 0 | FV46: =SUMIF(PLAN1X_AGGREGATE!$B$2:$B$44,FV$3,PLAN1X_AGGREGATE!$C$2:$C$44) -> 0 | FW46: =SUMIF(PLAN1X_AGGREGATE!$B$2:$B$44,FW$3,PLAN1X_AGGREGATE!$C$2:$C$44) -> 0 | FX46: =SUMIF(PLAN1X_AGGREGATE!$B$2:$B$44,FX$3,PLAN1X_AGGREGATE!$C$2:$C$44) -> 0 | FY46: =SUMIF(PLAN1X_AGGREGATE!$B$2:$B$44,FY$3,PLAN1X_AGGREGATE!$C$2:$C$44) -> 0 | FZ46: =SUMIF(PLAN1X_AGGREGATE!$B$2:$B$44,FZ$3,PLAN1X_AGGREGATE!$C$2:$C$44) -> 0 | GA46: =SUMIF(PLAN1X_AGGREGATE!$B$2:$B$44,GA$3,PLAN1X_AGGREGATE!$C$2:$C$44) -> 0
I47: Объём (ед. изм.) | P47: =SUMIF(PLAN1X_AGGREGATE!$B$2:$B$44,P$3,PLAN1X_AGGREGATE!$D$2:$D$44) -> 942716.3 | Q47: =SUMIF(PLAN1X_AGGREGATE!$B$2:$B$44,Q$3,PLAN1X_AGGREGATE!$D$2:$D$44) -> 942716.3 | R47: =SUMIF(PLAN1X_AGGREGATE!$B$2:$B$44,R$3,PLAN1X_AGGREGATE!$D$2:$D$44) -> 942716.3 | S47: =SUMIF(PLAN1X_AGGREGATE!$B$2:$B$44,S$3,PLAN1X_AGGREGATE!$D$2:$D$44) -> 942716.3 | T47: =SUMIF(PLAN1X_AGGREGATE!$B$2:$B$44,T$3,PLAN1X_AGGREGATE!$D$2:$D$44) -> 761868.92 | U47: =SUMIF(PLAN1X_AGGREGATE!$B$2:$B$44,U$3,PLAN1X_AGGREGATE!$D$2:$D$44) -> 761868.92 | V47: =SUMIF(PLAN1X_AGGREGATE!$B$2:$B$44,V$3,PLAN1X_AGGREGATE!$D$2:$D$44) -> 761868.92 | W47: =SUMIF(PLAN1X_AGGREGATE!$B$2:$B$44,W$3,PLAN1X_AGGREGATE!$D$2:$D$44) -> 761868.92 | X47: =SUMIF(PLAN1X_AGGREGATE!$B$2:$B$44,X$3,PLAN1X_AGGREGATE!$D$2:$D$44) -> 5058.79 | Y47: =SUMIF(PLAN1X_AGGREGATE!$B$2:$B$44,Y$3,PLAN1X_AGGREGATE!$D$2:$D$44) -> 5058.79 | Z47: =SUMIF(PLAN1X_AGGREGATE!$B$2:$B$44,Z$3,PLAN1X_AGGREGATE!$D$2:$D$44) -> 5058.79 | AA47: =SUMIF(PLAN1X_AGGREGATE!$B$2:$B$44,AA$3,PLAN1X_AGGREGATE!$D$2:$D$44) -> 5058.79 | AB47: =SUMIF(PLAN1X_AGGREGATE!$B$2:$B$44,AB$3,PLAN1X_AGGREGATE!$D$2:$D$44) -> 175788.59 | AC47: =SUMIF(PLAN1X_AGGREGATE!$B$2:$B$44,AC$3,PLAN1X_AGGREGATE!$D$2:$D$44) -> 175788.59 | AD47: =SUMIF(PLAN1X_AGGREGATE!$B$2:$B$44,AD$3,PLAN1X_AGGREGATE!$D$2:$D$44) -> 175788.59 | AE47: =SUMIF(PLAN1X_AGGREGATE!$B$2:$B$44,AE$3,PLAN1X_AGGREGATE!$D$2:$D$44) -> 175788.59 | AF47: =SUMIF(PLAN1X_AGGREGATE!$B$2:$B$44,AF$3,PLAN1X_AGGREGATE!$D$2:$D$44) -> 0 | AG47: =SUMIF(PLAN1X_AGGREGATE!$B$2:$B$44,AG$3,PLAN1X_AGGREGATE!$D$2:$D$44) -> 0 | AH47: =SUMIF(PLAN1X_AGGREGATE!$B$2:$B$44,AH$3,PLAN1X_AGGREGATE!$D$2:$D$44) -> 0 | AI47: =SUMIF(PLAN1X_AGGREGATE!$B$2:$B$44,AI$3,PLAN1X_AGGREGATE!$D$2:$D$44) -> 0 | AJ47: =SUMIF(PLAN1X_AGGREGATE!$B$2:$B$44,AJ$3,PLAN1X_AGGREGATE!$D$2:$D$44) -> 0 | AK47: =SUMIF(PLAN1X_AGGREGATE!$B$2:$B$44,AK$3,PLAN1X_AGGREGATE!$D$2:$D$44) -> 0 | AL47: =SUMIF(PLAN1X_AGGREGATE!$B$2:$B$44,AL$3,PLAN1X_AGGREGATE!$D$2:$D$44) -> 0 | AM47: =SUMIF(PLAN1X_AGGREGATE!$B$2:$B$44,AM$3,PLAN1X_AGGREGATE!$D$2:$D$44) -> 0 | AN47: =SUMIF(PLAN1X_AGGREGATE!$B$2:$B$44,AN$3,PLAN1X_AGGREGATE!$D$2:$D$44) -> 0 | AO47: =SUMIF(PLAN1X_AGGREGATE!$B$2:$B$44,AO$3,PLAN1X_AGGREGATE!$D$2:$D$44) -> 0 | AP47: =SUMIF(PLAN1X_AGGREGATE!$B$2:$B$44,AP$3,PLAN1X_AGGREGATE!$D$2:$D$44) -> 0 | AQ47: =SUMIF(PLAN1X_AGGREGATE!$B$2:$B$44,AQ$3,PLAN1X_AGGREGATE!$D$2:$D$44) -> 0 | AR47: =SUMIF(PLAN1X_AGGREGATE!$B$2:$B$44,AR$3,PLAN1X_AGGREGATE!$D$2:$D$44) -> 0 | AS47: =SUMIF(PLAN1X_AGGREGATE!$B$2:$B$44,AS$3,PLAN1X_AGGREGATE!$D$2:$D$44) -> 0 | AT47: =SUMIF(PLAN1X_AGGREGATE!$B$2:$B$44,AT$3,PLAN1X_AGGREGATE!$D$2:$D$44) -> 0 | AU47: =SUMIF(PLAN1X_AGGREGATE!$B$2:$B$44,AU$3,PLAN1X_AGGREGATE!$D$2:$D$44) -> 0 | AV47: =SUMIF(PLAN1X_AGGREGATE!$B$2:$B$44,AV$3,PLAN1X_AGGREGATE!$D$2:$D$44) -> 0 | AW47: =SUMIF(PLAN1X_AGGREGATE!$B$2:$B$44,AW$3,PLAN1X_AGGREGATE!$D$2:$D$44) -> 0 | AX47: =SUMIF(PLAN1X_AGGREGATE!$B$2:$B$44,AX$3,PLAN1X_AGGREGATE!$D$2:$D$44) -> 0 | AY47: =SUMIF(PLAN1X_AGGREGATE!$B$2:$B$44,AY$3,PLAN1X_AGGREGATE!$D$2:$D$44) -> 0 | AZ47: =SUMIF(PLAN1X_AGGREGATE!$B$2:$B$44,AZ$3,PLAN1X_AGGREGATE!$D$2:$D$44) -> 0 | BA47: =SUMIF(PLAN1X_AGGREGATE!$B$2:$B$44,BA$3,PLAN1X_AGGREGATE!$D$2:$D$44) -> 0 | BB47: =SUMIF(PLAN1X_AGGREGATE!$B$2:$B$44,BB$3,PLAN1X_AGGREGATE!$D$2:$D$44) -> 0 | BC47: =SUMIF(PLAN1X_AGGREGATE!$B$2:$B$44,BC$3,PLAN1X_AGGREGATE!$D$2:$D$44) -> 0 | BD47: =SUMIF(PLAN1X_AGGREGATE!$B$2:$B$44,BD$3,PLAN1X_AGGREGATE!$D$2:$D$44) -> 0 | BE47: =SUMIF(PLAN1X_AGGREGATE!$B$2:$B$44,BE$3,PLAN1X_AGGREGATE!$D$2:$D$44) -> 0 | BF47: =SUMIF(PLAN1X_AGGREGATE!$B$2:$B$44,BF$3,PLAN1X_AGGREGATE!$D$2:$D$44) -> 0 | BG47: =SUMIF(PLAN1X_AGGREGATE!$B$2:$B$44,BG$3,PLAN1X_AGGREGATE!$D$2:$D$44) -> 0 | BH47: =SUMIF(PLAN1X_AGGREGATE!$B$2:$B$44,BH$3,PLAN1X_AGGREGATE!$D$2:$D$44) -> 0 | BI47: =SUMIF(PLAN1X_AGGREGATE!$B$2:$B$44,BI$3,PLAN1X_AGGREGATE!$D$2:$D$44) -> 0 | BJ47: =SUMIF(PLAN1X_AGGREGATE!$B$2:$B$44,BJ$3,PLAN1X_AGGREGATE!$D$2:$D$44) -> 0 | BK47: =SUMIF(PLAN1X_AGGREGATE!$B$2:$B$44,BK$3,PLAN1X_AGGREGATE!$D$2:$D$44) -> 0 | BL47: =SUMIF(PLAN1X_AGGREGATE!$B$2:$B$44,BL$3,PLAN1X_AGGREGATE!$D$2:$D$44) -> 0 | BM47: =SUMIF(PLAN1X_AGGREGATE!$B$2:$B$44,BM$3,PLAN1X_AGGREGATE!$D$2:$D$44) -> 0 | BN47: =SUMIF(PLAN1X_AGGREGATE!$B$2:$B$44,BN$3,PLAN1X_AGGREGATE!$D$2:$D$44) -> 0 | BO47: =SUMIF(PLAN1X_AGGREGATE!$B$2:$B$44,BO$3,PLAN1X_AGGREGATE!$D$2:$D$44) -> 0 | BP47: =SUMIF(PLAN1X_AGGREGATE!$B$2:$B$44,BP$3,PLAN1X_AGGREGATE!$D$2:$D$44) -> 0 | BQ47: =SUMIF(PLAN1X_AGGREGATE!$B$2:$B$44,BQ$3,PLAN1X_AGGREGATE!$D$2:$D$44) -> 0 | BR47: =SUMIF(PLAN1X_AGGREGATE!$B$2:$B$44,BR$3,PLAN1X_AGGREGATE!$D$2:$D$44) -> 0 | BS47: =SUMIF(PLAN1X_AGGREGATE!$B$2:$B$44,BS$3,PLAN1X_AGGREGATE!$D$2:$D$44) -> 0 | BT47: =SUMIF(PLAN1X_AGGREGATE!$B$2:$B$44,BT$3,PLAN1X_AGGREGATE!$D$2:$D$44) -> 0 | BU47: =SUMIF(PLAN1X_AGGREGATE!$B$2:$B$44,BU$3,PLAN1X_AGGREGATE!$D$2:$D$44) -> 0 | BV47: =SUMIF(PLAN1X_AGGREGATE!$B$2:$B$44,BV$3,PLAN1X_AGGREGATE!$D$2:$D$44) -> 0 | BW47: =SUMIF(PLAN1X_AGGREGATE!$B$2:$B$44,BW$3,PLAN1X_AGGREGATE!$D$2:$D$44) -> 0 | BX47: =SUMIF(PLAN1X_AGGREGATE!$B$2:$B$44,BX$3,PLAN1X_AGGREGATE!$D$2:$D$44) -> 3287.13 | BY47: =SUMIF(PLAN1X_AGGREGATE!$B$2:$B$44,BY$3,PLAN1X_AGGREGATE!$D$2:$D$44) -> 3287.13 | BZ47: =SUMIF(PLAN1X_AGGREGATE!$B$2:$B$44,BZ$3,PLAN1X_AGGREGATE!$D$2:$D$44) -> 3287.13 | CA47: =SUMIF(PLAN1X_AGGREGATE!$B$2:$B$44,CA$3,PLAN1X_AGGREGATE!$D$2:$D$44) -> 3287.13 | CB47: =SUMIF(PLAN1X_AGGREGATE!$B$2:$B$44,CB$3,PLAN1X_AGGREGATE!$D$2:$D$44) -> 0 | CC47: =SUMIF(PLAN1X_AGGREGATE!$B$2:$B$44,CC$3,PLAN1X_AGGREGATE!$D$2:$D$44) -> 0 | CD47: =SUMIF(PLAN1X_AGGREGATE!$B$2:$B$44,CD$3,PLAN1X_AGGREGATE!$D$2:$D$44) -> 0 | CE47: =SUMIF(PLAN1X_AGGREGATE!$B$2:$B$44,CE$3,PLAN1X_AGGREGATE!$D$2:$D$44) -> 0 | CF47: =SUMIF(PLAN1X_AGGREGATE!$B$2:$B$44,CF$3,PLAN1X_AGGREGATE!$D$2:$D$44) -> 3287.13 | CG47: =SUMIF(PLAN1X_AGGREGATE!$B$2:$B$44,CG$3,PLAN1X_AGGREGATE!$D$2:$D$44) -> 3287.13 | CH47: =SUMIF(PLAN1X_AGGREGATE!$B$2:$B$44,CH$3,PLAN1X_AGGREGATE!$D$2:$D$44) -> 3287.13 | CI47: =SUMIF(PLAN1X_AGGREGATE!$B$2:$B$44,CI$3,PLAN1X_AGGREGATE!$D$2:$D$44) -> 3287.13 | CJ47: =SUMIF(PLAN1X_AGGREGATE!$B$2:$B$44,CJ$3,PLAN1X_AGGREGATE!$D$2:$D$44) -> 0 | CK47: =SUMIF(PLAN1X_AGGREGATE!$B$2:$B$44,CK$3,PLAN1X_AGGREGATE!$D$2:$D$44) -> 0 | CL47: =SUMIF(PLAN1X_AGGREGATE!$B$2:$B$44,CL$3,PLAN1X_AGGREGATE!$D$2:$D$44) -> 0 | CM47: =SUMIF(PLAN1X_AGGREGATE!$B$2:$B$44,CM$3,PLAN1X_AGGREGATE!$D$2:$D$44) -> 0 | CN47: =SUMIF(PLAN1X_AGGREGATE!$B$2:$B$44,CN$3,PLAN1X_AGGREGATE!$D$2:$D$44) -> 0 | CO47: =SUMIF(PLAN1X_AGGREGATE!$B$2:$B$44,CO$3,PLAN1X_AGGREGATE!$D$2:$D$44) -> 0 | CP47: =SUMIF(PLAN1X_AGGREGATE!$B$2:$B$44,CP$3,PLAN1X_AGGREGATE!$D$2:$D$44) -> 0 | CQ47: =SUMIF(PLAN1X_AGGREGATE!$B$2:$B$44,CQ$3,PLAN1X_AGGREGATE!$D$2:$D$44) -> 0 | CR47: =SUMIF(PLAN1X_AGGREGATE!$B$2:$B$44,CR$3,PLAN1X_AGGREGATE!$D$2:$D$44) -> 0 | CS47: =SUMIF(PLAN1X_AGGREGATE!$B$2:$B$44,CS$3,PLAN1X_AGGREGATE!$D$2:$D$44) -> 0 | CT47: =SUMIF(PLAN1X_AGGREGATE!$B$2:$B$44,CT$3,PLAN1X_AGGREGATE!$D$2:$D$44) -> 0 | CU47: =SUMIF(PLAN1X_AGGREGATE!$B$2:$B$44,CU$3,PLAN1X_AGGREGATE!$D$2:$D$44) -> 0 | CV47: =SUMIF(PLAN1X_AGGREGATE!$B$2:$B$44,CV$3,PLAN1X_AGGREGATE!$D$2:$D$44) -> 0 | CW47: =SUMIF(PLAN1X_AGGREGATE!$B$2:$B$44,CW$3,PLAN1X_AGGREGATE!$D$2:$D$44) -> 0 | CX47: =SUMIF(PLAN1X_AGGREGATE!$B$2:$B$44,CX$3,PLAN1X_AGGREGATE!$D$2:$D$44) -> 0 | CY47: =SUMIF(PLAN1X_AGGREGATE!$B$2:$B$44,CY$3,PLAN1X_AGGREGATE!$D$2:$D$44) -> 0 | CZ47: =SUMIF(PLAN1X_AGGREGATE!$B$2:$B$44,CZ$3,PLAN1X_AGGREGATE!$D$2:$D$44) -> 0 | DA47: =SUMIF(PLAN1X_AGGREGATE!$B$2:$B$44,DA$3,PLAN1X_AGGREGATE!$D$2:$D$44) -> 0 | DB47: =SUMIF(PLAN1X_AGGREGATE!$B$2:$B$44,DB$3,PLAN1X_AGGREGATE!$D$2:$D$44) -> 0 | DC47: =SUMIF(PLAN1X_AGGREGATE!$B$2:$B$44,DC$3,PLAN1X_AGGREGATE!$D$2:$D$44) -> 0 | DD47: =SUMIF(PLAN1X_AGGREGATE!$B$2:$B$44,DD$3,PLAN1X_AGGREGATE!$D$2:$D$44) -> 0 | DE47: =SUMIF(PLAN1X_AGGREGATE!$B$2:$B$44,DE$3,PLAN1X_AGGREGATE!$D$2:$D$44) -> 0 | DF47: =SUMIF(PLAN1X_AGGREGATE!$B$2:$B$44,DF$3,PLAN1X_AGGREGATE!$D$2:$D$44) -> 0 | DG47: =SUMIF(PLAN1X_AGGREGATE!$B$2:$B$44,DG$3,PLAN1X_AGGREGATE!$D$2:$D$44) -> 0 | DH47: =SUMIF(PLAN1X_AGGREGATE!$B$2:$B$44,DH$3,PLAN1X_AGGREGATE!$D$2:$D$44) -> 0 | DI47: =SUMIF(PLAN1X_AGGREGATE!$B$2:$B$44,DI$3,PLAN1X_AGGREGATE!$D$2:$D$44) -> 0 | DJ47: =SUMIF(PLAN1X_AGGREGATE!$B$2:$B$44,DJ$3,PLAN1X_AGGREGATE!$D$2:$D$44) -> 0 | DK47: =SUMIF(PLAN1X_AGGREGATE!$B$2:$B$44,DK$3,PLAN1X_AGGREGATE!$D$2:$D$44) -> 0 | DL47: =SUMIF(PLAN1X_AGGREGATE!$B$2:$B$44,DL$3,PLAN1X_AGGREGATE!$D$2:$D$44) -> 0 | DM47: =SUMIF(PLAN1X_AGGREGATE!$B$2:$B$44,DM$3,PLAN1X_AGGREGATE!$D$2:$D$44) -> 0 | DN47: =SUMIF(PLAN1X_AGGREGATE!$B$2:$B$44,DN$3,PLAN1X_AGGREGATE!$D$2:$D$44) -> 0 | DO47: =SUMIF(PLAN1X_AGGREGATE!$B$2:$B$44,DO$3,PLAN1X_AGGREGATE!$D$2:$D$44) -> 0 | DP47: =SUMIF(PLAN1X_AGGREGATE!$B$2:$B$44,DP$3,PLAN1X_AGGREGATE!$D$2:$D$44) -> 0 | DQ47: =SUMIF(PLAN1X_AGGREGATE!$B$2:$B$44,DQ$3,PLAN1X_AGGREGATE!$D$2:$D$44) -> 0 | DR47: =SUMIF(PLAN1X_AGGREGATE!$B$2:$B$44,DR$3,PLAN1X_AGGREGATE!$D$2:$D$44) -> 0 | DS47: =SUMIF(PLAN1X_AGGREGATE!$B$2:$B$44,DS$3,PLAN1X_AGGREGATE!$D$2:$D$44) -> 0 | DT47: =SUMIF(PLAN1X_AGGREGATE!$B$2:$B$44,DT$3,PLAN1X_AGGREGATE!$D$2:$D$44) -> 0 | DU47: =SUMIF(PLAN1X_AGGREGATE!$B$2:$B$44,DU$3,PLAN1X_AGGREGATE!$D$2:$D$44) -> 0 | DV47: =SUMIF(PLAN1X_AGGREGATE!$B$2:$B$44,DV$3,PLAN1X_AGGREGATE!$D$2:$D$44) -> 0 | DW47: =SUMIF(PLAN1X_AGGREGATE!$B$2:$B$44,DW$3,PLAN1X_AGGREGATE!$D$2:$D$44) -> 0 | DX47: =SUMIF(PLAN1X_AGGREGATE!$B$2:$B$44,DX$3,PLAN1X_AGGREGATE!$D$2:$D$44) -> 0 | DY47: =SUMIF(PLAN1X_AGGREGATE!$B$2:$B$44,DY$3,PLAN1X_AGGREGATE!$D$2:$D$44) -> 0 | DZ47: =SUMIF(PLAN1X_AGGREGATE!$B$2:$B$44,DZ$3,PLAN1X_AGGREGATE!$D$2:$D$44) -> 0 | EA47: =SUMIF(PLAN1X_AGGREGATE!$B$2:$B$44,EA$3,PLAN1X_AGGREGATE!$D$2:$D$44) -> 0 | EB47: =SUMIF(PLAN1X_AGGREGATE!$B$2:$B$44,EB$3,PLAN1X_AGGREGATE!$D$2:$D$44) -> 0 | EC47: =SUMIF(PLAN1X_AGGREGATE!$B$2:$B$44,EC$3,PLAN1X_AGGREGATE!$D$2:$D$44) -> 0 | ED47: =SUMIF(PLAN1X_AGGREGATE!$B$2:$B$44,ED$3,PLAN1X_AGGREGATE!$D$2:$D$44) -> 0 | EE47: =SUMIF(PLAN1X_AGGREGATE!$B$2:$B$44,EE$3,PLAN1X_AGGREGATE!$D$2:$D$44) -> 0 | EF47: =SUMIF(PLAN1X_AGGREGATE!$B$2:$B$44,EF$3,PLAN1X_AGGREGATE!$D$2:$D$44) -> 0 | EG47: =SUMIF(PLAN1X_AGGREGATE!$B$2:$B$44,EG$3,PLAN1X_AGGREGATE!$D$2:$D$44) -> 0 | EH47: =SUMIF(PLAN1X_AGGREGATE!$B$2:$B$44,EH$3,PLAN1X_AGGREGATE!$D$2:$D$44) -> 0 | EI47: =SUMIF(PLAN1X_AGGREGATE!$B$2:$B$44,EI$3,PLAN1X_AGGREGATE!$D$2:$D$44) -> 0 | EJ47: =SUMIF(PLAN1X_AGGREGATE!$B$2:$B$44,EJ$3,PLAN1X_AGGREGATE!$D$2:$D$44) -> 0 | EK47: =SUMIF(PLAN1X_AGGREGATE!$B$2:$B$44,EK$3,PLAN1X_AGGREGATE!$D$2:$D$44) -> 0 | EL47: =SUMIF(PLAN1X_AGGREGATE!$B$2:$B$44,EL$3,PLAN1X_AGGREGATE!$D$2:$D$44) -> 0 | EM47: =SUMIF(PLAN1X_AGGREGATE!$B$2:$B$44,EM$3,PLAN1X_AGGREGATE!$D$2:$D$44) -> 0 | EN47: =SUMIF(PLAN1X_AGGREGATE!$B$2:$B$44,EN$3,PLAN1X_AGGREGATE!$D$2:$D$44) -> 0 | EO47: =SUMIF(PLAN1X_AGGREGATE!$B$2:$B$44,EO$3,PLAN1X_AGGREGATE!$D$2:$D$44) -> 0 | EP47: =SUMIF(PLAN1X_AGGREGATE!$B$2:$B$44,EP$3,PLAN1X_AGGREGATE!$D$2:$D$44) -> 0 | EQ47: =SUMIF(PLAN1X_AGGREGATE!$B$2:$B$44,EQ$3,PLAN1X_AGGREGATE!$D$2:$D$44) -> 0 | ER47: =SUMIF(PLAN1X_AGGREGATE!$B$2:$B$44,ER$3,PLAN1X_AGGREGATE!$D$2:$D$44) -> 0 | ES47: =SUMIF(PLAN1X_AGGREGATE!$B$2:$B$44,ES$3,PLAN1X_AGGREGATE!$D$2:$D$44) -> 0 | ET47: =SUMIF(PLAN1X_AGGREGATE!$B$2:$B$44,ET$3,PLAN1X_AGGREGATE!$D$2:$D$44) -> 0 | EU47: =SUMIF(PLAN1X_AGGREGATE!$B$2:$B$44,EU$3,PLAN1X_AGGREGATE!$D$2:$D$44) -> 0 | EV47: =SUMIF(PLAN1X_AGGREGATE!$B$2:$B$44,EV$3,PLAN1X_AGGREGATE!$D$2:$D$44) -> 0 | EW47: =SUMIF(PLAN1X_AGGREGATE!$B$2:$B$44,EW$3,PLAN1X_AGGREGATE!$D$2:$D$44) -> 0 | EX47: =SUMIF(PLAN1X_AGGREGATE!$B$2:$B$44,EX$3,PLAN1X_AGGREGATE!$D$2:$D$44) -> 0 | EY47: =SUMIF(PLAN1X_AGGREGATE!$B$2:$B$44,EY$3,PLAN1X_AGGREGATE!$D$2:$D$44) -> 0 | EZ47: =SUMIF(PLAN1X_AGGREGATE!$B$2:$B$44,EZ$3,PLAN1X_AGGREGATE!$D$2:$D$44) -> 0 | FA47: =SUMIF(PLAN1X_AGGREGATE!$B$2:$B$44,FA$3,PLAN1X_AGGREGATE!$D$2:$D$44) -> 0 | FB47: =SUMIF(PLAN1X_AGGREGATE!$B$2:$B$44,FB$3,PLAN1X_AGGREGATE!$D$2:$D$44) -> 0 | FC47: =SUMIF(PLAN1X_AGGREGATE!$B$2:$B$44,FC$3,PLAN1X_AGGREGATE!$D$2:$D$44) -> 0 | FD47: =SUMIF(PLAN1X_AGGREGATE!$B$2:$B$44,FD$3,PLAN1X_AGGREGATE!$D$2:$D$44) -> 0 | FE47: =SUMIF(PLAN1X_AGGREGATE!$B$2:$B$44,FE$3,PLAN1X_AGGREGATE!$D$2:$D$44) -> 0 | FF47: =SUMIF(PLAN1X_AGGREGATE!$B$2:$B$44,FF$3,PLAN1X_AGGREGATE!$D$2:$D$44) -> 0 | FG47: =SUMIF(PLAN1X_AGGREGATE!$B$2:$B$44,FG$3,PLAN1X_AGGREGATE!$D$2:$D$44) -> 0 | FH47: =SUMIF(PLAN1X_AGGREGATE!$B$2:$B$44,FH$3,PLAN1X_AGGREGATE!$D$2:$D$44) -> 0 | FI47: =SUMIF(PLAN1X_AGGREGATE!$B$2:$B$44,FI$3,PLAN1X_AGGREGATE!$D$2:$D$44) -> 0 | FJ47: =SUMIF(PLAN1X_AGGREGATE!$B$2:$B$44,FJ$3,PLAN1X_AGGREGATE!$D$2:$D$44) -> 0 | FK47: =SUMIF(PLAN1X_AGGREGATE!$B$2:$B$44,FK$3,PLAN1X_AGGREGATE!$D$2:$D$44) -> 0 | FL47: =SUMIF(PLAN1X_AGGREGATE!$B$2:$B$44,FL$3,PLAN1X_AGGREGATE!$D$2:$D$44) -> 0 | FM47: =SUMIF(PLAN1X_AGGREGATE!$B$2:$B$44,FM$3,PLAN1X_AGGREGATE!$D$2:$D$44) -> 0 | FN47: =SUMIF(PLAN1X_AGGREGATE!$B$2:$B$44,FN$3,PLAN1X_AGGREGATE!$D$2:$D$44) -> 0 | FO47: =SUMIF(PLAN1X_AGGREGATE!$B$2:$B$44,FO$3,PLAN1X_AGGREGATE!$D$2:$D$44) -> 0 | FP47: =SUMIF(PLAN1X_AGGREGATE!$B$2:$B$44,FP$3,PLAN1X_AGGREGATE!$D$2:$D$44) -> 0 | FQ47: =SUMIF(PLAN1X_AGGREGATE!$B$2:$B$44,FQ$3,PLAN1X_AGGREGATE!$D$2:$D$44) -> 0 | FR47: =SUMIF(PLAN1X_AGGREGATE!$B$2:$B$44,FR$3,PLAN1X_AGGREGATE!$D$2:$D$44) -> 0 | FS47: =SUMIF(PLAN1X_AGGREGATE!$B$2:$B$44,FS$3,PLAN1X_AGGREGATE!$D$2:$D$44) -> 0 | FT47: =SUMIF(PLAN1X_AGGREGATE!$B$2:$B$44,FT$3,PLAN1X_AGGREGATE!$D$2:$D$44) -> 0 | FU47: =SUMIF(PLAN1X_AGGREGATE!$B$2:$B$44,FU$3,PLAN1X_AGGREGATE!$D$2:$D$44) -> 0 | FV47: =SUMIF(PLAN1X_AGGREGATE!$B$2:$B$44,FV$3,PLAN1X_AGGREGATE!$D$2:$D$44) -> 0 | FW47: =SUMIF(PLAN1X_AGGREGATE!$B$2:$B$44,FW$3,PLAN1X_AGGREGATE!$D$2:$D$44) -> 0 | FX47: =SUMIF(PLAN1X_AGGREGATE!$B$2:$B$44,FX$3,PLAN1X_AGGREGATE!$D$2:$D$44) -> 0 | FY47: =SUMIF(PLAN1X_AGGREGATE!$B$2:$B$44,FY$3,PLAN1X_AGGREGATE!$D$2:$D$44) -> 0 | FZ47: =SUMIF(PLAN1X_AGGREGATE!$B$2:$B$44,FZ$3,PLAN1X_AGGREGATE!$D$2:$D$44) -> 0 | GA47: =SUMIF(PLAN1X_AGGREGATE!$B$2:$B$44,GA$3,PLAN1X_AGGREGATE!$D$2:$D$44) -> 0
I48: Затраты на топливо (тыс.руб.) | P48: =SUMIF(PLAN1X_AGGREGATE!$B$2:$B$44,P$3,PLAN1X_AGGREGATE!$E$2:$E$44) -> 5464085.83 | Q48: =SUMIF(PLAN1X_AGGREGATE!$B$2:$B$44,Q$3,PLAN1X_AGGREGATE!$E$2:$E$44) -> 5464085.83 | R48: =SUMIF(PLAN1X_AGGREGATE!$B$2:$B$44,R$3,PLAN1X_AGGREGATE!$E$2:$E$44) -> 5464085.83 | S48: =SUMIF(PLAN1X_AGGREGATE!$B$2:$B$44,S$3,PLAN1X_AGGREGATE!$E$2:$E$44) -> 5464085.83 | T48: =SUMIF(PLAN1X_AGGREGATE!$B$2:$B$44,T$3,PLAN1X_AGGREGATE!$E$2:$E$44) -> 4522159 | U48: =SUMIF(PLAN1X_AGGREGATE!$B$2:$B$44,U$3,PLAN1X_AGGREGATE!$E$2:$E$44) -> 4522159 | V48: =SUMIF(PLAN1X_AGGREGATE!$B$2:$B$44,V$3,PLAN1X_AGGREGATE!$E$2:$E$44) -> 4522159 | W48: =SUMIF(PLAN1X_AGGREGATE!$B$2:$B$44,W$3,PLAN1X_AGGREGATE!$E$2:$E$44) -> 4522159 | X48: =SUMIF(PLAN1X_AGGREGATE!$B$2:$B$44,X$3,PLAN1X_AGGREGATE!$E$2:$E$44) -> 31881.3 | Y48: =SUMIF(PLAN1X_AGGREGATE!$B$2:$B$44,Y$3,PLAN1X_AGGREGATE!$E$2:$E$44) -> 31881.3 | Z48: =SUMIF(PLAN1X_AGGREGATE!$B$2:$B$44,Z$3,PLAN1X_AGGREGATE!$E$2:$E$44) -> 31881.3 | AA48: =SUMIF(PLAN1X_AGGREGATE!$B$2:$B$44,AA$3,PLAN1X_AGGREGATE!$E$2:$E$44) -> 31881.3 | AB48: =SUMIF(PLAN1X_AGGREGATE!$B$2:$B$44,AB$3,PLAN1X_AGGREGATE!$E$2:$E$44) -> 910045.53 | AC48: =SUMIF(PLAN1X_AGGREGATE!$B$2:$B$44,AC$3,PLAN1X_AGGREGATE!$E$2:$E$44) -> 910045.53 | AD48: =SUMIF(PLAN1X_AGGREGATE!$B$2:$B$44,AD$3,PLAN1X_AGGREGATE!$E$2:$E$44) -> 910045.53 | AE48: =SUMIF(PLAN1X_AGGREGATE!$B$2:$B$44,AE$3,PLAN1X_AGGREGATE!$E$2:$E$44) -> 910045.53 | AF48: =SUMIF(PLAN1X_AGGREGATE!$B$2:$B$44,AF$3,PLAN1X_AGGREGATE!$E$2:$E$44) -> 0 | AG48: =SUMIF(PLAN1X_AGGREGATE!$B$2:$B$44,AG$3,PLAN1X_AGGREGATE!$E$2:$E$44) -> 0 | AH48: =SUMIF(PLAN1X_AGGREGATE!$B$2:$B$44,AH$3,PLAN1X_AGGREGATE!$E$2:$E$44) -> 0 | AI48: =SUMIF(PLAN1X_AGGREGATE!$B$2:$B$44,AI$3,PLAN1X_AGGREGATE!$E$2:$E$44) -> 0 | AJ48: =SUMIF(PLAN1X_AGGREGATE!$B$2:$B$44,AJ$3,PLAN1X_AGGREGATE!$E$2:$E$44) -> 0 | AK48: =SUMIF(PLAN1X_AGGREGATE!$B$2:$B$44,AK$3,PLAN1X_AGGREGATE!$E$2:$E$44) -> 0 | AL48: =SUMIF(PLAN1X_AGGREGATE!$B$2:$B$44,AL$3,PLAN1X_AGGREGATE!$E$2:$E$44) -> 0 | AM48: =SUMIF(PLAN1X_AGGREGATE!$B$2:$B$44,AM$3,PLAN1X_AGGREGATE!$E$2:$E$44) -> 0 | AN48: =SUMIF(PLAN1X_AGGREGATE!$B$2:$B$44,AN$3,PLAN1X_AGGREGATE!$E$2:$E$44) -> 0 | AO48: =SUMIF(PLAN1X_AGGREGATE!$B$2:$B$44,AO$3,PLAN1X_AGGREGATE!$E$2:$E$44) -> 0 | AP48: =SUMIF(PLAN1X_AGGREGATE!$B$2:$B$44,AP$3,PLAN1X_AGGREGATE!$E$2:$E$44) -> 0 | AQ48: =SUMIF(PLAN1X_AGGREGATE!$B$2:$B$44,AQ$3,PLAN1X_AGGREGATE!$E$2:$E$44) -> 0 | AR48: =SUMIF(PLAN1X_AGGREGATE!$B$2:$B$44,AR$3,PLAN1X_AGGREGATE!$E$2:$E$44) -> 0 | AS48: =SUMIF(PLAN1X_AGGREGATE!$B$2:$B$44,AS$3,PLAN1X_AGGREGATE!$E$2:$E$44) -> 0 | AT48: =SUMIF(PLAN1X_AGGREGATE!$B$2:$B$44,AT$3,PLAN1X_AGGREGATE!$E$2:$E$44) -> 0 | AU48: =SUMIF(PLAN1X_AGGREGATE!$B$2:$B$44,AU$3,PLAN1X_AGGREGATE!$E$2:$E$44) -> 0 | AV48: =SUMIF(PLAN1X_AGGREGATE!$B$2:$B$44,AV$3,PLAN1X_AGGREGATE!$E$2:$E$44) -> 0 | AW48: =SUMIF(PLAN1X_AGGREGATE!$B$2:$B$44,AW$3,PLAN1X_AGGREGATE!$E$2:$E$44) -> 0 | AX48: =SUMIF(PLAN1X_AGGREGATE!$B$2:$B$44,AX$3,PLAN1X_AGGREGATE!$E$2:$E$44) -> 0 | AY48: =SUMIF(PLAN1X_AGGREGATE!$B$2:$B$44,AY$3,PLAN1X_AGGREGATE!$E$2:$E$44) -> 0 | AZ48: =SUMIF(PLAN1X_AGGREGATE!$B$2:$B$44,AZ$3,PLAN1X_AGGREGATE!$E$2:$E$44) -> 0 | BA48: =SUMIF(PLAN1X_AGGREGATE!$B$2:$B$44,BA$3,PLAN1X_AGGREGATE!$E$2:$E$44) -> 0 | BB48: =SUMIF(PLAN1X_AGGREGATE!$B$2:$B$44,BB$3,PLAN1X_AGGREGATE!$E$2:$E$44) -> 0 | BC48: =SUMIF(PLAN1X_AGGREGATE!$B$2:$B$44,BC$3,PLAN1X_AGGREGATE!$E$2:$E$44) -> 0 | BD48: =SUMIF(PLAN1X_AGGREGATE!$B$2:$B$44,BD$3,PLAN1X_AGGREGATE!$E$2:$E$44) -> 0 | BE48: =SUMIF(PLAN1X_AGGREGATE!$B$2:$B$44,BE$3,PLAN1X_AGGREGATE!$E$2:$E$44) -> 0 | BF48: =SUMIF(PLAN1X_AGGREGATE!$B$2:$B$44,BF$3,PLAN1X_AGGREGATE!$E$2:$E$44) -> 0 | BG48: =SUMIF(PLAN1X_AGGREGATE!$B$2:$B$44,BG$3,PLAN1X_AGGREGATE!$E$2:$E$44) -> 0 | BH48: =SUMIF(PLAN1X_AGGREGATE!$B$2:$B$44,BH$3,PLAN1X_AGGREGATE!$E$2:$E$44) -> 0 | BI48: =SUMIF(PLAN1X_AGGREGATE!$B$2:$B$44,BI$3,PLAN1X_AGGREGATE!$E$2:$E$44) -> 0 | BJ48: =SUMIF(PLAN1X_AGGREGATE!$B$2:$B$44,BJ$3,PLAN1X_AGGREGATE!$E$2:$E$44) -> 0 | BK48: =SUMIF(PLAN1X_AGGREGATE!$B$2:$B$44,BK$3,PLAN1X_AGGREGATE!$E$2:$E$44) -> 0 | BL48: =SUMIF(PLAN1X_AGGREGATE!$B$2:$B$44,BL$3,PLAN1X_AGGREGATE!$E$2:$E$44) -> 0 | BM48: =SUMIF(PLAN1X_AGGREGATE!$B$2:$B$44,BM$3,PLAN1X_AGGREGATE!$E$2:$E$44) -> 0 | BN48: =SUMIF(PLAN1X_AGGREGATE!$B$2:$B$44,BN$3,PLAN1X_AGGREGATE!$E$2:$E$44) -> 0 | BO48: =SUMIF(PLAN1X_AGGREGATE!$B$2:$B$44,BO$3,PLAN1X_AGGREGATE!$E$2:$E$44) -> 0 | BP48: =SUMIF(PLAN1X_AGGREGATE!$B$2:$B$44,BP$3,PLAN1X_AGGREGATE!$E$2:$E$44) -> 0 | BQ48: =SUMIF(PLAN1X_AGGREGATE!$B$2:$B$44,BQ$3,PLAN1X_AGGREGATE!$E$2:$E$44) -> 0 | BR48: =SUMIF(PLAN1X_AGGREGATE!$B$2:$B$44,BR$3,PLAN1X_AGGREGATE!$E$2:$E$44) -> 0 | BS48: =SUMIF(PLAN1X_AGGREGATE!$B$2:$B$44,BS$3,PLAN1X_AGGREGATE!$E$2:$E$44) -> 0 | BT48: =SUMIF(PLAN1X_AGGREGATE!$B$2:$B$44,BT$3,PLAN1X_AGGREGATE!$E$2:$E$44) -> 0 | BU48: =SUMIF(PLAN1X_AGGREGATE!$B$2:$B$44,BU$3,PLAN1X_AGGREGATE!$E$2:$E$44) -> 0 | BV48: =SUMIF(PLAN1X_AGGREGATE!$B$2:$B$44,BV$3,PLAN1X_AGGREGATE!$E$2:$E$44) -> 0 | BW48: =SUMIF(PLAN1X_AGGREGATE!$B$2:$B$44,BW$3,PLAN1X_AGGREGATE!$E$2:$E$44) -> 0 | BX48: =SUMIF(PLAN1X_AGGREGATE!$B$2:$B$44,BX$3,PLAN1X_AGGREGATE!$E$2:$E$44) -> 45124.22 | BY48: =SUMIF(PLAN1X_AGGREGATE!$B$2:$B$44,BY$3,PLAN1X_AGGREGATE!$E$2:$E$44) -> 45124.22 | BZ48: =SUMIF(PLAN1X_AGGREGATE!$B$2:$B$44,BZ$3,PLAN1X_AGGREGATE!$E$2:$E$44) -> 45124.22 | CA48: =SUMIF(PLAN1X_AGGREGATE!$B$2:$B$44,CA$3,PLAN1X_AGGREGATE!$E$2:$E$44) -> 45124.22 | CB48: =SUMIF(PLAN1X_AGGREGATE!$B$2:$B$44,CB$3,PLAN1X_AGGREGATE!$E$2:$E$44) -> 0 | CC48: =SUMIF(PLAN1X_AGGREGATE!$B$2:$B$44,CC$3,PLAN1X_AGGREGATE!$E$2:$E$44) -> 0 | CD48: =SUMIF(PLAN1X_AGGREGATE!$B$2:$B$44,CD$3,PLAN1X_AGGREGATE!$E$2:$E$44) -> 0 | CE48: =SUMIF(PLAN1X_AGGREGATE!$B$2:$B$44,CE$3,PLAN1X_AGGREGATE!$E$2:$E$44) -> 0 | CF48: =SUMIF(PLAN1X_AGGREGATE!$B$2:$B$44,CF$3,PLAN1X_AGGREGATE!$E$2:$E$44) -> 45124.22 | CG48: =SUMIF(PLAN1X_AGGREGATE!$B$2:$B$44,CG$3,PLAN1X_AGGREGATE!$E$2:$E$44) -> 45124.22 | CH48: =SUMIF(PLAN1X_AGGREGATE!$B$2:$B$44,CH$3,PLAN1X_AGGREGATE!$E$2:$E$44) -> 45124.22 | CI48: =SUMIF(PLAN1X_AGGREGATE!$B$2:$B$44,CI$3,PLAN1X_AGGREGATE!$E$2:$E$44) -> 45124.22 | CJ48: =SUMIF(PLAN1X_AGGREGATE!$B$2:$B$44,CJ$3,PLAN1X_AGGREGATE!$E$2:$E$44) -> 0 | CK48: =SUMIF(PLAN1X_AGGREGATE!$B$2:$B$44,CK$3,PLAN1X_AGGREGATE!$E$2:$E$44) -> 0 | CL48: =SUMIF(PLAN1X_AGGREGATE!$B$2:$B$44,CL$3,PLAN1X_AGGREGATE!$E$2:$E$44) -> 0 | CM48: =SUMIF(PLAN1X_AGGREGATE!$B$2:$B$44,CM$3,PLAN1X_AGGREGATE!$E$2:$E$44) -> 0 | CN48: =SUMIF(PLAN1X_AGGREGATE!$B$2:$B$44,CN$3,PLAN1X_AGGREGATE!$E$2:$E$44) -> 0 | CO48: =SUMIF(PLAN1X_AGGREGATE!$B$2:$B$44,CO$3,PLAN1X_AGGREGATE!$E$2:$E$44) -> 0 | CP48: =SUMIF(PLAN1X_AGGREGATE!$B$2:$B$44,CP$3,PLAN1X_AGGREGATE!$E$2:$E$44) -> 0 | CQ48: =SUMIF(PLAN1X_AGGREGATE!$B$2:$B$44,CQ$3,PLAN1X_AGGREGATE!$E$2:$E$44) -> 0 | CR48: =SUMIF(PLAN1X_AGGREGATE!$B$2:$B$44,CR$3,PLAN1X_AGGREGATE!$E$2:$E$44) -> 0 | CS48: =SUMIF(PLAN1X_AGGREGATE!$B$2:$B$44,CS$3,PLAN1X_AGGREGATE!$E$2:$E$44) -> 0 | CT48: =SUMIF(PLAN1X_AGGREGATE!$B$2:$B$44,CT$3,PLAN1X_AGGREGATE!$E$2:$E$44) -> 0 | CU48: =SUMIF(PLAN1X_AGGREGATE!$B$2:$B$44,CU$3,PLAN1X_AGGREGATE!$E$2:$E$44) -> 0 | CV48: =SUMIF(PLAN1X_AGGREGATE!$B$2:$B$44,CV$3,PLAN1X_AGGREGATE!$E$2:$E$44) -> 0 | CW48: =SUMIF(PLAN1X_AGGREGATE!$B$2:$B$44,CW$3,PLAN1X_AGGREGATE!$E$2:$E$44) -> 0 | CX48: =SUMIF(PLAN1X_AGGREGATE!$B$2:$B$44,CX$3,PLAN1X_AGGREGATE!$E$2:$E$44) -> 0 | CY48: =SUMIF(PLAN1X_AGGREGATE!$B$2:$B$44,CY$3,PLAN1X_AGGREGATE!$E$2:$E$44) -> 0 | CZ48: =SUMIF(PLAN1X_AGGREGATE!$B$2:$B$44,CZ$3,PLAN1X_AGGREGATE!$E$2:$E$44) -> 0 | DA48: =SUMIF(PLAN1X_AGGREGATE!$B$2:$B$44,DA$3,PLAN1X_AGGREGATE!$E$2:$E$44) -> 0 | DB48: =SUMIF(PLAN1X_AGGREGATE!$B$2:$B$44,DB$3,PLAN1X_AGGREGATE!$E$2:$E$44) -> 0 | DC48: =SUMIF(PLAN1X_AGGREGATE!$B$2:$B$44,DC$3,PLAN1X_AGGREGATE!$E$2:$E$44) -> 0 | DD48: =SUMIF(PLAN1X_AGGREGATE!$B$2:$B$44,DD$3,PLAN1X_AGGREGATE!$E$2:$E$44) -> 0 | DE48: =SUMIF(PLAN1X_AGGREGATE!$B$2:$B$44,DE$3,PLAN1X_AGGREGATE!$E$2:$E$44) -> 0 | DF48: =SUMIF(PLAN1X_AGGREGATE!$B$2:$B$44,DF$3,PLAN1X_AGGREGATE!$E$2:$E$44) -> 0 | DG48: =SUMIF(PLAN1X_AGGREGATE!$B$2:$B$44,DG$3,PLAN1X_AGGREGATE!$E$2:$E$44) -> 0 | DH48: =SUMIF(PLAN1X_AGGREGATE!$B$2:$B$44,DH$3,PLAN1X_AGGREGATE!$E$2:$E$44) -> 0 | DI48: =SUMIF(PLAN1X_AGGREGATE!$B$2:$B$44,DI$3,PLAN1X_AGGREGATE!$E$2:$E$44) -> 0 | DJ48: =SUMIF(PLAN1X_AGGREGATE!$B$2:$B$44,DJ$3,PLAN1X_AGGREGATE!$E$2:$E$44) -> 0 | DK48: =SUMIF(PLAN1X_AGGREGATE!$B$2:$B$44,DK$3,PLAN1X_AGGREGATE!$E$2:$E$44) -> 0 | DL48: =SUMIF(PLAN1X_AGGREGATE!$B$2:$B$44,DL$3,PLAN1X_AGGREGATE!$E$2:$E$44) -> 0 | DM48: =SUMIF(PLAN1X_AGGREGATE!$B$2:$B$44,DM$3,PLAN1X_AGGREGATE!$E$2:$E$44) -> 0 | DN48: =SUMIF(PLAN1X_AGGREGATE!$B$2:$B$44,DN$3,PLAN1X_AGGREGATE!$E$2:$E$44) -> 0 | DO48: =SUMIF(PLAN1X_AGGREGATE!$B$2:$B$44,DO$3,PLAN1X_AGGREGATE!$E$2:$E$44) -> 0 | DP48: =SUMIF(PLAN1X_AGGREGATE!$B$2:$B$44,DP$3,PLAN1X_AGGREGATE!$E$2:$E$44) -> 0 | DQ48: =SUMIF(PLAN1X_AGGREGATE!$B$2:$B$44,DQ$3,PLAN1X_AGGREGATE!$E$2:$E$44) -> 0 | DR48: =SUMIF(PLAN1X_AGGREGATE!$B$2:$B$44,DR$3,PLAN1X_AGGREGATE!$E$2:$E$44) -> 0 | DS48: =SUMIF(PLAN1X_AGGREGATE!$B$2:$B$44,DS$3,PLAN1X_AGGREGATE!$E$2:$E$44) -> 0 | DT48: =SUMIF(PLAN1X_AGGREGATE!$B$2:$B$44,DT$3,PLAN1X_AGGREGATE!$E$2:$E$44) -> 0 | DU48: =SUMIF(PLAN1X_AGGREGATE!$B$2:$B$44,DU$3,PLAN1X_AGGREGATE!$E$2:$E$44) -> 0 | DV48: =SUMIF(PLAN1X_AGGREGATE!$B$2:$B$44,DV$3,PLAN1X_AGGREGATE!$E$2:$E$44) -> 0 | DW48: =SUMIF(PLAN1X_AGGREGATE!$B$2:$B$44,DW$3,PLAN1X_AGGREGATE!$E$2:$E$44) -> 0 | DX48: =SUMIF(PLAN1X_AGGREGATE!$B$2:$B$44,DX$3,PLAN1X_AGGREGATE!$E$2:$E$44) -> 0 | DY48: =SUMIF(PLAN1X_AGGREGATE!$B$2:$B$44,DY$3,PLAN1X_AGGREGATE!$E$2:$E$44) -> 0 | DZ48: =SUMIF(PLAN1X_AGGREGATE!$B$2:$B$44,DZ$3,PLAN1X_AGGREGATE!$E$2:$E$44) -> 0 | EA48: =SUMIF(PLAN1X_AGGREGATE!$B$2:$B$44,EA$3,PLAN1X_AGGREGATE!$E$2:$E$44) -> 0 | EB48: =SUMIF(PLAN1X_AGGREGATE!$B$2:$B$44,EB$3,PLAN1X_AGGREGATE!$E$2:$E$44) -> 0 | EC48: =SUMIF(PLAN1X_AGGREGATE!$B$2:$B$44,EC$3,PLAN1X_AGGREGATE!$E$2:$E$44) -> 0 | ED48: =SUMIF(PLAN1X_AGGREGATE!$B$2:$B$44,ED$3,PLAN1X_AGGREGATE!$E$2:$E$44) -> 0 | EE48: =SUMIF(PLAN1X_AGGREGATE!$B$2:$B$44,EE$3,PLAN1X_AGGREGATE!$E$2:$E$44) -> 0 | EF48: =SUMIF(PLAN1X_AGGREGATE!$B$2:$B$44,EF$3,PLAN1X_AGGREGATE!$E$2:$E$44) -> 0 | EG48: =SUMIF(PLAN1X_AGGREGATE!$B$2:$B$44,EG$3,PLAN1X_AGGREGATE!$E$2:$E$44) -> 0 | EH48: =SUMIF(PLAN1X_AGGREGATE!$B$2:$B$44,EH$3,PLAN1X_AGGREGATE!$E$2:$E$44) -> 0 | EI48: =SUMIF(PLAN1X_AGGREGATE!$B$2:$B$44,EI$3,PLAN1X_AGGREGATE!$E$2:$E$44) -> 0 | EJ48: =SUMIF(PLAN1X_AGGREGATE!$B$2:$B$44,EJ$3,PLAN1X_AGGREGATE!$E$2:$E$44) -> 0 | EK48: =SUMIF(PLAN1X_AGGREGATE!$B$2:$B$44,EK$3,PLAN1X_AGGREGATE!$E$2:$E$44) -> 0 | EL48: =SUMIF(PLAN1X_AGGREGATE!$B$2:$B$44,EL$3,PLAN1X_AGGREGATE!$E$2:$E$44) -> 0 | EM48: =SUMIF(PLAN1X_AGGREGATE!$B$2:$B$44,EM$3,PLAN1X_AGGREGATE!$E$2:$E$44) -> 0 | EN48: =SUMIF(PLAN1X_AGGREGATE!$B$2:$B$44,EN$3,PLAN1X_AGGREGATE!$E$2:$E$44) -> 0 | EO48: =SUMIF(PLAN1X_AGGREGATE!$B$2:$B$44,EO$3,PLAN1X_AGGREGATE!$E$2:$E$44) -> 0 | EP48: =SUMIF(PLAN1X_AGGREGATE!$B$2:$B$44,EP$3,PLAN1X_AGGREGATE!$E$2:$E$44) -> 0 | EQ48: =SUMIF(PLAN1X_AGGREGATE!$B$2:$B$44,EQ$3,PLAN1X_AGGREGATE!$E$2:$E$44) -> 0 | ER48: =SUMIF(PLAN1X_AGGREGATE!$B$2:$B$44,ER$3,PLAN1X_AGGREGATE!$E$2:$E$44) -> 0 | ES48: =SUMIF(PLAN1X_AGGREGATE!$B$2:$B$44,ES$3,PLAN1X_AGGREGATE!$E$2:$E$44) -> 0 | ET48: =SUMIF(PLAN1X_AGGREGATE!$B$2:$B$44,ET$3,PLAN1X_AGGREGATE!$E$2:$E$44) -> 0 | EU48: =SUMIF(PLAN1X_AGGREGATE!$B$2:$B$44,EU$3,PLAN1X_AGGREGATE!$E$2:$E$44) -> 0 | EV48: =SUMIF(PLAN1X_AGGREGATE!$B$2:$B$44,EV$3,PLAN1X_AGGREGATE!$E$2:$E$44) -> 0 | EW48: =SUMIF(PLAN1X_AGGREGATE!$B$2:$B$44,EW$3,PLAN1X_AGGREGATE!$E$2:$E$44) -> 0 | EX48: =SUMIF(PLAN1X_AGGREGATE!$B$2:$B$44,EX$3,PLAN1X_AGGREGATE!$E$2:$E$44) -> 0 | EY48: =SUMIF(PLAN1X_AGGREGATE!$B$2:$B$44,EY$3,PLAN1X_AGGREGATE!$E$2:$E$44) -> 0 | EZ48: =SUMIF(PLAN1X_AGGREGATE!$B$2:$B$44,EZ$3,PLAN1X_AGGREGATE!$E$2:$E$44) -> 0 | FA48: =SUMIF(PLAN1X_AGGREGATE!$B$2:$B$44,FA$3,PLAN1X_AGGREGATE!$E$2:$E$44) -> 0 | FB48: =SUMIF(PLAN1X_AGGREGATE!$B$2:$B$44,FB$3,PLAN1X_AGGREGATE!$E$2:$E$44) -> 0 | FC48: =SUMIF(PLAN1X_AGGREGATE!$B$2:$B$44,FC$3,PLAN1X_AGGREGATE!$E$2:$E$44) -> 0 | FD48: =SUMIF(PLAN1X_AGGREGATE!$B$2:$B$44,FD$3,PLAN1X_AGGREGATE!$E$2:$E$44) -> 0 | FE48: =SUMIF(PLAN1X_AGGREGATE!$B$2:$B$44,FE$3,PLAN1X_AGGREGATE!$E$2:$E$44) -> 0 | FF48: =SUMIF(PLAN1X_AGGREGATE!$B$2:$B$44,FF$3,PLAN1X_AGGREGATE!$E$2:$E$44) -> 0 | FG48: =SUMIF(PLAN1X_AGGREGATE!$B$2:$B$44,FG$3,PLAN1X_AGGREGATE!$E$2:$E$44) -> 0 | FH48: =SUMIF(PLAN1X_AGGREGATE!$B$2:$B$44,FH$3,PLAN1X_AGGREGATE!$E$2:$E$44) -> 0 | FI48: =SUMIF(PLAN1X_AGGREGATE!$B$2:$B$44,FI$3,PLAN1X_AGGREGATE!$E$2:$E$44) -> 0 | FJ48: =SUMIF(PLAN1X_AGGREGATE!$B$2:$B$44,FJ$3,PLAN1X_AGGREGATE!$E$2:$E$44) -> 0 | FK48: =SUMIF(PLAN1X_AGGREGATE!$B$2:$B$44,FK$3,PLAN1X_AGGREGATE!$E$2:$E$44) -> 0 | FL48: =SUMIF(PLAN1X_AGGREGATE!$B$2:$B$44,FL$3,PLAN1X_AGGREGATE!$E$2:$E$44) -> 0 | FM48: =SUMIF(PLAN1X_AGGREGATE!$B$2:$B$44,FM$3,PLAN1X_AGGREGATE!$E$2:$E$44) -> 0 | FN48: =SUMIF(PLAN1X_AGGREGATE!$B$2:$B$44,FN$3,PLAN1X_AGGREGATE!$E$2:$E$44) -> 0 | FO48: =SUMIF(PLAN1X_AGGREGATE!$B$2:$B$44,FO$3,PLAN1X_AGGREGATE!$E$2:$E$44) -> 0 | FP48: =SUMIF(PLAN1X_AGGREGATE!$B$2:$B$44,FP$3,PLAN1X_AGGREGATE!$E$2:$E$44) -> 0 | FQ48: =SUMIF(PLAN1X_AGGREGATE!$B$2:$B$44,FQ$3,PLAN1X_AGGREGATE!$E$2:$E$44) -> 0 | FR48: =SUMIF(PLAN1X_AGGREGATE!$B$2:$B$44,FR$3,PLAN1X_AGGREGATE!$E$2:$E$44) -> 0 | FS48: =SUMIF(PLAN1X_AGGREGATE!$B$2:$B$44,FS$3,PLAN1X_AGGREGATE!$E$2:$E$44) -> 0 | FT48: =SUMIF(PLAN1X_AGGREGATE!$B$2:$B$44,FT$3,PLAN1X_AGGREGATE!$E$2:$E$44) -> 0 | FU48: =SUMIF(PLAN1X_AGGREGATE!$B$2:$B$44,FU$3,PLAN1X_AGGREGATE!$E$2:$E$44) -> 0 | FV48: =SUMIF(PLAN1X_AGGREGATE!$B$2:$B$44,FV$3,PLAN1X_AGGREGATE!$E$2:$E$44) -> 0 | FW48: =SUMIF(PLAN1X_AGGREGATE!$B$2:$B$44,FW$3,PLAN1X_AGGREGATE!$E$2:$E$44) -> 0 | FX48: =SUMIF(PLAN1X_AGGREGATE!$B$2:$B$44,FX$3,PLAN1X_AGGREGATE!$E$2:$E$44) -> 0 | FY48: =SUMIF(PLAN1X_AGGREGATE!$B$2:$B$44,FY$3,PLAN1X_AGGREGATE!$E$2:$E$44) -> 0 | FZ48: =SUMIF(PLAN1X_AGGREGATE!$B$2:$B$44,FZ$3,PLAN1X_AGGREGATE!$E$2:$E$44) -> 0 | GA48: =SUMIF(PLAN1X_AGGREGATE!$B$2:$B$44,GA$3,PLAN1X_AGGREGATE!$E$2:$E$44) -> 0 | GB48: =SUMIF(PLAN1X_AGGREGATE!$B$2:$B$44,GB$3,PLAN1X_AGGREGATE!$E$2:$E$44) -> 0.01 | GC48: =SUMIF(PLAN1X_AGGREGATE!$B$2:$B$44,GC$3,PLAN1X_AGGREGATE!$E$2:$E$44) -> 0.01 | GD48: =SUMIF(PLAN1X_AGGREGATE!$B$2:$B$44,GD$3,PLAN1X_AGGREGATE!$E$2:$E$44) -> 0.01 | GE48: =SUMIF(PLAN1X_AGGREGATE!$B$2:$B$44,GE$3,PLAN1X_AGGREGATE!$E$2:$E$44) -> 0.01
F50: Комментарии
F52: =IF(PLAN1X_AGGREGATE!$F$2="YAPR","",IF(PLAN1X_AGGREGATE!$F$2="NAPR","Отчёт по теплоснабжению SUMMARY.BALANCE.CALC.TARIFF.WARM.2020YEAR отклонён. Просьба обратить внимание на плановые показатели по топливу в указанном отчёте перед заполнением данных мониторинга "&GetTemplateCode(),IF(PLAN1X_AGGREGATE!$F$2="APRL","Отчёт по теплоснабжению SUMMARY.BALANCE.CALC.TARIFF.WARM.2020YEAR на проверке. Просьба обратить внимание на плановые показатели по топливу в указанном отчёте перед заполнением данных мониторинга "&GetTemplateCode(),"Данные из отчёта по теплоснабжению SUMMARY.BALANCE.CALC.TARIFF.WARM.2020YEAR отсутствуют"))) -> Отчёт по теплоснабжению SUMMARY.BALANCE.CALC.TARIFF.WARM.2020YEAR на проверке. Просьба обратить внимание на плановые показатели по топливу в указанном отчёте перед заполнением данных мониторинга WARM.TOPL.Q1.2020

Sheet Т
L9: ACTI
F11: 1.1.1 | G11: Цена натурального топлива без учёта транспортировки (руб./ед.изм.) | J11: без НДС | N11: =F11 & "::" & L9 -> 1.1.1::ACTI | AV11: =IF(AV17=0,0,(AV20-AV28-AV33-AV38)*1000/AV17) -> 0 | AW11: =IF(AW17=0,0,(AW20-AW28-AW33-AW38)*1000/AW17) -> 0 | AX11: =IF(AX17=0,0,(AX20-AX28-AX33-AX38)*1000/AX17) -> 0 | AY11: =IF(AY17=0,0,(AY20-AY28-AY33-AY38)*1000/AY17) -> 0 | AZ11: =IF(AZ17=0,0,(AZ20-AZ28-AZ33-AZ38)*1000/AZ17) -> 0 | BA11: =IF(BA17=0,0,(BA20-BA28-BA33-BA38)*1000/BA17) -> 0 | BB11: 0 | BC11: 0 | BD11: 0 | BE11: 0 | BF11: 0 | BG11: 0 | BH11: =IF(BH17=0,0,(BH20-BH28-BH33-BH38)*1000/BH17) -> 0 | BI11: 0 | BJ11: 0 | BK11: 0 | BL11: 0 | BM11: 0 | BN11: 0 | BO11: 0 | BP11: 0 | BQ11: 0 | BR11: 0 | BS11: 0 | BT11: 0 | BU11: 0 | BV11: 0 | BW11: 0 | BX11: 0 | BY11: 0 | BZ11: 0 | CA11: 0 | CB11: 0 | CC11: 0 | CD11: 0 | CE11: 0 | CF11: 0 | CG11: 0 | CH11: 0 | CI11: 0 | CJ11: 0 | CK11: 0 | CL11: 0 | CM11: 0 | CN11: 0 | CO11: 0 | CP11: 0 | CQ11: 0 | CR11: =IF(CR17=0,0,(CR20-CR28-CR33-CR38)*1000/CR17) -> 0 | CS11: 0 | CT11: 0 | CU11: 0 | CV11: 0 | CW11: 0 | CX11: 0 | CY11: 0 | CZ11: 0 | DA11: 0 | DB11: 0 | DC11: 0 | DD11: 0 | DE11: 0 | DF11: 0 | DG11: 0 | DH11: 0 | DI11: 0 | DJ11: 0 | DK11: 0 | DL11: 0 | DM11: 0 | DN11: 0 | DO11: 0 | DP11: 0 | DQ11: 0 | DR11: 0 | DS11: 0 | DT11: 0 | DU11: 0 | DV11: 0 | DW11: 0 | DX11: 0 | DY11: 0 | DZ11: 0 | EA11: 0 | EB11: 0 | EC11: 0 | ED11: 0 | EE11: 0 | EF11: 0 | EG11: 0 | EH11: 0 | EI11: 0 | EJ11: =IF(EJ17=0,0,(EJ20-EJ28-EJ33-EJ38)*1000/EJ17) -> 0 | EK11: =IF(EK17=0,0,(EK20-EK28-EK33-EK38)*1000/EK17) -> 0 | EL11: =IF(EL17=0,0,(EL20-EL28-EL33-EL38)*1000/EL17) -> 0 | EM11: =IF(EM17=0,0,(EM20-EM28-EM33-EM38)*1000/EM17) -> 0 | EN11: 0 | EO11: =IF(EO17=0,0,(EO20-EO28-EO33-EO38)*1000/EO17) -> 0 | EP11: =IF(EP17=0,0,(EP20-EP28-EP33-EP38)*1000/EP17) -> 0 | EQ11: =IF(EQ17=0,0,(EQ20-EQ28-EQ33-EQ38)*1000/EQ17) -> 0 | EZ11: =IF(EZ17=0,0,(EZ20-EZ28-EZ33-EZ38)*1000/EZ17) -> 0 | FA11: =IF(FA17=0,0,(FA20-FA28-FA33-FA38)*1000/FA17) -> 0 | FB11: =IF(FB17=0,0,(FB20-FB28-FB33-FB38)*1000/FB17) -> 0 | FC11: =IF(FC17=0,0,(FC20-FC28-FC33-FC38)*1000/FC17) -> 0 | FD11: =IF(FD17=0,0,(FD20-FD28-FD33-FD38)*1000/FD17) -> 0 | FE11: 0 | FF11: 0 | FG11: 0 | FH11: 0 | FI11: 0 | FJ11: 0 | FK11: 0 | FL11: 0 | FM11: 0 | FN11: 0 | FO11: 0 | FP11: 0 | FQ11: 0 | FR11: 0 | FS11: 0 | FT11: 0 | FU11: 0 | FV11: 0 | FW11: 0 | FX11: 0 | FY11: 0 | FZ11: 0 | GA11: 0 | GB11: 0 | GC11: 0 | GD11: 0 | GE11: 0
F12: 1.1.2 | J12: с НДС | N12: =F12 & "::" & L9 -> 1.1.2::ACTI | AV12: =IF(AV17=0,0,(AV21-AV29-AV34-AV39)*1000/AV17) -> 0 | AW12: =IF(AW17=0,0,(AW21-AW29-AW34-AW39)*1000/AW17) -> 0 | AX12: =IF(AX17=0,0,(AX21-AX29-AX34-AX39)*1000/AX17) -> 0 | AY12: =IF(AY17=0,0,(AY21-AY29-AY34-AY39)*1000/AY17) -> 0 | AZ12: =IF(AZ17=0,0,(AZ21-AZ29-AZ34-AZ39)*1000/AZ17) -> 0 | BA12: =IF(BA17=0,0,(BA21-BA29-BA34-BA39)*1000/BA17) -> 0 | BB12: 0 | BC12: 0 | BD12: 0 | BE12: 0 | BF12: 0 | BG12: 0 | BH12: =IF(BH17=0,0,(BH21-BH29-BH34-BH39)*1000/BH17) -> 0 | BI12: 0 | BJ12: 0 | BK12: 0 | BL12: 0 | BM12: 0 | BN12: 0 | BO12: 0 | BP12: 0 | BQ12: 0 | BR12: 0 | BS12: 0 | BT12: 0 | BU12: 0 | BV12: 0 | BW12: 0 | BX12: 0 | BY12: 0 | BZ12: 0 | CA12: 0 | CB12: 0 | CC12: 0 | CD12: 0 | CE12: 0 | CF12: 0 | CG12: 0 | CH12: 0 | CI12: 0 | CJ12: 0 | CK12: 0 | CL12: 0 | CM12: 0 | CN12: 0 | CO12: 0 | CP12: 0 | CQ12: 0 | CR12: =IF(CR17=0,0,(CR21-CR29-CR34-CR39)*1000/CR17) -> 0 | CS12: 0 | CT12: 0 | CU12: 0 | CV12: 0 | CW12: 0 | CX12: 0 | CY12: 0 | CZ12: 0 | DA12: 0 | DB12: 0 | DC12: 0 | DD12: 0 | DE12: 0 | DF12: 0 | DG12: 0 | DH12: 0 | DI12: 0 | DJ12: 0 | DK12: 0 | DL12: 0 | DM12: 0 | DN12: 0 | DO12: 0 | DP12: 0 | DQ12: 0 | DR12: 0 | DS12: 0 | DT12: 0 | DU12: 0 | DV12: 0 | DW12: 0 | DX12: 0 | DY12: 0 | DZ12: 0 | EA12: 0 | EB12: 0 | EC12: 0 | ED12: 0 | EE12: 0 | EF12: 0 | EG12: 0 | EH12: 0 | EI12: 0 | EJ12: =IF(EJ17=0,0,(EJ21-EJ29-EJ34-EJ39)*1000/EJ17) -> 0 | EK12: =IF(EK17=0,0,(EK21-EK29-EK34-EK39)*1000/EK17) -> 0 | EL12: =IF(EL17=0,0,(EL21-EL29-EL34-EL39)*1000/EL17) -> 0 | EM12: =IF(EM17=0,0,(EM21-EM29-EM34-EM39)*1000/EM17) -> 0 | EN12: 0 | EO12: =IF(EO17=0,0,(EO21-EO29-EO34-EO39)*1000/EO17) -> 0 | EP12: =IF(EP17=0,0,(EP21-EP29-EP34-EP39)*1000/EP17) -> 0 | EQ12: =IF(EQ17=0,0,(EQ21-EQ29-EQ34-EQ39)*1000/EQ17) -> 0 | EZ12: =IF(EZ17=0,0,(EZ21-EZ29-EZ34-EZ39)*1000/EZ17) -> 0 | FA12: =IF(FA17=0,0,(FA21-FA29-FA34-FA39)*1000/FA17) -> 0 | FB12: =IF(FB17=0,0,(FB21-FB29-FB34-FB39)*1000/FB17) -> 0 | FC12: =IF(FC17=0,0,(FC21-FC29-FC34-FC39)*1000/FC17) -> 0 | FD12: =IF(FD17=0,0,(FD21-FD29-FD34-FD39)*1000/FD17) -> 0 | FE12: 0 | FF12: 0 | FG12: 0 | FH12: 0 | FI12: 0 | FJ12: 0 | FK12: 0 | FL12: 0 | FM12: 0 | FN12: 0 | FO12: 0 | FP12: 0 | FQ12: 0 | FR12: 0 | FS12: 0 | FT12: 0 | FU12: 0 | FV12: 0 | FW12: 0 | FX12: 0 | FY12: 0 | FZ12: 0 | GA12: 0 | GB12: 0 | GC12: 0 | GD12: 0 | GE12: 0
F13: 1.2.1 | G13: Цена натурального топлива с учётом транспортировки (руб./ед.изм.) | J13: без НДС | N13: =F13 & "::" & L9 -> 1.2.1::ACTI | P13: =IF(P17=0,0,P20*1000/P17) -> 0 | Q13: =IF(Q17=0,0,Q20*1000/Q17) -> 0 | R13: =IF(R17=0,0,R20*1000/R17) -> 0 | S13: =IF(S17=0,0,S20*1000/S17) -> 7262.15269 | T13: =IF(T17=0,0,T20*1000/T17) -> 0 | U13: 0 | V13: 0 | W13: 7122.5684 | X13: 0 | Y13: 0 | Z13: 0 | AA13: 10580.3045 | AB13: 0 | AC13: 0 | AD13: 0 | AE13: 0 | AF13: =IF(AF17=0,0,AF20*1000/AF17) -> 0 | AG13: =IF(AG17=0,0,AG20*1000/AG17) -> 0 | AH13: =IF(AH17=0,0,AH20*1000/AH17) -> 0 | AI13: =IF(AI17=0,0,AI20*1000/AI17) -> 0 | AJ13: =IF(AJ17=0,0,AJ20*1000/AJ17) -> 0 | AK13: 0 | AL13: 0 | AM13: 0 | AN13: 0 | AO13: 0 | AP13: 0 | AQ13: 0 | AR13: 0 | AS13: 0 | AT13: 0 | AU13: 0 | AV13: =IF(AV17=0,0,AV20*1000/AV17) -> 0 | AW13: =IF(AW17=0,0,AW20*1000/AW17) -> 0 | AX13: =IF(AX17=0,0,AX20*1000/AX17) -> 0 | AY13: =IF(AY17=0,0,AY20*1000/AY17) -> 0 | AZ13: =IF(AZ17=0,0,AZ20*1000/AZ17) -> 0 | BA13: =IF(BA17=0,0,BA20*1000/BA17) -> 0 | BB13: 0 | BC13: 0 | BD13: 0 | BE13: 0 | BF13: 0 | BG13: 0 | BH13: =IF(BH17=0,0,BH20*1000/BH17) -> 0 | BI13: 0 | BJ13: 0 | BK13: 0 | BL13: 0 | BM13: 0 | BN13: 0 | BO13: 0 | BP13: 0 | BQ13: 0 | BR13: 0 | BS13: 0 | BT13: 0 | BU13: 0 | BV13: 0 | BW13: 0 | BX13: 0 | BY13: 0 | BZ13: 0 | CA13: 0 | CB13: 0 | CC13: 0 | CD13: 0 | CE13: 0 | CF13: 0 | CG13: 0 | CH13: 0 | CI13: 0 | CJ13: 0 | CK13: 0 | CL13: 0 | CM13: 0 | CN13: 0 | CO13: 0 | CP13: 0 | CQ13: 0 | CR13: =IF(CR17=0,0,CR20*1000/CR17) -> 0 | CS13: 0 | CT13: 0 | CU13: 0 | CV13: 0 | CW13: 0 | CX13: 0 | CY13: 0 | CZ13: 0 | DA13: 0 | DB13: 0 | DC13: 0 | DD13: 0 | DE13: 0 | DF13: 0 | DG13: 0 | DH13: 0 | DI13: 0 | DJ13: 0 | DK13: 0 | DL13: 0 | DM13: 0 | DN13: 0 | DO13: 0 | DP13: 0 | DQ13: 0 | DR13: 0 | DS13: 0 | DT13: 0 | DU13: 0 | DV13: 0 | DW13: 0 | DX13: 0 | DY13: 0 | DZ13: 0 | EA13: 0 | EB13: 0 | EC13: 0 | ED13: 0 | EE13: 0 | EF13: 0 | EG13: 0 | EH13: 0 | EI13: 0 | EJ13: =IF(EJ17=0,0,EJ20*1000/EJ17) -> 0 | EK13: =IF(EK17=0,0,EK20*1000/EK17) -> 0 | EL13: =IF(EL17=0,0,EL20*1000/EL17) -> 0 | EM13: =IF(EM17=0,0,EM20*1000/EM17) -> 0 | EN13: 0 | EO13: =IF(EO17=0,0,EO20*1000/EO17) -> 0 | EP13: =IF(EP17=0,0,EP20*1000/EP17) -> 0 | EQ13: =IF(EQ17=0,0,EQ20*1000/EQ17) -> 0 | EZ13: =IF(EZ17=0,0,EZ20*1000/EZ17) -> 0 | FA13: =IF(FA17=0,0,FA20*1000/FA17) -> 0 | FB13: =IF(FB17=0,0,FB20*1000/FB17) -> 0 | FC13: =IF(FC17=0,0,FC20*1000/FC17) -> 0 | FD13: =IF(FD17=0,0,FD20*1000/FD17) -> 0 | FE13: 0 | FF13: 0 | FG13: 0 | FH13: 0 | FI13: 0 | FJ13: 0 | FK13: 0 | FL13: 0 | FM13: 0 | FN13: 0 | FO13: 0 | FP13: 0 | FQ13: 0 | FR13: 0 | FS13: 0 | FT13: 0 | FU13: 0 | FV13: 0 | FW13: 0 | FX13: 0 | FY13: 0 | FZ13: 0 | GA13: 0 | GB13: 0 | GC13: 0 | GD13: 0 | GE13: 0
F14: 1.2.2 | J14: с НДС | N14: =F14 & "::" & L9 -> 1.2.2::ACTI | P14: =IF(P17=0,0,P21*1000/P17) -> 0 | Q14: =IF(Q17=0,0,Q21*1000/Q17) -> 0 | R14: =IF(R17=0,0,R21*1000/R17) -> 0 | S14: =IF(S17=0,0,S21*1000/S17) -> 7262.15269 | T14: =IF(T17=0,0,T21*1000/T17) -> 0 | U14: 0 | V14: 0 | W14: 7122.5684 | X14: 0 | Y14: 0 | Z14: 0 | AA14: 10580.3045 | AB14: 0 | AC14: 0 | AD14: 0 | AE14: 0 | AF14: =IF(AF17=0,0,AF21*1000/AF17) -> 0 | AG14: =IF(AG17=0,0,AG21*1000/AG17) -> 0 | AH14: =IF(AH17=0,0,AH21*1000/AH17) -> 0 | AI14: =IF(AI17=0,0,AI21*1000/AI17) -> 0 | AJ14: =IF(AJ17=0,0,AJ21*1000/AJ17) -> 0 | AK14: 0 | AL14: 0 | AM14: 0 | AN14: 0 | AO14: 0 | AP14: 0 | AQ14: 0 | AR14: 0 | AS14: 0 | AT14: 0 | AU14: 0 | AV14: =IF(AV17=0,0,AV21*1000/AV17) -> 0 | AW14: =IF(AW17=0,0,AW21*1000/AW17) -> 0 | AX14: =IF(AX17=0,0,AX21*1000/AX17) -> 0 | AY14: =IF(AY17=0,0,AY21*1000/AY17) -> 0 | AZ14: =IF(AZ17=0,0,AZ21*1000/AZ17) -> 0 | BA14: =IF(BA17=0,0,BA21*1000/BA17) -> 0 | BB14: 0 | BC14: 0 | BD14: 0 | BE14: 0 | BF14: 0 | BG14: 0 | BH14: =IF(BH17=0,0,BH21*1000/BH17) -> 0 | BI14: 0 | BJ14: 0 | BK14: 0 | BL14: 0 | BM14: 0 | BN14: 0 | BO14: 0 | BP14: 0 | BQ14: 0 | BR14: 0 | BS14: 0 | BT14: 0 | BU14: 0 | BV14: 0 | BW14: 0 | BX14: 0 | BY14: 0 | BZ14: 0 | CA14: 0 | CB14: 0 | CC14: 0 | CD14: 0 | CE14: 0 | CF14: 0 | CG14: 0 | CH14: 0 | CI14: 0 | CJ14: 0 | CK14: 0 | CL14: 0 | CM14: 0 | CN14: 0 | CO14: 0 | CP14: 0 | CQ14: 0 | CR14: =IF(CR17=0,0,CR21*1000/CR17) -> 0 | CS14: 0 | CT14: 0 | CU14: 0 | CV14: 0 | CW14: 0 | CX14: 0 | CY14: 0 | CZ14: 0 | DA14: 0 | DB14: 0 | DC14: 0 | DD14: 0 | DE14: 0 | DF14: 0 | DG14: 0 | DH14: 0 | DI14: 0 | DJ14: 0 | DK14: 0 | DL14: 0 | DM14: 0 | DN14: 0 | DO14: 0 | DP14: 0 | DQ14: 0 | DR14: 0 | DS14: 0 | DT14: 0 | DU14: 0 | DV14: 0 | DW14: 0 | DX14: 0 | DY14: 0 | DZ14: 0 | EA14: 0 | EB14: 0 | EC14: 0 | ED14: 0 | EE14: 0 | EF14: 0 | EG14: 0 | EH14: 0 | EI14: 0 | EJ14: =IF(EJ17=0,0,EJ21*1000/EJ17) -> 0 | EK14: =IF(EK17=0,0,EK21*1000/EK17) -> 0 | EL14: =IF(EL17=0,0,EL21*1000/EL17) -> 0 | EM14: =IF(EM17=0,0,EM21*1000/EM17) -> 0 | EN14: 0 | EO14: =IF(EO17=0,0,EO21*1000/EO17) -> 0 | EP14: =IF(EP17=0,0,EP21*1000/EP17) -> 0 | EQ14: =IF(EQ17=0,0,EQ21*1000/EQ17) -> 0 | EZ14: =IF(EZ17=0,0,EZ21*1000/EZ17) -> 0 | FA14: =IF(FA17=0,0,FA21*1000/FA17) -> 0 | FB14: =IF(FB17=0,0,FB21*1000/FB17) -> 0 | FC14: =IF(FC17=0,0,FC21*1000/FC17) -> 0 | FD14: =IF(FD17=0,0,FD21*1000/FD17) -> 0 | FE14: 0 | FF14: 0 | FG14: 0 | FH14: 0 | FI14: 0 | FJ14: 0 | FK14: 0 | FL14: 0 | FM14: 0 | FN14: 0 | FO14: 0 | FP14: 0 | FQ14: 0 | FR14: 0 | FS14: 0 | FT14: 0 | FU14: 0 | FV14: 0 | FW14: 0 | FX14: 0 | FY14: 0 | FZ14: 0 | GA14: 0 | GB14: 0 | GC14: 0 | GD14: 0 | GE14: 0
F15: 1.3.1 | G15: Цена условного топлива с учётом транспортировки (руб./тут) | J15: без НДС | N15: =F15 & "::" & L9 -> 1.3.1::ACTI | P15: =IF(P19=0,0,P20*1000/P19) -> 0 | Q15: =IF(Q19=0,0,Q20*1000/Q19) -> 0 | R15: =IF(R19=0,0,R20*1000/R19) -> 0 | S15: =IF(S19=0,0,S20*1000/S19) -> 6225.591676 | T15: =IF(T19=0,0,T20*1000/T19) -> 0 | U15: 0 | V15: 0 | W15: 6105.930904 | X15: 0 | Y15: 0 | Z15: 0 | AA15: 9070.128161 | AB15: 0 | AC15: 0 | AD15: 0 | AE15: 0 | AF15: =IF(AF19=0,0,AF20*1000/AF19) -> 0 | AG15: =IF(AG19=0,0,AG20*1000/AG19) -> 0 | AH15: =IF(AH19=0,0,AH20*1000/AH19) -> 0 | AI15: =IF(AI19=0,0,AI20*1000/AI19) -> 0 | AJ15: =IF(AJ19=0,0,AJ20*1000/AJ19) -> 0 | AK15: 0 | AL15: 0 | AM15: 0 | AN15: 0 | AO15: 0 | AP15: 0 | AQ15: 0 | AR15: 0 | AS15: 0 | AT15: 0 | AU15: 0 | AV15: =IF(AV19=0,0,AV20*1000/AV19) -> 0 | AW15: =IF(AW19=0,0,AW20*1000/AW19) -> 0 | AX15: =IF(AX19=0,0,AX20*1000/AX19) -> 0 | AY15: =IF(AY19=0,0,AY20*1000/AY19) -> 0 | AZ15: =IF(AZ19=0,0,AZ20*1000/AZ19) -> 0 | BA15: =IF(BA19=0,0,BA20*1000/BA19) -> 0 | BB15: 0 | BC15: 0 | BD15: 0 | BE15: 0 | BF15: 0 | BG15: 0 | BH15: =IF(BH19=0,0,BH20*1000/BH19) -> 0 | BI15: 0 | BJ15: 0 | BK15: 0 | BL15: 0 | BM15: 0 | BN15: 0 | BO15: 0 | BP15: 0 | BQ15: 0 | BR15: 0 | BS15: 0 | BT15: 0 | BU15: 0 | BV15: 0 | BW15: 0 | BX15: 0 | BY15: 0 | BZ15: 0 | CA15: 0 | CB15: 0 | CC15: 0 | CD15: 0 | CE15: 0 | CF15: 0 | CG15: 0 | CH15: 0 | CI15: 0 | CJ15: 0 | CK15: 0 | CL15: 0 | CM15: 0 | CN15: 0 | CO15: 0 | CP15: 0 | CQ15: 0 | CR15: =IF(CR19=0,0,CR20*1000/CR19) -> 0 | CS15: 0 | CT15: 0 | CU15: 0 | CV15: 0 | CW15: 0 | CX15: 0 | CY15: 0 | CZ15: 0 | DA15: 0 | DB15: 0 | DC15: 0 | DD15: 0 | DE15: 0 | DF15: 0 | DG15: 0 | DH15: 0 | DI15: 0 | DJ15: 0 | DK15: 0 | DL15: 0 | DM15: 0 | DN15: 0 | DO15: 0 | DP15: 0 | DQ15: 0 | DR15: 0 | DS15: 0 | DT15: 0 | DU15: 0 | DV15: 0 | DW15: 0 | DX15: 0 | DY15: 0 | DZ15: 0 | EA15: 0 | EB15: 0 | EC15: 0 | ED15: 0 | EE15: 0 | EF15: 0 | EG15: 0 | EH15: 0 | EI15: 0 | EJ15: =IF(EJ19=0,0,EJ20*1000/EJ19) -> 0 | EK15: =IF(EK19=0,0,EK20*1000/EK19) -> 0 | EL15: =IF(EL19=0,0,EL20*1000/EL19) -> 0 | EM15: =IF(EM19=0,0,EM20*1000/EM19) -> 0 | EN15: 0 | EO15: =IF(EO19=0,0,EO20*1000/EO19) -> 0 | EP15: =IF(EP19=0,0,EP20*1000/EP19) -> 0 | EQ15: =IF(EQ19=0,0,EQ20*1000/EQ19) -> 0 | EZ15: =IF(EZ19=0,0,EZ20*1000/EZ19) -> 0 | FA15: =IF(FA19=0,0,FA20*1000/FA19) -> 0 | FB15: =IF(FB19=0,0,FB20*1000/FB19) -> 0 | FC15: =IF(FC19=0,0,FC20*1000/FC19) -> 0 | FD15: =IF(FD19=0,0,FD20*1000/FD19) -> 0 | FE15: 0 | FF15: 0 | FG15: 0 | FH15: 0 | FI15: 0 | FJ15: 0 | FK15: 0 | FL15: 0 | FM15: 0 | FN15: 0 | FO15: 0 | FP15: 0 | FQ15: 0 | FR15: 0 | FS15: 0 | FT15: 0 | FU15: 0 | FV15: 0 | FW15: 0 | FX15: 0 | FY15: 0 | FZ15: 0 | GA15: 0 | GB15: 0 | GC15: 0 | GD15: 0 | GE15: 0
F16: 1.3.2 | J16: с НДС | N16: =F16 & "::" & L9 -> 1.3.2::ACTI | P16: =IF(P19=0,0,P21*1000/P19) -> 0 | Q16: =IF(Q19=0,0,Q21*1000/Q19) -> 0 | R16: =IF(R19=0,0,R21*1000/R19) -> 0 | S16: =IF(S19=0,0,S21*1000/S19) -> 6225.591676 | T16: =IF(T19=0,0,T21*1000/T19) -> 0 | U16: 0 | V16: 0 | W16: 6105.930904 | X16: 0 | Y16: 0 | Z16: 0 | AA16: 9070.128161 | AB16: 0 | AC16: 0 | AD16: 0 | AE16: 0 | AF16: =IF(AF19=0,0,AF21*1000/AF19) -> 0 | AG16: =IF(AG19=0,0,AG21*1000/AG19) -> 0 | AH16: =IF(AH19=0,0,AH21*1000/AH19) -> 0 | AI16: =IF(AI19=0,0,AI21*1000/AI19) -> 0 | AJ16: =IF(AJ19=0,0,AJ21*1000/AJ19) -> 0 | AK16: 0 | AL16: 0 | AM16: 0 | AN16: 0 | AO16: 0 | AP16: 0 | AQ16: 0 | AR16: 0 | AS16: 0 | AT16: 0 | AU16: 0 | AV16: =IF(AV19=0,0,AV21*1000/AV19) -> 0 | AW16: =IF(AW19=0,0,AW21*1000/AW19) -> 0 | AX16: =IF(AX19=0,0,AX21*1000/AX19) -> 0 | AY16: =IF(AY19=0,0,AY21*1000/AY19) -> 0 | AZ16: =IF(AZ19=0,0,AZ21*1000/AZ19) -> 0 | BA16: =IF(BA19=0,0,BA21*1000/BA19) -> 0 | BB16: 0 | BC16: 0 | BD16: 0 | BE16: 0 | BF16: 0 | BG16: 0 | BH16: =IF(BH19=0,0,BH21*1000/BH19) -> 0 | BI16: 0 | BJ16: 0 | BK16: 0 | BL16: 0 | BM16: 0 | BN16: 0 | BO16: 0 | BP16: 0 | BQ16: 0 | BR16: 0 | BS16: 0 | BT16: 0 | BU16: 0 | BV16: 0 | BW16: 0 | BX16: 0 | BY16: 0 | BZ16: 0 | CA16: 0 | CB16: 0 | CC16: 0 | CD16: 0 | CE16: 0 | CF16: 0 | CG16: 0 | CH16: 0 | CI16: 0 | CJ16: 0 | CK16: 0 | CL16: 0 | CM16: 0 | CN16: 0 | CO16: 0 | CP16: 0 | CQ16: 0 | CR16: =IF(CR19=0,0,CR21*1000/CR19) -> 0 | CS16: 0 | CT16: 0 | CU16: 0 | CV16: 0 | CW16: 0 | CX16: 0 | CY16: 0 | CZ16: 0 | DA16: 0 | DB16: 0 | DC16: 0 | DD16: 0 | DE16: 0 | DF16: 0 | DG16: 0 | DH16: 0 | DI16: 0 | DJ16: 0 | DK16: 0 | DL16: 0 | DM16: 0 | DN16: 0 | DO16: 0 | DP16: 0 | DQ16: 0 | DR16: 0 | DS16: 0 | DT16: 0 | DU16: 0 | DV16: 0 | DW16: 0 | DX16: 0 | DY16: 0 | DZ16: 0 | EA16: 0 | EB16: 0 | EC16: 0 | ED16: 0 | EE16: 0 | EF16: 0 | EG16: 0 | EH16: 0 | EI16: 0 | EJ16: =IF(EJ19=0,0,EJ21*1000/EJ19) -> 0 | EK16: =IF(EK19=0,0,EK21*1000/EK19) -> 0 | EL16: =IF(EL19=0,0,EL21*1000/EL19) -> 0 | EM16: =IF(EM19=0,0,EM21*1000/EM19) -> 0 | EN16: 0 | EO16: =IF(EO19=0,0,EO21*1000/EO19) -> 0 | EP16: =IF(EP19=0,0,EP21*1000/EP19) -> 0 | EQ16: =IF(EQ19=0,0,EQ21*1000/EQ19) -> 0 | EZ16: =IF(EZ19=0,0,EZ21*1000/EZ19) -> 0 | FA16: =IF(FA19=0,0,FA21*1000/FA19) -> 0 | FB16: =IF(FB19=0,0,FB21*1000/FB19) -> 0 | FC16: =IF(FC19=0,0,FC21*1000/FC19) -> 0 | FD16: =IF(FD19=0,0,FD21*1000/FD19) -> 0 | FE16: 0 | FF16: 0 | FG16: 0 | FH16: 0 | FI16: 0 | FJ16: 0 | FK16: 0 | FL16: 0 | FM16: 0 | FN16: 0 | FO16: 0 | FP16: 0 | FQ16: 0 | FR16: 0 | FS16: 0 | FT16: 0 | FU16: 0 | FV16: 0 | FW16: 0 | FX16: 0 | FY16: 0 | FZ16: 0 | GA16: 0 | GB16: 0 | GC16: 0 | GD16: 0 | GE16: 0
F17: 2.1 | G17: Объём натурального топлива, всего | N17: =F17 & "::" & L9 -> 2.1::ACTI | P17: =SUMIF($N$55:$N$92,$N17,P$55:P$92) -> 0 | Q17: 0 | R17: 0 | S17: 67.156 | T17: 0 | U17: 0 | V17: 0 | W17: 64.445 | X17: 0 | Y17: 0 | Z17: 0 | AA17: 2.711 | AB17: 0 | AC17: 0 | AD17: 0 | AE17: 0 | AF17: 0 | AG17: 0 | AH17: 0 | AI17: 0 | AJ17: 0 | AK17: 0 | AL17: 0 | AM17: 0 | AN17: 0 | AO17: 0 | AP17: 0 | AQ17: 0 | AR17: 0 | AS17: 0 | AT17: 0 | AU17: 0 | AV17: =SUMIF($N$55:$N$92,$N17,AV$55:AV$92) -> 0 | AW17: 0 | AX17: 0 | AY17: 0 | AZ17: 0 | BA17: 0 | BB17: 0 | BC17: 0 | BD17: 0 | BE17: 0 | BF17: 0 | BG17: 0 | BH17: 0 | BI17: 0 | BJ17: 0 | BK17: 0 | BL17: 0 | BM17: 0 | BN17: 0 | BO17: 0 | BP17: 0 | BQ17: 0 | BR17: 0 | BS17: 0 | BT17: 0 | BU17: 0 | BV17: 0 | BW17: 0 | BX17: 0 | BY17: 0 | BZ17: 0 | CA17: 0 | CB17: =SUMIF($N$55:$N$92,$N17,CB$55:CB$92) -> 0 | CC17: 0 | CD17: 0 | CE17: 0 | CF17: 0 | CG17: 0 | CH17: 0 | CI17: 0 | CJ17: 0 | CK17: 0 | CL17: 0 | CM17: 0 | CN17: 0 | CO17: 0 | CP17: 0 | CQ17: 0 | CR17: 0 | CS17: 0 | CT17: 0 | CU17: 0 | CV17: 0 | CW17: 0 | CX17: 0 | CY17: 0 | CZ17: 0 | DA17: 0 | DB17: 0 | DC17: 0 | DD17: 0 | DE17: 0 | DF17: 0 | DG17: 0 | DH17: =SUMIF($N$55:$N$92,$N17,DH$55:DH$92) -> 0 | DI17: 0 | DJ17: 0 | DK17: 0 | DL17: 0 | DM17: 0 | DN17: 0 | DO17: 0 | DP17: 0 | DQ17: 0 | DR17: 0 | DS17: 0 | DT17: 0 | DU17: 0 | DV17: 0 | DW17: 0 | DX17: 0 | DY17: 0 | DZ17: 0 | EA17: 0 | EB17: 0 | EC17: 0 | ED17: 0 | EE17: 0 | EF17: 0 | EG17: 0 | EH17: 0 | EI17: 0 | EJ17: 0 | EK17: 0 | EL17: 0 | EM17: 0 | EN17: 0 | EO17: 0 | EP17: 0 | EQ17: 0 | EZ17: =SUMIF($N$55:$N$92,$N17,EZ$55:EZ$92) -> 0 | FA17: 0 | FB17: 0 | FC17: 0 | FD17: 0 | FE17: 0 | FF17: 0 | FG17: 0 | FH17: 0 | FI17: 0 | FJ17: 0 | FK17: 0 | FL17: 0 | FM17: 0 | FN17: 0 | FO17: 0 | FP17: 0 | FQ17: 0 | FR17: 0 | FS17: 0 | FT17: 0 | FU17: 0 | FV17: 0 | FW17: 0 | FX17: 0 | FY17: 0 | FZ17: 0 | GA17: 0 | GB17: 0 | GC17: 0 | GD17: 0 | GE17: 0
F18: 2.2 | G18: Переводной коэффициент | N18: =F18 & "::" & L9 -> 2.2::ACTI
F19: 2.3 | G19: Объём условного топлива, всего (тут) | N19: =F19 & "::" & L9 -> 2.3::ACTI | P19: =SUMIF($N$55:$N$92,$N19,P$55:P$92) -> 0 | Q19: 0 | R19: 0 | S19: 78.337474 | T19: 0 | U19: 0 | V19: 0 | W19: 75.1750925 | X19: 0 | Y19: 0 | Z19: =SUMIF($N$55:$N$92,$N19,Z$55:Z$92) -> 0 | AA19: 3.1623815 | AB19: 0 | AC19: 0 | AD19: 0 | AE19: 0 | AF19: 0 | AG19: 0 | AH19: 0 | AI19: 0 | AJ19: =SUMIF($N$55:$N$92,$N19,AJ$55:AJ$92) -> 0 | AK19: 0 | AL19: 0 | AM19: 0 | AN19: 0 | AO19: 0 | AP19: 0 | AQ19: 0 | AR19: 0 | AS19: 0 | AT19: =SUMIF($N$55:$N$92,$N19,AT$55:AT$92) -> 0 | AU19: 0 | AV19: 0 | AW19: 0 | AX19: 0 | AY19: 0 | AZ19: 0 | BA19: 0 | BB19: 0 | BC19: 0 | BD19: =SUMIF($N$55:$N$92,$N19,BD$55:BD$92) -> 0 | BE19: 0 | BF19: 0 | BG19: 0 | BH19: 0 | BI19: 0 | BJ19: 0 | BK19: 0 | BL19: 0 | BM19: 0 | BN19: =SUMIF($N$55:$N$92,$N19,BN$55:BN$92) -> 0 | BO19: 0 | BP19: 0 | BQ19: 0 | BR19: 0 | BS19: 0 | BT19: 0 | BU19: 0 | BV19: 0 | BW19: 0 | BX19: =SUMIF($N$55:$N$92,$N19,BX$55:BX$92) -> 0 | BY19: 0 | BZ19: 0 | CA19: 0 | CB19: 0 | CC19: 0 | CD19: 0 | CE19: 0 | CF19: 0 | CG19: 0 | CH19: =SUMIF($N$55:$N$92,$N19,CH$55:CH$92) -> 0 | CI19: 0 | CJ19: 0 | CK19: 0 | CL19: 0 | CM19: 0 | CN19: 0 | CO19: 0 | CP19: 0 | CQ19: 0 | CR19: =SUMIF($N$55:$N$92,$N19,CR$55:CR$92) -> 0 | CS19: 0 | CT19: 0 | CU19: 0 | CV19: 0 | CW19: 0 | CX19: 0 | CY19: 0 | CZ19: 0 | DA19: 0 | DB19: =SUMIF($N$55:$N$92,$N19,DB$55:DB$92) -> 0 | DC19: 0 | DD19: 0 | DE19: 0 | DF19: 0 | DG19: 0 | DH19: 0 | DI19: 0 | DJ19: 0 | DK19: 0 | DL19: =SUMIF($N$55:$N$92,$N19,DL$55:DL$92) -> 0 | DM19: 0 | DN19: 0 | DO19: 0 | DP19: 0 | DQ19: 0 | DR19: 0 | DS19: 0 | DT19: 0 | DU19: 0 | DV19: =SUMIF($N$55:$N$92,$N19,DV$55:DV$92) -> 0 | DW19: 0 | DX19: 0 | DY19: 0 | DZ19: 0 | EA19: 0 | EB19: 0 | EC19: 0 | ED19: 0 | EE19: 0 | EF19: =SUMIF($N$55:$N$92,$N19,EF$55:EF$92) -> 0 | EG19: 0 | EH19: 0 | EI19: 0 | EJ19: 0 | EK19: 0 | EL19: 0 | EM19: 0 | EN19: 0 | EO19: 0 | EP19: 0 | EQ19: 0 | EZ19: =SUMIF($N$55:$N$92,$N19,EZ$55:EZ$92) -> 0 | FA19: 0 | FB19: 0 | FC19: 0 | FD19: 0 | FE19: 0 | FF19: 0 | FG19: 0 | FH19: 0 | FI19: 0 | FJ19: =SUMIF($N$55:$N$92,$N19,FJ$55:FJ$92) -> 0 | FK19: 0 | FL19: 0 | FM19: 0 | FN19: 0 | FO19: 0 | FP19: 0 | FQ19: 0 | FR19: 0 | FS19: 0 | FT19: =SUMIF($N$55:$N$92,$N19,FT$55:FT$92) -> 0 | FU19: 0 | FV19: 0 | FW19: 0 | FX19: 0 | FY19: 0 | FZ19: 0 | GA19: 0 | GB19: 0 | GC19: 0 | GD19: 0 | GE19: 0
F20: 3.1 | G20: Затраты на топливо, всего (тыс.руб.) | J20: без НДС | N20: =F20 & "::" & L9 -> 3.1::ACTI | P20: 0 | Q20: 0 | R20: 0 | S20: 487.697126 | T20: 0 | U20: 0 | V20: 0 | W20: 459.0139205 | X20: 0 | Y20: 0 | Z20: 0 | AA20: 28.6832055 | AB20: 0 | AC20: 0 | AD20: 0 | AE20: 0 | AF20: 0 | AG20: 0 | AH20: 0 | AI20: 0 | AJ20: 0 | AK20: 0 | AL20: 0 | AM20: 0 | AN20: 0 | AO20: 0 | AP20: 0 | AQ20: 0 | AR20: 0 | AS20: 0 | AT20: 0 | AU20: 0 | AV20: 0 | AW20: 0 | AX20: 0 | AY20: 0 | AZ20: 0 | BA20: 0 | BB20: 0 | BC20: 0 | BD20: 0 | BE20: 0 | BF20: 0 | BG20: 0 | BH20: 0 | BI20: 0 | BJ20: 0 | BK20: 0 | BL20: 0 | BM20: 0 | BN20: 0 | BO20: 0 | BP20: 0 | BQ20: 0 | BR20: 0 | BS20: 0 | BT20: 0 | BU20: 0 | BV20: 0 | BW20: 0 | BX20: 0 | BY20: 0 | BZ20: 0 | CA20: 0 | CB20: 0 | CC20: 0 | CD20: 0 | CE20: 0 | CF20: 0 | CG20: 0 | CH20: 0 | CI20: 0 | CJ20: 0 | CK20: 0 | CL20: 0 | CM20: 0 | CN20: 0 | CO20: 0 | CP20: 0 | CQ20: 0 | CR20: 0 | CS20: 0 | CT20: 0 | CU20: 0 | CV20: 0 | CW20: 0 | CX20: 0 | CY20: 0 | CZ20: 0 | DA20: 0 | DB20: 0 | DC20: 0 | DD20: 0 | DE20: 0 | DF20: 0 | DG20: 0 | DH20: 0 | DI20: 0 | DJ20: 0 | DK20: 0 | DL20: 0 | DM20: 0 | DN20: 0 | DO20: 0 | DP20: 0 | DQ20: 0 | DR20: 0 | DS20: 0 | DT20: 0 | DU20: 0 | DV20: 0 | DW20: 0 | DX20: 0 | DY20: 0 | DZ20: 0 | EA20: 0 | EB20: 0 | EC20: 0 | ED20: 0 | EE20: 0 | EF20: 0 | EG20: 0 | EH20: 0 | EI20: 0 | EJ20: 0 | EK20: 0 | EL20: 0 | EM20: 0 | EN20: 0 | EO20: 0 | EP20: 0 | EQ20: 0 | EZ20: 0 | FA20: 0 | FB20: 0 | FC20: 0 | FD20: 0 | FE20: 0 | FF20: 0 | FG20: 0 | FH20: 0 | FI20: 0 | FJ20: 0 | FK20: 0 | FL20: 0 | FM20: 0 | FN20: 0 | FO20: 0 | FP20: 0 | FQ20: 0 | FR20: 0 | FS20: 0 | FT20: 0 | FU20: 0 | FV20: 0 | FW20: 0 | FX20: 0 | FY20: 0 | FZ20: 0 | GA20: 0 | GB20: 0 | GC20: 0 | GD20: 0 | GE20: 0
F21: 3.2 | J21: с НДС | N21: =F21 & "::" & L9 -> 3.2::ACTI | P21: 0 | Q21: 0 | R21: 0 | S21: 487.697126 | T21: 0 | U21: 0 | V21: 0 | W21: 459.0139205 | X21: 0 | Y21: 0 | Z21: 0 | AA21: 28.6832055 | AB21: 0 | AC21: 0 | AD21: 0 | AE21: 0 | AF21: 0 | AG21: 0 | AH21: 0 | AI21: 0 | AJ21: 0 | AK21: 0 | AL21: 0 | AM21: 0 | AN21: 0 | AO21: 0 | AP21: 0 | AQ21: 0 | AR21: 0 | AS21: 0 | AT21: 0 | AU21: 0 | AV21: 0 | AW21: 0 | AX21: 0 | AY21: 0 | AZ21: 0 | BA21: 0 | BB21: 0 | BC21: 0 | BD21: 0 | BE21: 0 | BF21: 0 | BG21: 0 | BH21: 0 | BI21: 0 | BJ21: 0 | BK21: 0 | BL21: 0 | BM21: 0 | BN21: 0 | BO21: 0 | BP21: 0 | BQ21: 0 | BR21: 0 | BS21: 0 | BT21: 0 | BU21: 0 | BV21: 0 | BW21: 0 | BX21: 0 | BY21: 0 | BZ21: 0 | CA21: 0 | CB21: 0 | CC21: 0 | CD21: 0 | CE21: 0 | CF21: 0 | CG21: 0 | CH21: 0 | CI21: 0 | CJ21: 0 | CK21: 0 | CL21: 0 | CM21: 0 | CN21: 0 | CO21: 0 | CP21: 0 | CQ21: 0 | CR21: 0 | CS21: 0 | CT21: 0 | CU21: 0 | CV21: 0 | CW21: 0 | CX21: 0 | CY21: 0 | CZ21: 0 | DA21: 0 | DB21: 0 | DC21: 0 | DD21: 0 | DE21: 0 | DF21: 0 | DG21: 0 | DH21: 0 | DI21: 0 | DJ21: 0 | DK21: 0 | DL21: 0 | DM21: 0 | DN21: 0 | DO21: 0 | DP21: 0 | DQ21: 0 | DR21: 0 | DS21: 0 | DT21: 0 | DU21: 0 | DV21: 0 | DW21: 0 | DX21: 0 | DY21: 0 | DZ21: 0 | EA21: 0 | EB21: 0 | EC21: 0 | ED21: 0 | EE21: 0 | EF21: 0 | EG21: 0 | EH21: 0 | EI21: 0 | EJ21: 0 | EK21: 0 | EL21: 0 | EM21: 0 | EN21: 0 | EO21: 0 | EP21: 0 | EQ21: 0 | EZ21: 0 | FA21: 0 | FB21: 0 | FC21: 0 | FD21: 0 | FE21: 0 | FF21: 0 | FG21: 0 | FH21: 0 | FI21: 0 | FJ21: 0 | FK21: 0 | FL21: 0 | FM21: 0 | FN21: 0 | FO21: 0 | FP21: 0 | FQ21: 0 | FR21: 0 | FS21: 0 | FT21: 0 | FU21: 0 | FV21: 0 | FW21: 0 | FX21: 0 | FY21: 0 | FZ21: 0 | GA21: 0 | GB21: 0 | GC21: 0 | GD21: 0 | GE21: 0
F22: 4.1.1 | G22: Топливо, транспортируемое по сетям, магистралям (трубопроводам) | I22: Средний тариф транзитной транспортировки (руб./тыс.куб.м) | J22: без НДС | N22: =F22 & "::" & L9 -> 4.1.1::ACTI
F23: 4.1.2 | J23: с НДС | N23: =F23 & "::" & L9 -> 4.1.2::ACTI
F24: 4.2 | I24: Объём топлива, транспортируемого в транзитном потоке | N24: =F24 & "::" & L9 -> 4.2::ACTI | P24: =SUMIF($N$55:$N$92,$N24,P$55:P$92) -> 0 | Q24: 0 | R24: 0 | S24: 0 | T24: 0 | U24: 0 | V24: 0 | W24: 0 | X24: 0 | Y24: 0 | Z24: 0 | AA24: 0 | AB24: 0 | AC24: 0 | AD24: 0 | AE24: 0
F25: 5.1.1 | G25: Топливо, транспортируемое по дорогам (авто, ж/д), а также прочие виды транспортировки | H25: Транспортировка топлива автоперевозками | I25: Тариф (цена за единицу) (руб./ед.изм.) | J25: без НДС | N25: =F25 & "::" & L9 -> 5.1.1::ACTI | AV25: =IF(AV27=0,0,AV28*1000/AV27) -> 0 | AW25: =IF(AW27=0,0,AW28*1000/AW27) -> 0 | AX25: =IF(AX27=0,0,AX28*1000/AX27) -> 0 | AY25: =IF(AY27=0,0,AY28*1000/AY27) -> 0 | AZ25: =IF(AZ27=0,0,AZ28*1000/AZ27) -> 0 | BA25: =IF(BA27=0,0,BA28*1000/BA27) -> 0 | BB25: 0 | BC25: 0 | BD25: 0 | BE25: 0 | BF25: 0 | BG25: 0 | BH25: =IF(BH27=0,0,BH28*1000/BH27) -> 0 | BI25: 0 | BJ25: 0 | BK25: 0 | BL25: 0 | BM25: 0 | BN25: 0 | BO25: 0 | BP25: 0 | BQ25: 0 | BR25: 0 | BS25: 0 | BT25: 0 | BU25: 0 | BV25: 0 | BW25: 0 | BX25: 0 | BY25: 0 | BZ25: 0 | CA25: 0 | CB25: 0 | CC25: 0 | CD25: 0 | CE25: 0 | CF25: 0 | CG25: 0 | CH25: 0 | CI25: 0 | CJ25: 0 | CK25: 0 | CL25: 0 | CM25: 0 | CN25: 0 | CO25: 0 | CP25: 0 | CQ25: 0 | CR25: =IF(CR27=0,0,CR28*1000/CR27) -> 0 | CS25: 0 | CT25: 0 | CU25: 0 | CV25: 0 | CW25: 0 | CX25: 0 | CY25: 0 | CZ25: 0 | DA25: 0 | DB25: 0 | DC25: 0 | DD25: 0 | DE25: 0 | DF25: 0 | DG25: 0 | DH25: 0 | DI25: 0 | DJ25: 0 | DK25: 0 | DL25: 0 | DM25: 0 | DN25: 0 | DO25: 0 | DP25: 0 | DQ25: 0 | DR25: 0 | DS25: 0 | DT25: 0 | DU25: 0 | DV25: 0 | DW25: 0 | DX25: 0 | DY25: 0 | DZ25: 0 | EA25: 0 | EB25: 0 | EC25: 0 | ED25: 0 | EE25: 0 | EF25: 0 | EG25: 0 | EH25: 0 | EI25: 0 | EJ25: =IF(EJ27=0,0,EJ28*1000/EJ27) -> 0 | EK25: =IF(EK27=0,0,EK28*1000/EK27) -> 0 | EL25: =IF(EL27=0,0,EL28*1000/EL27) -> 0 | EM25: =IF(EM27=0,0,EM28*1000/EM27) -> 0 | EN25: 0 | EO25: =IF(EO27=0,0,EO28*1000/EO27) -> 0 | EP25: =IF(EP27=0,0,EP28*1000/EP27) -> 0 | EQ25: =IF(EQ27=0,0,EQ28*1000/EQ27) -> 0 | EZ25: =IF(EZ27=0,0,EZ28*1000/EZ27) -> 0 | FA25: =IF(FA27=0,0,FA28*1000/FA27) -> 0 | FB25: =IF(FB27=0,0,FB28*1000/FB27) -> 0 | FC25: =IF(FC27=0,0,FC28*1000/FC27) -> 0 | FD25: =IF(FD27=0,0,FD28*1000/FD27) -> 0 | FE25: 0 | FF25: 0 | FG25: 0 | FH25: 0 | FI25: 0 | FJ25: 0 | FK25: 0 | FL25: 0 | FM25: 0 | FN25: 0 | FO25: 0 | FP25: 0 | FQ25: 0 | FR25: 0 | FS25: 0 | FT25: 0 | FU25: 0 | FV25: 0 | FW25: 0 | FX25: 0 | FY25: 0 | FZ25: 0 | GA25: 0 | GB25: 0 | GC25: 0 | GD25: 0 | GE25: 0
F26: 5.1.2 | J26: с НДС | N26: =F26 & "::" & L9 -> 5.1.2::ACTI | AV26: =IF(AV27=0,0,AV29*1000/AV27) -> 0 | AW26: 0 | AX26: 0 | AY26: 0 | AZ26: 0 | BA26: 0 | BB26: 0 | BC26: 0 | BD26: 0 | BE26: 0 | BF26: 0 | BG26: 0 | BH26: =IF(BH27=0,0,BH29*1000/BH27) -> 0 | BI26: 0 | BJ26: 0 | BK26: 0 | BL26: 0 | BM26: 0 | BN26: 0 | BO26: 0 | BP26: 0 | BQ26: 0 | BR26: 0 | BS26: 0 | BT26: 0 | BU26: 0 | BV26: 0 | BW26: 0 | BX26: 0 | BY26: 0 | BZ26: 0 | CA26: 0 | CB26: 0 | CC26: 0 | CD26: 0 | CE26: 0 | CF26: 0 | CG26: 0 | CH26: 0 | CI26: 0 | CJ26: 0 | CK26: 0 | CL26: 0 | CM26: 0 | CN26: 0 | CO26: 0 | CP26: 0 | CQ26: 0 | CR26: =IF(CR27=0,0,CR29*1000/CR27) -> 0 | CS26: 0 | CT26: 0 | CU26: 0 | CV26: 0 | CW26: 0 | CX26: 0 | CY26: 0 | CZ26: =IF(CZ27=0,0,CZ29*1000/CZ27) -> 0 | DA26: 0 | DB26: 0 | DC26: 0 | DD26: 0 | DE26: 0 | DF26: 0 | DG26: 0 | DH26: 0 | DI26: 0 | DJ26: 0 | DK26: 0 | DL26: 0 | DM26: 0 | DN26: 0 | DO26: 0 | DP26: 0 | DQ26: 0 | DR26: 0 | DS26: 0 | DT26: 0 | DU26: 0 | DV26: 0 | DW26: 0 | DX26: 0 | DY26: 0 | DZ26: 0 | EA26: 0 | EB26: 0 | EC26: 0 | ED26: 0 | EE26: 0 | EF26: =IF(EF27=0,0,EF29*1000/EF27) -> 0 | EG26: 0 | EH26: 0 | EI26: 0 | EJ26: =IF(EJ27=0,0,EJ29*1000/EJ27) -> 0 | EK26: =IF(EK27=0,0,EK29*1000/EK27) -> 0 | EL26: =IF(EL27=0,0,EL29*1000/EL27) -> 0 | EM26: =IF(EM27=0,0,EM29*1000/EM27) -> 0 | EN26: 0 | EO26: 0 | EP26: 0 | EQ26: 0 | EZ26: =IF(EZ27=0,0,EZ29*1000/EZ27) -> 0 | FA26: =IF(FA27=0,0,FA29*1000/FA27) -> 0 | FB26: =IF(FB27=0,0,FB29*1000/FB27) -> 0 | FC26: =IF(FC27=0,0,FC29*1000/FC27) -> 0 | FD26: =IF(FD27=0,0,FD29*1000/FD27) -> 0 | FE26: 0 | FF26: 0 | FG26: 0 | FH26: 0 | FI26: 0 | FJ26: 0 | FK26: 0 | FL26: 0 | FM26: 0 | FN26: 0 | FO26: 0 | FP26: 0 | FQ26: 0 | FR26: 0 | FS26: 0 | FT26: 0 | FU26: 0 | FV26: 0 | FW26: 0 | FX26: 0 | FY26: 0 | FZ26: 0 | GA26: 0 | GB26: 0 | GC26: 0 | GD26: 0 | GE26: 0
F27: 5.2 | I27: Объём топлива | N27: =F27 & "::" & L9 -> 5.2::ACTI | AV27: =SUMIF($N$55:$N$92,$N27,AV$55:AV$92) -> 0 | AW27: 0 | AX27: 0 | AY27: 0 | AZ27: 0 | BA27: 0 | BB27: 0 | BC27: 0 | BD27: 0 | BE27: 0 | BF27: =SUMIF($N$55:$N$92,$N27,BF$55:BF$92) -> 0 | BG27: 0 | BH27: 0 | BI27: 0 | BJ27: 0 | BK27: 0 | BL27: 0 | BM27: 0 | BN27: 0 | BO27: 0 | BP27: =SUMIF($N$55:$N$92,$N27,BP$55:BP$92) -> 0 | BQ27: 0 | BR27: 0 | BS27: 0 | BT27: 0 | BU27: 0 | BV27: 0 | BW27: 0 | BX27: 0 | BY27: 0 | BZ27: =SUMIF($N$55:$N$92,$N27,BZ$55:BZ$92) -> 0 | CA27: 0 | CB27: 0 | CC27: 0 | CD27: 0 | CE27: 0 | CF27: 0 | CG27: 0 | CH27: 0 | CI27: 0 | CJ27: =SUMIF($N$55:$N$92,$N27,CJ$55:CJ$92) -> 0 | CK27: 0 | CL27: 0 | CM27: 0 | CN27: 0 | CO27: 0 | CP27: 0 | CQ27: 0 | CR27: 0 | CS27: 0 | CT27: =SUMIF($N$55:$N$92,$N27,CT$55:CT$92) -> 0 | CU27: 0 | CV27: 0 | CW27: 0 | CX27: 0 | CY27: 0 | CZ27: 0 | DA27: 0 | DB27: 0 | DC27: 0 | DD27: =SUMIF($N$55:$N$92,$N27,DD$55:DD$92) -> 0 | DE27: 0 | DF27: 0 | DG27: 0 | DH27: 0 | DI27: 0 | DJ27: 0 | DK27: 0 | DL27: 0 | DM27: 0 | DN27: =SUMIF($N$55:$N$92,$N27,DN$55:DN$92) -> 0 | DO27: 0 | DP27: 0 | DQ27: 0 | DR27: 0 | DS27: 0 | DT27: 0 | DU27: 0 | DV27: 0 | DW27: 0 | DX27: =SUMIF($N$55:$N$92,$N27,DX$55:DX$92) -> 0 | DY27: 0 | DZ27: 0 | EA27: 0 | EB27: 0 | EC27: 0 | ED27: 0 | EE27: 0 | EF27: 0 | EG27: 0 | EH27: =SUMIF($N$55:$N$92,$N27,EH$55:EH$92) -> 0 | EI27: 0 | EJ27: 0 | EK27: 0 | EL27: 0 | EM27: 0 | EN27: 0 | EO27: 0 | EP27: 0 | EQ27: 0 | EZ27: =SUMIF($N$55:$N$92,$N27,EZ$55:EZ$92) -> 0 | FA27: 0 | FB27: 0 | FC27: 0 | FD27: 0 | FE27: 0 | FF27: 0 | FG27: 0 | FH27: 0 | FI27: 0 | FJ27: =SUMIF($N$55:$N$92,$N27,FJ$55:FJ$92) -> 0 | FK27: 0 | FL27: 0 | FM27: 0 | FN27: 0 | FO27: 0 | FP27: 0 | FQ27: 0 | FR27: 0 | FS27: 0 | FT27: =SUMIF($N$55:$N$92,$N27,FT$55:FT$92) -> 0 | FU27: 0 | FV27: 0 | FW27: 0 | FX27: 0 | FY27: 0 | FZ27: 0 | GA27: 0 | GB27: 0 | GC27: 0 | GD27: 0 | GE27: 0
F28: 5.3.1 | I28: Затраты (тыс.руб.) | J28: без НДС | N28: =F28 & "::" & L9 -> 5.3.1::ACTI | AV28: 0 | AW28: 0 | AX28: 0 | AY28: 0 | AZ28: 0 | BA28: 0 | BB28: 0 | BC28: 0 | BD28: 0 | BE28: 0 | BF28: 0 | BG28: 0 | BH28: 0 | BI28: 0 | BJ28: 0 | BK28: 0 | BL28: 0 | BM28: 0 | BN28: 0 | BO28: 0 | BP28: 0 | BQ28: 0 | BR28: 0 | BS28: 0 | BT28: 0 | BU28: 0 | BV28: 0 | BW28: 0 | BX28: 0 | BY28: 0 | BZ28: 0 | CA28: 0 | CB28: 0 | CC28: 0 | CD28: 0 | CE28: 0 | CF28: 0 | CG28: 0 | CH28: 0 | CI28: 0 | CJ28: 0 | CK28: 0 | CL28: 0 | CM28: 0 | CN28: 0 | CO28: 0 | CP28: 0 | CQ28: 0 | CR28: 0 | CS28: 0 | CT28: 0 | CU28: 0 | CV28: 0 | CW28: 0 | CX28: 0 | CY28: 0 | CZ28: 0 | DA28: 0 | DB28: 0 | DC28: 0 | DD28: 0 | DE28: 0 | DF28: 0 | DG28: 0 | DH28: 0 | DI28: 0 | DJ28: 0 | DK28: 0 | DL28: 0 | DM28: 0 | DN28: 0 | DO28: 0 | DP28: 0 | DQ28: 0 | DR28: 0 | DS28: 0 | DT28: 0 | DU28: 0 | DV28: 0 | DW28: 0 | DX28: 0 | DY28: 0 | DZ28: 0 | EA28: 0 | EB28: 0 | EC28: 0 | ED28: 0 | EE28: 0 | EF28: 0 | EG28: 0 | EH28: 0 | EI28: 0 | EJ28: 0 | EK28: 0 | EL28: 0 | EM28: 0 | EN28: 0 | EO28: 0 | EP28: 0 | EQ28: 0 | EZ28: 0 | FA28: 0 | FB28: 0 | FC28: 0 | FD28: 0 | FE28: 0 | FF28: 0 | FG28: 0 | FH28: 0 | FI28: 0 | FJ28: 0 | FK28: 0 | FL28: 0 | FM28: 0 | FN28: 0 | FO28: 0 | FP28: 0 | FQ28: 0 | FR28: 0 | FS28: 0 | FT28: 0 | FU28: 0 | FV28: 0 | FW28: 0 | FX28: 0 | FY28: 0 | FZ28: 0 | GA28: 0 | GB28: 0 | GC28: 0 | GD28: 0 | GE28: 0
F29: 5.3.2 | J29: с НДС | N29: =F29 & "::" & L9 -> 5.3.2::ACTI | AV29: 0 | AW29: 0 | AX29: 0 | AY29: 0 | AZ29: 0 | BA29: 0 | BB29: 0 | BC29: 0 | BD29: 0 | BE29: 0 | BF29: 0 | BG29: 0 | BH29: 0 | BI29: 0 | BJ29: 0 | BK29: 0 | BL29: 0 | BM29: 0 | BN29: 0 | BO29: 0 | BP29: 0 | BQ29: 0 | BR29: 0 | BS29: 0 | BT29: 0 | BU29: 0 | BV29: 0 | BW29: 0 | BX29: 0 | BY29: 0 | BZ29: 0 | CA29: 0 | CB29: 0 | CC29: 0 | CD29: 0 | CE29: 0 | CF29: 0 | CG29: 0 | CH29: 0 | CI29: 0 | CJ29: 0 | CK29: 0 | CL29: 0 | CM29: 0 | CN29: 0 | CO29: 0 | CP29: 0 | CQ29: 0 | CR29: 0 | CS29: 0 | CT29: 0 | CU29: 0 | CV29: 0 | CW29: 0 | CX29: 0 | CY29: 0 | CZ29: 0 | DA29: 0 | DB29: 0 | DC29: 0 | DD29: 0 | DE29: 0 | DF29: 0 | DG29: 0 | DH29: 0 | DI29: 0 | DJ29: 0 | DK29: 0 | DL29: 0 | DM29: 0 | DN29: 0 | DO29: 0 | DP29: 0 | DQ29: 0 | DR29: 0 | DS29: 0 | DT29: 0 | DU29: 0 | DV29: 0 | DW29: 0 | DX29: 0 | DY29: 0 | DZ29: 0 | EA29: 0 | EB29: 0 | EC29: 0 | ED29: 0 | EE29: 0 | EF29: 0 | EG29: 0 | EH29: 0 | EI29: 0 | EJ29: 0 | EK29: 0 | EL29: 0 | EM29: 0 | EN29: 0 | EO29: 0 | EP29: 0 | EQ29: 0 | EZ29: 0 | FA29: 0 | FB29: 0 | FC29: 0 | FD29: 0 | FE29: 0 | FF29: 0 | FG29: 0 | FH29: 0 | FI29: 0 | FJ29: 0 | FK29: 0 | FL29: 0 | FM29: 0 | FN29: 0 | FO29: 0 | FP29: 0 | FQ29: 0 | FR29: 0 | FS29: 0 | FT29: 0 | FU29: 0 | FV29: 0 | FW29: 0 | FX29: 0 | FY29: 0 | FZ29: 0 | GA29: 0 | GB29: 0 | GC29: 0 | GD29: 0 | GE29: 0
F30: 6.1.1 | H30: Транспортировка топлива ж/д перевозками | I30: Тариф (цена за единицу) (руб./ед.изм.) | J30: без НДС | N30: =F30 & "::" & L9 -> 6.1.1::ACTI | AV30: =IF(AV32=0,0,AV33*1000/AV32) -> 0 | AW30: =IF(AW32=0,0,AW33*1000/AW32) -> 0 | AX30: =IF(AX32=0,0,AX33*1000/AX32) -> 0 | AY30: =IF(AY32=0,0,AY33*1000/AY32) -> 0 | AZ30: =IF(AZ32=0,0,AZ33*1000/AZ32) -> 0 | BA30: =IF(BA32=0,0,BA33*1000/BA32) -> 0 | BB30: 0 | BC30: 0 | BD30: 0 | BE30: 0 | BF30: 0 | BG30: 0 | BH30: =IF(BH32=0,0,BH33*1000/BH32) -> 0 | BI30: 0 | BJ30: 0 | BK30: 0 | BL30: 0 | BM30: 0 | BN30: 0 | BO30: 0 | BP30: 0 | BQ30: 0 | BR30: 0 | BS30: 0 | BT30: 0 | BU30: 0 | BV30: 0 | BW30: 0 | BX30: 0 | BY30: 0 | BZ30: 0 | CA30: 0 | CB30: 0 | CC30: 0 | CD30: 0 | CE30: 0 | CF30: 0 | CG30: 0 | CH30: 0 | CI30: 0 | CJ30: 0 | CK30: 0 | CL30: 0 | CM30: 0 | CN30: 0 | CO30: 0 | CP30: 0 | CQ30: 0 | CR30: =IF(CR32=0,0,CR33*1000/CR32) -> 0 | CS30: 0 | CT30: 0 | CU30: 0 | CV30: 0 | CW30: 0 | CX30: 0 | CY30: 0 | CZ30: 0 | DA30: 0 | DB30: 0 | DC30: 0 | DD30: 0 | DE30: 0 | DF30: 0 | DG30: 0 | DH30: 0 | DI30: 0 | DJ30: 0 | DK30: 0 | DL30: 0 | DM30: 0 | DN30: 0 | DO30: 0 | DP30: 0 | DQ30: 0 | DR30: 0 | DS30: 0 | DT30: 0 | DU30: 0 | DV30: 0 | DW30: 0 | DX30: 0 | DY30: 0 | DZ30: 0 | EA30: 0 | EB30: 0 | EC30: 0 | ED30: 0 | EE30: 0 | EF30: 0 | EG30: 0 | EH30: 0 | EI30: 0 | EJ30: =IF(EJ32=0,0,EJ33*1000/EJ32) -> 0 | EK30: =IF(EK32=0,0,EK33*1000/EK32) -> 0 | EL30: =IF(EL32=0,0,EL33*1000/EL32) -> 0 | EM30: =IF(EM32=0,0,EM33*1000/EM32) -> 0 | EN30: 0 | EO30: =IF(EO32=0,0,EO33*1000/EO32) -> 0 | EP30: =IF(EP32=0,0,EP33*1000/EP32) -> 0 | EQ30: =IF(EQ32=0,0,EQ33*1000/EQ32) -> 0 | EZ30: =IF(EZ32=0,0,EZ33*1000/EZ32) -> 0 | FA30: =IF(FA32=0,0,FA33*1000/FA32) -> 0 | FB30: =IF(FB32=0,0,FB33*1000/FB32) -> 0 | FC30: =IF(FC32=0,0,FC33*1000/FC32) -> 0 | FD30: =IF(FD32=0,0,FD33*1000/FD32) -> 0 | FE30: 0 | FF30: 0 | FG30: 0 | FH30: 0 | FI30: 0 | FJ30: 0 | FK30: 0 | FL30: 0 | FM30: 0 | FN30: 0 | FO30: 0 | FP30: 0 | FQ30: 0 | FR30: 0 | FS30: 0 | FT30: 0 | FU30: 0 | FV30: 0 | FW30: 0 | FX30: 0 | FY30: 0 | FZ30: 0 | GA30: 0 | GB30: 0 | GC30: 0 | GD30: 0 | GE30: 0
F31: 6.1.2 | J31: с НДС | N31: =F31 & "::" & L9 -> 6.1.2::ACTI | AV31: =IF(AV32=0,0,AV34*1000/AV32) -> 0 | AW31: 0 | AX31: 0 | AY31: 0 | AZ31: 0 | BA31: 0 | BB31: 0 | BC31: 0 | BD31: 0 | BE31: 0 | BF31: 0 | BG31: 0 | BH31: =IF(BH32=0,0,BH34*1000/BH32) -> 0 | BI31: 0 | BJ31: 0 | BK31: 0 | BL31: 0 | BM31: 0 | BN31: 0 | BO31: 0 | BP31: 0 | BQ31: 0 | BR31: 0 | BS31: 0 | BT31: 0 | BU31: 0 | BV31: 0 | BW31: 0 | BX31: 0 | BY31: 0 | BZ31: 0 | CA31: 0 | CB31: 0 | CC31: 0 | CD31: 0 | CE31: 0 | CF31: 0 | CG31: 0 | CH31: 0 | CI31: 0 | CJ31: 0 | CK31: 0 | CL31: 0 | CM31: 0 | CN31: 0 | CO31: 0 | CP31: 0 | CQ31: 0 | CR31: =IF(CR32=0,0,CR34*1000/CR32) -> 0 | CS31: 0 | CT31: 0 | CU31: 0 | CV31: 0 | CW31: 0 | CX31: 0 | CY31: 0 | CZ31: =IF(CZ32=0,0,CZ34*1000/CZ32) -> 0 | DA31: 0 | DB31: 0 | DC31: 0 | DD31: 0 | DE31: 0 | DF31: 0 | DG31: 0 | DH31: 0 | DI31: 0 | DJ31: 0 | DK31: 0 | DL31: 0 | DM31: 0 | DN31: 0 | DO31: 0 | DP31: 0 | DQ31: 0 | DR31: 0 | DS31: 0 | DT31: 0 | DU31: 0 | DV31: 0 | DW31: 0 | DX31: 0 | DY31: 0 | DZ31: 0 | EA31: 0 | EB31: 0 | EC31: 0 | ED31: 0 | EE31: 0 | EF31: =IF(EF32=0,0,EF34*1000/EF32) -> 0 | EG31: 0 | EH31: 0 | EI31: 0 | EJ31: =IF(EJ32=0,0,EJ34*1000/EJ32) -> 0 | EK31: =IF(EK32=0,0,EK34*1000/EK32) -> 0 | EL31: =IF(EL32=0,0,EL34*1000/EL32) -> 0 | EM31: =IF(EM32=0,0,EM34*1000/EM32) -> 0 | EN31: 0 | EO31: 0 | EP31: 0 | EQ31: 0 | EZ31: =IF(EZ32=0,0,EZ34*1000/EZ32) -> 0 | FA31: =IF(FA32=0,0,FA34*1000/FA32) -> 0 | FB31: =IF(FB32=0,0,FB34*1000/FB32) -> 0 | FC31: =IF(FC32=0,0,FC34*1000/FC32) -> 0 | FD31: =IF(FD32=0,0,FD34*1000/FD32) -> 0 | FE31: 0 | FF31: 0 | FG31: 0 | FH31: 0 | FI31: 0 | FJ31: 0 | FK31: 0 | FL31: 0 | FM31: 0 | FN31: 0 | FO31: 0 | FP31: 0 | FQ31: 0 | FR31: 0 | FS31: 0 | FT31: 0 | FU31: 0 | FV31: 0 | FW31: 0 | FX31: 0 | FY31: 0 | FZ31: 0 | GA31: 0 | GB31: 0 | GC31: 0 | GD31: 0 | GE31: 0
F32: 6.2 | I32: Объём топлива | N32: =F32 & "::" & L9 -> 6.2::ACTI | AV32: =SUMIF($N$55:$N$92,$N32,AV$55:AV$92) -> 0 | AW32: 0 | AX32: 0 | AY32: 0 | AZ32: 0 | BA32: 0 | BB32: 0 | BC32: 0 | BD32: 0 | BE32: 0 | BF32: =SUMIF($N$55:$N$92,$N32,BF$55:BF$92) -> 0 | BG32: 0 | BH32: 0 | BI32: 0 | BJ32: 0 | BK32: 0 | BL32: 0 | BM32: 0 | BN32: 0 | BO32: 0 | BP32: =SUMIF($N$55:$N$92,$N32,BP$55:BP$92) -> 0 | BQ32: 0 | BR32: 0 | BS32: 0 | BT32: 0 | BU32: 0 | BV32: 0 | BW32: 0 | BX32: 0 | BY32: 0 | BZ32: =SUMIF($N$55:$N$92,$N32,BZ$55:BZ$92) -> 0 | CA32: 0 | CB32: 0 | CC32: 0 | CD32: 0 | CE32: 0 | CF32: 0 | CG32: 0 | CH32: 0 | CI32: 0 | CJ32: =SUMIF($N$55:$N$92,$N32,CJ$55:CJ$92) -> 0 | CK32: 0 | CL32: 0 | CM32: 0 | CN32: 0 | CO32: 0 | CP32: 0 | CQ32: 0 | CR32: 0 | CS32: 0 | CT32: =SUMIF($N$55:$N$92,$N32,CT$55:CT$92) -> 0 | CU32: 0 | CV32: 0 | CW32: 0 | CX32: 0 | CY32: 0 | CZ32: 0 | DA32: 0 | DB32: 0 | DC32: 0 | DD32: =SUMIF($N$55:$N$92,$N32,DD$55:DD$92) -> 0 | DE32: 0 | DF32: 0 | DG32: 0 | DH32: 0 | DI32: 0 | DJ32: 0 | DK32: 0 | DL32: 0 | DM32: 0 | DN32: =SUMIF($N$55:$N$92,$N32,DN$55:DN$92) -> 0 | DO32: 0 | DP32: 0 | DQ32: 0 | DR32: 0 | DS32: 0 | DT32: 0 | DU32: 0 | DV32: 0 | DW32: 0 | DX32: =SUMIF($N$55:$N$92,$N32,DX$55:DX$92) -> 0 | DY32: 0 | DZ32: 0 | EA32: 0 | EB32: 0 | EC32: 0 | ED32: 0 | EE32: 0 | EF32: 0 | EG32: 0 | EH32: =SUMIF($N$55:$N$92,$N32,EH$55:EH$92) -> 0 | EI32: 0 | EJ32: 0 | EK32: 0 | EL32: 0 | EM32: 0 | EN32: 0 | EO32: 0 | EP32: 0 | EQ32: 0 | EZ32: =SUMIF($N$55:$N$92,$N32,EZ$55:EZ$92) -> 0 | FA32: 0 | FB32: 0 | FC32: 0 | FD32: 0 | FE32: 0 | FF32: 0 | FG32: 0 | FH32: 0 | FI32: 0 | FJ32: =SUMIF($N$55:$N$92,$N32,FJ$55:FJ$92) -> 0 | FK32: 0 | FL32: 0 | FM32: 0 | FN32: 0 | FO32: 0 | FP32: 0 | FQ32: 0 | FR32: 0 | FS32: 0 | FT32: =SUMIF($N$55:$N$92,$N32,FT$55:FT$92) -> 0 | FU32: 0 | FV32: 0 | FW32: 0 | FX32: 0 | FY32: 0 | FZ32: 0 | GA32: 0 | GB32: 0 | GC32: 0 | GD32: 0 | GE32: 0
F33: 6.3.1 | I33: Затраты (тыс.руб.) | J33: без НДС | N33: =F33 & "::" & L9 -> 6.3.1::ACTI | AV33: 0 | AW33: 0 | AX33: 0 | AY33: 0 | AZ33: 0 | BA33: 0 | BB33: 0 | BC33: 0 | BD33: 0 | BE33: 0 | BF33: 0 | BG33: 0 | BH33: 0 | BI33: 0 | BJ33: 0 | BK33: 0 | BL33: 0 | BM33: 0 | BN33: 0 | BO33: 0 | BP33: 0 | BQ33: 0 | BR33: 0 | BS33: 0 | BT33: 0 | BU33: 0 | BV33: 0 | BW33: 0 | BX33: 0 | BY33: 0 | BZ33: 0 | CA33: 0 | CB33: 0 | CC33: 0 | CD33: 0 | CE33: 0 | CF33: 0 | CG33: 0 | CH33: 0 | CI33: 0 | CJ33: 0 | CK33: 0 | CL33: 0 | CM33: 0 | CN33: 0 | CO33: 0 | CP33: 0 | CQ33: 0 | CR33: 0 | CS33: 0 | CT33: 0 | CU33: 0 | CV33: 0 | CW33: 0 | CX33: 0 | CY33: 0 | CZ33: 0 | DA33: 0 | DB33: 0 | DC33: 0 | DD33: 0 | DE33: 0 | DF33: 0 | DG33: 0 | DH33: 0 | DI33: 0 | DJ33: 0 | DK33: 0 | DL33: 0 | DM33: 0 | DN33: 0 | DO33: 0 | DP33: 0 | DQ33: 0 | DR33: 0 | DS33: 0 | DT33: 0 | DU33: 0 | DV33: 0 | DW33: 0 | DX33: 0 | DY33: 0 | DZ33: 0 | EA33: 0 | EB33: 0 | EC33: 0 | ED33: 0 | EE33: 0 | EF33: 0 | EG33: 0 | EH33: 0 | EI33: 0 | EJ33: 0 | EK33: 0 | EL33: 0 | EM33: 0 | EN33: 0 | EO33: 0 | EP33: 0 | EQ33: 0 | EZ33: 0 | FA33: 0 | FB33: 0 | FC33: 0 | FD33: 0 | FE33: 0 | FF33: 0 | FG33: 0 | FH33: 0 | FI33: 0 | FJ33: 0 | FK33: 0 | FL33: 0 | FM33: 0 | FN33: 0 | FO33: 0 | FP33: 0 | FQ33: 0 | FR33: 0 | FS33: 0 | FT33: 0 | FU33: 0 | FV33: 0 | FW33: 0 | FX33: 0 | FY33: 0 | FZ33: 0 | GA33: 0 | GB33: 0 | GC33: 0 | GD33: 0 | GE33: 0
F34: 6.3.2 | J34: с НДС | N34: =F34 & "::" & L9 -> 6.3.2::ACTI | AV34: 0 | AW34: 0 | AX34: 0 | AY34: 0 | AZ34: 0 | BA34: 0 | BB34: 0 | BC34: 0 | BD34: 0 | BE34: 0 | BF34: 0 | BG34: 0 | BH34: 0 | BI34: 0 | BJ34: 0 | BK34: 0 | BL34: 0 | BM34: 0 | BN34: 0 | BO34: 0 | BP34: 0 | BQ34: 0 | BR34: 0 | BS34: 0 | BT34: 0 | BU34: 0 | BV34: 0 | BW34: 0 | BX34: 0 | BY34: 0 | BZ34: 0 | CA34: 0 | CB34: 0 | CC34: 0 | CD34: 0 | CE34: 0 | CF34: 0 | CG34: 0 | CH34: 0 | CI34: 0 | CJ34: 0 | CK34: 0 | CL34: 0 | CM34: 0 | CN34: 0 | CO34: 0 | CP34: 0 | CQ34: 0 | CR34: 0 | CS34: 0 | CT34: 0 | CU34: 0 | CV34: 0 | CW34: 0 | CX34: 0 | CY34: 0 | CZ34: 0 | DA34: 0 | DB34: 0 | DC34: 0 | DD34: 0 | DE34: 0 | DF34: 0 | DG34: 0 | DH34: 0 | DI34: 0 | DJ34: 0 | DK34: 0 | DL34: 0 | DM34: 0 | DN34: 0 | DO34: 0 | DP34: 0 | DQ34: 0 | DR34: 0 | DS34: 0 | DT34: 0 | DU34: 0 | DV34: 0 | DW34: 0 | DX34: 0 | DY34: 0 | DZ34: 0 | EA34: 0 | EB34: 0 | EC34: 0 | ED34: 0 | EE34: 0 | EF34: 0 | EG34: 0 | EH34: 0 | EI34: 0 | EJ34: 0 | EK34: 0 | EL34: 0 | EM34: 0 | EN34: 0 | EO34: 0 | EP34: 0 | EQ34: 0 | EZ34: 0 | FA34: 0 | FB34: 0 | FC34: 0 | FD34: 0 | FE34: 0 | FF34: 0 | FG34: 0 | FH34: 0 | FI34: 0 | FJ34: 0 | FK34: 0 | FL34: 0 | FM34: 0 | FN34: 0 | FO34: 0 | FP34: 0 | FQ34: 0 | FR34: 0 | FS34: 0 | FT34: 0 | FU34: 0 | FV34: 0 | FW34: 0 | FX34: 0 | FY34: 0 | FZ34: 0 | GA34: 0 | GB34: 0 | GC34: 0 | GD34: 0 | GE34: 0
F35: 7.1.1 | H35: Транспортировка топлива иными видами перевозок | I35: Тариф (цена за единицу) (руб./ед.изм.) | J35: без НДС | N35: =F35 & "::" & L9 -> 7.1.1::ACTI | AV35: =IF(AV37=0,0,AV38*1000/AV37) -> 0 | AW35: =IF(AW37=0,0,AW38*1000/AW37) -> 0 | AX35: =IF(AX37=0,0,AX38*1000/AX37) -> 0 | AY35: =IF(AY37=0,0,AY38*1000/AY37) -> 0 | AZ35: =IF(AZ37=0,0,AZ38*1000/AZ37) -> 0 | BA35: =IF(BA37=0,0,BA38*1000/BA37) -> 0 | BB35: 0 | BC35: 0 | BD35: 0 | BE35: 0 | BF35: 0 | BG35: 0 | BH35: =IF(BH37=0,0,BH38*1000/BH37) -> 0 | BI35: 0 | BJ35: 0 | BK35: 0 | BL35: 0 | BM35: 0 | BN35: 0 | BO35: 0 | BP35: 0 | BQ35: 0 | BR35: 0 | BS35: 0 | BT35: 0 | BU35: 0 | BV35: 0 | BW35: 0 | BX35: 0 | BY35: 0 | BZ35: 0 | CA35: 0 | CB35: 0 | CC35: 0 | CD35: 0 | CE35: 0 | CF35: 0 | CG35: 0 | CH35: 0 | CI35: 0 | CJ35: 0 | CK35: 0 | CL35: 0 | CM35: 0 | CN35: 0 | CO35: 0 | CP35: 0 | CQ35: 0 | CR35: =IF(CR37=0,0,CR38*1000/CR37) -> 0 | CS35: 0 | CT35: 0 | CU35: 0 | CV35: 0 | CW35: 0 | CX35: 0 | CY35: 0 | CZ35: 0 | DA35: 0 | DB35: 0 | DC35: 0 | DD35: 0 | DE35: 0 | DF35: 0 | DG35: 0 | DH35: 0 | DI35: 0 | DJ35: 0 | DK35: 0 | DL35: 0 | DM35: 0 | DN35: 0 | DO35: 0 | DP35: 0 | DQ35: 0 | DR35: 0 | DS35: 0 | DT35: 0 | DU35: 0 | DV35: 0 | DW35: 0 | DX35: 0 | DY35: 0 | DZ35: 0 | EA35: 0 | EB35: 0 | EC35: 0 | ED35: 0 | EE35: 0 | EF35: 0 | EG35: 0 | EH35: 0 | EI35: 0 | EJ35: =IF(EJ37=0,0,EJ38*1000/EJ37) -> 0 | EK35: =IF(EK37=0,0,EK38*1000/EK37) -> 0 | EL35: =IF(EL37=0,0,EL38*1000/EL37) -> 0 | EM35: =IF(EM37=0,0,EM38*1000/EM37) -> 0 | EN35: 0 | EO35: =IF(EO37=0,0,EO38*1000/EO37) -> 0 | EP35: =IF(EP37=0,0,EP38*1000/EP37) -> 0 | EQ35: =IF(EQ37=0,0,EQ38*1000/EQ37) -> 0 | EZ35: =IF(EZ37=0,0,EZ38*1000/EZ37) -> 0 | FA35: =IF(FA37=0,0,FA38*1000/FA37) -> 0 | FB35: =IF(FB37=0,0,FB38*1000/FB37) -> 0 | FC35: =IF(FC37=0,0,FC38*1000/FC37) -> 0 | FD35: =IF(FD37=0,0,FD38*1000/FD37) -> 0 | FE35: 0 | FF35: 0 | FG35: 0 | FH35: 0 | FI35: 0 | FJ35: 0 | FK35: 0 | FL35: 0 | FM35: 0 | FN35: 0 | FO35: 0 | FP35: 0 | FQ35: 0 | FR35: 0 | FS35: 0 | FT35: 0 | FU35: 0 | FV35: 0 | FW35: 0 | FX35: 0 | FY35: 0 | FZ35: 0 | GA35: 0 | GB35: 0 | GC35: 0 | GD35: 0 | GE35: 0
F36: 7.1.2 | J36: с НДС | N36: =F36 & "::" & L9 -> 7.1.2::ACTI | AV36: =IF(AV37=0,0,AV39*1000/AV37) -> 0 | AW36: 0 | AX36: 0 | AY36: 0 | AZ36: 0 | BA36: 0 | BB36: 0 | BC36: 0 | BD36: 0 | BE36: 0 | BF36: 0 | BG36: 0 | BH36: =IF(BH37=0,0,BH39*1000/BH37) -> 0 | BI36: 0 | BJ36: 0 | BK36: 0 | BL36: 0 | BM36: 0 | BN36: 0 | BO36: 0 | BP36: 0 | BQ36: 0 | BR36: 0 | BS36: 0 | BT36: 0 | BU36: 0 | BV36: 0 | BW36: 0 | BX36: 0 | BY36: 0 | BZ36: 0 | CA36: 0 | CB36: 0 | CC36: 0 | CD36: 0 | CE36: 0 | CF36: 0 | CG36: 0 | CH36: 0 | CI36: 0 | CJ36: 0 | CK36: 0 | CL36: 0 | CM36: 0 | CN36: 0 | CO36: 0 | CP36: 0 | CQ36: 0 | CR36: =IF(CR37=0,0,CR39*1000/CR37) -> 0 | CS36: 0 | CT36: 0 | CU36: 0 | CV36: 0 | CW36: 0 | CX36: 0 | CY36: 0 | CZ36: =IF(CZ37=0,0,CZ39*1000/CZ37) -> 0 | DA36: 0 | DB36: 0 | DC36: 0 | DD36: 0 | DE36: 0 | DF36: 0 | DG36: 0 | DH36: 0 | DI36: 0 | DJ36: 0 | DK36: 0 | DL36: 0 | DM36: 0 | DN36: 0 | DO36: 0 | DP36: 0 | DQ36: 0 | DR36: 0 | DS36: 0 | DT36: 0 | DU36: 0 | DV36: 0 | DW36: 0 | DX36: 0 | DY36: 0 | DZ36: 0 | EA36: 0 | EB36: 0 | EC36: 0 | ED36: 0 | EE36: 0 | EF36: =IF(EF37=0,0,EF39*1000/EF37) -> 0 | EG36: 0 | EH36: 0 | EI36: 0 | EJ36: =IF(EJ37=0,0,EJ39*1000/EJ37) -> 0 | EK36: =IF(EK37=0,0,EK39*1000/EK37) -> 0 | EL36: =IF(EL37=0,0,EL39*1000/EL37) -> 0 | EM36: =IF(EM37=0,0,EM39*1000/EM37) -> 0 | EN36: 0 | EO36: 0 | EP36: 0 | EQ36: 0 | EZ36: =IF(EZ37=0,0,EZ39*1000/EZ37) -> 0 | FA36: =IF(FA37=0,0,FA39*1000/FA37) -> 0 | FB36: =IF(FB37=0,0,FB39*1000/FB37) -> 0 | FC36: =IF(FC37=0,0,FC39*1000/FC37) -> 0 | FD36: =IF(FD37=0,0,FD39*1000/FD37) -> 0 | FE36: 0 | FF36: 0 | FG36: 0 | FH36: 0 | FI36: 0 | FJ36: 0 | FK36: 0 | FL36: 0 | FM36: 0 | FN36: 0 | FO36: 0 | FP36: 0 | FQ36: 0 | FR36: 0 | FS36: 0 | FT36: 0 | FU36: 0 | FV36: 0 | FW36: 0 | FX36: 0 | FY36: 0 | FZ36: 0 | GA36: 0 | GB36: 0 | GC36: 0 | GD36: 0 | GE36: 0
F37: 7.2 | I37: Объём топлива | N37: =F37 & "::" & L9 -> 7.2::ACTI | AV37: =SUMIF($N$55:$N$92,$N37,AV$55:AV$92) -> 0 | AW37: 0 | AX37: 0 | AY37: 0 | AZ37: 0 | BA37: 0 | BB37: 0 | BC37: 0 | BD37: 0 | BE37: 0 | BF37: =SUMIF($N$55:$N$92,$N37,BF$55:BF$92) -> 0 | BG37: 0 | BH37: 0 | BI37: 0 | BJ37: 0 | BK37: 0 | BL37: 0 | BM37: 0 | BN37: 0 | BO37: 0 | BP37: =SUMIF($N$55:$N$92,$N37,BP$55:BP$92) -> 0 | BQ37: 0 | BR37: 0 | BS37: 0 | BT37: 0 | BU37: 0 | BV37: 0 | BW37: 0 | BX37: 0 | BY37: 0 | BZ37: =SUMIF($N$55:$N$92,$N37,BZ$55:BZ$92) -> 0 | CA37: 0 | CB37: 0 | CC37: 0 | CD37: 0 | CE37: 0 | CF37: 0 | CG37: 0 | CH37: 0 | CI37: 0 | CJ37: =SUMIF($N$55:$N$92,$N37,CJ$55:CJ$92) -> 0 | CK37: 0 | CL37: 0 | CM37: 0 | CN37: 0 | CO37: 0 | CP37: 0 | CQ37: 0 | CR37: 0 | CS37: 0 | CT37: =SUMIF($N$55:$N$92,$N37,CT$55:CT$92) -> 0 | CU37: 0 | CV37: 0 | CW37: 0 | CX37: 0 | CY37: 0 | CZ37: 0 | DA37: 0 | DB37: 0 | DC37: 0 | DD37: =SUMIF($N$55:$N$92,$N37,DD$55:DD$92) -> 0 | DE37: 0 | DF37: 0 | DG37: 0 | DH37: 0 | DI37: 0 | DJ37: 0 | DK37: 0 | DL37: 0 | DM37: 0 | DN37: =SUMIF($N$55:$N$92,$N37,DN$55:DN$92) -> 0 | DO37: 0 | DP37: 0 | DQ37: 0 | DR37: 0 | DS37: 0 | DT37: 0 | DU37: 0 | DV37: 0 | DW37: 0 | DX37: =SUMIF($N$55:$N$92,$N37,DX$55:DX$92) -> 0 | DY37: 0 | DZ37: 0 | EA37: 0 | EB37: 0 | EC37: 0 | ED37: 0 | EE37: 0 | EF37: 0 | EG37: 0 | EH37: =SUMIF($N$55:$N$92,$N37,EH$55:EH$92) -> 0 | EI37: 0 | EJ37: 0 | EK37: 0 | EL37: 0 | EM37: 0 | EN37: 0 | EO37: 0 | EP37: 0 | EQ37: 0 | EZ37: =SUMIF($N$55:$N$92,$N37,EZ$55:EZ$92) -> 0 | FA37: 0 | FB37: 0 | FC37: 0 | FD37: 0 | FE37: 0 | FF37: 0 | FG37: 0 | FH37: 0 | FI37: 0 | FJ37: =SUMIF($N$55:$N$92,$N37,FJ$55:FJ$92) -> 0 | FK37: 0 | FL37: 0 | FM37: 0 | FN37: 0 | FO37: 0 | FP37: 0 | FQ37: 0 | FR37: 0 | FS37: 0 | FT37: =SUMIF($N$55:$N$92,$N37,FT$55:FT$92) -> 0 | FU37: 0 | FV37: 0 | FW37: 0 | FX37: 0 | FY37: 0 | FZ37: 0 | GA37: 0 | GB37: 0 | GC37: 0 | GD37: 0 | GE37: 0
F38: 7.3.1 | I38: Затраты (тыс.руб.) | J38: без НДС | N38: =F38 & "::" & L9 -> 7.3.1::ACTI | AV38: 0 | AW38: 0 | AX38: 0 | AY38: 0 | AZ38: 0 | BA38: 0 | BB38: 0 | BC38: 0 | BD38: 0 | BE38: 0 | BF38: 0 | BG38: 0 | BH38: 0 | BI38: 0 | BJ38: 0 | BK38: 0 | BL38: 0 | BM38: 0 | BN38: 0 | BO38: 0 | BP38: 0 | BQ38: 0 | BR38: 0 | BS38: 0 | BT38: 0 | BU38: 0 | BV38: 0 | BW38: 0 | BX38: 0 | BY38: 0 | BZ38: 0 | CA38: 0 | CB38: 0 | CC38: 0 | CD38: 0 | CE38: 0 | CF38: 0 | CG38: 0 | CH38: 0 | CI38: 0 | CJ38: 0 | CK38: 0 | CL38: 0 | CM38: 0 | CN38: 0 | CO38: 0 | CP38: 0 | CQ38: 0 | CR38: 0 | CS38: 0 | CT38: 0 | CU38: 0 | CV38: 0 | CW38: 0 | CX38: 0 | CY38: 0 | CZ38: 0 | DA38: 0 | DB38: 0 | DC38: 0 | DD38: 0 | DE38: 0 | DF38: 0 | DG38: 0 | DH38: 0 | DI38: 0 | DJ38: 0 | DK38: 0 | DL38: 0 | DM38: 0 | DN38: 0 | DO38: 0 | DP38: 0 | DQ38: 0 | DR38: 0 | DS38: 0 | DT38: 0 | DU38: 0 | DV38: 0 | DW38: 0 | DX38: 0 | DY38: 0 | DZ38: 0 | EA38: 0 | EB38: 0 | EC38: 0 | ED38: 0 | EE38: 0 | EF38: 0 | EG38: 0 | EH38: 0 | EI38: 0 | EJ38: 0 | EK38: 0 | EL38: 0 | EM38: 0 | EN38: 0 | EO38: 0 | EP38: 0 | EQ38: 0 | EZ38: 0 | FA38: 0 | FB38: 0 | FC38: 0 | FD38: 0 | FE38: 0 | FF38: 0 | FG38: 0 | FH38: 0 | FI38: 0 | FJ38: 0 | FK38: 0 | FL38: 0 | FM38: 0 | FN38: 0 | FO38: 0 | FP38: 0 | FQ38: 0 | FR38: 0 | FS38: 0 | FT38: 0 | FU38: 0 | FV38: 0 | FW38: 0 | FX38: 0 | FY38: 0 | FZ38: 0 | GA38: 0 | GB38: 0 | GC38: 0 | GD38: 0 | GE38: 0
F39: 7.3.2 | J39: с НДС | N39: =F39 & "::" & L9 -> 7.3.2::ACTI | AV39: 0 | AW39: 0 | AX39: 0 | AY39: 0 | AZ39: 0 | BA39: 0 | BB39: 0 | BC39: 0 | BD39: 0 | BE39: 0 | BF39: 0 | BG39: 0 | BH39: 0 | BI39: 0 | BJ39: 0 | BK39: 0 | BL39: 0 | BM39: 0 | BN39: 0 | BO39: 0 | BP39: 0 | BQ39: 0 | BR39: 0 | BS39: 0 | BT39: 0 | BU39: 0 | BV39: 0 | BW39: 0 | BX39: 0 | BY39: 0 | BZ39: 0 | CA39: 0 | CB39: 0 | CC39: 0 | CD39: 0 | CE39: 0 | CF39: 0 | CG39: 0 | CH39: 0 | CI39: 0 | CJ39: 0 | CK39: 0 | CL39: 0 | CM39: 0 | CN39: 0 | CO39: 0 | CP39: 0 | CQ39: 0 | CR39: 0 | CS39: 0 | CT39: 0 | CU39: 0 | CV39: 0 | CW39: 0 | CX39: 0 | CY39: 0 | CZ39: 0 | DA39: 0 | DB39: 0 | DC39: 0 | DD39: 0 | DE39: 0 | DF39: 0 | DG39: 0 | DH39: 0 | DI39: 0 | DJ39: 0 | DK39: 0 | DL39: 0 | DM39: 0 | DN39: 0 | DO39: 0 | DP39: 0 | DQ39: 0 | DR39: 0 | DS39: 0 | DT39: 0 | DU39: 0 | DV39: 0 | DW39: 0 | DX39: 0 | DY39: 0 | DZ39: 0 | EA39: 0 | EB39: 0 | EC39: 0 | ED39: 0 | EE39: 0 | EF39: 0 | EG39: 0 | EH39: 0 | EI39: 0 | EJ39: 0 | EK39: 0 | EL39: 0 | EM39: 0 | EN39: 0 | EO39: 0 | EP39: 0 | EQ39: 0 | EZ39: 0 | FA39: 0 | FB39: 0 | FC39: 0 | FD39: 0 | FE39: 0 | FF39: 0 | FG39: 0 | FH39: 0 | FI39: 0 | FJ39: 0 | FK39: 0 | FL39: 0 | FM39: 0 | FN39: 0 | FO39: 0 | FP39: 0 | FQ39: 0 | FR39: 0 | FS39: 0 | FT39: 0 | FU39: 0 | FV39: 0 | FW39: 0 | FX39: 0 | FY39: 0 | FZ39: 0 | GA39: 0 | GB39: 0 | GC39: 0 | GD39: 0 | GE39: 0
F40: 8.1 | G40: Электроэнергия | H40: Затраты, всего (тыс.руб.) | J40: без НДС | N40: =F40 & "::" & L9 -> 8.1::ACTI | ER40: =SUMIF($N$55:$N$92,$N40,ER$55:ER$92) -> 0 | ES40: 0 | ET40: 0 | EU40: 0 | EV40: 0 | EW40: 0 | EX40: 0 | EY40: 0
F41: 8.2 | J41: с НДС | N41: =F41 & "::" & L9 -> 8.2::ACTI | ER41: 0 | ES41: 0 | ET41: 0 | EU41: 0 | EV41: 0 | EW41: 0 | EX41: 0 | EY41: 0
F42: 9 | H42: Объём энергии / заявленной мощности | N42: =F42 & "::" & L9 -> 9::ACTI | ER42: 0 | ES42: 0 | ET42: 0 | EU42: 0 | EV42: 0 | EW42: 0 | EX42: 0 | EY42: 0
F43: 10.1 | H43: Тариф на энергию / заявленную мощность (руб./кВт*ч / руб./кВт*мес) | J43: без НДС | N43: =F43 & "::" & L9 -> 10.1::ACTI | ER43: =IF(ER42=0,0,ER40/ER42) -> 0 | ES43: 0 | ET43: 0 | EU43: 0 | EV43: 0 | EW43: 0 | EX43: 0 | EY43: 0
F44: 10.2 | J44: с НДС | N44: =F44 & "::" & L9 -> 10.2::ACTI | ER44: =IF(ER42=0,0,ER41/ER42) -> 0 | ES44: 0 | ET44: 0 | EU44: 0 | EV44: 0 | EW44: 0 | EX44: 0 | EY44: 0
F48: ="Информация о фактически сложившихся ценах и объёмах потребления топлива по итогам " & CURRENT_PRD & " " & god & " года. " & "Субъект Российской Федерации: " & REGION_NAME -> Информация о фактически сложившихся ценах и объёмах потребления топлива по итогам I квартала 2020 года. Субъект Российской Федерации: Ставропольский край
P49: NG | Q49: NG | R49: NG | S49: NG | T49: NGL | U49: NGL | V49: NGL | W49: NGL | X49: NGU | Y49: NGU | Z49: NGU | AA49: NGU | AB49: NGC | AC49: NGC | AD49: NGC | AE49: NGC | AF49: GBL | AG49: GBL | AH49: GBL | AI49: GBL | AJ49: GCK | AK49: GCK | AL49: GCK | AM49: GCK | AN49: GOA | AO49: GOA | AP49: GOA | AQ49: GOA | AR49: DSG | AS49: DSG | AT49: DSG | AU49: DSG | AV49: GCN | AW49: GCN | AX49: GCN | AY49: GCN | AZ49: LNG | BA49: LNG | BB49: LNG | BC49: LNG | BD49: DSL | BE49: DSL | BF49: DSL | BG49: DSL | BH49: DSLA | BI49: DSLA | BJ49: DSLA | BK49: DSLA | BL49: DSLW | BM49: DSLW | BN49: DSLW | BO49: DSLW | BP49: DSLS | BQ49: DSLS | BR49: DSLS | BS49: DSLS | BT49: DSLO | BU49: DSLO | BV49: DSLO | BW49: DSLO | BX49: MST | BY49: MST | BZ49: MST | CA49: MST | CB49: MSTM40 | CC49: MSTM40 | CD49: MSTM40 | CE49: MSTM40 | CF49: MSTM100 | CG49: MSTM100 | CH49: MSTM100 | CI49: MSTM100 | CJ49: MSTM200 | CK49: MSTM200 | CL49: MSTM200 | CM49: MSTM200 | CN49: MSTT | CO49: MSTT | CP49: MSTT | CQ49: MSTT | CR49: MSTF5 | CS49: MSTF5 | CT49: MSTF5 | CU49: MSTF5 | CV49: MSTF12 | CW49: MSTF12 | CX49: MSTF12 | CY49: MSTF12 | CZ49: OIL | DA49: OIL | DB49: OIL | DC49: OIL | DD49: COA | DE49: COA | DF49: COA | DG49: COA | DH49: COAA | DI49: COAA | DJ49: COAA | DK49: COAA | DL49: COAB | DM49: COAB | DN49: COAB | DO49: COAB | DP49: COAG | DQ49: COAG | DR49: COAG | DS49: COAG | DT49: COALF | DU49: COALF | DV49: COALF | DW49: COALF | DX49: COAF | DY49: COAF | DZ49: COAF | EA49: COAF | EB49: COAC | EC49: COAC | ED49: COAC | EE49: COAC | EF49: COASC | EG49: COASC | EH49: COASC | EI49: COASC | EJ49: COAWC | EK49: COAWC | EL49: COAWC | EM49: COAWC | EN49: COAS | EO49: COAS | EP49: COAS | EQ49: COAS | ER49: ENR | ES49: ENR | ET49: ENR | EU49: ENR | EV49: PWR | EW49: PWR | EX49: PWR | EY49: PWR | EZ49: CWD | FA49: CWD | FB49: CWD | FC49: CWD | FD49: WDS | FE49: WDS | FF49: WDS | FG49: WDS | FH49: PLT | FI49: PLT | FJ49: PLT | FK49: PLT | FL49: SAW | FM49: SAW | FN49: SAW | FO49: SAW | FP49: PEA | FQ49: PEA | FR49: PEA | FS49: PEA | FT49: SHL | FU49: SHL | FV49: SHL | FW49: SHL | FX49: STF | FY49: STF | FZ49: STF | GA49: STF | GB49: OTH | GC49: OTH | GD49: OTH | GE49: OTH
F50: № п/п | G50: Показатели | J50: Вид топлива | L50: STATUS | M50: SUM | N50: CRITERIA | P50: Газ природный | T50: Газ природный | X50: Газ природный | AB50: Газ природный | AF50: Газ доменный | AJ50: Газ коксовый | AN50: Газ нефтяной (попутный) | AR50: Газ сухой отбензиненный | AV50: Газовый конденсат | AZ50: Газ сжиженный | BD50: Дизельное топливо | BH50: Дизельное топливо | BL50: Дизельное топливо | BP50: Дизельное топливо | BT50: Дизельное топливо | BX50: Мазут | CB50: Мазут | CF50: Мазут | CJ50: Мазут | CN50: Мазут | CR50: Мазут | CV50: Мазут | CZ50: Нефть | DD50: Уголь | DH50: Уголь | DL50: Уголь | DP50: Уголь | DT50: Уголь | DX50: Уголь | EB50: Уголь | EF50: Уголь | EJ50: Уголь | EN50: Уголь | ER50: Электроэнергия | EV50: Электроэнергия | EZ50: Уголь | FD50: Дрова | FH50: Пеллеты | FL50: Опилки | FP50: Торф | FT50: Сланцы | FX50: Печное бытовое топливо | GB50: Прочие виды топлива | GH50: SUM.Q4 | GI50: SUM.Q3 | GJ50: SUM.Q2 | GK50: SUM.Q1
J51: Марка топлива | P51: Всего | T51: Газ лимитный | X51: Газ сверхлимитный | AB51: Газ коммерческий | BD51: Всего | BH51: А (арктическое) | BL51: З (зимнее) | BP51: Л (летнее) | BT51: Е (межсезонное) | BX51: Всего | CB51: М-40 | CF51: М-100 | CJ51: М-200 | CN51: мазут марки "Т" | CR51: Ф-5 | CV51: Ф-12 | DD51: Всего | DH51: Уголь антрацит | DL51: Уголь бурый | DP51: Уголь газовый | DT51: Уголь длиннопламенный | DX51: Уголь жирный | EB51: Уголь коксовый | EF51: Уголь отощённо-спекающийся | EJ51: Уголь слабоспекающийся | EN51: Уголь тощий | ER51: Энергия | EV51: Заявленная мощность | EZ51: Уголь древесный
J52: Единица измерения | P52: тыс.куб.м | T52: тыс.куб.м | X52: тыс.куб.м | AB52: тыс.куб.м | AF52: тыс.куб.м | AJ52: тыс.куб.м | AN52: тыс.куб.м | AR52: тыс.куб.м | AV52: тнт | AZ52: тнт | BD52: тнт | BH52: тнт | BL52: тнт | BP52: тнт | BT52: тнт | BX52: тнт | CB52: тнт | CF52: тнт | CJ52: тнт | CN52: тнт | CR52: тнт | CV52: тнт | CZ52: тнт | DD52: тнт | DH52: тнт | DL52: тнт | DP52: тнт | DT52: тнт | DX52: тнт | EB52: тнт | EF52: тнт | EJ52: тнт | EN52: тнт | ER52: тыс.кВт*час | EV52: МВт | EZ52: тнт | FD52: тнт | FH52: тнт | FL52: тнт | FP52: тнт | FT52: тнт | FX52: тнт | GB52: тнт
J53: Период | P53: 12 месяцев | Q53: 9 месяцев | R53: I полугодие | S53: I квартал | T53: 12 месяцев | U53: 9 месяцев | V53: I полугодие | W53: I квартал | X53: 12 месяцев | Y53: 9 месяцев | Z53: I полугодие | AA53: I квартал | AB53: 12 месяцев | AC53: 9 месяцев | AD53: I полугодие | AE53: I квартал | AF53: 12 месяцев | AG53: 9 месяцев | AH53: I полугодие | AI53: I квартал | AJ53: 12 месяцев | AK53: 9 месяцев | AL53: I полугодие | AM53: I квартал | AN53: 12 месяцев | AO53: 9 месяцев | AP53: I полугодие | AQ53: I квартал | AR53: 12 месяцев | AS53: 9 месяцев | AT53: I полугодие | AU53: I квартал | AV53: 12 месяцев | AW53: 9 месяцев | AX53: I полугодие | AY53: I квартал | AZ53: 12 месяцев | BA53: 9 месяцев | BB53: I полугодие | BC53: I квартал | BD53: 12 месяцев | BE53: 9 месяцев | BF53: I полугодие | BG53: I квартал | BH53: 12 месяцев | BI53: 9 месяцев | BJ53: I полугодие | BK53: I квартал | BL53: 12 месяцев | BM53: 9 месяцев | BN53: I полугодие | BO53: I квартал | BP53: 12 месяцев | BQ53: 9 месяцев | BR53: I полугодие | BS53: I квартал | BT53: 12 месяцев | BU53: 9 месяцев | BV53: I полугодие | BW53: I квартал | BX53: 12 месяцев | BY53: 9 месяцев | BZ53: I полугодие | CA53: I квартал | CB53: 12 месяцев | CC53: 9 месяцев | CD53: I полугодие | CE53: I квартал | CF53: 12 месяцев | CG53: 9 месяцев | CH53: I полугодие | CI53: I квартал | CJ53: 12 месяцев | CK53: 9 месяцев | CL53: I полугодие | CM53: I квартал | CN53: 12 месяцев | CO53: 9 месяцев | CP53: I полугодие | CQ53: I квартал | CR53: 12 месяцев | CS53: 9 месяцев | CT53: I полугодие | CU53: I квартал | CV53: 12 месяцев | CW53: 9 месяцев | CX53: I полугодие | CY53: I квартал | CZ53: 12 месяцев | DA53: 9 месяцев | DB53: I полугодие | DC53: I квартал | DD53: 12 месяцев | DE53: 9 месяцев | DF53: I полугодие | DG53: I квартал | DH53: 12 месяцев | DI53: 9 месяцев | DJ53: I полугодие | DK53: I квартал | DL53: 12 месяцев | DM53: 9 месяцев | DN53: I полугодие | DO53: I квартал | DP53: 12 месяцев | DQ53: 9 месяцев | DR53: I полугодие | DS53: I квартал | DT53: 12 месяцев | DU53: 9 месяцев | DV53: I полугодие | DW53: I квартал | DX53: 12 месяцев | DY53: 9 месяцев | DZ53: I полугодие | EA53: I квартал | EB53: 12 месяцев | EC53: 9 месяцев | ED53: I полугодие | EE53: I квартал | EF53: 12 месяцев | EG53: 9 месяцев | EH53: I полугодие | EI53: I квартал | EJ53: 12 месяцев | EK53: 9 месяцев | EL53: I полугодие | EM53: I квартал | EN53: 12 месяцев | EO53: 9 месяцев | EP53: I полугодие | EQ53: I квартал | ER53: 12 месяцев | ES53: 9 месяцев | ET53: I полугодие | EU53: I квартал | EV53: 12 месяцев | EW53: 9 месяцев | EX53: I полугодие | EY53: I квартал | EZ53: 12 месяцев | FA53: 9 месяцев | FB53: I полугодие | FC53: I квартал | FD53: 12 месяцев | FE53: 9 месяцев | FF53: I полугодие | FG53: I квартал | FH53: 12 месяцев | FI53: 9 месяцев | FJ53: I полугодие | FK53: I квартал | FL53: 12 месяцев | FM53: 9 месяцев | FN53: I полугодие | FO53: I квартал | FP53: 12 месяцев | FQ53: 9 месяцев | FR53: I полугодие | FS53: I квартал | FT53: 12 месяцев | FU53: 9 месяцев | FV53: I полугодие | FW53: I квартал | FX53: 12 месяцев | FY53: 9 месяцев | FZ53: I полугодие | GA53: I квартал | GB53: 12 месяцев | GC53: 9 месяцев | GD53: I полугодие | GE53: I квартал | GH53: 12 месяцев | GI53: 9 месяцев | GJ53: I полугодие | GK53: I квартал
B55: 0
B56: 1 | D56: =IF('Список организаций'!$M$16="да", NDS, 1) -> 1 | E56: Удалить | F56: =B56 -> 1 | G56: ='Список организаций'!$S$16 & " / " & 'Список организаций'!$I$16 & IF('Список организаций'!$K$16="",""," / " & 'Список организаций'!$K$16) & " / " & 'Список организаций'!$N$16 & " объектов" -> Город Ставрополь / ИП Согоян Геворг Владимирович / 1 объектов | L56: ='Список организаций'!$P$16 -> ACTI | M56: =SUM($P67:$GE67)+SUM($P87:$GE87) -> 975.3942521 | T56: Включить в расчёт | U56: Включить в расчёт | V56: Включить в расчёт | W56: Исключить из расчёта | X56: Включить в расчёт | Y56: Включить в расчёт | Z56: Включить в расчёт | AA56: Исключить из расчёта | AB56: Включить в расчёт | AC56: Включить в расчёт | AD56: Включить в расчёт | AE56: Включить в расчёт | AF56: Включить в расчёт | AG56: Включить в расчёт | AH56: Включить в расчёт | AI56: Включить в расчёт | AJ56: Включить в расчёт | AK56: Включить в расчёт | AL56: Включить в расчёт | AM56: Включить в расчёт | AN56: Включить в расчёт | AO56: Включить в расчёт | AP56: Включить в расчёт | AQ56: Включить в расчёт | AR56: Включить в расчёт | AS56: Включить в расчёт | AT56: Включить в расчёт | AU56: Включить в расчёт | AV56: Включить в расчёт | AW56: Включить в расчёт | AX56: Включить в расчёт | AY56: Включить в расчёт | AZ56: Включить в расчёт | BA56: Включить в расчёт | BB56: Включить в расчёт | BC56: Включить в расчёт | BH56: Включить в расчёт | BI56: Включить в расчёт | BJ56: Включить в расчёт | BK56: Включить в расчёт | BL56: Включить в расчёт | BM56: Включить в расчёт | BN56: Включить в расчёт | BO56: Включить в расчёт | BP56: Включить в расчёт | BQ56: Включить в расчёт | BR56: Включить в расчёт | BS56: Включить в расчёт | BT56: Включить в расчёт | BU56: Включить в расчёт | BV56: Включить в расчёт | BW56: Включить в расчёт | CB56: Включить в расчёт | CC56: Включить в расчёт | CD56: Включить в расчёт | CE56: Включить в расчёт | CF56: Включить в расчёт | CG56: Включить в расчёт | CH56: Включить в расчёт | CI56: Включить в расчёт | CJ56: Включить в расчёт | CK56: Включить в расчёт | CL56: Включить в расчёт | CM56: Включить в расчёт | CN56: Включить в расчёт | CO56: Включить в расчёт | CP56: Включить в расчёт | CQ56: Включить в расчёт | CR56: Включить в расчёт | CS56: Включить в расчёт | CT56: Включить в расчёт | CU56: Включить в расчёт | CV56: Включить в расчёт | CW56: Включить в расчёт | CX56: Включить в расчёт | CY56: Включить в расчёт | CZ56: Включить в расчёт | DA56: Включить в расчёт | DB56: Включить в расчёт | DC56: Включить в расчёт | DH56: Включить в расчёт | DI56: Включить в расчёт | DJ56: Включить в расчёт | DK56: Включить в расчёт | DL56: Включить в расчёт | DM56: Включить в расчёт | DN56: Включить в расчёт | DO56: Включить в расчёт | DP56: Включить в расчёт | DQ56: Включить в расчёт | DR56: Включить в расчёт | DS56: Включить в расчёт | DT56: Включить в расчёт | DU56: Включить в расчёт | DV56: Включить в расчёт | DW56: Включить в расчёт | DX56: Включить в расчёт | DY56: Включить в расчёт | DZ56: Включить в расчёт | EA56: Включить в расчёт | EB56: Включить в расчёт | EC56: Включить в расчёт | ED56: Включить в расчёт | EE56: Включить в расчёт | EF56: Включить в расчёт | EG56: Включить в расчёт | EH56: Включить в расчёт | EI56: Включить в расчёт | EJ56: Включить в расчёт | EK56: Включить в расчёт | EL56: Включить в расчёт | EM56: Включить в расчёт | EN56: Включить в расчёт | EO56: Включить в расчёт | EP56: Включить в расчёт | EQ56: Включить в расчёт | ER56: Включить в расчёт | ES56: Включить в расчёт | ET56: Включить в расчёт | EU56: Включить в расчёт | EV56: Включить в расчёт | EW56: Включить в расчёт | EX56: Включить в расчёт | EY56: Включить в расчёт | EZ56: Включить в расчёт | FA56: Включить в расчёт | FB56: Включить в расчёт | FC56: Включить в расчёт | FD56: Включить в расчёт | FE56: Включить в расчёт | FF56: Включить в расчёт | FG56: Включить в расчёт | FH56: Включить в расчёт | FI56: Включить в расчёт | FJ56: Включить в расчёт | FK56: Включить в расчёт | FL56: Включить в расчёт | FM56: Включить в расчёт | FN56: Включить в расчёт | FO56: Включить в расчёт | FP56: Включить в расчёт | FQ56: Включить в расчёт | FR56: Включить в расчёт | FS56: Включить в расчёт | FT56: Включить в расчёт | FU56: Включить в расчёт | FV56: Включить в расчёт | FW56: Включить в расчёт | FX56: Включить в расчёт | FY56: Включить в расчёт | FZ56: Включить в расчёт | GA56: Включить в расчёт | GB56: Включить в расчёт | GC56: Включить в расчёт | GD56: Включить в расчёт | GE56: Включить в расчёт | GH56: =SUMIF($P$53:$GE$53,"12 месяцев",$P67:$GE67)+SUMIF($P$53:$GE$53,"12 месяцев",$P87:$GE87) -> 0 | GI56: =SUMIF($P$53:$GE$53,"9 месяцев",$P67:$GE67)+SUMIF($P$53:$GE$53,"9 месяцев",$P87:$GE87) -> 0 | GJ56: =SUMIF($P$53:$GE$53,"I полугодие",$P67:$GE67)+SUMIF($P$53:$GE$53,"I полугодие",$P87:$GE87) -> 0 | GK56: =SUMIF($P$53:$GE$53,"I квартал",$P67:$GE67)+SUMIF($P$53:$GE$53,"I квартал",$P87:$GE87) -> 975.3942521
Q57: =$D56 -> 1 | R57: =$D56 -> 1 | S57: =$D56 -> 1 | W57: =$D56 -> 1 | AA57: =$D56 -> 1 | BE57: =$D56 -> 1 | BF57: =$D56 -> 1 | BG57: =$D56 -> 1 | BY57: =$D56 -> 1 | BZ57: =$D56 -> 1 | CA57: =$D56 -> 1 | DE57: =$D56 -> 1 | DF57: =$D56 -> 1 | DG57: =$D56 -> 1
F58: 1.1.1 | G58: Цена натурального топлива без учёта транспортировки (руб./ед.изм.) | J58: без НДС | N58: =F58 & "::" & L56 -> 1.1.1::ACTI | W58: 6240.7604 | AA58: 9257.5925 | BD58: =IF(BD64=0,0,(BD67-BD75-BD80-BD85)*1000/BD64) -> 0 | BE58: =IF(BE64=0,0,(BE67-BE75-BE80-BE85)*1000/BE64) -> 0 | BF58: =IF(BF64=0,0,(BF67-BF75-BF80-BF85)*1000/BF64) -> 0 | BG58: =IF(BG64=0,0,(BG67-BG75-BG80-BG85)*1000/BG64) -> 0 | BX58: =IF(BX64=0,0,(BX67-BX75-BX80-BX85)*1000/BX64) -> 0 | BY58: =IF(BY64=0,0,(BY67-BY75-BY80-BY85)*1000/BY64) -> 0 | BZ58: =IF(BZ64=0,0,(BZ67-BZ75-BZ80-BZ85)*1000/BZ64) -> 0 | CA58: =IF(CA64=0,0,(CA67-CA75-CA80-CA85)*1000/CA64) -> 0 | DD58: =IF(DD64=0,0,(DD67-DD75-DD80-DD85)*1000/DD64) -> 0 | DE58: =IF(DE64=0,0,(DE67-DE75-DE80-DE85)*1000/DE64) -> 0 | DF58: =IF(DF64=0,0,(DF67-DF75-DF80-DF85)*1000/DF64) -> 0 | DG58: =IF(DG64=0,0,(DG67-DG75-DG80-DG85)*1000/DG64) -> 0
F59: 1.1.2 | J59: с НДС | N59: =F59 & "::" & L56 -> 1.1.2::ACTI | W59: =W58*W57 -> 6240.7604 | AA59: =AA58*AA57 -> 9257.5925 | BD59: =IF(BD64=0,0,(BD68-BD76-BD81-BD86)*1000/BD64) -> 0 | BE59: =IF(BE64=0,0,(BE68-BE76-BE81-BE86)*1000/BE64) -> 0 | BF59: =IF(BF64=0,0,(BF68-BF76-BF81-BF86)*1000/BF64) -> 0 | BG59: =IF(BG64=0,0,(BG68-BG76-BG81-BG86)*1000/BG64) -> 0 | BX59: =IF(BX64=0,0,(BX68-BX76-BX81-BX86)*1000/BX64) -> 0 | BY59: =IF(BY64=0,0,(BY68-BY76-BY81-BY86)*1000/BY64) -> 0 | BZ59: =IF(BZ64=0,0,(BZ68-BZ76-BZ81-BZ86)*1000/BZ64) -> 0 | CA59: =IF(CA64=0,0,(CA68-CA76-CA81-CA86)*1000/CA64) -> 0 | DD59: =IF(DD64=0,0,(DD68-DD76-DD81-DD86)*1000/DD64) -> 0 | DE59: =IF(DE64=0,0,(DE68-DE76-DE81-DE86)*1000/DE64) -> 0 | DF59: =IF(DF64=0,0,(DF68-DF76-DF81-DF86)*1000/DF64) -> 0 | DG59: =IF(DG64=0,0,(DG68-DG76-DG81-DG86)*1000/DG64) -> 0
F60: 1.2.1 | G60: Цена натурального топлива с учётом транспортировки (руб./ед.изм.) | J60: без НДС | N60: =F60 & "::" & L56 -> 1.2.1::ACTI | P60: =IF(P64=0,0,P67*1000/P64) -> 0 | Q60: =IF(Q64=0,0,Q67*1000/Q64) -> 0 | R60: =IF(R64=0,0,R67*1000/R64) -> 0 | S60: =IF(S64=0,0,S67*1000/S64) -> 7262.15269 | W60: 7122.5684 | AA60: 10580.3045 | BD60: =IF(BD64=0,0,BD67*1000/BD64) -> 0 | BE60: =IF(BE64=0,0,BE67*1000/BE64) -> 0 | BF60: =IF(BF64=0,0,BF67*1000/BF64) -> 0 | BG60: =IF(BG64=0,0,BG67*1000/BG64) -> 0 | BX60: =IF(BX64=0,0,BX67*1000/BX64) -> 0 | BY60: =IF(BY64=0,0,BY67*1000/BY64) -> 0 | BZ60: =IF(BZ64=0,0,BZ67*1000/BZ64) -> 0 | CA60: =IF(CA64=0,0,CA67*1000/CA64) -> 0 | DD60: =IF(DD64=0,0,DD67*1000/DD64) -> 0 | DE60: =IF(DE64=0,0,DE67*1000/DE64) -> 0 | DF60: =IF(DF64=0,0,DF67*1000/DF64) -> 0 | DG60: =IF(DG64=0,0,DG67*1000/DG64) -> 0
F61: 1.2.2 | J61: с НДС | N61: =F61 & "::" & L56 -> 1.2.2::ACTI | P61: =IF(P64=0,0,P68*1000/P64) -> 0 | Q61: =IF(Q64=0,0,Q68*1000/Q64) -> 0 | R61: =IF(R64=0,0,R68*1000/R64) -> 0 | S61: =IF(S64=0,0,S68*1000/S64) -> 7262.15269 | W61: =W60*W57 -> 7122.5684 | AA61: =AA60*AA57 -> 10580.3045 | BD61: =IF(BD64=0,0,BD68*1000/BD64) -> 0 | BE61: =IF(BE64=0,0,BE68*1000/BE64) -> 0 | BF61: =IF(BF64=0,0,BF68*1000/BF64) -> 0 | BG61: =IF(BG64=0,0,BG68*1000/BG64) -> 0 | BX61: =IF(BX64=0,0,BX68*1000/BX64) -> 0 | BY61: =IF(BY64=0,0,BY68*1000/BY64) -> 0 | BZ61: =IF(BZ64=0,0,BZ68*1000/BZ64) -> 0 | CA61: =IF(CA64=0,0,CA68*1000/CA64) -> 0 | DD61: =IF(DD64=0,0,DD68*1000/DD64) -> 0 | DE61: =IF(DE64=0,0,DE68*1000/DE64) -> 0 | DF61: =IF(DF64=0,0,DF68*1000/DF64) -> 0 | DG61: =IF(DG64=0,0,DG68*1000/DG64) -> 0
F62: 1.3.1 | G62: Цена условного топлива с учётом транспортировки (руб./тут) | J62: без НДС | N62: =F62 & "::" & L56 -> 1.3.1::ACTI | P62: =IF(P66=0,0,P67*1000/P66) -> 0 | Q62: =IF(Q66=0,0,Q67*1000/Q66) -> 0 | R62: =IF(R66=0,0,R67*1000/R66) -> 0 | S62: =IF(S66=0,0,S67*1000/S66) -> 6225.591676 | W62: =IF(W66=0,0,W67*1000/W66) -> 6105.930904 | AA62: =IF(AA66=0,0,AA67*1000/AA66) -> 9070.128161 | BD62: =IF(BD66=0,0,BD67*1000/BD66) -> 0 | BE62: =IF(BE66=0,0,BE67*1000/BE66) -> 0 | BF62: =IF(BF66=0,0,BF67*1000/BF66) -> 0 | BG62: =IF(BG66=0,0,BG67*1000/BG66) -> 0 | BX62: =IF(BX66=0,0,BX67*1000/BX66) -> 0 | BY62: =IF(BY66=0,0,BY67*1000/BY66) -> 0 | BZ62: =IF(BZ66=0,0,BZ67*1000/BZ66) -> 0 | CA62: =IF(CA66=0,0,CA67*1000/CA66) -> 0 | DD62: =IF(DD66=0,0,DD67*1000/DD66) -> 0 | DE62: =IF(DE66=0,0,DE67*1000/DE66) -> 0 | DF62: =IF(DF66=0,0,DF67*1000/DF66) -> 0 | DG62: =IF(DG66=0,0,DG67*1000/DG66) -> 0
F63: 1.3.2 | J63: с НДС | N63: =F63 & "::" & L56 -> 1.3.2::ACTI | P63: =IF(P66=0,0,P68*1000/P66) -> 0 | Q63: =IF(Q66=0,0,Q68*1000/Q66) -> 0 | R63: =IF(R66=0,0,R68*1000/R66) -> 0 | S63: =IF(S66=0,0,S68*1000/S66) -> 6225.591676 | W63: =IF(W66=0,0,W68*1000/W66) -> 6105.930904 | AA63: =IF(AA66=0,0,AA68*1000/AA66) -> 9070.128161 | BD63: =IF(BD66=0,0,BD68*1000/BD66) -> 0 | BE63: =IF(BE66=0,0,BE68*1000/BE66) -> 0 | BF63: =IF(BF66=0,0,BF68*1000/BF66) -> 0 | BG63: =IF(BG66=0,0,BG68*1000/BG66) -> 0 | BX63: =IF(BX66=0,0,BX68*1000/BX66) -> 0 | BY63: =IF(BY66=0,0,BY68*1000/BY66) -> 0 | BZ63: =IF(BZ66=0,0,BZ68*1000/BZ66) -> 0 | CA63: =IF(CA66=0,0,CA68*1000/CA66) -> 0 | DD63: =IF(DD66=0,0,DD68*1000/DD66) -> 0 | DE63: =IF(DE66=0,0,DE68*1000/DE66) -> 0 | DF63: =IF(DF66=0,0,DF68*1000/DF66) -> 0 | DG63: =IF(DG66=0,0,DG68*1000/DG66) -> 0
F64: 2.1 | G64: Объём натурального топлива, всего | N64: =F64 & "::" & L56 -> 2.1::ACTI | P64: =SUM(T64,X64,AB64) -> 0 | Q64: =SUM(U64,Y64,AC64) -> 0 | R64: =SUM(V64,Z64,AD64) -> 0 | S64: =SUM(W64,AA64,AE64) -> 67.156 | W64: 64.445 | AA64: 2.711 | BD64: =SUM(BH64,BL64,BP64,BT64) -> 0 | BE64: =SUM(BI64,BM64,BQ64,BU64) -> 0 | BF64: =SUM(BJ64,BN64,BR64,BV64) -> 0 | BG64: =SUM(BK64,BO64,BS64,BW64) -> 0 | BX64: =SUM(CB64,CF64,CJ64,CN64,CR64,CV64) -> 0 | BY64: =SUM(CC64,CG64,CK64,CO64,CS64,CW64) -> 0 | BZ64: =SUM(CD64,CH64,CL64,CP64,CT64,CX64) -> 0 | CA64: =SUM(CE64,CI64,CM64,CQ64,CU64,CY64) -> 0 | DD64: =SUM(DH64,DL64,DP64,DT64,DX64,EB64,EF64,EJ64,EN64) -> 0 | DE64: =SUM(DI64,DM64,DQ64,DU64,DY64,EC64,EG64,EK64,EO64) -> 0 | DF64: =SUM(DJ64,DN64,DR64,DV64,DZ64,ED64,EH64,EL64,EP64) -> 0 | DG64: =SUM(DK64,DO64,DS64,DW64,EA64,EE64,EI64,EM64,EQ64) -> 0
F65: 2.2 | G65: Переводной коэффициент | N65: =F65 & "::" & L56 -> 2.2::ACTI | W65: 1.1665 | AA65: =W65 -> 1.1665
F66: 2.3 | G66: Объём условного топлива, всего (тут) | N66: =F66 & "::" & L56 -> 2.3::ACTI | P66: =SUM(T66,X66,AB66) -> 0 | Q66: 0 | R66: 0 | S66: 78.337474 | W66: =W64*W65 -> 75.1750925 | AA66: =AA64*AA65 -> 3.1623815 | BD66: =SUM(BH66,BL66,BP66,BT66) -> 0 | BE66: 0 | BF66: 0 | BG66: =SUM(BK66,BO66,BS66,BW66) -> 0 | BX66: =SUM(CB66,CF66,CJ66,CN66,CR66,CV66) -> 0 | BY66: 0 | BZ66: 0 | CA66: 0 | DD66: =SUM(DH66,DL66,DP66,DT66,DX66,EB66,EF66,EJ66,EN66) -> 0 | DE66: 0 | DF66: 0 | DG66: 0
F67: 3.1 | G67: Затраты на топливо, всего (тыс.руб.) | J67: без НДС | N67: =F67 & "::" & L56 -> 3.1::ACTI | P67: 0 | Q67: 0 | R67: 0 | S67: 487.697126 | W67: =W60*W64/1000 -> 459.0139205 | AA67: =AA60*AA64/1000 -> 28.6832055 | BD67: 0 | BE67: 0 | BF67: 0 | BG67: =SUM(BK67,BO67,BS67,BW67) -> 0 | BX67: 0 | BY67: 0 | BZ67: 0 | CA67: 0 | DD67: 0 | DE67: 0 | DF67: 0 | DG67: 0
F68: 3.2 | J68: с НДС | N68: =F68 & "::" & L56 -> 3.2::ACTI | P68: 0 | Q68: 0 | R68: 0 | S68: 487.697126 | W68: =W61*W64/1000 -> 459.0139205 | AA68: =AA61*AA64/1000 -> 28.6832055 | BD68: 0 | BE68: 0 | BF68: 0 | BG68: =SUM(BK68,BO68,BS68,BW68) -> 0 | BX68: 0 | BY68: 0 | BZ68: 0 | CA68: 0 | DD68: 0 | DE68: 0 | DF68: 0 | DG68: 0
F69: 4.1.1 | G69: Топливо, транспортируемое по сетям, магистралям (трубопроводам) | I69: Средний тариф транзитной транспортировки (руб./тыс.куб.м) | J69: без НДС | N69: =F69 & "::" & L56 -> 4.1.1::ACTI
F70: 4.1.2 | J70: с НДС | N70: =F70 & "::" & L56 -> 4.1.2::ACTI | W70: =W69*W57 -> 0 | AA70: =AA69*AA57 -> 0
F71: 4.2 | I71: Объём топлива, транспортируемого в транзитном потоке | N71: =F71 & "::" & L56 -> 4.2::ACTI | P71: =SUM(T71,X71,AB71) -> 0 | Q71: =SUM(U71,Y71,AC71) -> 0 | R71: =SUM(V71,Z71,AD71) -> 0 | S71: =SUM(W71,AA71,AE71) -> 0
F72: 5.1.1 | G72: Топливо, транспортируемое по дорогам (авто, ж/д), а также прочие виды транспортировки | H72: Транспортировка топлива автоперевозками | I72: Тариф (цена за единицу) (руб./ед.изм.) | J72: без НДС | N72: =F72 & "::" & L56 -> 5.1.1::ACTI | BD72: =IF(BD74=0,0,BD75*1000/BD74) -> 0 | BE72: =IF(BE74=0,0,BE75*1000/BE74) -> 0 | BF72: =IF(BF74=0,0,BF75*1000/BF74) -> 0 | BG72: =IF(BG74=0,0,BG75*1000/BG74) -> 0 | BX72: =IF(BX74=0,0,BX75*1000/BX74) -> 0 | BY72: =IF(BY74=0,0,BY75*1000/BY74) -> 0 | BZ72: =IF(BZ74=0,0,BZ75*1000/BZ74) -> 0 | CA72: =IF(CA74=0,0,CA75*1000/CA74) -> 0 | DD72: =IF(DD74=0,0,DD75*1000/DD74) -> 0 | DE72: =IF(DE74=0,0,DE75*1000/DE74) -> 0 | DF72: =IF(DF74=0,0,DF75*1000/DF74) -> 0 | DG72: =IF(DG74=0,0,DG75*1000/DG74) -> 0
F73: 5.1.2 | J73: с НДС | N73: =F73 & "::" & L56 -> 5.1.2::ACTI | BD73: =IF(BD74=0,0,BD76*1000/BD74) -> 0 | BE73: =IF(BE74=0,0,BE76*1000/BE74) -> 0 | BF73: =IF(BF74=0,0,BF76*1000/BF74) -> 0 | BG73: =IF(BG74=0,0,BG76*1000/BG74) -> 0 | BX73: =IF(BX74=0,0,BX76*1000/BX74) -> 0 | BY73: =IF(BY74=0,0,BY76*1000/BY74) -> 0 | BZ73: =IF(BZ74=0,0,BZ76*1000/BZ74) -> 0 | CA73: =IF(CA74=0,0,CA76*1000/CA74) -> 0 | DD73: =IF(DD74=0,0,DD76*1000/DD74) -> 0 | DE73: =IF(DE74=0,0,DE76*1000/DE74) -> 0 | DF73: =IF(DF74=0,0,DF76*1000/DF74) -> 0 | DG73: =IF(DG74=0,0,DG76*1000/DG74) -> 0
F74: 5.2 | I74: Объём топлива | N74: =F74 & "::" & L56 -> 5.2::ACTI | BD74: =SUM(BH74,BL74,BP74,BT74) -> 0 | BE74: 0 | BF74: 0 | BG74: =SUM(BK74,BO74,BS74,BW74) -> 0 | BX74: =SUM(CB74,CF74,CJ74,CN74,CR74,CV74) -> 0 | BY74: 0 | BZ74: 0 | CA74: 0 | DD74: =SUM(DH74,DL74,DP74,DT74,DX74,EB74,EF74,EJ74,EN74) -> 0 | DE74: 0 | DF74: 0 | DG74: 0
F75: 5.3.1 | I75: Затраты (тыс.руб.) | J75: без НДС | N75: =F75 & "::" & L56 -> 5.3.1::ACTI | BD75: 0 | BE75: 0 | BF75: 0 | BG75: =SUM(BK75,BO75,BS75,BW75) -> 0 | BX75: 0 | BY75: 0 | BZ75: 0 | CA75: 0 | DD75: 0 | DE75: 0 | DF75: 0 | DG75: 0
F76: 5.3.2 | J76: с НДС | N76: =F76 & "::" & L56 -> 5.3.2::ACTI | BD76: 0 | BE76: 0 | BF76: 0 | BG76: =SUM(BK76,BO76,BS76,BW76) -> 0 | BX76: 0 | BY76: 0 | BZ76: 0 | CA76: 0 | DD76: 0 | DE76: 0 | DF76: 0 | DG76: 0
F77: 6.1.1 | H77: Транспортировка топлива ж/д перевозками | I77: Тариф (цена за единицу) (руб./ед.изм.) | J77: без НДС | N77: =F77 & "::" & L56 -> 6.1.1::ACTI | BD77: =IF(BD79=0,0,BD80*1000/BD79) -> 0 | BE77: =IF(BE79=0,0,BE80*1000/BE79) -> 0 | BF77: =IF(BF79=0,0,BF80*1000/BF79) -> 0 | BG77: =IF(BG79=0,0,BG80*1000/BG79) -> 0 | BX77: =IF(BX79=0,0,BX80*1000/BX79) -> 0 | BY77: =IF(BY79=0,0,BY80*1000/BY79) -> 0 | BZ77: =IF(BZ79=0,0,BZ80*1000/BZ79) -> 0 | CA77: =IF(CA79=0,0,CA80*1000/CA79) -> 0 | DD77: =IF(DD79=0,0,DD80*1000/DD79) -> 0 | DE77: =IF(DE79=0,0,DE80*1000/DE79) -> 0 | DF77: =IF(DF79=0,0,DF80*1000/DF79) -> 0 | DG77: =IF(DG79=0,0,DG80*1000/DG79) -> 0
F78: 6.1.2 | J78: с НДС | N78: =F78 & "::" & L56 -> 6.1.2::ACTI | BD78: =IF(BD79=0,0,BD81*1000/BD79) -> 0 | BE78: =IF(BE79=0,0,BE81*1000/BE79) -> 0 | BF78: =IF(BF79=0,0,BF81*1000/BF79) -> 0 | BG78: =IF(BG79=0,0,BG81*1000/BG79) -> 0 | BX78: =IF(BX79=0,0,BX81*1000/BX79) -> 0 | BY78: =IF(BY79=0,0,BY81*1000/BY79) -> 0 | BZ78: =IF(BZ79=0,0,BZ81*1000/BZ79) -> 0 | CA78: =IF(CA79=0,0,CA81*1000/CA79) -> 0 | DD78: =IF(DD79=0,0,DD81*1000/DD79) -> 0 | DE78: =IF(DE79=0,0,DE81*1000/DE79) -> 0 | DF78: =IF(DF79=0,0,DF81*1000/DF79) -> 0 | DG78: =IF(DG79=0,0,DG81*1000/DG79) -> 0
F79: 6.2 | I79: Объём топлива | N79: =F79 & "::" & L56 -> 6.2::ACTI | BD79: =SUM(BH79,BL79,BP79,BT79) -> 0 | BE79: 0 | BF79: 0 | BG79: =SUM(BK79,BO79,BS79,BW79) -> 0 | BX79: =SUM(CB79,CF79,CJ79,CN79,CR79,CV79) -> 0 | BY79: 0 | BZ79: 0 | CA79: 0 | DD79: =SUM(DH79,DL79,DP79,DT79,DX79,EB79,EF79,EJ79,EN79) -> 0 | DE79: 0 | DF79: 0 | DG79: 0
F80: 6.3.1 | I80: Затраты (тыс.руб.) | J80: без НДС | N80: =F80 & "::" & L56 -> 6.3.1::ACTI | BD80: 0 | BE80: 0 | BF80: 0 | BG80: =SUM(BK80,BO80,BS80,BW80) -> 0 | BX80: 0 | BY80: 0 | BZ80: 0 | CA80: 0 | DD80: 0 | DE80: 0 | DF80: 0 | DG80: 0
F81: 6.3.2 | J81: с НДС | N81: =F81 & "::" & L56 -> 6.3.2::ACTI | BD81: 0 | BE81: 0 | BF81: 0 | BG81: =SUM(BK81,BO81,BS81,BW81) -> 0 | BX81: 0 | BY81: 0 | BZ81: 0 | CA81: 0 | DD81: 0 | DE81: 0 | DF81: 0 | DG81: 0
F82: 7.1.1 | H82: Транспортировка топлива иными видами перевозок | I82: Тариф (цена за единицу) (руб./ед.изм.) | J82: без НДС | N82: =F82 & "::" & L56 -> 7.1.1::ACTI | BD82: =IF(BD84=0,0,BD85*1000/BD84) -> 0 | BE82: =IF(BE84=0,0,BE85*1000/BE84) -> 0 | BF82: =IF(BF84=0,0,BF85*1000/BF84) -> 0 | BG82: =IF(BG84=0,0,BG85*1000/BG84) -> 0 | BX82: =IF(BX84=0,0,BX85*1000/BX84) -> 0 | BY82: =IF(BY84=0,0,BY85*1000/BY84) -> 0 | BZ82: =IF(BZ84=0,0,BZ85*1000/BZ84) -> 0 | CA82: =IF(CA84=0,0,CA85*1000/CA84) -> 0 | DD82: =IF(DD84=0,0,DD85*1000/DD84) -> 0 | DE82: =IF(DE84=0,0,DE85*1000/DE84) -> 0 | DF82: =IF(DF84=0,0,DF85*1000/DF84) -> 0 | DG82: =IF(DG84=0,0,DG85*1000/DG84) -> 0
F83: 7.1.2 | J83: с НДС | N83: =F83 & "::" & L56 -> 7.1.2::ACTI | BD83: =IF(BD84=0,0,BD86*1000/BD84) -> 0 | BE83: =IF(BE84=0,0,BE86*1000/BE84) -> 0 | BF83: =IF(BF84=0,0,BF86*1000/BF84) -> 0 | BG83: =IF(BG84=0,0,BG86*1000/BG84) -> 0 | BX83: =IF(BX84=0,0,BX86*1000/BX84) -> 0 | BY83: =IF(BY84=0,0,BY86*1000/BY84) -> 0 | BZ83: =IF(BZ84=0,0,BZ86*1000/BZ84) -> 0 | CA83: =IF(CA84=0,0,CA86*1000/CA84) -> 0 | DD83: =IF(DD84=0,0,DD86*1000/DD84) -> 0 | DE83: =IF(DE84=0,0,DE86*1000/DE84) -> 0 | DF83: =IF(DF84=0,0,DF86*1000/DF84) -> 0 | DG83: =IF(DG84=0,0,DG86*1000/DG84) -> 0
F84: 7.2 | I84: Объём топлива | N84: =F84 & "::" & L56 -> 7.2::ACTI | BD84: =SUM(BH84,BL84,BP84,BT84) -> 0 | BE84: 0 | BF84: 0 | BG84: =SUM(BK84,BO84,BS84,BW84) -> 0 | BX84: =SUM(CB84,CF84,CJ84,CN84,CR84,CV84) -> 0 | BY84: 0 | BZ84: 0 | CA84: 0 | DD84: =SUM(DH84,DL84,DP84,DT84,DX84,EB84,EF84,EJ84,EN84) -> 0 | DE84: 0 | DF84: 0 | DG84: 0
F85: 7.3.1 | I85: Затраты (тыс.руб.) | J85: без НДС | N85: =F85 & "::" & L56 -> 7.3.1::ACTI | BD85: 0 | BE85: 0 | BF85: 0 | BG85: =SUM(BK85,BO85,BS85,BW85) -> 0 | BX85: 0 | BY85: 0 | BZ85: 0 | CA85: 0 | DD85: 0 | DE85: 0 | DF85: 0 | DG85: 0
F86: 7.3.2 | J86: с НДС | N86: =F86 & "::" & L56 -> 7.3.2::ACTI | BD86: 0 | BE86: 0 | BF86: 0 | BG86: =SUM(BK86,BO86,BS86,BW86) -> 0 | BX86: 0 | BY86: 0 | BZ86: 0 | CA86: 0 | DD86: 0 | DE86: 0 | DF86: 0 | DG86: 0
F87: 8.1 | G87: Электроэнергия | H87: Затраты, всего (тыс.руб.) | J87: без НДС | N87: =F87 & "::" & L56 -> 8.1::ACTI
F88: 8.2 | J88: с НДС | N88: =F88 & "::" & L56 -> 8.2::ACTI
F89: 9 | H89: Объём энергии / заявленной мощности | N89: =F89 & "::" & L56 -> 9::ACTI
F90: 10.1 | H90: Тариф на энергию / заявленную мощность (руб./кВт*ч / руб./кВт*мес) | J90: без НДС | N90: =F90 & "::" & L56 -> 10.1::ACTI
F91: 10.2 | J91: с НДС | N91: =F91 & "::" & L56 -> 10.2::ACTI
G92: Добавить

Sheet Поставки топлива
F8: ="Информация о поставках топлива по итогам " & CURRENT_PRD & " " & god & " года. " & "Субъект Российской Федерации: " & REGION_NAME -> Информация о поставках топлива по итогам I квартала 2020 года. Субъект Российской Федерации: Ставропольский край | AU8: * Если элементов в списке недостаточно, пожалуйста, обратитесь в службу сопровождения с запросом на добавление необходимых вариантов для расширения перечня, а затем обновите данные с помощью кнопки
F13: № п/п | G13: ИНН | H13: КПП | I13: Наименование юридического лица | K13: Наименование (описание) обособленного подразделения | L13: Вид(-ы) деятельности организации | M13: Плательщик НДС | T13: TAX | X13: № п/п | Z13: Вид топлива | AA13: Марка топлива | AB13: Период | AC13: Наличие поставок и факт использования топлива в периоде | AD13: Поставщик продукции | AI13: Грузополучатель продукции | AO13: Контракт / договор, в соответствии с которым осуществлялась отгрузка товара | AR13: Дополнительное соглашение, спецификация либо иное приложение к контракту / договору, в соответствии с которым осуществлялась отгрузка товара | AU13: Основание заключения контракта / договора, в соответствии с которым осуществлялась отгрузка товара | AV13: URL-ссылка на закупку | AW13: Номер закупочной процедуры | AX13: Дата отгрузки продукции | AZ13: Счёт-фактура | BB13: Условие поставки продукции в соответствии с Инкотермс 2010 | BD13: Идентификационный номер внебиржевого договора, зарегистрированного на АО "СПбМТСБ" | BF13: Адрес сайта, на котором размещена документация по конкурентным процедурам | BJ13: Станция / место отправления продукции | BL13: Станция / место поставки продукции | BT13: Плечо доставки, км | BY13: Способ доставки топлива | CA13: Цена продукции на базисе контракта / договора (руб./ед.изм.) (включает транспортные расходы) | CC13: Транспортные расходы (руб./ед.изм.) | CE13: Цена продукции без учёта транспортных расходов (руб./ед.изм.) | CG13: Объём отгрузки продукции (ед.изм.) | CH13: Затраты на продукцию, всего (тыс.руб.) | CJ13: ="Запасы топлива прошлых периодов (до " & god & " года), созданных до 31.12." & god-1 & " включительно (ед.изм.)" -> Запасы топлива прошлых периодов (до 2020 года), созданных до 31.12.2019 включительно (ед.изм.) | CK13: ="Запасы топлива, созданные в течение " & god & " года (ед.изм.)" -> Запасы топлива, созданные в течение 2020 года (ед.изм.) | CL13: ="Использование в течение " & god & " года запасов топлива, в том числе прошлых периодов (до " & god & " года), создаваемых (созданных) до 31.12." & god & " включительно (ед.изм.)" -> Использование в течение 2020 года запасов топлива, в том числе прошлых периодов (до 2020 года), создаваемых (созданных) до 31.12.2020 включительно (ед.изм.) | CP13: FUEL MARKER | CR13: MST | CV13: DSL | CZ13: COA | DJ13: Примечание
AD14: Наименование | AE14: ИНН | AF14: КПП | AG14: Юридический адрес | AI14: Наименование | AJ14: ИНН | AK14: КПП | AL14: Юридический адрес | AO14: Номер | AP14: Дата заключения | AQ14: URL-ссылка на документ | AR14: Номер | AS14: Дата заключения | AT14: URL-ссылка на документ | AZ14: URL-ссылка на документ | CA14: без НДС | CB14: с НДС | CC14: без НДС | CD14: с НДС | CE14: без НДС | CF14: с НДС | CH14: без НДС | CI14: с НДС | CJ14: Всего в наличии | CK14: Всего в наличии | CL14: Всего в наличии | CM14: Использовано | CN14: Остаток на конец периода | CR14: I | CS14: II | CT14: III | CU14: IV | CV14: I | CW14: II | CX14: III | CY14: IV | CZ14: I | DA14: II | DB14: III | DC14: IV
F16: 0
G17: Добавить

Sheet Свод (hidden)
G2: =version -> Версия 1.0
B4: Свод отчётов от организаций | H4: Отчёт заполняется от организации (организаций)
B6: =IF(TOPL_TEMPLATE_MODE="","",TOPL_TEMPLATE_MODE) -> Отчёт заполняется от организации (организаций)
B8: ="Укажите, путь до папки в которой размещены отчёты с кодом " & GetTemplateCode() -> Укажите, путь до папки в которой размещены отчёты с кодом WARM.TOPL.Q1.2020
B10: Выберите шаблон из списка файлов указанной папки
B13: Инструкция по своду данных
B15: Для того чтобы добавить в отчёт данные из других файлов:
B16: 1) Поместите отчёты, данные из которых необходимо добавить, в одну папку. Наименование этой папки необходимо указать в ячейке «C8»: либо вручную, либо с помощью кнопки «Обзор папок…»
B17: 2) Нажмите кнопку «Выгрузить данные из папки»
B19: Для того чтобы добавить в отчёт данные из одного файла:
B20: 1) Укажите в ячейке «C8» путь к папке, в которой находится добавляемый файл
B21: 2) Нажмите кнопку «Сформировать список файлов папки»
B22: 3) В ячейке «C10» выберите из предложенного списка имя файла
B23: 4) Нажмите кнопку «Добавить данные из файла»
B25: Примечания
B26: При запуске функции «Выгрузить данные из всех файлов данной папки» появляется окно «Замена совпадений» с вопросом: «При полном совпадении реквизитов организаций из обрабатываемого отчёта с реквизитами организаций уже присутствующими в данном отчёте, перегружать данные об организациях в данный отчёт?».
B27: Варианты ответа:
B28: - «Всегда заменять» - при совпадении реквизитов данные организаций будут заменяться данными из добавляемого отчёта без подтверждений
B29: - «Спрашивать о замене» - при совпадении реквизитов данные организаций будут заменяться данными из добавляемого отчёта, только если вы подтвердите это в окне «Замена совпадений»
B30: - «Пропускать» - при совпадении реквизитов данные организаций не будут заменяться данными из добавляемого отчёта
B32: Лист «Результаты загрузки» - лист для отображения результатов (ошибок и предупреждений) при переносе данных из других отчётов данного региона.

Sheet Результаты загрузки (hidden)
A1: Файл (для просмотра щелкните по гиперссылке) | B1: Статус

Sheet Комментарии (hidden)
F8: Комментарии
F10: I квартал | G10: I полугодие | H10: 9 месяцев | I10: 12 месяцев

Sheet Проверка
E9: Результаты проверки
E11: Ссылка 1 | F11: Ссылка 2 | G11: Описание причины | H11: Обязательность выполнения

Sheet TECHSHEET (hidden)
A1: Алтайский край | B1: RU22 | C1: Алтайский край | E1: HEAT_PRODUCTION_TYPE_LIST | G1: YES_NO | I1: SUPPLY_FUEL_TYPES | K1: PROTECT_MARKER | M1: DNS | O1: Sogo26 | P1: LOGIN | R1: YEAR_LIST | S1: MONTH_LIST
A2: Амурская область | B2: RU28 | C2: Амурская область | E2: некомбинированное | G2: да | I2: Мазут | K2: FEDERAL.2020 | M2: =USE_DNS_SERVICE -> https://eias.ru | P2: PASSWORD | R2: 2010 | S2: Январь
A3: Архангельская область | B3: RU29 | C3: Архангельская область | E3: комбинированное, более 25 МВт | G3: нет | I3: Дизельное топливо | O3: MD5 | P3: ATH_SCHEME | R3: 2011 | S3: Февраль
A4: Астраханская область | B4: RU30 | C4: Астраханская область | E4: комбинированное, менее 25 МВт | I4: Уголь | M4: NDS | O4: YES | P4: RETAIN_PASSWORD | R4: 2012 | S4: Март
A5: Белгородская область | B5: RU31 | C5: Белгородская область | M5: 1.2 | P5: SESSION_ID | R5: 2013 | S5: Апрель
A6: Брянская область | B6: RU32 | C6: Брянская область | E6: HEAT_VD_COMPONENTS | G6: ORDER_BY | I6: SUPPLY_FUEL_GRADES | K6: INCOTERMS_2010_TERMS | O6: 70:75:68:40:38:56:55:58:57:43 | P6: OBFUSCATED_PASSWORD | R6: 2014 | S6: Май
A7: Владимирская область | B7: RU33 | C7: Владимирская область | E7: Производство | G7: UNDEF | I7: MASUT_GRADE_LIST | K7: EXW (Ex Works / Франко завод) | M7: PERIOD | R7: 2015 | S7: Июнь
A8: Волгоградская область | B8: RU34 | C8: Волгоградская область | E8: Передача | G8: MO | I8: DIESEL_GRADE_LIST | K8: FCA (Free Carrier / Франко перевозчик) | M8: =god -> 2020 | O8: XML_ORG_LIST_TAG_NAMES | R8: 2016 | S8: Июль
A9: Вологодская область | B9: RU35 | C9: Вологодская область | E9: Сбыт | G9: ORG | I9: COAL_GRADE_LIST | K9: CPT (Carriage Paid to / Перевозка оплачена до) | O9: REGION_NAME | R9: 2017 | S9: Август
A10: Воронежская область | B10: RU36 | C10: Воронежская область | I10: М-40 | K10: CIP (Carriage and Insurance Paid to / Перевозка и страхование оплачены до) | M10: Организация | O10: MR_NAME | R10: 2018 | S10: Сентябрь
A11: г. Москва | B11: RU77 | C11: Москва | E11: XML_PLAN1X_AGGREGATE_LIST_TAG_NAMES | I11: М-100 | K11: DAT (Delivered at Terminal / Поставка на терминале) | M11: ="01.01." & PERIOD -> 01.01.2020 | O11: OKTMR_NAME | R11: 2019 | S11: Октябрь
A12: г. Байконур | B12: RU00 | E12: NSRF | G12: XML_PLAN1X_SUBSIDIARY_LIST_TAG_NAMES | I12: М-200 | K12: DAP (Delivered at Place / Поставка в месте назначения) | M12: ="31.12." & PERIOD -> 31.12.2020 | O12: MO_NAME | R12: 2020 | S12: Ноябрь
A13: г. Санкт-Петербург | B13: RU78 | C13: Cанкт-Петербург | E13: FUEL | G13: FIL_NAME | I13: мазут марки "Т" | K13: DDP (Delivered Duty Paid / Поставка с оплатой пошлин) | O13: OKTMO_NAME | R13: 2021 | S13: Декабрь
A14: г. Севастополь | B14: RU92 | C14: Севастополь | E14: PRICE | I14: Ф-5 | M14: Виды деятельности | O14: RST_ORG_ID
A15: Еврейская автономная область | B15: RU79 | C15: Еврейская автономная область | E15: AMOUNT | I15: Ф-12 | M15: ="01.01." & PERIOD -> 01.01.2020 | O15: ORG_NAME
A16: Забайкальский край | B16: RU75 | C16: Забайкальский край | E16: COSTS | G16: XML_PLAN1X_OKOPF_LIST_TAG_NAMES | I16: А (арктическое) | M16: ="31.12." & PERIOD -> 31.12.2020 | O16: INN_NAME
A17: Ивановская область | B17: RU37 | C17: Ивановская область | E17: STATUS | G17: OKOPF_NAME | I17: З (зимнее) | O17: KPP_NAME
A18: Иркутская область | B18: RU38 | C18: Иркутская область | E18: FUEL_COMMENTS_Q4 | I18: Л (летнее) | M18: Территории | O18: VDET_NAME
A19: Кабардино-Балкарская республика | B19: RU07 | C19: Республика Кабардино-Балкария | E19: FUEL_COMMENTS_Q3 | I19: Е (межсезонное) | M19: ="01.01." & PERIOD -> 01.01.2020 | O19: VDET_NAME_LIST
A20: Калининградская область | B20: RU39 | C20: Калининградская область | E20: FUEL_COMMENTS_Q2 | G20: XML_W1X_TOPL_COMS_TAG_NAMES | I20: антрацит | M20: ="31.12." & PERIOD -> 31.12.2020 | O20: VDET_FULL_NAME_LIST
A21: Калужская область | B21: RU40 | C21: Калужская область | E21: FUEL_COMMENTS_Q1 | G21: N | I21: бурый | O21: ORG_START_DATE
A22: Камчатский край | B22: RU41 | C22: Камчатский край | G22: CMT_Q1 | I22: газовый | K22: XML_AUTHORISATION_TAG_NAMES | M22: XML_WTQ1X_DICTIONARIES_TAG_NAMES | O22: ORG_END_DATE
A23: Карачаево-Черкесская республика | B23: RU09 | C23: Республика Карачаево-Черкессия | E23: XML_PLAN1X_HEAT_LIST_ORG_TAG_NAMES | G23: CMT_Q2 | I23: длиннопламенный | K23: L1 | M23: DIC_NAME | O23: VDET_START_DATE
A24: Кемеровская область | B24: RU42 | C24: Кемеровская область | E24: RST_ORG_ID | G24: CMT_Q3 | I24: жирный | K24: L2 | M24: DIC_VALUE | O24: VDET_END_DATE
A25: Кировская область | B25: RU43 | C25: Кировская область | E25: NOMER | G25: CMT_Q4 | I25: коксовый
A26: Костромская область | B26: RU44 | C26: Костромская область | E26: MR | I26: отощённо-спекающийся
A27: Краснодарский край | B27: RU23 | C27: Краснодарский край | E27: MO | I27: слабоспекающийся | K27: SAX_PARSER_FEATURE | M27: XML_PLAN1X_FUEL_USAGE_TAG_NAMES | O27: XML_MR_MO_OKTMO_LIST_TAG_NAMES
A28: Красноярский край | B28: RU24 | C28: Красноярский край | E28: OKTMO | G28: XML_W1X_TOPL_TOTAL_COMS_TAG_NAMES | I28: тощий | K28: YES | M28: ORG_NAME | O28: NSRF
A29: Курганская область | B29: RU45 | C29: Курганская область | E29: INN | G29: VTOP_NAME | M29: INN_NAME | O29: MR_NAME
A30: Курская область | B30: RU46 | C30: Курская область | E30: KPP | G30: VTOP2_NAME | I30: SUPPLY_FACT | M30: KPP_NAME | O30: OKTMO_MR_NAME
A31: Ленинградская область | B31: RU47 | C31: Ленинградская область | E31: ORG | G31: ODP_NAME | I31: да | K31: VALIDATION_SETTINGS | M31: FIL_NAME | O31: MO_NAME
A32: Липецкая область | B32: RU48 | C32: Липецкая область | E32: OKOPF | G32: L_COMMENT | I32: топливо не использовалось | K32: NO | M32: VDET_NAME | O32: OKTMO_NAME
A33: Магаданская область | B33: RU49 | C33: Магаданская область | E33: FIL | I33: использовались запасы прошлых периодов | K33: NO | M33: FUEL_COMBO | O33: TYPE
A34: Московская область | B34: RU50 | C34: Московская область | E34: VDET | K34: NO
A35: Мурманская область | B35: RU51 | C35: Мурманская область | E35: NDS | G35: XML_W1X_TOPL_LIST_RST_ORG_TAG_NAMES | K35: NO | M35: XML_FILE_STORE_DATA_1/2/3_TAG_NAMES | O35: XML_FILE_EGR_BY_ORGN_TAG_NAMES
A36: Ненецкий автономный округ | B36: RU83 | C36: Ненецкий автономный округ | E36: TRANSFER_AGENTS | G36: ORG_NAME | K36: YES | M36: GUID | O36: OGRN
A37: Нижегородская область | B37: RU52 | C37: Нижегородская область | E37: NAME | G37: INN_NAME | M37: MIME | O37: ORG
A38: Новгородская область | B38: RU53 | C38: Новгородская область | E38: POSITION | G38: KPP_NAME | M38: EXTENSION | O38: INN
A39: Новосибирская область | B39: RU54 | C39: Новосибирская область | E39: PHONE | M39: CREATE_DATE | O39: KPP
A40: Омская область | B40: RU55 | C40: Омская область | E40: EMAIL | M40: FORCE_ALLOWED
A41: Оренбургская область | B41: RU56 | C41: Оренбургская область
A42: Орловская область | B42: RU57 | C42: Орловская область | E42: XML_PLAN1X_HEAT_LIST_SRC_TAG_NAMES | G42: XML_W1X_TOPL_ORG_TAG_NAMES | I42: XML_W1X_TOPL_SRC_TAG_NAMES | K42: XML_W1X_TOPL_FUEL_TAG_NAMES | M42: XML_W1X_TOPL_SUPPLY_TAG_NAMES | O42: XML_W1X_TOPL_SUPPLY_PREV_TAG_NAMES
A43: Пензенская область | B43: RU58 | C43: Пензенская область | E43: LGL_ID | G43: LGL_ID | H43: ="HTP.P('<" & G43 & "><![CDATA[' || " & IF(MID(G43,3,4)="STUB","NULL","REC." & G43) & " || ']]></" & G43 & ">');" -> HTP.P('<LGL_ID><![CDATA[' || REC.LGL_ID || ']]></LGL_ID>'); | I43: LGL_ID | J43: ="HTP.P('<" & I43 & "><![CDATA[' || " & IF(MID(I43,3,4)="STUB","NULL","REC." & I43) & " || ']]></" & I43 & ">');" -> HTP.P('<LGL_ID><![CDATA[' || REC.LGL_ID || ']]></LGL_ID>'); | K43: LGL_ID | L43: ="HTP.P('<" & K43 & "><![CDATA[' || " & IF(MID(K43,3,4)="STUB","NULL","REC." & K43) & " || ']]></" & K43 & ">');" -> HTP.P('<LGL_ID><![CDATA[' || REC.LGL_ID || ']]></LGL_ID>'); | M43: LGL_ID | N43: ="HTP.P('<" & M43 & "><![CDATA[' || " & IF(MID(M43,3,4)="STUB","NULL","REC." & M43) & " || ']]></" & M43 & ">');" -> HTP.P('<LGL_ID><![CDATA[' || REC.LGL_ID || ']]></LGL_ID>'); | O43: LGL_ID
A44: Пермский край | B44: RU59 | C44: Пермский край | E44: NOMER_NAME | G44: L_STUB_1 | H44: ="HTP.P('<" & G44 & "><![CDATA[' || " & IF(MID(G44,3,4)="STUB","NULL","REC." & G44) & " || ']]></" & G44 & ">');" -> HTP.P('<L_STUB_1><![CDATA[' || NULL || ']]></L_STUB_1>'); | I44: L_OBJECT_NAME | J44: HTP.P('<L_OBJECT_NAME><![CDATA[' || REC.L_OBJECT_NAME || ']]></L_OBJECT_NAME>'); | K44: NOMER_NAME | L44: ="HTP.P('<" & K44 & "><![CDATA[' || " & IF(MID(K44,3,4)="STUB","NULL","REC." & K44) & " || ']]></" & K44 & ">');" -> HTP.P('<NOMER_NAME><![CDATA[' || REC.NOMER_NAME || ']]></NOMER_NAME>'); | M44: L_STUB_1 | N44: HTP.P('<L_STUB_1><![CDATA[' || NULL || ']]></L_STUB_1>'); | O44: NOMER_NAME
A45: Приморский край | B45: RU25 | C45: Приморский край | E45: L_SERVICE_PRODUCTION | G45: L_STUB_2 | H45: HTP.P('<L_STUB_2><![CDATA[' || NULL || ']]></L_STUB_2>'); | I45: L_OBJECT_TYPE | J45: HTP.P('<L_OBJECT_TYPE><![CDATA[' || REC.L_OBJECT_TYPE || ']]></L_OBJECT_TYPE>'); | K45: VTOP_NAME | L45: ="HTP.P('<" & K45 & "><![CDATA[' || " & IF(MID(K45,3,4)="STUB","NULL","REC." & K45) & " || ']]></" & K45 & ">');" -> HTP.P('<VTOP_NAME><![CDATA[' || REC.VTOP_NAME || ']]></VTOP_NAME>'); | M45: L_STUB_2 | N45: HTP.P('<L_STUB_2><![CDATA[' || NULL || ']]></L_STUB_2>'); | O45: DET_NAME
A46: Псковская область | B46: RU60 | C46: Псковская область | E46: L_SERVICE_TRANSMISSION | G46: L_STUB_3 | H46: HTP.P('<L_STUB_3><![CDATA[' || NULL || ']]></L_STUB_3>'); | I46: L_BASE_SERVICE_1 | J46: HTP.P('<L_BASE_SERVICE_1><![CDATA[' || REC.L_BASE_SERVICE_1 || ']]></L_BASE_SERVICE_1>'); | K46: VTOP2_NAME | L46: ="HTP.P('<" & K46 & "><![CDATA[' || " & IF(MID(K46,3,4)="STUB","NULL","REC." & K46) & " || ']]></" & K46 & ">');" -> HTP.P('<VTOP2_NAME><![CDATA[' || REC.VTOP2_NAME || ']]></VTOP2_NAME>'); | M46: L_STUB_3 | N46: HTP.P('<L_STUB_3><![CDATA[' || NULL || ']]></L_STUB_3>'); | O46: INN_NAME
A47: Республика Адыгея | B47: RU01 | C47: Республика Адыгея | E47: L_SERVICE_SALE | G47: L_STUB_4 | H47: HTP.P('<L_STUB_4><![CDATA[' || NULL || ']]></L_STUB_4>'); | I47: L_BASE_SERVICE_2 | J47: HTP.P('<L_BASE_SERVICE_2><![CDATA[' || REC.L_BASE_SERVICE_2 || ']]></L_BASE_SERVICE_2>'); | K47: ODP_NAME | L47: ="HTP.P('<" & K47 & "><![CDATA[' || " & IF(MID(K47,3,4)="STUB","NULL","REC." & K47) & " || ']]></" & K47 & ">');" -> HTP.P('<ODP_NAME><![CDATA[' || REC.ODP_NAME || ']]></ODP_NAME>'); | M47: L_STUB_4 | N47: HTP.P('<L_STUB_4><![CDATA[' || NULL || ']]></L_STUB_4>'); | O47: KPP_NAME
A48: Республика Алтай | B48: RU04 | C48: Республика Алтай | E48: ORG_NAME | G48: NOMER_NAME | H48: HTP.P('<NOMER_NAME><![CDATA[' || REC.NOMER_NAME || ']]></NOMER_NAME>'); | I48: L_BASE_SERVICE_3 | J48: HTP.P('<L_BASE_SERVICE_3><![CDATA[' || REC.L_BASE_SERVICE_3 || ']]></L_BASE_SERVICE_3>'); | K48: L1_1_1 | L48: ="HTP.P('<" & K48 & ">' || " & IF(MID(K48,3,4)="STUB","NULL","REC." & K48) & " || '</" & K48 & ">');" -> HTP.P('<L1_1_1>' || REC.L1_1_1 || '</L1_1_1>'); | M48: NOMER_NAME | N48: HTP.P('<NOMER_NAME><![CDATA[' || REC.NOMER_NAME || ']]></NOMER_NAME>'); | O48: ORG_NAME
A49: Республика Башкортостан | B49: RU02 | C49: Республика Башкортостан | E49: INN_NAME | G49: INN_NAME | H49: HTP.P('<INN_NAME><![CDATA[' || REC.INN_NAME || ']]></INN_NAME>'); | I49: L_ADDRESS_MR | J49: HTP.P('<L_ADDRESS_MR><![CDATA[' || REC.L_ADDRESS_MR || ']]></L_ADDRESS_MR>'); | K49: L1_1_2 | L49: ="HTP.P('<" & K49 & ">' || " & IF(MID(K49,3,4)="STUB","NULL","REC." & K49) & " || '</" & K49 & ">');" -> HTP.P('<L1_1_2>' || REC.L1_1_2 || '</L1_1_2>'); | M49: INN_NAME | N49: HTP.P('<INN_NAME><![CDATA[' || REC.INN_NAME || ']]></INN_NAME>'); | O49: FIL_NAME
A50: Республика Бурятия | B50: RU03 | C50: Республика Бурятия | E50: KPP_NAME | G50: KPP_NAME | H50: HTP.P('<KPP_NAME><![CDATA[' || REC.KPP_NAME || ']]></KPP_NAME>'); | I50: L_ADDRESS_MO | J50: HTP.P('<L_ADDRESS_MO><![CDATA[' || REC.L_ADDRESS_MO || ']]></L_ADDRESS_MO>'); | K50: L1_2_1 | L50: HTP.P('<L1_2_1>' || REC.L1_2_1 || '</L1_2_1>'); | M50: KPP_NAME | N50: HTP.P('<KPP_NAME><![CDATA[' || REC.KPP_NAME || ']]></KPP_NAME>'); | O50: VDET_NAME
A51: Республика Дагестан | B51: RU05 | C51: Республика Дагестан | E51: FIL_NAME | G51: ORG_NAME | H51: HTP.P('<ORG_NAME><![CDATA[' || REC.ORG_NAME || ']]></ORG_NAME>'); | I51: L_ADDRESS_OKTMO | J51: HTP.P('<L_ADDRESS_OKTMO><![CDATA[' || REC.L_ADDRESS_OKTMO || ']]></L_ADDRESS_OKTMO>'); | K51: L1_2_2 | L51: HTP.P('<L1_2_2>' || REC.L1_2_2 || '</L1_2_2>'); | M51: ORG_NAME | N51: HTP.P('<ORG_NAME><![CDATA[' || REC.ORG_NAME || ']]></ORG_NAME>'); | O51: L_TAX
A52: Республика Ингушетия | B52: RU06 | C52: Республика Ингушетия | E52: NOMER2_NAME | G52: OKOPF_NAME | H52: HTP.P('<OKOPF_NAME><![CDATA[' || REC.OKOPF_NAME || ']]></OKOPF_NAME>'); | I52: L_ADDRESS_LOCATION | J52: HTP.P('<L_ADDRESS_LOCATION><![CDATA[' || REC.L_ADDRESS_LOCATION || ']]></L_ADDRESS_LOCATION>'); | K52: L1_3_1 | L52: HTP.P('<L1_3_1>' || REC.L1_3_1 || '</L1_3_1>'); | M52: L_STUB_5 | N52: HTP.P('<L_STUB_5><![CDATA[' || NULL || ']]></L_STUB_5>'); | O52: L_FUEL_TYPE
A53: Республика Калмыкия | B53: RU08 | C53: Республика Калмыкия | E53: NMOB_NAME | G53: FIL_NAME | H53: HTP.P('<FIL_NAME><![CDATA[' || REC.FIL_NAME || ']]></FIL_NAME>'); | I53: L_ADDRESS_LOC_OKTMO | J53: HTP.P('<L_ADDRESS_LOC_OKTMO><![CDATA[' || REC.L_ADDRESS_LOC_OKTMO || ']]></L_ADDRESS_LOC_OKTMO>'); | K53: L1_3_2 | L53: HTP.P('<L1_3_2>' || REC.L1_3_2 || '</L1_3_2>'); | M53: FIL_NAME | N53: HTP.P('<FIL_NAME><![CDATA[' || REC.FIL_NAME || ']]></FIL_NAME>'); | O53: L_FUEL_GRADE
A54: Республика Карелия | B54: RU10 | C54: Республика Карелия | E54: DET_NAME | G54: VDET_NAME | H54: HTP.P('<VDET_NAME><![CDATA[' || REC.VDET_NAME || ']]></VDET_NAME>'); | I54: L_ADDRESS_STREET | J54: HTP.P('<L_ADDRESS_STREET><![CDATA[' || REC.L_ADDRESS_STREET || ']]></L_ADDRESS_STREET>'); | K54: L2_1 | L54: HTP.P('<L2_1>' || REC.L2_1 || '</L2_1>'); | M54: VDET_NAME | N54: HTP.P('<VDET_NAME><![CDATA[' || REC.VDET_NAME || ']]></VDET_NAME>'); | O54: L_PERIOD
A55: Республика Коми | B55: RU11 | C55: Республика Коми | E55: L_ADDRESS_MR | G55: NDS | H55: HTP.P('<NDS><![CDATA[' || REC.NDS || ']]></NDS>'); | I55: L_ADDRESS_BUILDING | J55: HTP.P('<L_ADDRESS_BUILDING><![CDATA[' || REC.L_ADDRESS_BUILDING || ']]></L_ADDRESS_BUILDING>'); | K55: L2_2 | L55: HTP.P('<L2_2>' || REC.L2_2 || '</L2_2>'); | M55: L_TAX | N55: HTP.P('<L_TAX><![CDATA[' || REC.L_TAX || ']]></L_TAX>'); | O55: L_FUEL_BALANCE
A56: Республика Крым | B56: RU82 | C56: Крым | E56: L_ADDRESS_MO | G56: DPR_NAME | H56: HTP.P('<DPR_NAME><![CDATA[' || REC.DPR_NAME || ']]></DPR_NAME>'); | I56: L_STUB_1 | J56: HTP.P('<L_STUB_1><![CDATA[' || NULL || ']]></L_STUB_1>'); | K56: L2_3 | L56: HTP.P('<L2_3>' || REC.L2_3 || '</L2_3>'); | M56: L_STUB_6 | N56: HTP.P('<L_STUB_6><![CDATA[' || NULL || ']]></L_STUB_6>');
A57: Республика Марий Эл | B57: RU12 | C57: Республика Марий Эл | E57: L_ADDRESS_OKTMO | G57: RST_ORG_ID | H57: HTP.P('<RST_ORG_ID><![CDATA[' || REC.RST_ORG_ID || ']]></RST_ORG_ID>'); | I57: L_STUB_2 | J57: HTP.P('<L_STUB_2><![CDATA[' || NULL || ']]></L_STUB_2>'); | K57: L3_1 | L57: HTP.P('<L3_1>' || REC.L3_1 || '</L3_1>'); | M57: L_STUB_7 | N57: HTP.P('<L_STUB_7><![CDATA[' || NULL || ']]></L_STUB_7>');
A58: Республика Мордовия | B58: RU13 | C58: Республика Мордовия | E58: L_ADDRESS_LOCATION | G58: L_STUB_5 | H58: HTP.P('<L_STUB_5><![CDATA[' || NULL || ']]></L_STUB_5>'); | I58: L_STUB_3 | J58: HTP.P('<L_STUB_3><![CDATA[' || NULL || ']]></L_STUB_3>'); | K58: L3_2 | L58: HTP.P('<L3_2>' || REC.L3_2 || '</L3_2>'); | M58: L_STUB_8 | N58: HTP.P('<L_STUB_8><![CDATA[' || NULL || ']]></L_STUB_8>');
A59: Республика Саха (Якутия) | B59: RU14 | C59: Республика Саха (Якутия) | E59: L_ADDRESS_LOC_OKTMO | G59: L_STUB_6 | H59: HTP.P('<L_STUB_6><![CDATA[' || NULL || ']]></L_STUB_6>'); | I59: L_STUB_4 | J59: HTP.P('<L_STUB_4><![CDATA[' || NULL || ']]></L_STUB_4>'); | K59: L4_1_1 | L59: HTP.P('<L4_1_1>' || REC.L4_1_1 || '</L4_1_1>'); | M59: L_STUB_9 | N59: HTP.P('<L_STUB_9><![CDATA[' || NULL || ']]></L_STUB_9>');
A60: Республика Северная Осетия-Алания | B60: RU15 | C60: Республика Северная Осетия (Алания) | E60: L_ADDRESS_STREET | G60: MR_NAME | H60: HTP.P('<MR_NAME><![CDATA[' || REC.MR_NAME || ']]></MR_NAME>'); | I60: L_STUB_5 | J60: HTP.P('<L_STUB_5><![CDATA[' || NULL || ']]></L_STUB_5>'); | K60: L4_1_2 | L60: HTP.P('<L4_1_2>' || REC.L4_1_2 || '</L4_1_2>'); | M60: L_STUB_10 | N60: HTP.P('<L_STUB_10><![CDATA[' || NULL || ']]></L_STUB_10>');
A61: Республика Татарстан | B61: RU16 | C61: Республика Татарстан | E61: L_ADDRESS_BUILDING | G61: MO_NAME | H61: HTP.P('<MO_NAME><![CDATA[' || REC.MO_NAME || ']]></MO_NAME>'); | I61: L_STUB_6 | J61: HTP.P('<L_STUB_6><![CDATA[' || NULL || ']]></L_STUB_6>'); | K61: L4_2 | L61: HTP.P('<L4_2>' || REC.L4_2 || '</L4_2>'); | M61: L_STUB_11 | N61: HTP.P('<L_STUB_11><![CDATA[' || NULL || ']]></L_STUB_11>');
A62: Республика Тыва | B62: RU17 | C62: Республика Тыва (Тува) | E62: DET2_NAME | G62: OKTMO_NAME | H62: HTP.P('<OKTMO_NAME><![CDATA[' || REC.OKTMO_NAME || ']]></OKTMO_NAME>'); | I62: L_SERVICE_AREA_MR | J62: HTP.P('<L_SERVICE_AREA_MR><![CDATA[' || REC.L_SERVICE_AREA_MR || ']]></L_SERVICE_AREA_MR>'); | K62: L5_1_1 | L62: HTP.P('<L5_1_1>' || REC.L5_1_1 || '</L5_1_1>'); | M62: L_STUB_12 | N62: HTP.P('<L_STUB_12><![CDATA[' || NULL || ']]></L_STUB_12>');
A63: Республика Хакасия | B63: RU19 | C63: Республика Хакасия | E63: MR_NAME | G63: L_STUB_7 | H63: HTP.P('<L_STUB_7><![CDATA[' || NULL || ']]></L_STUB_7>'); | I63: L_SERVICE_AREA_MO | J63: HTP.P('<L_SERVICE_AREA_MO><![CDATA[' || REC.L_SERVICE_AREA_MO || ']]></L_SERVICE_AREA_MO>'); | K63: L5_1_2 | L63: HTP.P('<L5_1_2>' || REC.L5_1_2 || '</L5_1_2>'); | M63: L_STUB_13 | N63: HTP.P('<L_STUB_13><![CDATA[' || NULL || ']]></L_STUB_13>');
A64: Ростовская область | B64: RU61 | C64: Ростовская область | E64: MO_NAME | G64: L_STUB_8 | H64: HTP.P('<L_STUB_8><![CDATA[' || NULL || ']]></L_STUB_8>'); | I64: L_SERVICE_AREA_OKTMO | J64: HTP.P('<L_SERVICE_AREA_OKTMO><![CDATA[' || REC.L_SERVICE_AREA_OKTMO || ']]></L_SERVICE_AREA_OKTMO>'); | K64: L5_2 | L64: HTP.P('<L5_2>' || REC.L5_2 || '</L5_2>'); | M64: L_STUB_14 | N64: HTP.P('<L_STUB_14><![CDATA[' || NULL || ']]></L_STUB_14>');
A65: Рязанская область | B65: RU62 | C65: Рязанская область | E65: OKTMO_NAME | G65: PREVIOUS_NMBR | H65: HTP.P('<PREVIOUS_NMBR><![CDATA[' || REC.PREVIOUS_NMBR || ']]></PREVIOUS_NMBR>'); | I65: L_SERVICE_AREA_LOCATION | J65: HTP.P('<L_SERVICE_AREA_LOCATION><![CDATA[' || REC.L_SERVICE_AREA_LOCATION || ']]></L_SERVICE_AREA_LOCATION>'); | K65: L5_3_1 | L65: HTP.P('<L5_3_1>' || REC.L5_3_1 || '</L5_3_1>'); | M65: L_STUB_15 | N65: HTP.P('<L_STUB_15><![CDATA[' || NULL || ']]></L_STUB_15>');
A66: Самарская область | B66: RU63 | C66: Самарская область | E66: LOCATION_NAME | G66: L_STUB_10 | H66: HTP.P('<L_STUB_10><![CDATA[' || NULL || ']]></L_STUB_10>'); | I66: L_SERVICE_AREA_LOC_OKTMO | J66: HTP.P('<L_SERVICE_AREA_LOC_OKTMO><![CDATA[' || REC.L_SERVICE_AREA_LOC_OKTMO || ']]></L_SERVICE_AREA_LOC_OKTMO>'); | K66: L5_3_2 | L66: HTP.P('<L5_3_2>' || REC.L5_3_2 || '</L5_3_2>'); | M66: L_STUB_16 | N66: HTP.P('<L_STUB_16><![CDATA[' || NULL || ']]></L_STUB_16>');
A67: Саратовская область | B67: RU64 | C67: Саратовская область | E67: LOCATION_OKTMO_NAME | G67: L_STUB_11 | H67: HTP.P('<L_STUB_11><![CDATA[' || NULL || ']]></L_STUB_11>'); | I67: L_STUB_7 | J67: HTP.P('<L_STUB_7><![CDATA[' || NULL || ']]></L_STUB_7>'); | K67: L6_1_1 | L67: HTP.P('<L6_1_1>' || REC.L6_1_1 || '</L6_1_1>'); | M67: DET_NAME | N67: HTP.P('<DET_NAME><![CDATA[' || REC.DET_NAME || ']]></DET_NAME>');
A68: Сахалинская область | B68: RU65 | C68: Сахалинская область | E68: L_PR_IC | G68: L_STUB_12 | H68: HTP.P('<L_STUB_12><![CDATA[' || NULL || ']]></L_STUB_12>'); | I68: L_STUB_8 | J68: HTP.P('<L_STUB_8><![CDATA[' || NULL || ']]></L_STUB_8>'); | K68: L6_1_2 | L68: HTP.P('<L6_1_2>' || REC.L6_1_2 || '</L6_1_2>'); | M68: L_FUEL_TYPE | N68: HTP.P('<L_FUEL_TYPE><![CDATA[' || REC.L_FUEL_TYPE || ']]></L_FUEL_TYPE>');
A69: Свердловская область | B69: RU66 | C69: Свердловская область | E69: L_PR_CL | G69: L_STUB_13 | H69: HTP.P('<L_STUB_13><![CDATA[' || NULL || ']]></L_STUB_13>'); | I69: L_STUB_9 | J69: HTP.P('<L_STUB_9><![CDATA[' || NULL || ']]></L_STUB_9>'); | K69: L6_2 | L69: HTP.P('<L6_2>' || REC.L6_2 || '</L6_2>'); | M69: L_FUEL_GRADE | N69: HTP.P('<L_FUEL_GRADE><![CDATA[' || REC.L_FUEL_GRADE || ']]></L_FUEL_GRADE>');
A70: Смоленская область | B70: RU67 | C70: Смоленская область | E70: L_TR_IC | G70: L_STUB_14 | H70: HTP.P('<L_STUB_14><![CDATA[' || NULL || ']]></L_STUB_14>'); | I70: L_STUB_10 | J70: HTP.P('<L_STUB_10><![CDATA[' || NULL || ']]></L_STUB_10>'); | K70: L6_3_1 | L70: HTP.P('<L6_3_1>' || REC.L6_3_1 || '</L6_3_1>'); | M70: L_PERIOD | N70: HTP.P('<L_PERIOD><![CDATA[' || REC.L_PERIOD || ']]></L_PERIOD>');
A71: Ставропольский край | B71: RU26 | C71: Ставропольский край | E71: L_TR_CL | G71: TRANSFER_AGENTS | H71: HTP.P('<TRANSFER_AGENTS><![CDATA[' || REC.TRANSFER_AGENTS || ']]></TRANSFER_AGENTS>'); | I71: L_STUB_11 | J71: HTP.P('<L_STUB_11><![CDATA[' || NULL || ']]></L_STUB_11>'); | K71: L6_3_2 | L71: HTP.P('<L6_3_2>' || REC.L6_3_2 || '</L6_3_2>'); | M71: L_SUPPLY_EXISTENCE | N71: HTP.P('<L_SUPPLY_EXISTENCE><![CDATA[' || REC.L_SUPPLY_EXISTENCE || ']]></L_SUPPLY_EXISTENCE>');
A72: Тамбовская область | B72: RU68 | C72: Тамбовская область | E72: L_SL_IC | G72: L_STUB_15 | H72: HTP.P('<L_STUB_15><![CDATA[' || NULL || ']]></L_STUB_15>'); | I72: L_STUB_12 | J72: HTP.P('<L_STUB_12><![CDATA[' || NULL || ']]></L_STUB_12>'); | K72: L7_1_1 | L72: HTP.P('<L7_1_1>' || REC.L7_1_1 || '</L7_1_1>'); | M72: L_SUPPLIER_NAME | N72: HTP.P('<L_SUPPLIER_NAME><![CDATA[' || REC.L_SUPPLIER_NAME || ']]></L_SUPPLIER_NAME>');
A73: Тверская область | B73: RU69 | C73: Тверская область | E73: L_SL_CL | G73: L_STUB_16 | H73: HTP.P('<L_STUB_16><![CDATA[' || NULL || ']]></L_STUB_16>'); | I73: L_STUB_13 | J73: HTP.P('<L_STUB_13><![CDATA[' || NULL || ']]></L_STUB_13>'); | K73: L7_1_2 | L73: HTP.P('<L7_1_2>' || REC.L7_1_2 || '</L7_1_2>'); | M73: L_SUPPLIER_INN | N73: HTP.P('<L_SUPPLIER_INN><![CDATA[' || REC.L_SUPPLIER_INN || ']]></L_SUPPLIER_INN>');
A74: Томская область | B74: RU70 | C74: Томская область | G74: L_STUB_17 | H74: HTP.P('<L_STUB_17><![CDATA[' || NULL || ']]></L_STUB_17>'); | I74: L_STUB_14 | J74: HTP.P('<L_STUB_14><![CDATA[' || NULL || ']]></L_STUB_14>'); | K74: L7_2 | L74: HTP.P('<L7_2>' || REC.L7_2 || '</L7_2>'); | M74: L_SUPPLIER_KPP | N74: HTP.P('<L_SUPPLIER_KPP><![CDATA[' || REC.L_SUPPLIER_KPP || ']]></L_SUPPLIER_KPP>');
A75: Тульская область | B75: RU71 | C75: Тульская область | G75: L_STUB_18 | H75: HTP.P('<L_STUB_18><![CDATA[' || NULL || ']]></L_STUB_18>'); | I75: L_PR_IC | J75: ="HTP.P('<" & I75 & "><![CDATA[' || " & IF(MID(I75,3,4)="STUB","NULL","REC." & I75) & " || ']]></" & I75 & ">');" -> HTP.P('<L_PR_IC><![CDATA[' || REC.L_PR_IC || ']]></L_PR_IC>'); | K75: L7_3_1 | L75: HTP.P('<L7_3_1>' || REC.L7_3_1 || '</L7_3_1>'); | M75: L_SUPPLIER_ADDRESS | N75: ="HTP.P('<" & M75 & "><![CDATA[' || " & IF(MID(M75,3,4)="STUB","NULL","REC." & M75) & " || ']]></" & M75 & ">');" -> HTP.P('<L_SUPPLIER_ADDRESS><![CDATA[' || REC.L_SUPPLIER_ADDRESS || ']]></L_SUPPLIER_ADDRESS>');
A76: Тюменская область | B76: RU72 | C76: Тюменская область | G76: L_STUB_19 | H76: HTP.P('<L_STUB_19><![CDATA[' || NULL || ']]></L_STUB_19>'); | I76: L_PR_CL | J76: HTP.P('<L_PR_CL><![CDATA[' || REC.L_PR_CL || ']]></L_PR_CL>'); | K76: L7_3_2 | L76: HTP.P('<L7_3_2>' || REC.L7_3_2 || '</L7_3_2>'); | M76: L_STUB_17 | N76: HTP.P('<L_STUB_17><![CDATA[' || NULL || ']]></L_STUB_17>');
A77: Удмуртская республика | B77: RU18 | C77: Республика Удмуртия | G77: L_STUB_20 | H77: HTP.P('<L_STUB_20><![CDATA[' || NULL || ']]></L_STUB_20>'); | I77: L_TR_IC | J77: HTP.P('<L_TR_IC><![CDATA[' || REC.L_TR_IC || ']]></L_TR_IC>'); | K77: L8_1 | L77: HTP.P('<L8_1>' || REC.L8_1 || '</L8_1>'); | M77: L_CONSIGNEE_NAME | N77: HTP.P('<L_CONSIGNEE_NAME><![CDATA[' || REC.L_CONSIGNEE_NAME || ']]></L_CONSIGNEE_NAME>');
A78: Ульяновская область | B78: RU73 | C78: Ульяновская область | G78: L_STUB_21 | H78: HTP.P('<L_STUB_21><![CDATA[' || NULL || ']]></L_STUB_21>'); | I78: L_TR_CL | J78: HTP.P('<L_TR_CL><![CDATA[' || REC.L_TR_CL || ']]></L_TR_CL>'); | K78: L8_2 | L78: HTP.P('<L8_2>' || REC.L8_2 || '</L8_2>'); | M78: L_CONSIGNEE_INN | N78: HTP.P('<L_CONSIGNEE_INN><![CDATA[' || REC.L_CONSIGNEE_INN || ']]></L_CONSIGNEE_INN>');
A79: Хабаровский край | B79: RU27 | C79: Хабаровский край | G79: L_STUB_22 | H79: HTP.P('<L_STUB_22><![CDATA[' || NULL || ']]></L_STUB_22>'); | I79: L_SL_IC | J79: HTP.P('<L_SL_IC><![CDATA[' || REC.L_SL_IC || ']]></L_SL_IC>'); | K79: L9 | L79: HTP.P('<L9>' || REC.L9 || '</L9>'); | M79: L_CONSIGNEE_KPP | N79: HTP.P('<L_CONSIGNEE_KPP><![CDATA[' || REC.L_CONSIGNEE_KPP || ']]></L_CONSIGNEE_KPP>');
A80: Ханты-Мансийский автономный округ | B80: RU86 | C80: Ханты-Мансийский автономный округ | G80: L_STUB_23 | H80: HTP.P('<L_STUB_23><![CDATA[' || NULL || ']]></L_STUB_23>'); | I80: L_SL_CL | J80: HTP.P('<L_SL_CL><![CDATA[' || REC.L_SL_CL || ']]></L_SL_CL>'); | K80: L10_1 | L80: HTP.P('<L10_1>' || REC.L10_1 || '</L10_1>'); | M80: L_CONSIGNEE_ADDRESS | N80: HTP.P('<L_CONSIGNEE_ADDRESS><![CDATA[' || REC.L_CONSIGNEE_ADDRESS || ']]></L_CONSIGNEE_ADDRESS>');
A81: Челябинская область | B81: RU74 | C81: Челябинская область | G81: L_STUB_24 | H81: HTP.P('<L_STUB_24><![CDATA[' || NULL || ']]></L_STUB_24>'); | I81: L_STUB_15 | J81: HTP.P('<L_STUB_15><![CDATA[' || NULL || ']]></L_STUB_15>'); | K81: L10_2 | L81: HTP.P('<L10_2>' || REC.L10_2 || '</L10_2>'); | M81: L_STUB_18 | N81: HTP.P('<L_STUB_18><![CDATA[' || NULL || ']]></L_STUB_18>');
A82: Чеченская республика | B82: RU20 | C82: Республика Чечня | G82: L_STUB_25 | H82: HTP.P('<L_STUB_25><![CDATA[' || NULL || ']]></L_STUB_25>'); | I82: L_STUB_16 | J82: HTP.P('<L_STUB_16><![CDATA[' || NULL || ']]></L_STUB_16>'); | M82: L_STUB_19 | N82: HTP.P('<L_STUB_19><![CDATA[' || NULL || ']]></L_STUB_19>');
A83: Чувашская республика | B83: RU21 | C83: Республика Чувашия | G83: L_STUB_26 | H83: HTP.P('<L_STUB_26><![CDATA[' || NULL || ']]></L_STUB_26>'); | I83: L_STUB_17 | J83: HTP.P('<L_STUB_17><![CDATA[' || NULL || ']]></L_STUB_17>'); | M83: L_CONTRACT_NMBR | N83: HTP.P('<L_CONTRACT_NMBR><![CDATA[' || REC.L_CONTRACT_NMBR || ']]></L_CONTRACT_NMBR>');
A84: Чукотский автономный округ | B84: RU87 | C84: Чукотский автономный округ | G84: L_STUB_27 | H84: HTP.P('<L_STUB_27><![CDATA[' || NULL || ']]></L_STUB_27>'); | I84: L_STUB_18 | J84: HTP.P('<L_STUB_18><![CDATA[' || NULL || ']]></L_STUB_18>'); | M84: L_CONTRACT_DATE | N84: HTP.P('<L_CONTRACT_DATE><![CDATA[' || REC.L_CONTRACT_DATE || ']]></L_CONTRACT_DATE>');
A85: Ямало-Ненецкий автономный округ | B85: RU89 | C85: Ямало-Ненецкий автономный округ | G85: L_STUB_28 | H85: HTP.P('<L_STUB_28><![CDATA[' || NULL || ']]></L_STUB_28>'); | I85: L_STUB_19 | J85: HTP.P('<L_STUB_19><![CDATA[' || NULL || ']]></L_STUB_19>'); | M85: L_CONTRACT_URL | N85: HTP.P('<L_CONTRACT_URL><![CDATA[' || REC.L_CONTRACT_URL || ']]></L_CONTRACT_URL>');
A86: Ярославская область | B86: RU76 | C86: Ярославская область | G86: L_STUB_29 | H86: HTP.P('<L_STUB_29><![CDATA[' || NULL || ']]></L_STUB_29>'); | I86: L_STUB_20 | J86: HTP.P('<L_STUB_20><![CDATA[' || NULL || ']]></L_STUB_20>'); | M86: L_EXT_DOCUMENT_NMBR | N86: HTP.P('<L_EXT_DOCUMENT_NMBR><![CDATA[' || REC.L_EXT_DOCUMENT_NMBR || ']]></L_EXT_DOCUMENT_NMBR>');
C87: г. Москва | G87: L_STUB_30 | H87: HTP.P('<L_STUB_30><![CDATA[' || NULL || ']]></L_STUB_30>'); | I87: L_STUB_21 | J87: HTP.P('<L_STUB_21><![CDATA[' || NULL || ']]></L_STUB_21>'); | M87: L_EXT_DOCUMENT_DATE | N87: HTP.P('<L_EXT_DOCUMENT_DATE><![CDATA[' || REC.L_EXT_DOCUMENT_DATE || ']]></L_EXT_DOCUMENT_DATE>');
G88: L_STUB_31 | H88: HTP.P('<L_STUB_31><![CDATA[' || NULL || ']]></L_STUB_31>'); | I88: L_STUB_22 | J88: HTP.P('<L_STUB_22><![CDATA[' || NULL || ']]></L_STUB_22>'); | M88: L_EXT_DOCUMENT_URL | N88: HTP.P('<L_EXT_DOCUMENT_URL><![CDATA[' || REC.L_EXT_DOCUMENT_URL || ']]></L_EXT_DOCUMENT_URL>');
G89: L_STUB_32 | H89: HTP.P('<L_STUB_32><![CDATA[' || NULL || ']]></L_STUB_32>'); | I89: L_STUB_23 | J89: HTP.P('<L_STUB_23><![CDATA[' || NULL || ']]></L_STUB_23>'); | M89: L_CONTRACT_BASE | N89: HTP.P('<L_CONTRACT_BASE><![CDATA[' || REC.L_CONTRACT_BASE || ']]></L_CONTRACT_BASE>');
G90: L_STUB_33 | H90: HTP.P('<L_STUB_33><![CDATA[' || NULL || ']]></L_STUB_33>'); | I90: L_STUB_24 | J90: HTP.P('<L_STUB_24><![CDATA[' || NULL || ']]></L_STUB_24>'); | M90: L_PURCHASE_URL | N90: HTP.P('<L_PURCHASE_URL><![CDATA[' || REC.L_PURCHASE_URL || ']]></L_PURCHASE_URL>');
G91: L_STUB_34 | H91: HTP.P('<L_STUB_34><![CDATA[' || NULL || ']]></L_STUB_34>'); | I91: L_STUB_25 | J91: HTP.P('<L_STUB_25><![CDATA[' || NULL || ']]></L_STUB_25>'); | M91: L_PURCHASE_REG_NUMBER | N91: HTP.P('<L_PURCHASE_REG_NUMBER><![CDATA[' || REC.L_PURCHASE_REG_NUMBER || ']]></L_PURCHASE_REG_NUMBER>');
G92: L_STUB_35 | H92: HTP.P('<L_STUB_35><![CDATA[' || NULL || ']]></L_STUB_35>'); | I92: L_STUB_26 | J92: HTP.P('<L_STUB_26><![CDATA[' || NULL || ']]></L_STUB_26>'); | M92: L_SHIPMENT_DATE | N92: HTP.P('<L_SHIPMENT_DATE><![CDATA[' || REC.L_SHIPMENT_DATE || ']]></L_SHIPMENT_DATE>');
G93: L_STUB_36 | H93: HTP.P('<L_STUB_36><![CDATA[' || NULL || ']]></L_STUB_36>'); | I93: L_STUB_27 | J93: HTP.P('<L_STUB_27><![CDATA[' || NULL || ']]></L_STUB_27>'); | M93: L_STUB_21 | N93: HTP.P('<L_STUB_21><![CDATA[' || NULL || ']]></L_STUB_21>');
G94: L_STUB_37 | H94: HTP.P('<L_STUB_37><![CDATA[' || NULL || ']]></L_STUB_37>'); | I94: L_STUB_28 | J94: HTP.P('<L_STUB_28><![CDATA[' || NULL || ']]></L_STUB_28>'); | M94: L_INVOICE_URL | N94: HTP.P('<L_INVOICE_URL><![CDATA[' || REC.L_INVOICE_URL || ']]></L_INVOICE_URL>');
G95: L_STUB_38 | H95: HTP.P('<L_STUB_38><![CDATA[' || NULL || ']]></L_STUB_38>'); | I95: L_STUB_29 | J95: HTP.P('<L_STUB_29><![CDATA[' || NULL || ']]></L_STUB_29>'); | M95: L_STUB_22 | N95: HTP.P('<L_STUB_22><![CDATA[' || NULL || ']]></L_STUB_22>');
G96: L_STUB_39 | H96: HTP.P('<L_STUB_39><![CDATA[' || NULL || ']]></L_STUB_39>'); | I96: L_STUB_30 | J96: HTP.P('<L_STUB_30><![CDATA[' || NULL || ']]></L_STUB_30>'); | M96: L_DELIVERY_CONDITIONS | N96: HTP.P('<L_DELIVERY_CONDITIONS><![CDATA[' || REC.L_DELIVERY_CONDITIONS || ']]></L_DELIVERY_CONDITIONS>');
G97: L_STUB_40 | H97: HTP.P('<L_STUB_40><![CDATA[' || NULL || ']]></L_STUB_40>'); | I97: L_COMMENTS | J97: HTP.P('<L_COMMENTS><![CDATA[' || REC.L_COMMENTS || ']]></L_COMMENTS>'); | M97: L_STUB_23 | N97: HTP.P('<L_STUB_23><![CDATA[' || NULL || ']]></L_STUB_23>');
G98: L_STUB_41 | H98: HTP.P('<L_STUB_41><![CDATA[' || NULL || ']]></L_STUB_41>'); | I98: PREVIOUS_NMBR | J98: HTP.P('<PREVIOUS_NMBR><![CDATA[' || REC.PREVIOUS_NMBR || ']]></PREVIOUS_NMBR>'); | M98: L_SPIMEX_NUMBER | N98: ="HTP.P('<" & M98 & "><![CDATA[' || " & IF(MID(M98,3,4)="STUB","NULL","REC." & M98) & " || ']]></" & M98 & ">');" -> HTP.P('<L_SPIMEX_NUMBER><![CDATA[' || REC.L_SPIMEX_NUMBER || ']]></L_SPIMEX_NUMBER>');
G99: L_STUB_42 | H99: HTP.P('<L_STUB_42><![CDATA[' || NULL || ']]></L_STUB_42>'); | M99: L_STUB_24 | N99: HTP.P('<L_STUB_24><![CDATA[' || NULL || ']]></L_STUB_24>');
G100: L_STUB_43 | H100: HTP.P('<L_STUB_43><![CDATA[' || NULL || ']]></L_STUB_43>'); | M100: L_COMPETITIVE_PROC_DOCS_URL | N100: HTP.P('<L_COMPETITIVE_PROC_DOCS_URL><![CDATA[' || REC.L_COMPETITIVE_PROC_DOCS_URL || ']]></L_COMPETITIVE_PROC_DOCS_URL>');
G101: L_STUB_44 | H101: HTP.P('<L_STUB_44><![CDATA[' || NULL || ']]></L_STUB_44>'); | M101: L_STUB_26 | N101: HTP.P('<L_STUB_26><![CDATA[' || NULL || ']]></L_STUB_26>');
G102: L_STUB_45 | H102: HTP.P('<L_STUB_45><![CDATA[' || NULL || ']]></L_STUB_45>'); | M102: L_STUB_27 | N102: HTP.P('<L_STUB_27><![CDATA[' || NULL || ']]></L_STUB_27>');
G103: L_STUB_46 | H103: HTP.P('<L_STUB_46><![CDATA[' || NULL || ']]></L_STUB_46>'); | M103: L_STUB_28 | N103: HTP.P('<L_STUB_28><![CDATA[' || NULL || ']]></L_STUB_28>');
G104: L_STUB_47 | H104: HTP.P('<L_STUB_47><![CDATA[' || NULL || ']]></L_STUB_47>'); | M104: L_STATION_OF_ORIGIN | N104: HTP.P('<L_STATION_OF_ORIGIN><![CDATA[' || REC.L_STATION_OF_ORIGIN || ']]></L_STATION_OF_ORIGIN>');
G105: L_STUB_48 | H105: HTP.P('<L_STUB_48><![CDATA[' || NULL || ']]></L_STUB_48>'); | M105: L_STUB_30 | N105: HTP.P('<L_STUB_30><![CDATA[' || NULL || ']]></L_STUB_30>');
G106: L_STUB_49 | H106: HTP.P('<L_STUB_49><![CDATA[' || NULL || ']]></L_STUB_49>'); | M106: L_DELIVERY_STATION | N106: HTP.P('<L_DELIVERY_STATION><![CDATA[' || REC.L_DELIVERY_STATION || ']]></L_DELIVERY_STATION>');
G107: L_STUB_50 | H107: HTP.P('<L_STUB_50><![CDATA[' || NULL || ']]></L_STUB_50>'); | M107: L_STUB_31 | N107: HTP.P('<L_STUB_31><![CDATA[' || NULL || ']]></L_STUB_31>');
G108: L_STUB_51 | H108: ="HTP.P('<" & G108 & "><![CDATA[' || " & IF(MID(G108,3,4)="STUB","NULL","REC." & G108) & " || ']]></" & G108 & ">');" -> HTP.P('<L_STUB_51><![CDATA[' || NULL || ']]></L_STUB_51>'); | M108: L_STUB_32 | N108: HTP.P('<L_STUB_32><![CDATA[' || NULL || ']]></L_STUB_32>');
G109: L_STUB_52 | H109: HTP.P('<L_STUB_52><![CDATA[' || NULL || ']]></L_STUB_52>'); | M109: L_STUB_33 | N109: HTP.P('<L_STUB_33><![CDATA[' || NULL || ']]></L_STUB_33>');
G110: L_STUB_53 | H110: HTP.P('<L_STUB_53><![CDATA[' || NULL || ']]></L_STUB_53>'); | M110: L_STUB_34 | N110: HTP.P('<L_STUB_34><![CDATA[' || NULL || ']]></L_STUB_34>');
G111: L_STUB_54 | H111: HTP.P('<L_STUB_54><![CDATA[' || NULL || ']]></L_STUB_54>'); | M111: L_STUB_35 | N111: HTP.P('<L_STUB_35><![CDATA[' || NULL || ']]></L_STUB_35>');
G112: L_STUB_55 | H112: HTP.P('<L_STUB_55><![CDATA[' || NULL || ']]></L_STUB_55>'); | M112: L_STUB_36 | N112: HTP.P('<L_STUB_36><![CDATA[' || NULL || ']]></L_STUB_36>');
G113: L_STUB_56 | H113: HTP.P('<L_STUB_56><![CDATA[' || NULL || ']]></L_STUB_56>'); | M113: L_STUB_37 | N113: HTP.P('<L_STUB_37><![CDATA[' || NULL || ']]></L_STUB_37>');
G114: L_STUB_57 | H114: HTP.P('<L_STUB_57><![CDATA[' || NULL || ']]></L_STUB_57>'); | M114: L_DELIVERY_SHOULDER | N114: HTP.P('<L_DELIVERY_SHOULDER><![CDATA[' || REC.L_DELIVERY_SHOULDER || ']]></L_DELIVERY_SHOULDER>');
G115: L_STUB_58 | H115: HTP.P('<L_STUB_58><![CDATA[' || NULL || ']]></L_STUB_58>'); | M115: L_STUB_38 | N115: HTP.P('<L_STUB_38><![CDATA[' || NULL || ']]></L_STUB_38>');
G116: L_STUB_59 | H116: HTP.P('<L_STUB_59><![CDATA[' || NULL || ']]></L_STUB_59>'); | M116: L_STUB_39 | N116: HTP.P('<L_STUB_39><![CDATA[' || NULL || ']]></L_STUB_39>');
G117: L_STUB_60 | H117: HTP.P('<L_STUB_60><![CDATA[' || NULL || ']]></L_STUB_60>'); | M117: L_STUB_40 | N117: HTP.P('<L_STUB_40><![CDATA[' || NULL || ']]></L_STUB_40>');
G118: L_STUB_61 | H118: HTP.P('<L_STUB_61><![CDATA[' || NULL || ']]></L_STUB_61>'); | M118: L_STUB_41 | N118: HTP.P('<L_STUB_41><![CDATA[' || NULL || ']]></L_STUB_41>');
G119: L_STUB_62 | H119: HTP.P('<L_STUB_62><![CDATA[' || NULL || ']]></L_STUB_62>'); | M119: L_FUEL_SUPPLY_METHOD | N119: HTP.P('<L_FUEL_SUPPLY_METHOD><![CDATA[' || REC.L_FUEL_SUPPLY_METHOD || ']]></L_FUEL_SUPPLY_METHOD>');
G120: L_STUB_63 | H120: HTP.P('<L_STUB_63><![CDATA[' || NULL || ']]></L_STUB_63>'); | M120: L_STUB_42 | N120: HTP.P('<L_STUB_42><![CDATA[' || NULL || ']]></L_STUB_42>');
G121: FUEL_USAGE_DISBALANCE_URL | H121: HTP.P('<FUEL_USAGE_DISBALANCE_URL><![CDATA[' || REC.FUEL_USAGE_DISBALANCE_URL || ']]></FUEL_USAGE_DISBALANCE_URL>'); | M121: L_PRICE_NO_TAX | N121: ="HTP.P('<" & M121 & ">' || " & IF(MID(M121,3,4)="STUB","NULL","REC." & M121) & " || '</" & M121 & ">');" -> HTP.P('<L_PRICE_NO_TAX>' || REC.L_PRICE_NO_TAX || '</L_PRICE_NO_TAX>');
G122: L_STUB_64 | H122: HTP.P('<L_STUB_64><![CDATA[' || NULL || ']]></L_STUB_64>'); | M122: L_STUB_43 | N122: HTP.P('<L_STUB_43>' || NULL || '</L_STUB_43>');
G123: NAME | H123: HTP.P('<NAME><![CDATA[' || REC.NAME || ']]></NAME>'); | M123: L_TRSP_NO_TAX | N123: HTP.P('<L_TRSP_NO_TAX>' || REC.L_TRSP_NO_TAX || '</L_TRSP_NO_TAX>');
G124: POSITION | H124: HTP.P('<POSITION><![CDATA[' || REC.POSITION || ']]></POSITION>'); | M124: L_STUB_44 | N124: HTP.P('<L_STUB_44>' || NULL || '</L_STUB_44>');
G125: PHONE | H125: HTP.P('<PHONE><![CDATA[' || REC.PHONE || ']]></PHONE>'); | M125: L_PRICE_NO_TAX_NO_TRSP | N125: HTP.P('<L_PRICE_NO_TAX_NO_TRSP>' || REC.L_PRICE_NO_TAX_NO_TRSP || '</L_PRICE_NO_TAX_NO_TRSP>');
G126: EMAIL | H126: HTP.P('<EMAIL><![CDATA[' || REC.EMAIL || ']]></EMAIL>'); | M126: L_STUB_45 | N126: HTP.P('<L_STUB_45>' || NULL || '</L_STUB_45>');
M127: L_VOLUME | N127: HTP.P('<L_VOLUME>' || REC.L_VOLUME || '</L_VOLUME>');
M128: L_COSTS_NO_TAX | N128: HTP.P('<L_COSTS_NO_TAX>' || REC.L_COSTS_NO_TAX || '</L_COSTS_NO_TAX>');
M129: L_STUB_46 | N129: ="HTP.P('<" & M129 & "><![CDATA[' || " & IF(MID(M129,3,4)="STUB","NULL","REC." & M129) & " || ']]></" & M129 & ">');" -> HTP.P('<L_STUB_46><![CDATA[' || NULL || ']]></L_STUB_46>');
M130: L_FUEL_STOCK_PREVIOUS_PERIOD | N130: ="HTP.P('<" & M130 & "><![CDATA[' || " & IF(MID(M130,3,4)="STUB","NULL","REC." & M130) & " || ']]></" & M130 & ">');" -> HTP.P('<L_FUEL_STOCK_PREVIOUS_PERIOD><![CDATA[' || REC.L_FUEL_STOCK_PREVIOUS_PERIOD || ']]></L_FUEL_STOCK_PREVIOUS_PERIOD>');
M131: L_FUEL_STOCK_CURRENT_PERIOD | N131: ="HTP.P('<" & M131 & "><![CDATA[' || " & IF(MID(M131,3,4)="STUB","NULL","REC." & M131) & " || ']]></" & M131 & ">');" -> HTP.P('<L_FUEL_STOCK_CURRENT_PERIOD><![CDATA[' || REC.L_FUEL_STOCK_CURRENT_PERIOD || ']]></L_FUEL_STOCK_CURRENT_PERIOD>');
M132: L_TOTAL_VLM | N132: HTP.P('<L_TOTAL_VLM>' || REC.L_TOTAL_VLM || '</L_TOTAL_VLM>');
M133: L_USED_VLM | N133: HTP.P('<L_USED_VLM>' || REC.L_USED_VLM || '</L_USED_VLM>');
M134: L_REMAIN_VLM | N134: ="HTP.P('<" & M134 & ">' || " & IF(MID(M134,3,4)="STUB","NULL","REC." & M134) & " || '</" & M134 & ">');" -> HTP.P('<L_REMAIN_VLM>' || REC.L_REMAIN_VLM || '</L_REMAIN_VLM>');
M135: L_NOTE | N135: HTP.P('<L_NOTE>' || REC.L_NOTE || '</L_NOTE>');
A454: ="HTP.P('<" &#REF! & ">' || " & IF(MID(#REF!,1,4)="STUB","NULL","REC." &#REF!) & " || '</" &#REF! & ">');" ->  | C454: ="DECODE(C_T." &#REF! & ", 0, NULL, C_T." &#REF! & ") AS " &#REF! & "," -> 
A455: ="HTP.P('<" &#REF! & ">' || " & IF(MID(#REF!,1,4)="STUB","NULL","REC." &#REF!) & " || '</" &#REF! & ">');" ->  | C455: ="DECODE(C_T." &#REF! & ", 0, NULL, C_T." &#REF! & ") AS " &#REF! & "," -> 
A456: ="HTP.P('<" &#REF! & ">' || " & IF(MID(#REF!,1,4)="STUB","NULL","REC." &#REF!) & " || '</" &#REF! & ">');" ->  | C456: ="DECODE(C_T." &#REF! & ", 0, NULL, C_T." &#REF! & ") AS " &#REF! & "," -> 
A457: ="HTP.P('<" &#REF! & ">' || " & IF(MID(#REF!,1,4)="STUB","NULL","REC." &#REF!) & " || '</" &#REF! & ">');" ->  | C457: ="DECODE(C_T." &#REF! & ", 0, NULL, C_T." &#REF! & ") AS " &#REF! & "," -> 
A458: ="HTP.P('<" &#REF! & ">' || " & IF(MID(#REF!,1,4)="STUB","NULL","REC." &#REF!) & " || '</" &#REF! & ">');" ->  | C458: ="DECODE(C_T." &#REF! & ", 0, NULL, C_T." &#REF! & ") AS " &#REF! & "," -> 
A459: ="HTP.P('<" &#REF! & ">' || " & IF(MID(#REF!,1,4)="STUB","NULL","REC." &#REF!) & " || '</" &#REF! & ">');" ->  | C459: ="DECODE(C_T." &#REF! & ", 0, NULL, C_T." &#REF! & ") AS " &#REF! & "," -> 
A460: ="HTP.P('<" &#REF! & ">' || " & IF(MID(#REF!,1,4)="STUB","NULL","REC." &#REF!) & " || '</" &#REF! & ">');" ->  | C460: ="DECODE(C_T." &#REF! & ", 0, NULL, C_T." &#REF! & ") AS " &#REF! & "," -> 
A461: ="HTP.P('<" &#REF! & ">' || " & IF(MID(#REF!,1,4)="STUB","NULL","REC." &#REF!) & " || '</" &#REF! & ">');" ->  | C461: ="DECODE(C_T." &#REF! & ", 0, NULL, C_T." &#REF! & ") AS " &#REF! & "," -> 
A462: ="HTP.P('<" &#REF! & ">' || " & IF(MID(#REF!,1,4)="STUB","NULL","REC." &#REF!) & " || '</" &#REF! & ">');" ->  | C462: ="DECODE(C_T." &#REF! & ", 0, NULL, C_T." &#REF! & ") AS " &#REF! & "," -> 
A463: ="HTP.P('<" &#REF! & ">' || " & IF(MID(#REF!,1,4)="STUB","NULL","REC." &#REF!) & " || '</" &#REF! & ">');" ->  | C463: ="DECODE(C_T." &#REF! & ", 0, NULL, C_T." &#REF! & ") AS " &#REF! & "," -> 
A464: ="HTP.P('<" &#REF! & ">' || " & IF(MID(#REF!,1,4)="STUB","NULL","REC." &#REF!) & " || '</" &#REF! & ">');" ->  | C464: ="DECODE(C_T." &#REF! & ", 0, NULL, C_T." &#REF! & ") AS " &#REF! & "," -> 
A465: ="HTP.P('<" &#REF! & ">' || " & IF(MID(#REF!,1,4)="STUB","NULL","REC." &#REF!) & " || '</" &#REF! & ">');" ->  | C465: ="DECODE(C_T." &#REF! & ", 0, NULL, C_T." &#REF! & ") AS " &#REF! & "," -> 
A466: ="HTP.P('<" &#REF! & ">' || " & IF(MID(#REF!,1,4)="STUB","NULL","REC." &#REF!) & " || '</" &#REF! & ">');" ->  | C466: ="DECODE(C_T." &#REF! & ", 0, NULL, C_T." &#REF! & ") AS " &#REF! & "," -> 
A467: ="HTP.P('<" &#REF! & ">' || " & IF(MID(#REF!,1,4)="STUB","NULL","REC." &#REF!) & " || '</" &#REF! & ">');" ->  | C467: ="DECODE(C_T." &#REF! & ", 0, NULL, C_T." &#REF! & ") AS " &#REF! & "," -> 
A468: ="HTP.P('<" &#REF! & ">' || " & IF(MID(#REF!,1,4)="STUB","NULL","REC." &#REF!) & " || '</" &#REF! & ">');" ->  | C468: ="DECODE(C_T." &#REF! & ", 0, NULL, C_T." &#REF! & ") AS " &#REF! & "," -> 
A469: ="HTP.P('<" & M499 & ">' || " & IF(MID(M499,1,4)="STUB","NULL","REC." & M499) & " || '</" & M499 & ">');" -> HTP.P('<>' || REC. || '</>'); | C469: ="DECODE(C_T." & M499 & ", 0, NULL, C_T." & M499 & ") AS " & M499 & "," -> DECODE(C_T., 0, NULL, C_T.) AS ,
A470: ="HTP.P('<" &#REF! & ">' || " & IF(MID(#REF!,1,4)="STUB","NULL","REC." &#REF!) & " || '</" &#REF! & ">');" ->  | C470: ="DECODE(C_T." &#REF! & ", 0, NULL, C_T." &#REF! & ") AS " &#REF! & "," -> 
A471: ="HTP.P('<" &#REF! & ">' || " & IF(MID(#REF!,1,4)="STUB","NULL","REC." &#REF!) & " || '</" &#REF! & ">');" ->  | C471: ="DECODE(C_T." &#REF! & ", 0, NULL, C_T." &#REF! & ") AS " &#REF! & "," -> 
A472: ="HTP.P('<" &#REF! & ">' || " & IF(MID(#REF!,1,4)="STUB","NULL","REC." &#REF!) & " || '</" &#REF! & ">');" ->  | C472: ="DECODE(C_T." &#REF! & ", 0, NULL, C_T." &#REF! & ") AS " &#REF! & "," -> 
A473: ="HTP.P('<" &#REF! & ">' || " & IF(MID(#REF!,1,4)="STUB","NULL","REC." &#REF!) & " || '</" &#REF! & ">');" ->  | C473: ="DECODE(C_T." &#REF! & ", 0, NULL, C_T." &#REF! & ") AS " &#REF! & "," -> 
A474: ="HTP.P('<" &#REF! & ">' || " & IF(MID(#REF!,1,4)="STUB","NULL","REC." &#REF!) & " || '</" &#REF! & ">');" ->  | C474: ="DECODE(C_T." &#REF! & ", 0, NULL, C_T." &#REF! & ") AS " &#REF! & "," -> 
A475: ="HTP.P('<" &#REF! & ">' || " & IF(MID(#REF!,1,4)="STUB","NULL","REC." &#REF!) & " || '</" &#REF! & ">');" ->  | C475: ="DECODE(C_T." &#REF! & ", 0, NULL, C_T." &#REF! & ") AS " &#REF! & "," -> 
A476: ="HTP.P('<" &#REF! & ">' || " & IF(MID(#REF!,1,4)="STUB","NULL","REC." &#REF!) & " || '</" &#REF! & ">');" ->  | C476: ="DECODE(C_T." &#REF! & ", 0, NULL, C_T." &#REF! & ") AS " &#REF! & "," -> 
A477: ="HTP.P('<" &#REF! & ">' || " & IF(MID(#REF!,1,4)="STUB","NULL","REC." &#REF!) & " || '</" &#REF! & ">');" ->  | C477: ="DECODE(C_T." &#REF! & ", 0, NULL, C_T." &#REF! & ") AS " &#REF! & "," -> 
A478: ="HTP.P('<" &#REF! & ">' || " & IF(MID(#REF!,1,4)="STUB","NULL","REC." &#REF!) & " || '</" &#REF! & ">');" ->  | C478: ="DECODE(C_T." &#REF! & ", 0, NULL, C_T." &#REF! & ") AS " &#REF! & "," -> 
A479: ="HTP.P('<" &#REF! & ">' || " & IF(MID(#REF!,1,4)="STUB","NULL","REC." &#REF!) & " || '</" &#REF! & ">');" ->  | C479: ="DECODE(C_T." &#REF! & ", 0, NULL, C_T." &#REF! & ") AS " &#REF! & "," -> 
A480: ="HTP.P('<" &#REF! & ">' || " & IF(MID(#REF!,1,4)="STUB","NULL","REC." &#REF!) & " || '</" &#REF! & ">');" ->  | C480: ="DECODE(C_T." &#REF! & ", 0, NULL, C_T." &#REF! & ") AS " &#REF! & "," -> 
A481: ="HTP.P('<" &#REF! & ">' || " & IF(MID(#REF!,1,4)="STUB","NULL","REC." &#REF!) & " || '</" &#REF! & ">');" ->  | C481: ="DECODE(C_T." &#REF! & ", 0, NULL, C_T." &#REF! & ") AS " &#REF! & "," -> 
A482: ="HTP.P('<" &#REF! & ">' || " & IF(MID(#REF!,1,4)="STUB","NULL","REC." &#REF!) & " || '</" &#REF! & ">');" ->  | C482: ="DECODE(C_T." &#REF! & ", 0, NULL, C_T." &#REF! & ") AS " &#REF! & "," -> 
A483: ="HTP.P('<" &#REF! & ">' || " & IF(MID(#REF!,1,4)="STUB","NULL","REC." &#REF!) & " || '</" &#REF! & ">');" ->  | C483: ="DECODE(C_T." &#REF! & ", 0, NULL, C_T." &#REF! & ") AS " &#REF! & "," -> 
A484: ="HTP.P('<" &#REF! & ">' || " & IF(MID(#REF!,1,4)="STUB","NULL","REC." &#REF!) & " || '</" &#REF! & ">');" ->  | C484: ="DECODE(C_T." &#REF! & ", 0, NULL, C_T." &#REF! & ") AS " &#REF! & "," -> 
A485: ="HTP.P('<" &#REF! & ">' || " & IF(MID(#REF!,1,4)="STUB","NULL","REC." &#REF!) & " || '</" &#REF! & ">');" ->  | C485: ="DECODE(C_T." &#REF! & ", 0, NULL, C_T." &#REF! & ") AS " &#REF! & "," -> 
A486: ="HTP.P('<" &#REF! & ">' || " & IF(MID(#REF!,1,4)="STUB","NULL","REC." &#REF!) & " || '</" &#REF! & ">');" ->  | C486: ="DECODE(C_T." &#REF! & ", 0, NULL, C_T." &#REF! & ") AS " &#REF! & "," -> 
A487: ="HTP.P('<" &#REF! & ">' || " & IF(MID(#REF!,1,4)="STUB","NULL","REC." &#REF!) & " || '</" &#REF! & ">');" ->  | C487: ="DECODE(C_T." &#REF! & ", 0, NULL, C_T." &#REF! & ") AS " &#REF! & "," -> 
A488: ="HTP.P('<" &#REF! & ">' || " & IF(MID(#REF!,1,4)="STUB","NULL","REC." &#REF!) & " || '</" &#REF! & ">');" ->  | C488: ="DECODE(C_T." &#REF! & ", 0, NULL, C_T." &#REF! & ") AS " &#REF! & "," -> 
A489: ="HTP.P('<" &#REF! & ">' || " & IF(MID(#REF!,1,4)="STUB","NULL","REC." &#REF!) & " || '</" &#REF! & ">');" ->  | C489: ="DECODE(C_T." &#REF! & ", 0, NULL, C_T." &#REF! & ") AS " &#REF! & "," -> 
A490: ="HTP.P('<" &#REF! & ">' || " & IF(MID(#REF!,1,4)="STUB","NULL","REC." &#REF!) & " || '</" &#REF! & ">');" ->  | C490: ="DECODE(C_T." &#REF! & ", 0, NULL, C_T." &#REF! & ") AS " &#REF! & "," -> 
A491: ="HTP.P('<" &#REF! & ">' || " & IF(MID(#REF!,1,4)="STUB","NULL","REC." &#REF!) & " || '</" &#REF! & ">');" ->  | C491: ="DECODE(C_T." &#REF! & ", 0, NULL, C_T." &#REF! & ") AS " &#REF! & "," -> 
A492: ="HTP.P('<" &#REF! & ">' || " & IF(MID(#REF!,1,4)="STUB","NULL","REC." &#REF!) & " || '</" &#REF! & ">');" ->  | C492: ="DECODE(C_T." &#REF! & ", 0, NULL, C_T." &#REF! & ") AS " &#REF! & "," -> 
A493: ="HTP.P('<" &#REF! & ">' || " & IF(MID(#REF!,1,4)="STUB","NULL","REC." &#REF!) & " || '</" &#REF! & ">');" ->  | C493: ="DECODE(C_T." &#REF! & ", 0, NULL, C_T." &#REF! & ") AS " &#REF! & "," -> 
A494: ="HTP.P('<" &#REF! & ">' || " & IF(MID(#REF!,1,4)="STUB","NULL","REC." &#REF!) & " || '</" &#REF! & ">');" ->  | C494: ="DECODE(C_T." &#REF! & ", 0, NULL, C_T." &#REF! & ") AS " &#REF! & "," -> 
A495: ="HTP.P('<" &#REF! & ">' || " & IF(MID(#REF!,1,4)="STUB","NULL","REC." &#REF!) & " || '</" &#REF! & ">');" ->  | C495: ="DECODE(C_T." &#REF! & ", 0, NULL, C_T." &#REF! & ") AS " &#REF! & "," -> 
A496: ="HTP.P('<" &#REF! & ">' || " & IF(MID(#REF!,1,4)="STUB","NULL","REC." &#REF!) & " || '</" &#REF! & ">');" ->  | C496: ="DECODE(C_T." &#REF! & ", 0, NULL, C_T." &#REF! & ") AS " &#REF! & "," -> 
A497: ="HTP.P('<" &#REF! & ">' || " & IF(MID(#REF!,1,4)="STUB","NULL","REC." &#REF!) & " || '</" &#REF! & ">');" ->  | C497: ="DECODE(C_T." &#REF! & ", 0, NULL, C_T." &#REF! & ") AS " &#REF! & "," -> 
A498: ="HTP.P('<" &#REF! & ">' || " & IF(MID(#REF!,1,4)="STUB","NULL","REC." &#REF!) & " || '</" &#REF! & ">');" ->  | C498: ="DECODE(C_T." &#REF! & ", 0, NULL, C_T." &#REF! & ") AS " &#REF! & "," -> 
A499: ="HTP.P('<" &#REF! & ">' || " & IF(MID(#REF!,1,4)="STUB","NULL","REC." &#REF!) & " || '</" &#REF! & ">');" ->  | C499: ="DECODE(C_T." &#REF! & ", 0, NULL, C_T." &#REF! & ") AS " &#REF! & "," -> 
A500: ="HTP.P('<" &#REF! & ">' || " & IF(MID(#REF!,1,4)="STUB","NULL","REC." &#REF!) & " || '</" &#REF! & ">');" ->  | C500: ="DECODE(C_T." &#REF! & ", 0, NULL, C_T." &#REF! & ") AS " &#REF! & "," -> 
A501: ="HTP.P('<" &#REF! & ">' || " & IF(MID(#REF!,1,4)="STUB","NULL","REC." &#REF!) & " || '</" &#REF! & ">');" ->  | C501: ="DECODE(C_T." &#REF! & ", 0, NULL, C_T." &#REF! & ") AS " &#REF! & "," -> 
A502: ="HTP.P('<" &#REF! & ">' || " & IF(MID(#REF!,1,4)="STUB","NULL","REC." &#REF!) & " || '</" &#REF! & ">');" ->  | C502: ="DECODE(C_T." &#REF! & ", 0, NULL, C_T." &#REF! & ") AS " &#REF! & "," -> 
A503: ="HTP.P('<" &#REF! & ">' || " & IF(MID(#REF!,1,4)="STUB","NULL","REC." &#REF!) & " || '</" &#REF! & ">');" ->  | C503: ="DECODE(C_T." &#REF! & ", 0, NULL, C_T." &#REF! & ") AS " &#REF! & "," -> 
A504: ="HTP.P('<" &#REF! & ">' || " & IF(MID(#REF!,1,4)="STUB","NULL","REC." &#REF!) & " || '</" &#REF! & ">');" ->  | C504: ="DECODE(C_T." &#REF! & ", 0, NULL, C_T." &#REF! & ") AS " &#REF! & "," -> 
A505: ="HTP.P('<" &#REF! & ">' || " & IF(MID(#REF!,1,4)="STUB","NULL","REC." &#REF!) & " || '</" &#REF! & ">');" ->  | C505: ="DECODE(C_T." &#REF! & ", 0, NULL, C_T." &#REF! & ") AS " &#REF! & "," -> 
A506: ="HTP.P('<" &#REF! & ">' || " & IF(MID(#REF!,1,4)="STUB","NULL","REC." &#REF!) & " || '</" &#REF! & ">');" ->  | C506: ="DECODE(C_T." &#REF! & ", 0, NULL, C_T." &#REF! & ") AS " &#REF! & "," -> 
A507: ="HTP.P('<" &#REF! & ">' || " & IF(MID(#REF!,1,4)="STUB","NULL","REC." &#REF!) & " || '</" &#REF! & ">');" ->  | C507: ="DECODE(C_T." &#REF! & ", 0, NULL, C_T." &#REF! & ") AS " &#REF! & "," -> 
A508: ="HTP.P('<" &#REF! & ">' || " & IF(MID(#REF!,1,4)="STUB","NULL","REC." &#REF!) & " || '</" &#REF! & ">');" ->  | C508: ="DECODE(C_T." &#REF! & ", 0, NULL, C_T." &#REF! & ") AS " &#REF! & "," -> 
A509: ="HTP.P('<" &#REF! & ">' || " & IF(MID(#REF!,1,4)="STUB","NULL","REC." &#REF!) & " || '</" &#REF! & ">');" ->  | C509: ="DECODE(C_T." &#REF! & ", 0, NULL, C_T." &#REF! & ") AS " &#REF! & "," -> 
A510: ="HTP.P('<" &#REF! & ">' || " & IF(MID(#REF!,1,4)="STUB","NULL","REC." &#REF!) & " || '</" &#REF! & ">');" ->  | C510: ="DECODE(C_T." &#REF! & ", 0, NULL, C_T." &#REF! & ") AS " &#REF! & "," -> 
A511: ="HTP.P('<" &#REF! & ">' || " & IF(MID(#REF!,1,4)="STUB","NULL","REC." &#REF!) & " || '</" &#REF! & ">');" ->  | C511: ="DECODE(C_T." &#REF! & ", 0, NULL, C_T." &#REF! & ") AS " &#REF! & "," -> 
A512: ="HTP.P('<" &#REF! & ">' || " & IF(MID(#REF!,1,4)="STUB","NULL","REC." &#REF!) & " || '</" &#REF! & ">');" ->  | C512: ="DECODE(C_T." &#REF! & ", 0, NULL, C_T." &#REF! & ") AS " &#REF! & "," -> 
A513: ="HTP.P('<" &#REF! & ">' || " & IF(MID(#REF!,1,4)="STUB","NULL","REC." &#REF!) & " || '</" &#REF! & ">');" ->  | C513: ="DECODE(C_T." &#REF! & ", 0, NULL, C_T." &#REF! & ") AS " &#REF! & "," -> 
A514: ="HTP.P('<" &#REF! & ">' || " & IF(MID(#REF!,1,4)="STUB","NULL","REC." &#REF!) & " || '</" &#REF! & ">');" ->  | C514: ="DECODE(C_T." &#REF! & ", 0, NULL, C_T." &#REF! & ") AS " &#REF! & "," -> 
A515: ="HTP.P('<" &#REF! & ">' || " & IF(MID(#REF!,1,4)="STUB","NULL","REC." &#REF!) & " || '</" &#REF! & ">');" ->  | C515: ="DECODE(C_T." &#REF! & ", 0, NULL, C_T." &#REF! & ") AS " &#REF! & "," -> 
A516: ="HTP.P('<" &#REF! & ">' || " & IF(MID(#REF!,1,4)="STUB","NULL","REC." &#REF!) & " || '</" &#REF! & ">');" ->  | C516: ="DECODE(C_T." &#REF! & ", 0, NULL, C_T." &#REF! & ") AS " &#REF! & "," -> 
A517: ="HTP.P('<" &#REF! & ">' || " & IF(MID(#REF!,1,4)="STUB","NULL","REC." &#REF!) & " || '</" &#REF! & ">');" ->  | C517: ="DECODE(C_T." &#REF! & ", 0, NULL, C_T." &#REF! & ") AS " &#REF! & "," -> 
A518: ="HTP.P('<" &#REF! & ">' || " & IF(MID(#REF!,1,4)="STUB","NULL","REC." &#REF!) & " || '</" &#REF! & ">');" ->  | C518: ="DECODE(C_T." &#REF! & ", 0, NULL, C_T." &#REF! & ") AS " &#REF! & "," -> 
... 434 more rows

Sheet TECH_HORISONTAL (hidden)
A3: ADD_LIST_ORG_RANGE
D4: Изменить | E4: О | P4: =IF(LEN(BZ4)=0,"ACTI","DELD") -> ACTI | U4: =IF(LEN(T4)=0,"",VLOOKUP(T4,OKTMO_VS_TYPE_LIST,2,FALSE)) -> 
A7: LIST_SRC_ADD_RANGE
D8: Изменить | E8: О | Q8: =ROW(P9)-ROW(P8)-1 -> 0 | R8: =F8 & ".0" -> .0 | AB8: 0
AC9: Добавить объект
A12: LIST_SRC_ADD_OBJECT_RANGE
Z13: Изменить | AA13: О
A19: FUEL_DATA_ADD_RANGE
D20: TBD | F20: =B20 -> 0 | G20: МО / Организация / Филиал / Кол-во объектов | M20: =SUM($P31:$GE31)+SUM($P51:$GE51) -> 0 | T20: Включить в расчёт | U20: Включить в расчёт | V20: Включить в расчёт | W20: Включить в расчёт | X20: Включить в расчёт | Y20: Включить в расчёт | Z20: Включить в расчёт | AA20: Включить в расчёт | AB20: Включить в расчёт | AC20: Включить в расчёт | AD20: Включить в расчёт | AE20: Включить в расчёт | AF20: Включить в расчёт | AG20: Включить в расчёт | AH20: Включить в расчёт | AI20: Включить в расчёт | AJ20: Включить в расчёт | AK20: Включить в расчёт | AL20: Включить в расчёт | AM20: Включить в расчёт | AN20: Включить в расчёт | AO20: Включить в расчёт | AP20: Включить в расчёт | AQ20: Включить в расчёт | AR20: Включить в расчёт | AS20: Включить в расчёт | AT20: Включить в расчёт | AU20: Включить в расчёт | AV20: Включить в расчёт | AW20: Включить в расчёт | AX20: Включить в расчёт | AY20: Включить в расчёт | AZ20: Включить в расчёт | BA20: Включить в расчёт | BB20: Включить в расчёт | BC20: Включить в расчёт | BH20: Включить в расчёт | BI20: Включить в расчёт | BJ20: Включить в расчёт | BK20: Включить в расчёт | BL20: Включить в расчёт | BM20: Включить в расчёт | BN20: Включить в расчёт | BO20: Включить в расчёт | BP20: Включить в расчёт | BQ20: Включить в расчёт | BR20: Включить в расчёт | BS20: Включить в расчёт | BT20: Включить в расчёт | BU20: Включить в расчёт | BV20: Включить в расчёт | BW20: Включить в расчёт | CB20: Включить в расчёт | CC20: Включить в расчёт | CD20: Включить в расчёт | CE20: Включить в расчёт | CF20: Включить в расчёт | CG20: Включить в расчёт | CH20: Включить в расчёт | CI20: Включить в расчёт | CJ20: Включить в расчёт | CK20: Включить в расчёт | CL20: Включить в расчёт | CM20: Включить в расчёт | CN20: Включить в расчёт | CO20: Включить в расчёт | CP20: Включить в расчёт | CQ20: Включить в расчёт | CR20: Включить в расчёт | CS20: Включить в расчёт | CT20: Включить в расчёт | CU20: Включить в расчёт | CV20: Включить в расчёт | CW20: Включить в расчёт | CX20: Включить в расчёт | CY20: Включить в расчёт | CZ20: Включить в расчёт | DA20: Включить в расчёт | DB20: Включить в расчёт | DC20: Включить в расчёт | DH20: Включить в расчёт | DI20: Включить в расчёт | DJ20: Включить в расчёт | DK20: Включить в расчёт | DL20: Включить в расчёт | DM20: Включить в расчёт | DN20: Включить в расчёт | DO20: Включить в расчёт | DP20: Включить в расчёт | DQ20: Включить в расчёт | DR20: Включить в расчёт | DS20: Включить в расчёт | DT20: Включить в расчёт | DU20: Включить в расчёт | DV20: Включить в расчёт | DW20: Включить в расчёт | DX20: Включить в расчёт | DY20: Включить в расчёт | DZ20: Включить в расчёт | EA20: Включить в расчёт | EB20: Включить в расчёт | EC20: Включить в расчёт | ED20: Включить в расчёт | EE20: Включить в расчёт | EF20: Включить в расчёт | EG20: Включить в расчёт | EH20: Включить в расчёт | EI20: Включить в расчёт | EJ20: Включить в расчёт | EK20: Включить в расчёт | EL20: Включить в расчёт | EM20: Включить в расчёт | EN20: Включить в расчёт | EO20: Включить в расчёт | EP20: Включить в расчёт | EQ20: Включить в расчёт | ER20: Включить в расчёт | ES20: Включить в расчёт | ET20: Включить в расчёт | EU20: Включить в расчёт | EV20: Включить в расчёт | EW20: Включить в расчёт | EX20: Включить в расчёт | EY20: Включить в расчёт | EZ20: Включить в расчёт | FA20: Включить в расчёт | FB20: Включить в расчёт | FC20: Включить в расчёт | FD20: Включить в расчёт | FE20: Включить в расчёт | FF20: Включить в расчёт | FG20: Включить в расчёт | FH20: Включить в расчёт | FI20: Включить в расчёт | FJ20: Включить в расчёт | FK20: Включить в расчёт | FL20: Включить в расчёт | FM20: Включить в расчёт | FN20: Включить в расчёт | FO20: Включить в расчёт | FP20: Включить в расчёт | FQ20: Включить в расчёт | FR20: Включить в расчёт | FS20: Включить в расчёт | FT20: Включить в расчёт | FU20: Включить в расчёт | FV20: Включить в расчёт | FW20: Включить в расчёт | FX20: Включить в расчёт | FY20: Включить в расчёт | FZ20: Включить в расчёт | GA20: Включить в расчёт | GB20: Включить в расчёт | GC20: Включить в расчёт | GD20: Включить в расчёт | GE20: Включить в расчёт | GH20: =SUMIF($P$53:$GE$53,"12 месяцев",$P31:$GE31)+SUMIF($P$53:$GE$53,"12 месяцев",$P51:$GE51) -> 0 | GI20: =SUMIF($P$53:$GE$53,"9 месяцев",$P31:$GE31)+SUMIF($P$53:$GE$53,"9 месяцев",$P51:$GE51) -> 0 | GJ20: =SUMIF($P$53:$GE$53,"I полугодие",$P31:$GE31)+SUMIF($P$53:$GE$53,"I полугодие",$P51:$GE51) -> 0 | GK20: =SUMIF($P$53:$GE$53,"I квартал",$P31:$GE31)+SUMIF($P$53:$GE$53,"I квартал",$P51:$GE51) -> 0
Q21: =$D20 -> TBD | R21: =$D20 -> TBD | S21: =$D20 -> TBD | BE21: =$D20 -> TBD | BF21: =$D20 -> TBD | BG21: =$D20 -> TBD | BY21: =$D20 -> TBD | BZ21: =$D20 -> TBD | CA21: =$D20 -> TBD | DE21: =$D20 -> TBD | DF21: =$D20 -> TBD | DG21: =$D20 -> TBD
F22: 1.1.1 | G22: Цена натурального топлива без учёта транспортировки (руб./ед.изм.) | J22: без НДС | N22: =F22 & "::" & L20 -> 1.1.1:: | BD22: =IF(BD28=0,0,(BD31-BD39-BD44-BD49)*1000/BD28) -> 0 | BE22: =IF(BE28=0,0,(BE31-BE39-BE44-BE49)*1000/BE28) -> 0 | BF22: =IF(BF28=0,0,(BF31-BF39-BF44-BF49)*1000/BF28) -> 0 | BG22: =IF(BG28=0,0,(BG31-BG39-BG44-BG49)*1000/BG28) -> 0 | BX22: =IF(BX28=0,0,(BX31-BX39-BX44-BX49)*1000/BX28) -> 0 | BY22: =IF(BY28=0,0,(BY31-BY39-BY44-BY49)*1000/BY28) -> 0 | BZ22: =IF(BZ28=0,0,(BZ31-BZ39-BZ44-BZ49)*1000/BZ28) -> 0 | CA22: =IF(CA28=0,0,(CA31-CA39-CA44-CA49)*1000/CA28) -> 0 | DD22: =IF(DD28=0,0,(DD31-DD39-DD44-DD49)*1000/DD28) -> 0 | DE22: =IF(DE28=0,0,(DE31-DE39-DE44-DE49)*1000/DE28) -> 0 | DF22: =IF(DF28=0,0,(DF31-DF39-DF44-DF49)*1000/DF28) -> 0 | DG22: =IF(DG28=0,0,(DG31-DG39-DG44-DG49)*1000/DG28) -> 0
F23: 1.1.2 | J23: с НДС | N23: =F23 & "::" & L20 -> 1.1.2:: | BD23: =IF(BD28=0,0,(BD32-BD40-BD45-BD50)*1000/BD28) -> 0 | BE23: =IF(BE28=0,0,(BE32-BE40-BE45-BE50)*1000/BE28) -> 0 | BF23: =IF(BF28=0,0,(BF32-BF40-BF45-BF50)*1000/BF28) -> 0 | BG23: =IF(BG28=0,0,(BG32-BG40-BG45-BG50)*1000/BG28) -> 0 | BX23: =IF(BX28=0,0,(BX32-BX40-BX45-BX50)*1000/BX28) -> 0 | BY23: =IF(BY28=0,0,(BY32-BY40-BY45-BY50)*1000/BY28) -> 0 | BZ23: =IF(BZ28=0,0,(BZ32-BZ40-BZ45-BZ50)*1000/BZ28) -> 0 | CA23: =IF(CA28=0,0,(CA32-CA40-CA45-CA50)*1000/CA28) -> 0 | DD23: =IF(DD28=0,0,(DD32-DD40-DD45-DD50)*1000/DD28) -> 0 | DE23: =IF(DE28=0,0,(DE32-DE40-DE45-DE50)*1000/DE28) -> 0 | DF23: =IF(DF28=0,0,(DF32-DF40-DF45-DF50)*1000/DF28) -> 0 | DG23: =IF(DG28=0,0,(DG32-DG40-DG45-DG50)*1000/DG28) -> 0
F24: 1.2.1 | G24: Цена натурального топлива с учётом транспортировки (руб./ед.изм.) | J24: без НДС | N24: =F24 & "::" & L20 -> 1.2.1:: | P24: =IF(P28=0,0,P31*1000/P28) -> 0 | Q24: =IF(Q28=0,0,Q31*1000/Q28) -> 0 | R24: =IF(R28=0,0,R31*1000/R28) -> 0 | S24: =IF(S28=0,0,S31*1000/S28) -> 0 | BD24: =IF(BD28=0,0,BD31*1000/BD28) -> 0 | BE24: =IF(BE28=0,0,BE31*1000/BE28) -> 0 | BF24: =IF(BF28=0,0,BF31*1000/BF28) -> 0 | BG24: =IF(BG28=0,0,BG31*1000/BG28) -> 0 | BX24: =IF(BX28=0,0,BX31*1000/BX28) -> 0 | BY24: =IF(BY28=0,0,BY31*1000/BY28) -> 0 | BZ24: =IF(BZ28=0,0,BZ31*1000/BZ28) -> 0 | CA24: =IF(CA28=0,0,CA31*1000/CA28) -> 0 | DD24: =IF(DD28=0,0,DD31*1000/DD28) -> 0 | DE24: =IF(DE28=0,0,DE31*1000/DE28) -> 0 | DF24: =IF(DF28=0,0,DF31*1000/DF28) -> 0 | DG24: =IF(DG28=0,0,DG31*1000/DG28) -> 0
F25: 1.2.2 | J25: с НДС | N25: =F25 & "::" & L20 -> 1.2.2:: | P25: =IF(P28=0,0,P32*1000/P28) -> 0 | Q25: =IF(Q28=0,0,Q32*1000/Q28) -> 0 | R25: =IF(R28=0,0,R32*1000/R28) -> 0 | S25: =IF(S28=0,0,S32*1000/S28) -> 0 | BD25: =IF(BD28=0,0,BD32*1000/BD28) -> 0 | BE25: =IF(BE28=0,0,BE32*1000/BE28) -> 0 | BF25: =IF(BF28=0,0,BF32*1000/BF28) -> 0 | BG25: =IF(BG28=0,0,BG32*1000/BG28) -> 0 | BX25: =IF(BX28=0,0,BX32*1000/BX28) -> 0 | BY25: =IF(BY28=0,0,BY32*1000/BY28) -> 0 | BZ25: =IF(BZ28=0,0,BZ32*1000/BZ28) -> 0 | CA25: =IF(CA28=0,0,CA32*1000/CA28) -> 0 | DD25: =IF(DD28=0,0,DD32*1000/DD28) -> 0 | DE25: =IF(DE28=0,0,DE32*1000/DE28) -> 0 | DF25: =IF(DF28=0,0,DF32*1000/DF28) -> 0 | DG25: =IF(DG28=0,0,DG32*1000/DG28) -> 0
F26: 1.3.1 | G26: Цена условного топлива с учётом транспортировки (руб./тут) | J26: без НДС | N26: =F26 & "::" & L20 -> 1.3.1:: | P26: =IF(P30=0,0,P31*1000/P30) -> 0 | Q26: =IF(Q30=0,0,Q31*1000/Q30) -> 0 | R26: =IF(R30=0,0,R31*1000/R30) -> 0 | S26: =IF(S30=0,0,S31*1000/S30) -> 0 | BD26: =IF(BD30=0,0,BD31*1000/BD30) -> 0 | BE26: =IF(BE30=0,0,BE31*1000/BE30) -> 0 | BF26: =IF(BF30=0,0,BF31*1000/BF30) -> 0 | BG26: =IF(BG30=0,0,BG31*1000/BG30) -> 0 | BX26: =IF(BX30=0,0,BX31*1000/BX30) -> 0 | BY26: =IF(BY30=0,0,BY31*1000/BY30) -> 0 | BZ26: =IF(BZ30=0,0,BZ31*1000/BZ30) -> 0 | CA26: =IF(CA30=0,0,CA31*1000/CA30) -> 0 | DD26: =IF(DD30=0,0,DD31*1000/DD30) -> 0 | DE26: =IF(DE30=0,0,DE31*1000/DE30) -> 0 | DF26: =IF(DF30=0,0,DF31*1000/DF30) -> 0 | DG26: =IF(DG30=0,0,DG31*1000/DG30) -> 0
F27: 1.3.2 | J27: с НДС | N27: =F27 & "::" & L20 -> 1.3.2:: | P27: =IF(P30=0,0,P32*1000/P30) -> 0 | Q27: =IF(Q30=0,0,Q32*1000/Q30) -> 0 | R27: =IF(R30=0,0,R32*1000/R30) -> 0 | S27: =IF(S30=0,0,S32*1000/S30) -> 0 | BD27: =IF(BD30=0,0,BD32*1000/BD30) -> 0 | BE27: =IF(BE30=0,0,BE32*1000/BE30) -> 0 | BF27: =IF(BF30=0,0,BF32*1000/BF30) -> 0 | BG27: =IF(BG30=0,0,BG32*1000/BG30) -> 0 | BX27: =IF(BX30=0,0,BX32*1000/BX30) -> 0 | BY27: =IF(BY30=0,0,BY32*1000/BY30) -> 0 | BZ27: =IF(BZ30=0,0,BZ32*1000/BZ30) -> 0 | CA27: =IF(CA30=0,0,CA32*1000/CA30) -> 0 | DD27: =IF(DD30=0,0,DD32*1000/DD30) -> 0 | DE27: =IF(DE30=0,0,DE32*1000/DE30) -> 0 | DF27: =IF(DF30=0,0,DF32*1000/DF30) -> 0 | DG27: =IF(DG30=0,0,DG32*1000/DG30) -> 0
F28: 2.1 | G28: Объём натурального топлива, всего | N28: =F28 & "::" & L20 -> 2.1:: | P28: =SUM(T28,X28,AB28) -> 0 | Q28: =SUM(U28,Y28,AC28) -> 0 | R28: =SUM(V28,Z28,AD28) -> 0 | S28: =SUM(W28,AA28,AE28) -> 0 | BD28: =SUM(BH28,BL28,BP28,BT28) -> 0 | BE28: =SUM(BI28,BM28,BQ28,BU28) -> 0 | BF28: =SUM(BJ28,BN28,BR28,BV28) -> 0 | BG28: =SUM(BK28,BO28,BS28,BW28) -> 0 | BX28: =SUM(CB28,CF28,CJ28,CN28,CR28,CV28) -> 0 | BY28: =SUM(CC28,CG28,CK28,CO28,CS28,CW28) -> 0 | BZ28: =SUM(CD28,CH28,CL28,CP28,CT28,CX28) -> 0 | CA28: =SUM(CE28,CI28,CM28,CQ28,CU28,CY28) -> 0 | DD28: =SUM(DH28,DL28,DP28,DT28,DX28,EB28,EF28,EJ28,EN28) -> 0 | DE28: =SUM(DI28,DM28,DQ28,DU28,DY28,EC28,EG28,EK28,EO28) -> 0 | DF28: =SUM(DJ28,DN28,DR28,DV28,DZ28,ED28,EH28,EL28,EP28) -> 0 | DG28: =SUM(DK28,DO28,DS28,DW28,EA28,EE28,EI28,EM28,EQ28) -> 0
F29: 2.2 | G29: Переводной коэффициент | N29: =F29 & "::" & L20 -> 2.2::
F30: 2.3 | G30: Объём условного топлива, всего (тут) | N30: =F30 & "::" & L20 -> 2.3:: | P30: =SUM(T30,X30,AB30) -> 0 | Q30: 0 | R30: 0 | S30: 0 | BD30: =SUM(BH30,BL30,BP30,BT30) -> 0 | BE30: 0 | BF30: 0 | BG30: =SUM(BK30,BO30,BS30,BW30) -> 0 | BX30: =SUM(CB30,CF30,CJ30,CN30,CR30,CV30) -> 0 | BY30: 0 | BZ30: 0 | CA30: 0 | DD30: =SUM(DH30,DL30,DP30,DT30,DX30,EB30,EF30,EJ30,EN30) -> 0 | DE30: 0 | DF30: 0 | DG30: 0
F31: 3.1 | G31: Затраты на топливо, всего (тыс.руб.) | J31: без НДС | N31: =F31 & "::" & L20 -> 3.1:: | P31: 0 | Q31: 0 | R31: 0 | S31: 0 | BD31: 0 | BE31: 0 | BF31: 0 | BG31: =SUM(BK31,BO31,BS31,BW31) -> 0 | BX31: 0 | BY31: 0 | BZ31: 0 | CA31: 0 | DD31: 0 | DE31: 0 | DF31: 0 | DG31: 0
F32: 3.2 | J32: с НДС | N32: =F32 & "::" & L20 -> 3.2:: | P32: 0 | Q32: 0 | R32: 0 | S32: 0 | BD32: 0 | BE32: 0 | BF32: 0 | BG32: =SUM(BK32,BO32,BS32,BW32) -> 0 | BX32: 0 | BY32: 0 | BZ32: 0 | CA32: 0 | DD32: 0 | DE32: 0 | DF32: 0 | DG32: 0
F33: 4.1.1 | G33: Топливо, транспортируемое по сетям, магистралям (трубопроводам) | I33: Средний тариф транзитной транспортировки (руб./тыс.куб.м) | J33: без НДС | N33: =F33 & "::" & L20 -> 4.1.1::
F34: 4.1.2 | J34: с НДС | N34: =F34 & "::" & L20 -> 4.1.2::
F35: 4.2 | I35: Объём топлива, транспортируемого в транзитном потоке | N35: =F35 & "::" & L20 -> 4.2:: | P35: =SUM(T35,X35,AB35) -> 0 | Q35: =SUM(U35,Y35,AC35) -> 0 | R35: =SUM(V35,Z35,AD35) -> 0 | S35: =SUM(W35,AA35,AE35) -> 0
F36: 5.1.1 | G36: Топливо, транспортируемое по дорогам (авто, ж/д), а также прочие виды транспортировки | H36: Транспортировка топлива автоперевозками | I36: Тариф (цена за единицу) (руб./ед.изм.) | J36: без НДС | N36: =F36 & "::" & L20 -> 5.1.1:: | BD36: =IF(BD38=0,0,BD39*1000/BD38) -> 0 | BE36: =IF(BE38=0,0,BE39*1000/BE38) -> 0 | BF36: =IF(BF38=0,0,BF39*1000/BF38) -> 0 | BG36: =IF(BG38=0,0,BG39*1000/BG38) -> 0 | BX36: =IF(BX38=0,0,BX39*1000/BX38) -> 0 | BY36: =IF(BY38=0,0,BY39*1000/BY38) -> 0 | BZ36: =IF(BZ38=0,0,BZ39*1000/BZ38) -> 0 | CA36: =IF(CA38=0,0,CA39*1000/CA38) -> 0 | DD36: =IF(DD38=0,0,DD39*1000/DD38) -> 0 | DE36: =IF(DE38=0,0,DE39*1000/DE38) -> 0 | DF36: =IF(DF38=0,0,DF39*1000/DF38) -> 0 | DG36: =IF(DG38=0,0,DG39*1000/DG38) -> 0
F37: 5.1.2 | J37: с НДС | N37: =F37 & "::" & L20 -> 5.1.2:: | BD37: =IF(BD38=0,0,BD40*1000/BD38) -> 0 | BE37: =IF(BE38=0,0,BE40*1000/BE38) -> 0 | BF37: =IF(BF38=0,0,BF40*1000/BF38) -> 0 | BG37: =IF(BG38=0,0,BG40*1000/BG38) -> 0 | BX37: =IF(BX38=0,0,BX40*1000/BX38) -> 0 | BY37: =IF(BY38=0,0,BY40*1000/BY38) -> 0 | BZ37: =IF(BZ38=0,0,BZ40*1000/BZ38) -> 0 | CA37: =IF(CA38=0,0,CA40*1000/CA38) -> 0 | DD37: =IF(DD38=0,0,DD40*1000/DD38) -> 0 | DE37: =IF(DE38=0,0,DE40*1000/DE38) -> 0 | DF37: =IF(DF38=0,0,DF40*1000/DF38) -> 0 | DG37: =IF(DG38=0,0,DG40*1000/DG38) -> 0
F38: 5.2 | I38: Объём топлива | N38: =F38 & "::" & L20 -> 5.2:: | BD38: =SUM(BH38,BL38,BP38,BT38) -> 0 | BE38: 0 | BF38: 0 | BG38: =SUM(BK38,BO38,BS38,BW38) -> 0 | BX38: =SUM(CB38,CF38,CJ38,CN38,CR38,CV38) -> 0 | BY38: 0 | BZ38: 0 | CA38: 0 | DD38: =SUM(DH38,DL38,DP38,DT38,DX38,EB38,EF38,EJ38,EN38) -> 0 | DE38: 0 | DF38: 0 | DG38: 0
F39: 5.3.1 | I39: Затраты (тыс.руб.) | J39: без НДС | N39: =F39 & "::" & L20 -> 5.3.1:: | BD39: 0 | BE39: 0 | BF39: 0 | BG39: =SUM(BK39,BO39,BS39,BW39) -> 0 | BX39: 0 | BY39: 0 | BZ39: 0 | CA39: 0 | DD39: 0 | DE39: 0 | DF39: 0 | DG39: 0
F40: 5.3.2 | J40: с НДС | N40: =F40 & "::" & L20 -> 5.3.2:: | BD40: 0 | BE40: 0 | BF40: 0 | BG40: =SUM(BK40,BO40,BS40,BW40) -> 0 | BX40: 0 | BY40: 0 | BZ40: 0 | CA40: 0 | DD40: 0 | DE40: 0 | DF40: 0 | DG40: 0
F41: 6.1.1 | H41: Транспортировка топлива ж/д перевозками | I41: Тариф (цена за единицу) (руб./ед.изм.) | J41: без НДС | N41: =F41 & "::" & L20 -> 6.1.1:: | BD41: =IF(BD43=0,0,BD44*1000/BD43) -> 0 | BE41: =IF(BE43=0,0,BE44*1000/BE43) -> 0 | BF41: =IF(BF43=0,0,BF44*1000/BF43) -> 0 | BG41: =IF(BG43=0,0,BG44*1000/BG43) -> 0 | BX41: =IF(BX43=0,0,BX44*1000/BX43) -> 0 | BY41: =IF(BY43=0,0,BY44*1000/BY43) -> 0 | BZ41: =IF(BZ43=0,0,BZ44*1000/BZ43) -> 0 | CA41: =IF(CA43=0,0,CA44*1000/CA43) -> 0 | DD41: =IF(DD43=0,0,DD44*1000/DD43) -> 0 | DE41: =IF(DE43=0,0,DE44*1000/DE43) -> 0 | DF41: =IF(DF43=0,0,DF44*1000/DF43) -> 0 | DG41: =IF(DG43=0,0,DG44*1000/DG43) -> 0
F42: 6.1.2 | J42: с НДС | N42: =F42 & "::" & L20 -> 6.1.2:: | BD42: =IF(BD43=0,0,BD45*1000/BD43) -> 0 | BE42: =IF(BE43=0,0,BE45*1000/BE43) -> 0 | BF42: =IF(BF43=0,0,BF45*1000/BF43) -> 0 | BG42: =IF(BG43=0,0,BG45*1000/BG43) -> 0 | BX42: =IF(BX43=0,0,BX45*1000/BX43) -> 0 | BY42: =IF(BY43=0,0,BY45*1000/BY43) -> 0 | BZ42: =IF(BZ43=0,0,BZ45*1000/BZ43) -> 0 | CA42: =IF(CA43=0,0,CA45*1000/CA43) -> 0 | DD42: =IF(DD43=0,0,DD45*1000/DD43) -> 0 | DE42: =IF(DE43=0,0,DE45*1000/DE43) -> 0 | DF42: =IF(DF43=0,0,DF45*1000/DF43) -> 0 | DG42: =IF(DG43=0,0,DG45*1000/DG43) -> 0
F43: 6.2 | I43: Объём топлива | N43: =F43 & "::" & L20 -> 6.2:: | BD43: =SUM(BH43,BL43,BP43,BT43) -> 0 | BE43: 0 | BF43: 0 | BG43: =SUM(BK43,BO43,BS43,BW43) -> 0 | BX43: =SUM(CB43,CF43,CJ43,CN43,CR43,CV43) -> 0 | BY43: 0 | BZ43: 0 | CA43: 0 | DD43: =SUM(DH43,DL43,DP43,DT43,DX43,EB43,EF43,EJ43,EN43) -> 0 | DE43: 0 | DF43: 0 | DG43: 0
F44: 6.3.1 | I44: Затраты (тыс.руб.) | J44: без НДС | N44: =F44 & "::" & L20 -> 6.3.1:: | BD44: 0 | BE44: 0 | BF44: 0 | BG44: =SUM(BK44,BO44,BS44,BW44) -> 0 | BX44: 0 | BY44: 0 | BZ44: 0 | CA44: 0 | DD44: 0 | DE44: 0 | DF44: 0 | DG44: 0
F45: 6.3.2 | J45: с НДС | N45: =F45 & "::" & L20 -> 6.3.2:: | BD45: 0 | BE45: 0 | BF45: 0 | BG45: =SUM(BK45,BO45,BS45,BW45) -> 0 | BX45: 0 | BY45: 0 | BZ45: 0 | CA45: 0 | DD45: 0 | DE45: 0 | DF45: 0 | DG45: 0
F46: 7.1.1 | H46: Транспортировка топлива иными видами перевозок | I46: Тариф (цена за единицу) (руб./ед.изм.) | J46: без НДС | N46: =F46 & "::" & L20 -> 7.1.1:: | BD46: =IF(BD48=0,0,BD49*1000/BD48) -> 0 | BE46: =IF(BE48=0,0,BE49*1000/BE48) -> 0 | BF46: =IF(BF48=0,0,BF49*1000/BF48) -> 0 | BG46: =IF(BG48=0,0,BG49*1000/BG48) -> 0 | BX46: =IF(BX48=0,0,BX49*1000/BX48) -> 0 | BY46: =IF(BY48=0,0,BY49*1000/BY48) -> 0 | BZ46: =IF(BZ48=0,0,BZ49*1000/BZ48) -> 0 | CA46: =IF(CA48=0,0,CA49*1000/CA48) -> 0 | DD46: =IF(DD48=0,0,DD49*1000/DD48) -> 0 | DE46: =IF(DE48=0,0,DE49*1000/DE48) -> 0 | DF46: =IF(DF48=0,0,DF49*1000/DF48) -> 0 | DG46: =IF(DG48=0,0,DG49*1000/DG48) -> 0
F47: 7.1.2 | J47: с НДС | N47: =F47 & "::" & L20 -> 7.1.2:: | BD47: =IF(BD48=0,0,BD50*1000/BD48) -> 0 | BE47: =IF(BE48=0,0,BE50*1000/BE48) -> 0 | BF47: =IF(BF48=0,0,BF50*1000/BF48) -> 0 | BG47: =IF(BG48=0,0,BG50*1000/BG48) -> 0 | BX47: =IF(BX48=0,0,BX50*1000/BX48) -> 0 | BY47: =IF(BY48=0,0,BY50*1000/BY48) -> 0 | BZ47: =IF(BZ48=0,0,BZ50*1000/BZ48) -> 0 | CA47: =IF(CA48=0,0,CA50*1000/CA48) -> 0 | DD47: =IF(DD48=0,0,DD50*1000/DD48) -> 0 | DE47: =IF(DE48=0,0,DE50*1000/DE48) -> 0 | DF47: =IF(DF48=0,0,DF50*1000/DF48) -> 0 | DG47: =IF(DG48=0,0,DG50*1000/DG48) -> 0
F48: 7.2 | I48: Объём топлива | N48: =F48 & "::" & L20 -> 7.2:: | BD48: =SUM(BH48,BL48,BP48,BT48) -> 0 | BE48: 0 | BF48: 0 | BG48: =SUM(BK48,BO48,BS48,BW48) -> 0 | BX48: =SUM(CB48,CF48,CJ48,CN48,CR48,CV48) -> 0 | BY48: 0 | BZ48: 0 | CA48: 0 | DD48: =SUM(DH48,DL48,DP48,DT48,DX48,EB48,EF48,EJ48,EN48) -> 0 | DE48: 0 | DF48: 0 | DG48: 0
F49: 7.3.1 | I49: Затраты (тыс.руб.) | J49: без НДС | N49: =F49 & "::" & L20 -> 7.3.1:: | BD49: 0 | BE49: 0 | BF49: 0 | BG49: =SUM(BK49,BO49,BS49,BW49) -> 0 | BX49: 0 | BY49: 0 | BZ49: 0 | CA49: 0 | DD49: 0 | DE49: 0 | DF49: 0 | DG49: 0
F50: 7.3.2 | J50: с НДС | N50: =F50 & "::" & L20 -> 7.3.2:: | BD50: 0 | BE50: 0 | BF50: 0 | BG50: =SUM(BK50,BO50,BS50,BW50) -> 0 | BX50: 0 | BY50: 0 | BZ50: 0 | CA50: 0 | DD50: 0 | DE50: 0 | DF50: 0 | DG50: 0
F51: 8.1 | G51: Электроэнергия | H51: Затраты, всего (тыс.руб.) | J51: без НДС | N51: =F51 & "::" & L20 -> 8.1::
F52: 8.2 | J52: с НДС | N52: =F52 & "::" & L20 -> 8.2::
F53: 9 | H53: Объём энергии / заявленной мощности | N53: =F53 & "::" & L20 -> 9::
F54: 10.1 | H54: Тариф на энергию / заявленную мощность (руб./кВт*ч / руб./кВт*мес) | J54: без НДС | N54: =F54 & "::" & L20 -> 10.1::
F55: 10.2 | J55: с НДС | N55: =F55 & "::" & L20 -> 10.2::
G58: FUEL_DATA_NATURAL_GAS_RANGE | K58: =$D57 -> 0 | L58: =$D57 -> 0 | M58: =$D57 -> 0 | N58: =$D57 -> 0 | P58: =$D57 -> 0 | Q58: =$D57 -> 0 | R58: =$D57 -> 0 | S58: =$D57 -> 0
G59: FUEL_DATA_GAS_RANGE
G60: FUEL_DATA_GENERIC_RANGE | K60: =K59*K58 -> 0 | L60: =L59*L58 -> 0 | M60: =M59*M58 -> 0 | P60: =P59*P58 -> 0 | Q60: =Q59*Q58 -> 0 | R60: =R59*R58 -> 0
G61: FUEL_DATA_EE_RANGE | M61: =IF(M65=0,0,M68*1000/M65) -> 0 | R61: =IF(R65=0,0,R68*1000/R65) -> 0
G62: FUEL_DATA_EMPTY_RANGE | K62: =K61*K58 -> 0 | L62: =L61*L58 -> 0 | M62: =IF(M65=0,0,M69*1000/M65) -> 0 | P62: =P61*P58 -> 0 | Q62: =Q61*Q58 -> 0 | R62: =IF(R65=0,0,R69*1000/R65) -> 0
G63: FUEL_DATA_NATURAL_GAS_PREVIOUS_RANGE | K63: =IF(K67=0,0,K68*1000/K67) -> 0 | L63: =IF(L67=0,0,L68*1000/L67) -> 0 | M63: =IF(M67=0,0,M68*1000/M67) -> 0 | P63: =IF(P67=0,0,P68*1000/P67) -> 0 | Q63: =IF(Q67=0,0,Q68*1000/Q67) -> 0 | R63: =IF(R67=0,0,R68*1000/R67) -> 0
G64: FUEL_DATA_GAS_PREVIOUS_RANGE | K64: =IF(K67=0,0,K69*1000/K67) -> 0 | L64: =IF(L67=0,0,L69*1000/L67) -> 0 | M64: =IF(M67=0,0,M69*1000/M67) -> 0 | P64: =IF(P67=0,0,P69*1000/P67) -> 0 | Q64: =IF(Q67=0,0,Q69*1000/Q67) -> 0 | R64: =IF(R67=0,0,R69*1000/R67) -> 0
G65: FUEL_DATA_GENERIC_PREVIOUS_RANGE
G66: FUEL_DATA_EE_PREVIOUS_RANGE
K67: =K65*K66 -> 0 | L67: =L65*L66 -> 0 | M67: =M65*M66 -> 0 | P67: =P65*P66 -> 0 | Q67: =Q65*Q66 -> 0 | R67: =R65*R66 -> 0
K68: =K61*K65/1000 -> 0 | L68: =L61*L65/1000 -> 0 | M68: =M59*M65/1000+M76+M81+M86 -> 0 | P68: =P61*P65/1000 -> 0 | Q68: =Q61*Q65/1000 -> 0 | R68: =R59*R65/1000+R76+R81+R86 -> 0
K69: =K62*K65/1000 -> 0 | L69: =L62*L65/1000 -> 0 | M69: =M60*M65/1000+M77+M82+M87 -> 0 | P69: =P62*P65/1000 -> 0 | Q69: =Q62*Q65/1000 -> 0 | R69: =R60*R65/1000+R77+R82+R87 -> 0
K71: =K70*K58 -> 0 | P71: =P70*P58 -> 0
M74: =M73*M58 -> 0 | R74: =R73*R58 -> 0
M76: =M73*M75/1000 -> 0 | R76: =R73*R75/1000 -> 0
M77: =M74*M75/1000 -> 0 | R77: =R74*R75/1000 -> 0
M79: =M78*M58 -> 0 | R79: =R78*R58 -> 0
M81: =M78*M80/1000 -> 0 | R81: =R78*R80/1000 -> 0
M82: =M79*M80/1000 -> 0 | R82: =R79*R80/1000 -> 0
M84: =M83*M58 -> 0 | R84: =R83*R58 -> 0
M86: =M83*M85/1000 -> 0 | R86: =R83*R85/1000 -> 0
M87: =M84*M85/1000 -> 0 | R87: =R84*R85/1000 -> 0
N88: =N91*N90 -> 0 | S88: =S91*S90 -> 0
N89: =N92*N90 -> 0 | S89: =S92*S90 -> 0
N92: =N91*N58 -> 0 | S92: =S91*S58 -> 0
D96: =NDS -> 1.2 | F96: =B96 -> 0 | G96: МО / Организация / Филиал / Кол-во объектов | M96: =SUM(P107:GM107)+SUM(P127:GM127) -> 0 | W96: Включить в расчёт | AA96: Включить в расчёт | AE96: Включить в расчёт | AI96: Включить в расчёт | AM96: Включить в расчёт | AQ96: Включить в расчёт | AU96: Включить в расчёт | AY96: Включить в расчёт | BC96: Включить в расчёт | BK96: Включить в расчёт | BO96: Включить в расчёт | BS96: Включить в расчёт | BW96: Включить в расчёт | CE96: Включить в расчёт | CI96: Включить в расчёт | CM96: Включить в расчёт | CQ96: Включить в расчёт | CU96: Включить в расчёт | CY96: Включить в расчёт | DC96: Включить в расчёт | DK96: Включить в расчёт | DO96: Включить в расчёт | DS96: Включить в расчёт | DW96: Включить в расчёт | EA96: Включить в расчёт | EE96: Включить в расчёт | EI96: Включить в расчёт | EM96: Включить в расчёт | EQ96: Включить в расчёт | EU96: Включить в расчёт | EY96: Включить в расчёт | FC96: Включить в расчёт | FG96: Включить в расчёт | FK96: Включить в расчёт | FO96: Включить в расчёт | FS96: Включить в расчёт | FW96: Включить в расчёт | GA96: Включить в расчёт | GE96: Включить в расчёт | GH96: =SUMIF($P$53:$GE$53,"12 месяцев",$P107:$GE107)+SUMIF($P$53:$GE$53,"12 месяцев",$P127:$GE127) -> 0 | GI96: =SUMIF($P$53:$GE$53,"9 месяцев",$P107:$GE107)+SUMIF($P$53:$GE$53,"9 месяцев",$P127:$GE127) -> 0 | GJ96: =SUMIF($P$53:$GE$53,"I полугодие",$P107:$GE107)+SUMIF($P$53:$GE$53,"I полугодие",$P127:$GE127) -> 0 | GK96: =SUMIF($P$53:$GE$53,"I квартал",$P107:$GE107)+SUMIF($P$53:$GE$53,"I квартал",$P127:$GE127) -> 0
S97: =$D96 -> 1.2 | W97: =$D96 -> 1.2 | AA97: =$D96 -> 1.2 | AE97: =$D96 -> 1.2 | AI97: =$D96 -> 1.2 | AM97: =$D96 -> 1.2 | AQ97: =$D96 -> 1.2 | AU97: =$D96 -> 1.2 | AY97: =$D96 -> 1.2 | BC97: =$D96 -> 1.2 | BG97: =$D96 -> 1.2 | BK97: =$D96 -> 1.2 | BO97: =$D96 -> 1.2 | BS97: =$D96 -> 1.2 | BW97: =$D96 -> 1.2 | CA97: =$D96 -> 1.2 | CE97: =$D96 -> 1.2 | CI97: =$D96 -> 1.2 | CM97: =$D96 -> 1.2 | CQ97: =$D96 -> 1.2 | CU97: =$D96 -> 1.2 | CY97: =$D96 -> 1.2 | DC97: =$D96 -> 1.2 | DG97: =$D96 -> 1.2 | DK97: =$D96 -> 1.2 | DO97: =$D96 -> 1.2 | DS97: =$D96 -> 1.2 | DW97: =$D96 -> 1.2 | EA97: =$D96 -> 1.2 | EE97: =$D96 -> 1.2 | EI97: =$D96 -> 1.2 | EM97: =$D96 -> 1.2 | EQ97: =$D96 -> 1.2 | EU97: =$D96 -> 1.2 | EY97: =$D96 -> 1.2 | FC97: =$D96 -> 1.2 | FG97: =$D96 -> 1.2 | FK97: =$D96 -> 1.2 | FO97: =$D96 -> 1.2 | FS97: =$D96 -> 1.2 | FW97: =$D96 -> 1.2 | GA97: =$D96 -> 1.2 | GE97: =$D96 -> 1.2
F98: 1.1.1 | G98: Цена натурального топлива без учёта транспортировки (руб./ед.изм.) | J98: без НДС | N98: =F98 & "::" & L96 -> 1.1.1:: | BG98: =IF(BG104=0,0,(BG107-BG115-BG120-BG125)*1000/BG104) -> 0 | CA98: =IF(CA104=0,0,(CA107-CA115-CA120-CA125)*1000/CA104) -> 0 | DG98: =IF(DG104=0,0,(DG107-DG115-DG120-DG125)*1000/DG104) -> 0
F99: 1.1.2 | J99: с НДС | N99: =F99 & "::" & L96 -> 1.1.2:: | W99: =W98*W97 -> 0 | AA99: =AA98*AA97 -> 0 | AE99: =AE98*AE97 -> 0 | AI99: =AI98*AI97 -> 0 | AM99: =AM98*AM97 -> 0 | AQ99: =AQ98*AQ97 -> 0 | AU99: =AU98*AU97 -> 0 | AY99: =AY98*AY97 -> 0 | BC99: =BC98*BC97 -> 0 | BG99: =IF(BG104=0,0,(BG108-BG116-BG121-BG126)*1000/BG104) -> 0 | BK99: =BK98*BK97 -> 0 | BO99: =BO98*BO97 -> 0 | BS99: =BS98*BS97 -> 0 | BW99: =BW98*BW97 -> 0 | CA99: =IF(CA104=0,0,(CA108-CA116-CA121-CA126)*1000/CA104) -> 0 | CE99: =CE98*CE97 -> 0 | CI99: =CI98*CI97 -> 0 | CM99: =CM98*CM97 -> 0 | CQ99: =CQ98*CQ97 -> 0 | CU99: =CU98*CU97 -> 0 | CY99: =CY98*CY97 -> 0 | DC99: =DC98*DC97 -> 0 | DG99: =IF(DG104=0,0,(DG108-DG116-DG121-DG126)*1000/DG104) -> 0 | DK99: =DK98*DK97 -> 0 | DO99: =DO98*DO97 -> 0 | DS99: =DS98*DS97 -> 0 | DW99: =DW98*DW97 -> 0 | EA99: =EA98*EA97 -> 0 | EE99: =EE98*EE97 -> 0 | EI99: =EI98*EI97 -> 0 | EM99: =EM98*EM97 -> 0 | EQ99: =EQ98*EQ97 -> 0 | FC99: =FC98*FC97 -> 0 | FG99: =FG98*FG97 -> 0 | FK99: =FK98*FK97 -> 0 | FO99: =FO98*FO97 -> 0 | FS99: =FS98*FS97 -> 0 | FW99: =FW98*FW97 -> 0 | GA99: =GA98*GA97 -> 0 | GE99: =GE98*GE97 -> 0
F100: 1.2.1 | G100: Цена натурального топлива с учётом транспортировки (руб./ед.изм.) | J100: без НДС | N100: =F100 & "::" & L96 -> 1.2.1:: | S100: =IF(S104=0,0,S107*1000/S104) -> 0 | AY100: =IF(AY104=0,0,AY107*1000/AY104) -> 0 | BC100: =IF(BC104=0,0,BC107*1000/BC104) -> 0 | BG100: =IF(BG104=0,0,BG107*1000/BG104) -> 0 | BK100: =IF(BK104=0,0,BK107*1000/BK104) -> 0 | BO100: =IF(BO104=0,0,BO107*1000/BO104) -> 0 | BS100: =IF(BS104=0,0,BS107*1000/BS104) -> 0 | BW100: =IF(BW104=0,0,BW107*1000/BW104) -> 0 | CA100: =IF(CA104=0,0,CA107*1000/CA104) -> 0 | CE100: =IF(CE104=0,0,CE107*1000/CE104) -> 0 | CI100: =IF(CI104=0,0,CI107*1000/CI104) -> 0 | CM100: =IF(CM104=0,0,CM107*1000/CM104) -> 0 | CQ100: =IF(CQ104=0,0,CQ107*1000/CQ104) -> 0 | CU100: =IF(CU104=0,0,CU107*1000/CU104) -> 0 | CY100: =IF(CY104=0,0,CY107*1000/CY104) -> 0 | DC100: =IF(DC104=0,0,DC107*1000/DC104) -> 0 | DG100: =IF(DG104=0,0,DG107*1000/DG104) -> 0 | DK100: =IF(DK104=0,0,DK107*1000/DK104) -> 0 | DO100: =IF(DO104=0,0,DO107*1000/DO104) -> 0 | DS100: =IF(DS104=0,0,DS107*1000/DS104) -> 0 | DW100: =IF(DW104=0,0,DW107*1000/DW104) -> 0 | EA100: =IF(EA104=0,0,EA107*1000/EA104) -> 0 | EE100: =IF(EE104=0,0,EE107*1000/EE104) -> 0 | EI100: =IF(EI104=0,0,EI107*1000/EI104) -> 0 | EM100: =IF(EM104=0,0,EM107*1000/EM104) -> 0 | EQ100: =IF(EQ104=0,0,EQ107*1000/EQ104) -> 0 | FC100: =IF(FC104=0,0,FC107*1000/FC104) -> 0 | FG100: =IF(FG104=0,0,FG107*1000/FG104) -> 0 | FK100: =IF(FK104=0,0,FK107*1000/FK104) -> 0 | FO100: =IF(FO104=0,0,FO107*1000/FO104) -> 0 | FS100: =IF(FS104=0,0,FS107*1000/FS104) -> 0 | FW100: =IF(FW104=0,0,FW107*1000/FW104) -> 0 | GA100: =IF(GA104=0,0,GA107*1000/GA104) -> 0 | GE100: =IF(GE104=0,0,GE107*1000/GE104) -> 0
